Workbook

Sheet Données
K5: ="09/2010" -> 09/2010
E7: Dimensionnement Hybride
J10: =TODAY() -> 2019-01-15
C12: Références du projet
K14: Version 01/2019
G16: Attention ! Les menus déroulants ne s'ouvrent pas forcément en haut de la liste. Il se peut que des valeurs soient situées plus haut que la sélection.
C18: Données géographiques
C21: Département de l'installation | G21: Altitude | J21: Température extérieure de base en °C
C22: 67 - Bas-Rhin | G22: Entre 0 et 200 m | J22: ='BdD Bâtiment'!D100 -> -15
C25: Caractéristiques du bâtiment
C29: Surface de la maison en m² | G29: Hauteur moyenne sous plafond en m | J29: Température de confort en °C
C30: 100 | G30: 2.5 | J30: 20
C32: Energie chauffage actuelle | G32: Chaudière actuelle (Rendement) | J32: ECS actuelle
C33: Chauffage électrique | G33: Chauffage électrique | J33: idem chauffage
G34: =IF(AND(C33="Chauffage électrique",G33<>"Chauffage électrique"),"Sélectionnez le type de générateur adéquat",IF(AND(G33="Chauffage électrique",C33<>"Chauffage électrique"),"Sélectionnez le type de générateur adéquat","")) -> 
C35: Nombre de circuits | G35: Types de circuits | J35: Température maxi départ chauffage
C36: 2 | G36: 2 Vannes | J36: 55
D38: =IF(OR(C36="Radiateurs",G36="Radiateurs"),1,0) -> 0
C40: Estimation des besoins Chauffage et ECS
C42: Niveau d'isolation connu (G)
C43: NON
C45: Nombre de personnes dans le logement | G45: Consommation d'eau chaude
C46: 3 | G46: Confortable (70 l/j à 55°C)
C48: Consommation actuelle d'énergie par an (avec ECS) | J48: Niveau d'isolation G estimé
C49: 20000 | D49: =VLOOKUP(C33,CONSO,2,FALSE) -> kWh électrique | J49: ='BdD Bâtiment'!D108 -> 1.07
C50: =IF(C53=" ","Entrez une consommation électrique réaliste","") ->  | J50: =IF(C43="NON","Valeur de G estimée à renseigner dans Niveau d'isolation (G)") -> Valeur de G estimée à renseigner dans Niveau d'isolation (G)
C51: Niveau d'isolation (G) | E51: Déperditions en KW | G51: Facteur de dimensionnement PAC choisi | J51: Puissance PAC conseillée
C52: 1.07 | E52: ='BdD Bâtiment'!F94 -> 9 | G52: 0.5 | J52: ='BdD Bâtiment'!$F$95 -> 4.5
C53: =IFERROR(IF(C43="OUI","",IF(AND(C43="NON",C52<>J49),"Attention ! Valeur du G différent de G estimé",""))," ") -> 
C55: Récapitulaltif de l'estimation des besoins Chauffage et ECS
C57: Besoins annuels totaux estimés en kWh | G57: Besoins annuels chauffage | J57: Besoins annuels ECS*
C58: =ROUND(G58+J58,-1) -> 20000 | G58: =ROUND('Consommations et Coûts de prod.'!E6,-1) -> 15600 | H58: + | J58: =ROUND('BdD Bâtiment'!D137,-1) -> 4400
J59: =IF(OR($C$74='ChoixPAC + ChoixChaudière'!D98,C74='ChoixPAC + ChoixChaudière'!D100,C74='ChoixPAC + ChoixChaudière'!D102),"* Dont 10% de pertes par le ballon ECS","") -> * Dont 10% de pertes par le ballon ECS
D60: Puissance PAC conseillée (kW) : | E60: =ROUND(J52,1) -> 4.5 | I60: Puissance chaudière conseillée (kW) : | J60: ='ChoixPAC + ChoixChaudière'!E233 -> 12
C62: Caractéristiques installation PAC HYBRIDE
C67: Type de PAC | E67: Gamme
C68: ='ChoixPAC + ChoixChaudière'!$E$55 -> Aérothermie | E68: Primea
C73: Modèle de PAC | E73: Facteur de dimensionnement choisi | G73: PAC préconisée | J73: Placement du système hybride
C74: OECOIL-HYBRID | E74: =G52 -> 0.5 | G74: ='ChoixPAC + ChoixChaudière'!E87 -> HPI 4,5MR | J74: VERTICAL
C75: =IF(AND($C$74<>'ChoixPAC + ChoixChaudière'!$D$98,Données!$C$36='BdD Bâtiment'!$C$42),"Attention ! Maximum 2 circuits !","") -> 
C76: Sélection PAC | E76: Facteur de dimensionnement réel | G76: Energie d'appoint | J76: Type de raccordement
C77: AWHP V200 4,5 MR | E77: ='ChoixPAC + ChoixChaudière'!F59 -> 0.5111111111 | G77: ='BdD Bâtiment'!$C$79 -> Hydraulique | J77: CHEMINEE
C78: =IF(AND($C$74='ChoixPAC + ChoixChaudière'!D98,Données!C77=IFERROR(VLOOKUP('ChoixPAC + ChoixChaudière'!D176,'ChoixPAC + ChoixChaudière'!D111:D117,1,FALSE),0)),"",IF(AND(Données!C74='ChoixPAC + ChoixChaudière'!D99,Données!C77=IFERROR(VLOOKUP(Données!C77,'ChoixPAC + ChoixChaudière'!E111:E117,1,FALSE),0)),"",IF(AND(C74='ChoixPAC + ChoixChaudière'!D100,Données!C77=IFERROR(VLOOKUP(Données!C77,'ChoixPAC + ChoixChaudière'!I98:I104,1,FALSE),0)),"",IF(AND($C$74='ChoixPAC + ChoixChaudière'!D101,Données!C77=IFERROR(VLOOKUP('ChoixPAC + ChoixChaudière'!D176,'ChoixPAC + ChoixChaudière'!D111:D117,1,FALSE),0)),"",IF(AND(Données!C74='ChoixPAC + ChoixChaudière'!D101,Données!C77=IFERROR(VLOOKUP(Données!C77,'ChoixPAC + ChoixChaudière'!I98:I105,1,FALSE),0)),"",IF(AND(Données!C74='ChoixPAC + ChoixChaudière'!D102,Données!C77=IFERROR(VLOOKUP(Données!C77,'ChoixPAC + ChoixChaudière'!I98:I105,1,FALSE),0)),"","Actualisez le modèle de PAC ")))))) ->  | G78: =IF(AND(C36<>"Radiateurs",G36<>"Radiateurs"),"",IF(AND(J36>'BdD PAC'!P37,Q77<>1),"Prévoir un appoint hydraulique","")) -> 
C79: Type de chaudière d'appoint | E79: Sélection Chaudière | G79: Chaudière d'appoint préconisée
C80: Fioul condensation | E80: FSCR CONDENS 19 P | G80: ='ChoixPAC + ChoixChaudière'!$F$266 -> FSCR CONDENS 19 P
C81: =IF(AND(C74='ChoixPAC + ChoixChaudière'!D100,OR(Données!C80='BdD Bâtiment'!C84,Données!C80='BdD Bâtiment'!C85)),"",IF(AND(C80='BdD Bâtiment'!C86,OR(Données!C74='ChoixPAC + ChoixChaudière'!D99,Données!C74='ChoixPAC + ChoixChaudière'!D98)),"",IF(AND(C74='ChoixPAC + ChoixChaudière'!D101,Données!C80='BdD Bâtiment'!C86),"",IF(AND(C74='ChoixPAC + ChoixChaudière'!D102,OR(Données!C80='BdD Bâtiment'!C84,Données!C80='BdD Bâtiment'!C85)),"","Type de chaudière non adapté")))) -> 
C82: Solaire | G82: Taux de couverture ECS en % | J82: Taux de couverture chauffage en %
C83: NON | G83: 20 | J83: 50
C86: Type de fonctionnement
C87: Economique
C90: Résultats et performances
C114: Actuelle | D114: Hybrid * | E114: Gaz condens. | F114: Gaz | G114: Fioul condens. | H114: Fioul | I114: Electricité | J114: Propane | K114: propane condens
B115: TOTAL [€] | C115: =SUM('Consommations et Coûts de prod.'!D52:'Consommations et Coûts de prod.'!D54) -> 2927.412967 | D115: =D117+D118 -> 740.3029796 | E115: =SUM('Consommations et Coûts de prod.'!F52:'Consommations et Coûts de prod.'!F54) -> 1372.959286 | F115: =SUM('Consommations et Coûts de prod.'!G52:'Consommations et Coûts de prod.'!G54) -> 1522.490884 | G115: =SUM('Consommations et Coûts de prod.'!H52:'Consommations et Coûts de prod.'!H54) -> 1850.629358 | H115: =SUM('Consommations et Coûts de prod.'!I52:'Consommations et Coûts de prod.'!I54) -> 2028.778076 | I115: =SUM('Consommations et Coûts de prod.'!J52:'Consommations et Coûts de prod.'!J54) -> 2927.412967 | J115: ='Consommations et Coûts de prod.'!K52+'Consommations et Coûts de prod.'!K54 -> 3183.607312 | K115: ='Consommations et Coûts de prod.'!L52+'Consommations et Coûts de prod.'!L54 -> 2819.766476
B117: Chauffage [€] | C117: ='Consommations et Coûts de prod.'!J39 -> 2283.385333 | D117: ='Consommations et Coûts de prod.'!E52 -> 525.9033053 | E117: ='Consommations et Coûts de prod.'!E6/'BdD Bâtiment'!D86*'Coûts énergies et Abonnements'!E87 -> 1051.825185 | F117: ='Consommations et Coûts de prod.'!E6/'BdD Bâtiment'!D87*'Coûts énergies et Abonnements'!E87 -> 1187.544564 | G117: ='Consommations et Coûts de prod.'!E6/'BdD Bâtiment'!D85*'Coûts énergies et Abonnements'!D40/100 -> 1427.307059 | H117: ='Consommations et Coûts de prod.'!E6/'BdD Bâtiment'!D84*'Coûts énergies et Abonnements'!D40/100 -> 1582.44913 | I117: ='Consommations et Coûts de prod.'!E6*'Consommations et Coûts de prod.'!H64/100 -> 2283.385333 | J117: ='Consommations et Coûts de prod.'!E6/'BdD Bâtiment'!D87*'Coûts énergies et Abonnements'!D48/100 -> 2483.217204 | K117: ='Consommations et Coûts de prod.'!E6/'BdD Bâtiment'!D86*'Coûts énergies et Abonnements'!D48/100 -> 2199.420952
B118: ECS[€] | C118: ='Consommations et Coûts de prod.'!G39 -> 644.0276333 | D118: ='Consommations et Coûts de prod.'!E54 -> 214.3996743 | E118: ='Consommations et Coûts de prod.'!E17/0.97*'Coûts énergies et Abonnements'!E87 -> 321.1341008 | F118: ='Consommations et Coûts de prod.'!E17/'BdD Bâtiment'!D87*'Coûts énergies et Abonnements'!E87 -> 334.9463202 | G118: ='Consommations et Coûts de prod.'!E17/0.97*'Coûts énergies et Abonnements'!D40/100 -> 423.322299 | H118: ='Consommations et Coûts de prod.'!E17/'BdD Bâtiment'!D84*'Coûts énergies et Abonnements'!D40/100 -> 446.3289457 | I118: ='Consommations et Coûts de prod.'!E17*'Consommations et Coûts de prod.'!H64/100 -> 644.0276333 | J118: ='Consommations et Coûts de prod.'!E17/'BdD Bâtiment'!D87*'Coûts énergies et Abonnements'!D48/100 -> 700.3901075 | K118: ='Consommations et Coûts de prod.'!E17/'BdD Bâtiment'!D86*'Coûts énergies et Abonnements'!D48/100 -> 620.3455238
B120: Abonnements [€] | C120: ='Coûts énergies et Abonnements'!$E$72 -> 93.36 | D120: ='Coûts énergies et Abonnements'!E81+'Coûts énergies et Abonnements'!E74 -> 46.92 | E120: ='Coûts énergies et Abonnements'!E86 -> 250.53 | F120: =E120 -> 250.53 | G120: =G115-G117-G118 -> 0 | H120: =H115-H117-H118 -> 0 | I120: ='Coûts énergies et Abonnements'!$D$79-'Coûts énergies et Abonnements'!$D$74 -> 93.36 | J120: =J115-J117-J118 -> 0 | K120: =K115-K117-K118 -> 0
D121: * Rappel type de chaudière : | E121: ='ChoixPAC + ChoixChaudière'!$H$206 -> Fioul condensation | F121: =IF($C$74<>'ChoixPAC + ChoixChaudière'!$D$100,"","raccordée sur :") -> raccordée sur : | G121: =IF($C$74<>'ChoixPAC + ChoixChaudière'!$D$100,"",'ChoixPAC + ChoixChaudière'!$E$206) -> CHEMINEE
C122: Les sommes totales affichées ne prennent en compte que le coüt de chauffage et de l'ECS. Le coût lié à l'abonnement est donnée à titre indicatif et diffère en fonction de l'energie d'appoint et de la puissance de la PAC. L'installation et le remplissage d'une éventuelle cuve ainsi que la livraison d'une energie n'est pas prise en compte.
D124: Récapitulatif énergétique | G124: Chauffage | H124: ECS
D126: Besoins Annuels | G126: =G58 -> 15600 | H126: =J58 -> 4400 | I126: kWh/an
D128: Production Annuelle PAC | G128: =ROUND('Consommations et Coûts de prod.'!E9,-1) -> 14490 | H128: =ROUND(Résultats!$BF$56,-1) -> 2720 | I128: kWh/an
D129: Consommation électrique PAC | G129: =ROUND(Résultats!BG38,-1) -> 3050 | H129: =ROUND(Résultats!BF60,-1) -> 630 | I129: kWh/an
D130: COP moyen PAC (sur la période de fonctionnement) | G130: ='Consommations et Coûts de prod.'!E14 -> 4.74 | H130: =IFERROR(H128/H129,0) -> 4.317460317
D131: Energie "gratuite" PAC | G131: =ROUND('Consommations et Coûts de prod.'!E13,-1) -> 11440 | H131: =ROUND(H128-H129,-1) -> 2090 | I131: kWh/an
D132: Production annuelle solaire | G132: ='Consommations et Coûts de prod.'!E7 -> 0 | H132: =IF(C83<>"NON",H126*(G83/100),0) -> 0 | I132: kWh
D133: =IF(C83<>"NON","Energie 'gratuite' PAC + Solaire","") ->  | G133: =IF(C83="SSC",G131+G132,"") ->  | H133: =IF(C83="NON","",H131+H132) ->  | I133: =IF(H133<>"","kWh/an","") -> 
D134: Production annuelle appoint | G134: =Résultats!BG36 -> 1112.021611 | H134: =Résultats!BF68 -> 1683.925325 | I134: kWh/an
D135: Consommation annuelle appoint | G135: =Résultats!BJ37 -> 1039.272534 | H135: =Résultats!BF69 -> 1695.795896 | I135: kWh/an
D136: Part de production de la PAC | G136: ='Consommations et Coûts de prod.'!$E$11/100 -> 0.93 | H136: ='Consommations et Coûts de prod.'!E24/100 -> 0.62
D137: Part de production de l'appoint | G137: =(100-('Consommations et Coûts de prod.'!E11+'Consommations et Coûts de prod.'!E12))/100 -> 0.07 | H137: ='Consommations et Coûts de prod.'!E23/100 -> 0.38
D138: Part de production solaire | G138: ='Consommations et Coûts de prod.'!E12/100 -> 0 | H138: ='Consommations et Coûts de prod.'!E22/100 -> 0
D139: Economie globale annuelle PAC ECS + Chauffage | G139: =ROUND('Consommations et Coûts de prod.'!D50-'Consommations et Coûts de prod.'!E50,-1) -> 2230 | H139: €
C176: Station de référence: | D176: =VLOOKUP(C22,'Station Météo'!A2:B97,2,FALSE) -> STRASBOURG-ENTZHEIM
B178: Les résultats de cette feuille de calcul sont donnés à titre indicatif. La responsabilité de OERTLI ne peut en aucun cas être engagée.
C180: Pose | D180: Au sol
A181: Chiffrage du matériel De Dietrich
C183: Référence | D183: Colis | F183: Désignation
C185: Pompe A Chaleur | H185: PU | I185: Qté | J185: Prix Total
C186: =IF($C$74="AWHP",AWHP!$C$72,#REF!) ->  | F186: =IF($C$74="AWHP",AWHP!$D$72,#REF!) ->  | H186: HT en € | J186: HT en €
C187: Options
H188: =IF($C$74="AWHP",AWHP!$F$72,#REF!) ->  | I188: 1 | J188: =IF(I188<>"",H188*I188,"") -> 
C189: =#REF! ->  | D189: =#REF! ->  | F189: =#REF! ->  | J189: =IF(F187<>"",H189*I189,"") -> 
C190: =#REF! ->  | D190: =#REF! ->  | F190: =#REF! -> 
C191: =IF($C$74="AWHP",AWHP!$C$75,#REF!) ->  | D191: =IF($C$74="AWHP",AWHP!$E$75,#REF!) ->  | F191: =IF($C$74="AWHP",AWHP!$D$75,#REF!) ->  | H191: =#REF! ->  | I191: =IF(#REF!<>0,#REF!,"") -> 
C192: =#REF! ->  | D192: =#REF! ->  | F192: =#REF! ->  | H192: =#REF! ->  | I192: 1
C193: =#REF! ->  | D193: =#REF! ->  | F193: =#REF! ->  | H193: =IF($C$74="AWHP",AWHP!$F$75,#REF!) ->  | I193: 1
C194: =#REF! ->  | D194: =#REF! ->  | F194: =#REF! ->  | H194: =#REF! ->  | I194: =IF(#REF!<>0,#REF!,"") -> 
C195: =#REF! ->  | D195: =#REF! ->  | F195: =#REF! ->  | H195: =#REF! ->  | I195: =IF(#REF!<>0,#REF!,"") -> 
C196: =#REF! ->  | D196: =#REF! ->  | F196: =#REF! ->  | H196: =#REF! ->  | I196: =IF(#REF!<>0,#REF!,"") -> 
C197: =#REF! ->  | D197: =#REF! ->  | F197: =#REF! ->  | H197: =#REF! ->  | I197: 1
C198: =#REF! ->  | D198: =#REF! ->  | F198: =#REF! ->  | H198: =#REF! ->  | I198: 1
C199: =#REF! ->  | D199: =#REF! ->  | F199: =#REF! ->  | H199: =#REF! ->  | I199: 1
C200: =#REF! ->  | D200: =#REF! ->  | F200: =#REF! ->  | H200: =#REF! ->  | I200: 1
C201: =#REF! ->  | D201: =#REF! ->  | F201: =#REF! ->  | H201: =#REF! ->  | I201: 1
C202: =#REF! ->  | D202: =#REF! ->  | F202: =#REF! ->  | H202: =#REF! ->  | I202: 1
C203: =#REF! ->  | D203: =#REF! ->  | F203: =#REF! ->  | H203: =#REF! ->  | I203: 1
H204: =#REF! ->  | I204: 1
C205: =#REF! ->  | D205: =#REF! ->  | F205: =#REF! ->  | H205: =#REF! ->  | I205: 1
C206: =#REF! ->  | D206: =#REF! ->  | F206: =#REF! ->  | I206: 1
C207: =#REF! ->  | D207: =#REF! ->  | F207: =#REF! ->  | H207: =#REF! ->  | I207: 1
H208: =#REF! ->  | I208: 1
C209: =#REF! ->  | D209: =#REF! ->  | F209: =#REF! ->  | H209: =#REF! ->  | I209: 1
C210: =#REF! ->  | D210: =#REF! ->  | F210: =#REF! ->  | I210: 1
C211: =#REF! ->  | D211: =#REF! ->  | F211: =#REF! ->  | H211: =#REF! ->  | I211: 1
H212: =#REF! ->  | I212: 1
F213: =#REF! ->  | H213: =#REF! ->  | I213: 1
I214: 1
H215: =#REF! ->  | I215: 1
C220: PRIX TOTAL DU SYSTEME (PP.H.T. 2010 en €)
C222: Attention ! Ne pas oublier de chiffrer l'eau glycolée ! | J222: =SUM(J187:J221) -> 
B235: Les consommations sont estimées en tenant compte des choix pris par l'utilisateur et des données climatiques de la station de référence prise en compte.
B236: Dans tous les cas, cette simulation n'est qu'une estimation sommaire.

Sheet Chiffrage
F3: Chiffrage de systèmes hybrides
B8: Référence de l'étude | L8: =TODAY() -> 2019-01-15
L12: =Données!K14 -> Version 01/2019
B13: Données
B16: Importer le dimensionnement
B17: NON
P18: Marco
B19: Gamme | F19: Système | P19: =OFFRE!D5 -> Confort
B20: Confort | F20: OENOVIAGAZ-HYBRID | P20: =OFFRE!D6 -> Primea
B21: =OFFRE!$N$7 -> Primea | F21: =OFFRE!$P$7 -> OECOIL-HYBRID
F22: =IF(OR(AND($B$17=OFFRE!$B$6,Chiffrage!$F$20=OFFRE!$I$6),AND($B$17=OFFRE!$B$5,Chiffrage!$F$21=OFFRE!$I$6)),"ECS Micro-accumulée","") -> 
B23: Modèle PAC | F23: =IF(AND($B$17=OFFRE!$B$5,Chiffrage!$B$21=OFFRE!$D$5),"Montage",IF(AND($B$17=OFFRE!$B$6,Chiffrage!$B$20=OFFRE!$D$5),"Montage",IF(AND($B$17=OFFRE!$B$5,Chiffrage!$F$21=OFFRE!$I$7),"Raccordement",IF(AND($B$17=OFFRE!$B$6,Chiffrage!$F$20=OFFRE!$I$7),"Raccordement","")))) -> Montage | J23: Condensation | P23: =OFFRE!D12 -> CHEMINEE
B24: HPI 4,5 MR | F24: VERTICAL | J24: OUI
B25: =OFFRE!$R$7 -> AWHP V200 O 4,5 MR | F25: =IF($F$21=OFFRE!$I$7,Données!$J$77,Données!$J$74) -> CHEMINEE | J25: =OFFRE!$T$14 -> OUI
P26: =OFFRE!I7 -> OECOIL-HYBRID
F27: Type de fumisterie | J27: Configuration Fumisterie
F28: RIGIDE | J28: B23P
F29: FLEX | J29: C93
B31: Modèle Chaudière | F31: Nb de circuits | J31: Circuit
B32: GSCR 15 | F32: 2 | J32: Direct + Vanne
B33: =OFFRE!$T$10 -> FSCR CONDENS 19 P | F33: =OFFRE!$N$10 -> 2 | J33: =OFFRE!$T$7 -> 2 Vannes
B36: =IF($B$17=OFFRE!$B$5,"Si une modification a été apportée dans le dimensionnement, pensez à revalider l'ensemble des paramètres.","") -> 
B38: Solution OERTLI
B41: Système | C41: Référence | D41: Désignation | H41: Colis | I41: Prix Unitaire | J41: Qté | K41: Prix Total
I42: HT en € | K42: HT en €
B43: =IF(OFFRE!B162="","",OFFRE!B162) -> Pompe à chaleur
B44: =IF(OFFRE!B163="","",OFFRE!B163) ->  | C44: =IF(OFFRE!C163<>"",OFFRE!C163,"") -> 7670836 | D44: =IF(OFFRE!D163<>"",OFFRE!D163,"") -> AWHP 4.5 MR-GSCR 15 HYB V200 | H44: =IF(OFFRE!H163<>"",OFFRE!H163,"") -> - | I44: =IF(OFFRE!I163<>"",OFFRE!I163,"") -> 8405 | J44: =OFFRE!J163 -> 1 | K44: =IF(OFFRE!K163="","",OFFRE!K163) -> 8405
B45: =IF(OFFRE!B164="","",OFFRE!B164) ->  | C45: =IF(OFFRE!C164<>"",OFFRE!C164,"") ->  | D45: =IF(OFFRE!D164<>"",OFFRE!D164,"") ->  | H45: =IF(OFFRE!H164<>"",OFFRE!H164,"") ->  | I45: =IF(OFFRE!I164<>"",OFFRE!I164,"") ->  | K45: =IF(OFFRE!K164="","",OFFRE!K164) -> 
B46: =IF(OFFRE!B165="","",OFFRE!B165) -> Accessoires | C46: =IF(OFFRE!C165<>"",OFFRE!C165,"") ->  | D46: =IF(OFFRE!D165<>"",OFFRE!D165,"") ->  | H46: =IF(OFFRE!H165<>"",OFFRE!H165,"") ->  | I46: =IF(OFFRE!I165<>"",OFFRE!I165,"") ->  | K46: =IF(OFFRE!K165="","",OFFRE!K165) -> 
B47: =IF(OFFRE!B166="","",OFFRE!B166) ->  | C47: =IF(OFFRE!C166<>"",OFFRE!C166,"") ->  | D47: =IF(OFFRE!D166<>"",OFFRE!D166,"") ->  | H47: =IF(OFFRE!H166<>"",OFFRE!H166,"") ->  | I47: =IF(OFFRE!I166<>"",OFFRE!I166,"") ->  | K47: =IF(OFFRE!K166="","",OFFRE!K166) -> 
C48: =IF(OFFRE!C167<>"",OFFRE!C167,"") -> 100011222 | D48: =IF(OFFRE!D167<>"",OFFRE!D167,"") -> SUPPORT MURALE & PLOTS ANTIVIBRATILES POUR ROE-II AWHP 6-8 | H48: =IF(OFFRE!H167<>"",OFFRE!H167,"") -> EH95 | I48: =IF(OFFRE!I167<>"",OFFRE!I167,"") -> 177 | K48: =IF(OFFRE!K167="","",OFFRE!K167) -> 
C49: =IF(OFFRE!C168<>"",OFFRE!C168,"") ->  | D49: =IF(OFFRE!D168<>"",OFFRE!D168,"") ->  | H49: =IF(OFFRE!H168<>"",OFFRE!H168,"") ->  | I49: =IF(OFFRE!I168<>"",OFFRE!I168,"") ->  | K49: =IF(OFFRE!K168="","",OFFRE!K168) -> 
C50: =IF(OFFRE!C169<>"",OFFRE!C169,"") -> 100012533 | D50: =IF(OFFRE!D169<>"",OFFRE!D169,"") -> SUPPORT POSE AU SOL AWHP | H50: =IF(OFFRE!H169<>"",OFFRE!H169,"") -> EH112 | I50: =IF(OFFRE!I169<>"",OFFRE!I169,"") -> 47 | K50: =IF(OFFRE!K169="","",OFFRE!K169) -> 
C51: =IF(OFFRE!C170<>"",OFFRE!C170,"") ->  | D51: =IF(OFFRE!D170<>"",OFFRE!D170,"") ->  | H51: =IF(OFFRE!H170<>"",OFFRE!H170,"") ->  | I51: =IF(OFFRE!I170<>"",OFFRE!I170,"") ->  | K51: =IF(OFFRE!K170="","",OFFRE!K170) -> 
C52: =IF(OFFRE!C171<>"",OFFRE!C171,"") ->  | D52: =IF(OFFRE!D171<>"",OFFRE!D171,"") ->  | H52: =IF(OFFRE!H171<>"",OFFRE!H171,"") ->  | I52: =IF(OFFRE!I171<>"",OFFRE!I171,"") ->  | K52: =IF(OFFRE!K171="","",OFFRE!K171) -> 
C53: =IF(OFFRE!C172<>"",OFFRE!C172,"") ->  | D53: =IF(OFFRE!D172<>"",OFFRE!D172,"") ->  | H53: =IF(OFFRE!H172<>"",OFFRE!H172,"") ->  | I53: =IF(OFFRE!I172<>"",OFFRE!I172,"") ->  | K53: =IF(OFFRE!K172="","",OFFRE!K172) -> 
C54: =IF(OFFRE!C173<>"",OFFRE!C173,"") ->  | D54: =IF(OFFRE!D173<>"",OFFRE!D173,"") ->  | H54: =IF(OFFRE!H173<>"",OFFRE!H173,"") ->  | I54: =IF(OFFRE!I173<>"",OFFRE!I173,"") ->  | K54: =IF(OFFRE!K173="","",OFFRE!K173) -> 
C55: =IF(OFFRE!C174<>"",OFFRE!C174,"") ->  | D55: =IF(OFFRE!D174<>"",OFFRE!D174,"") ->  | H55: =IF(OFFRE!H174<>"",OFFRE!H174,"") ->  | I55: =IF(OFFRE!I174<>"",OFFRE!I174,"") ->  | K55: =IF(OFFRE!K174="","",OFFRE!K174) -> 
C56: =IF(OFFRE!C175<>"",OFFRE!C175,"") -> 100015476 | D56: =IF(OFFRE!D175<>"",OFFRE!D175,"") -> LIAISON FRIGORIFIQUE PE 1/2" 1/4" - LG 10 m | H56: =IF(OFFRE!H175<>"",OFFRE!H175,"") -> EH142 | I56: =IF(OFFRE!I175<>"",OFFRE!I175,"") -> 249 | K56: =IF(OFFRE!K175="","",OFFRE!K175) -> 
C57: =IF(OFFRE!C176<>"",OFFRE!C176,"") -> 100008841 | D57: =IF(OFFRE!D176<>"",OFFRE!D176,"") -> BALLON TAMPON 80L B 80 T | H57: =IF(OFFRE!H176<>"",OFFRE!H176,"") -> EH85 | I57: =IF(OFFRE!I176<>"",OFFRE!I176,"") -> 558 | K57: =IF(OFFRE!K176="","",OFFRE!K176) -> 
C58: =IF(OFFRE!C177<>"",OFFRE!C177,"") -> 100004415 | D58: =IF(OFFRE!D177<>"",OFFRE!D177,"") -> BALLON TAMPON 160L B 150 T | H58: =IF(OFFRE!H177<>"",OFFRE!H177,"") -> EH60 | I58: =IF(OFFRE!I177<>"",OFFRE!I177,"") -> 836 | K58: =IF(OFFRE!K177="","",OFFRE!K177) -> 
C59: =IF(OFFRE!C178<>"",OFFRE!C178,"") -> 7619010 | D59: =IF(OFFRE!D178<>"",OFFRE!D178,"") -> KIT VANNE 3 VOIES | H59: =IF(OFFRE!H178<>"",OFFRE!H178,"") -> EH528 | I59: =IF(OFFRE!I178<>"",OFFRE!I178,"") -> 616 | K59: =IF(OFFRE!K178="","",OFFRE!K178) ->  | L59: =IF(AND(J59<2,OR(AND(J32=OFFRE!$I$15,Chiffrage!B17=OFFRE!B6),AND(J32=OFFRE!$I$16,Chiffrage!B17=OFFRE!B6),AND(J33=OFFRE!$I$15,Chiffrage!B17=OFFRE!B5),AND(J33=OFFRE!$I$16,Chiffrage!B17=OFFRE!B5))),"Sélectionnez 2 colis V3V","") -> 
C60: =IF(OFFRE!C179<>"",OFFRE!C179,"") -> 7626737 | D60: =IF(OFFRE!D179<>"",OFFRE!D179,"") -> KIT ISOLATION MODE CLIMATISATION | H60: =IF(OFFRE!H179<>"",OFFRE!H179,"") -> EH567 | I60: =IF(OFFRE!I179<>"",OFFRE!I179,"") -> 223 | K60: =IF(OFFRE!K179="","",OFFRE!K179) -> 
C61: =IF(OFFRE!C180<>"",OFFRE!C180,"") -> 7636899 | D61: =IF(OFFRE!D180<>"",OFFRE!D180,"") -> KIT SILENCIEUX MODULE EXTERIEUR | H61: =IF(OFFRE!H180<>"",OFFRE!H180,"") -> EH572 | I61: =IF(OFFRE!I180<>"",OFFRE!I180,"") -> 64 | K61: =IF(OFFRE!K180="","",OFFRE!K180) -> 
C62: =IF(OFFRE!C181<>"",OFFRE!C181,"") ->  | D62: =IF(OFFRE!D181<>"",OFFRE!D181,"") ->  | H62: =IF(OFFRE!H181<>"",OFFRE!H181,"") ->  | I62: =IF(OFFRE!I181<>"",OFFRE!I181,"") ->  | K62: =IF(OFFRE!K181="","",OFFRE!K181) -> 
C63: =IF(OFFRE!C182<>"",OFFRE!C182,"") ->  | D63: =IF(OFFRE!D182<>"",OFFRE!D182,"") ->  | H63: =IF(OFFRE!H182<>"",OFFRE!H182,"") ->  | I63: =IF(OFFRE!I182<>"",OFFRE!I182,"") ->  | K63: =IF(OFFRE!K182="","",OFFRE!K182) -> 
C64: =IF(OFFRE!C183<>"",OFFRE!C183,"") ->  | D64: =IF(OFFRE!D183<>"",OFFRE!D183,"") ->  | H64: =IF(OFFRE!H183<>"",OFFRE!H183,"") ->  | I64: =IF(OFFRE!I183<>"",OFFRE!I183,"") ->  | K64: =IF(OFFRE!K183="","",OFFRE!K183) -> 
B65: =IF(OR(AND(B17=OFFRE!B6,Chiffrage!F20=OFFRE!I7),AND(Chiffrage!B17=OFFRE!B5,Chiffrage!F21=OFFRE!I7)),"Options Régulations","") ->  | C65: =IF(OFFRE!C184<>"",OFFRE!C184,"") ->  | D65: =IF(OFFRE!D184<>"",OFFRE!D184,"") ->  | H65: =IF(OFFRE!H184<>"",OFFRE!H184,"") ->  | I65: =IF(OFFRE!I184<>"",OFFRE!I184,"") ->  | K65: =IF(OFFRE!K184="","",OFFRE!K184) -> 
C66: =IF(OFFRE!C185<>"",OFFRE!C185,"") ->  | D66: =IF(OFFRE!D185<>"",OFFRE!D185,"") ->  | H66: =IF(OFFRE!H185<>"",OFFRE!H185,"") ->  | I66: =IF(OFFRE!I185<>"",OFFRE!I185,"") ->  | K66: =IF(OFFRE!K185="","",OFFRE!K185) -> 
C67: =IF(OFFRE!C186<>"",OFFRE!C186,"") ->  | D67: =IF(OFFRE!D186<>"",OFFRE!D186,"") ->  | H67: =IF(OFFRE!H186<>"",OFFRE!H186,"") ->  | I67: =IF(OFFRE!I186<>"",OFFRE!I186,"") ->  | K67: =IF(OFFRE!K186="","",OFFRE!K186) -> 
C68: =IF(OFFRE!C187<>"",OFFRE!C187,"") ->  | D68: =IF(OFFRE!D187<>"",OFFRE!D187,"") ->  | H68: =IF(OFFRE!H187<>"",OFFRE!H187,"") ->  | I68: =IF(OFFRE!I187<>"",OFFRE!I187,"") ->  | K68: =IF(OFFRE!K187="","",OFFRE!K187) -> 
C69: =IF(OFFRE!C188<>"",OFFRE!C188,"") ->  | D69: =IF(OFFRE!D188<>"",OFFRE!D188,"") ->  | H69: =IF(OFFRE!H188<>"",OFFRE!H188,"") ->  | I69: =IF(OFFRE!I188<>"",OFFRE!I188,"") ->  | K69: =IF(OFFRE!K188="","",OFFRE!K188) -> 
C70: =IF(OFFRE!C189<>"",OFFRE!C189,"") ->  | D70: =IF(OFFRE!D189<>"",OFFRE!D189,"") ->  | H70: =IF(OFFRE!H189<>"",OFFRE!H189,"") ->  | I70: =IF(OFFRE!I189<>"",OFFRE!I189,"") ->  | K70: =IF(OFFRE!K189="","",OFFRE!K189) -> 
C71: =IF(OFFRE!C190<>"",OFFRE!C190,"") ->  | D71: =IF(OFFRE!D190<>"",OFFRE!D190,"") ->  | H71: =IF(OFFRE!H190<>"",OFFRE!H190,"") ->  | I71: =IF(OFFRE!I190<>"",OFFRE!I190,"") ->  | K71: =IF(OFFRE!K190="","",OFFRE!K190) -> 
C72: =IF(OFFRE!C191<>"",OFFRE!C191,"") ->  | D72: =IF(OFFRE!D191<>"",OFFRE!D191,"") ->  | H72: =IF(OFFRE!H191<>"",OFFRE!H191,"") ->  | I72: =IF(OFFRE!I191<>"",OFFRE!I191,"") ->  | K72: =IF(OFFRE!K191="","",OFFRE!K191) -> 
B73: =IF(OR(AND(B17=OFFRE!B6,Chiffrage!F20=OFFRE!I7),AND(Chiffrage!B17=OFFRE!B5,Chiffrage!F21=OFFRE!I7)),"Options raccordement","") ->  | C73: =IF(OFFRE!C192<>"",OFFRE!C192,"") ->  | D73: =IF(OFFRE!D192<>"",OFFRE!D192,"") ->  | H73: =IF(OFFRE!H192<>"",OFFRE!H192,"") ->  | I73: =IF(OFFRE!I192<>"",OFFRE!I192,"") ->  | K73: =IF(OFFRE!K192="","",OFFRE!K192) -> 
C74: =IF(OFFRE!C193<>"",OFFRE!C193,"") ->  | D74: =IF(OFFRE!D193<>"",OFFRE!D193,"") ->  | H74: =IF(OFFRE!H193<>"",OFFRE!H193,"") ->  | I74: =IF(OFFRE!I193<>"",OFFRE!I193,"") ->  | K74: =IF(OFFRE!K193="","",OFFRE!K193) -> 
C75: =IF(OFFRE!C194<>"",OFFRE!C194,"") ->  | D75: =IF(OFFRE!D194<>"",OFFRE!D194,"") ->  | H75: =IF(OFFRE!H194<>"",OFFRE!H194,"") ->  | I75: =IF(OFFRE!I194<>"",OFFRE!I194,"") ->  | K75: =IF(OFFRE!K194="","",OFFRE!K194) -> 
C76: =IF(OFFRE!C195<>"",OFFRE!C195,"") ->  | D76: =IF(OFFRE!D195<>"",OFFRE!D195,"") ->  | H76: =IF(OFFRE!H195<>"",OFFRE!H195,"") ->  | I76: =IF(OFFRE!I195<>"",OFFRE!I195,"") ->  | K76: =IF(OFFRE!K195="","",OFFRE!K195) -> 
C77: =IF(OFFRE!C196<>"",OFFRE!C196,"") ->  | D77: =IF(OFFRE!D196<>"",OFFRE!D196,"") ->  | H77: =IF(OFFRE!H196<>"",OFFRE!H196,"") ->  | I77: =IF(OFFRE!I196<>"",OFFRE!I196,"") ->  | K77: =IF(OFFRE!K196="","",OFFRE!K196) -> 
C78: =IF(OFFRE!C197<>"",OFFRE!C197,"") -> 100013306 | D78: =IF(OFFRE!D197<>"",OFFRE!D197,"") -> SONDE EXTERIEURE RADIO | H78: =IF(OFFRE!H197<>"",OFFRE!H197,"") -> AD251 | I78: =IF(OFFRE!I197<>"",OFFRE!I197,"") -> 80 | K78: =IF(OFFRE!K197="","",OFFRE!K197) -> 
C79: =IF(OFFRE!C198<>"",OFFRE!C198,"") -> 100013307 | D79: =IF(OFFRE!D198<>"",OFFRE!D198,"") -> MODULE CHAUDIERE RADIO (EMETTEUR) | H79: =IF(OFFRE!H198<>"",OFFRE!H198,"") -> AD252 | I79: =IF(OFFRE!I198<>"",OFFRE!I198,"") -> 129 | K79: =IF(OFFRE!K198="","",OFFRE!K198) -> 
C80: =IF(OFFRE!C199<>"",OFFRE!C199,"") -> 100002803 | D80: =IF(OFFRE!D199<>"",OFFRE!D199,"") -> COMMANDE A DISTANCE SIMPLIFIEE AD208 | H80: =IF(OFFRE!H199<>"",OFFRE!H199,"") -> AD208 | I80: =IF(OFFRE!I199<>"",OFFRE!I199,"") -> 109 | K80: =IF(OFFRE!K199="","",OFFRE!K199) -> 
C81: =IF(OFFRE!C200<>"",OFFRE!C200,"") -> 100013304 | D81: =IF(OFFRE!D200<>"",OFFRE!D200,"") -> OPTION V3V | H81: =IF(OFFRE!H200<>"",OFFRE!H200,"") -> AD249 | I81: =IF(OFFRE!I200<>"",OFFRE!I200,"") -> 166 | K81: =IF(OFFRE!K200="","",OFFRE!K200) -> 
C82: =IF(OFFRE!C201<>"",OFFRE!C201,"") -> 7624902 | D82: =IF(OFFRE!D201<>"",OFFRE!D201,"") -> KIT CABLAGE PLANCHER CHAUFFANT DIRECT | H82: =IF(OFFRE!H201<>"",OFFRE!H201,"") -> HA255 | I82: =IF(OFFRE!I201<>"",OFFRE!I201,"") -> 39 | K82: =IF(OFFRE!K201="","",OFFRE!K201) -> 
C83: =IF(OFFRE!C202<>"",OFFRE!C202,"") -> 88017017 | D83: =IF(OFFRE!D202<>"",OFFRE!D202,"") -> SONDE DEPART v3v | H83: =IF(OFFRE!H202<>"",OFFRE!H202,"") -> AD199 | I83: =IF(OFFRE!I202<>"",OFFRE!I202,"") -> 83 | K83: =IF(OFFRE!K202="","",OFFRE!K202) -> 
C84: =IF(OFFRE!C203<>"",OFFRE!C203,"") -> 100013305 | D84: =IF(OFFRE!D203<>"",OFFRE!D203,"") -> COLIS SONDE SYSTÈME OE-TRONIC 4 | H84: =IF(OFFRE!H203<>"",OFFRE!H203,"") -> AD250 | I84: =IF(OFFRE!I203<>"",OFFRE!I203,"") -> 48 | K84: =IF(OFFRE!K203="","",OFFRE!K203) -> 
C85: =IF(OFFRE!C204<>"",OFFRE!C204,"") -> 100019114 | D85: =IF(OFFRE!D204<>"",OFFRE!D204,"") -> KIT DETECTEUR DE CONDENSATION | H85: =IF(OFFRE!H204<>"",OFFRE!H204,"") -> HK27 | I85: =IF(OFFRE!I204<>"",OFFRE!I204,"") -> 227 | K85: =IF(OFFRE!K204="","",OFFRE!K204) -> 
C86: =IF(OFFRE!C205<>"",OFFRE!C205,"") ->  | D86: =IF(OFFRE!D205<>"",OFFRE!D205,"") ->  | H86: =IF(OFFRE!H205<>"",OFFRE!H205,"") ->  | I86: =IF(OFFRE!I205<>"",OFFRE!I205,"") -> 
C87: =IF(OFFRE!C206<>"",OFFRE!C206,"") ->  | D87: =IF(OFFRE!D206<>"",OFFRE!D206,"") ->  | H87: =IF(OFFRE!H206<>"",OFFRE!H206,"") ->  | I87: =IF(OFFRE!I206<>"",OFFRE!I206,"") -> 
C88: =IF(OFFRE!C207<>"",OFFRE!C207,"") ->  | D88: =IF(OFFRE!D207<>"",OFFRE!D207,"") ->  | H88: =IF(OFFRE!H207<>"",OFFRE!H207,"") ->  | I88: =IF(OFFRE!I207<>"",OFFRE!I207,"") -> 
D89: =IF(OFFRE!$X$6<>OFFRE!$I$7,"POUR LA FUMISTERIE, VEUILLEZ NOUS CONTACTER","") -> POUR LA FUMISTERIE, VEUILLEZ NOUS CONTACTER
D90: =IF(OFFRE!$X$6<>OFFRE!$I$7,"OU UTILISER L'OUTIL FUMISTERIE","") -> OU UTILISER L'OUTIL FUMISTERIE
D93: MISE EN SERVICE ( Prix net HT) | I93: 485 | J93: 1 | K93: =J93*I93 -> 485
K95: =IF(OFFRE!K207="","",OFFRE!K207) -> 
B96: Autres options | K96: =IF(OFFRE!K208="","",OFFRE!K208) -> 
C97: =IF(D97<>"",VLOOKUP($D97,OFFRE!$Q$159:$R$195,2,FALSE),"") ->  | H97: =IF($D97="","",VLOOKUP($D97,Tarif!$B:$D,2,FALSE)) ->  | I97: =IF($D97="","",VLOOKUP($D97,Tarif!$B:$D,3,FALSE)) ->  | K97: =IF(J97="","",J97*I97) -> 
C98: =IF(D98<>"",VLOOKUP($D98,OFFRE!$Q$159:$R$195,2,FALSE),"") ->  | H98: =IF($D98="","",VLOOKUP($D98,Tarif!$B:$D,2,FALSE)) ->  | I98: =IF($D98="","",VLOOKUP($D98,Tarif!$B:$D,3,FALSE)) ->  | K98: =IF(J98="","",J98*I98) -> 
B104: Prix total du système (PP.H.T 2017 en €) | K104: =SUM(K43:$K$103) -> 8890

Sheet Coûts énergies et Abonnements
D2: Coûts des énergies
J5: =Données!K14 -> Version 01/2019
C8: Electricité
C11: Tarif de base | G11: Tarif HP/HC
C13: Electricité : Prix de 100 kWh en € TTC | E13: Au 07/01/2019 | G13: Electricité : Prix de 100 kWh en € TTC | I13: Au 07/01/2019
C14: 3 kVA | D14: 14.52 | E14: 14.52 | G14: HP : Heures Pleines | H14: 15.8 | I14: 15.8
G15: HC : Heures Creuses | H15: 12.3 | I15: 12.3
C17: Abonnement annuel en € TTC | E17: Au 07/01/2019 | G17: Abonnement annuel en € TTC | I17: Au 07/01/2019
C18: 3 kVA | D18: 91.92 | E18: 91.92 | G18: 6 kVA | H18: 123.6 | I18: 123.6
C19: 6 kVA | D19: 110.52 | E19: 110.52 | G19: 9 kVA | H19: 151.32 | I19: 151.32
C20: 9 kVA | D20: 130.32 | E20: 130.32 | G20: 12 kVA | H20: 177.24 | I20: 177.24
C21: 12 kVA | D21: 150.96 | E21: 150.96 | G21: 15 kVA | H21: 201.36 | I21: 201.36
C22: 15 kVA | D22: 170.88 | E22: 170.88 | G22: 18 kVA | H22: 223.68 | I22: 223.68
C23: 18 kVA | D23: 191.52 | E23: 191.52 | G23: 24 kVA | H23: 274.68 | I23: 274.68
G24: 30 kVA | H24: 299.52 | I24: 299.52
G25: 36 kVA | H25: 337.56 | I25: 337.56
C27: Gaz
C31: Gaz : Prix de 100 kWh PCS en € TTC | E31: Au 01/2019 | G31: Abonnement annuel en € TTC | I31: Au 01/2019
C32: Tarif B1 | D32: 6.367 | E32: 6.367 | G32: Tarif B1 | H32: 250.53 | I32: 250.53
C33: Tarif B2I | D33: 6.37 | E33: 6.37 | G33: Tarif B2I | H33: 250.53 | I33: 250.53
C35: Fioul
C39: Fioul : Prix de 100 kWh PCI en € TTC | E39: Au 12/2018
C40: Fioul | D40: 9.33 | E40: 9.33
C43: Propane
C47: Propane : Prix de 100 kWh PCI en € TTC | E47: Au 11/2018
C48: Propane | D48: 14.8 | E48: 14.8
C51: Bois
C55: Bois bûche : Prix du stère en € TTC | G55: Granulé bois : Prix de la tonne en € TTC
C56: Bois | D56: 70 | G56: Granulé bois | H56: 265
C59: Correspondances Energétiques
C61: 1 litre fioul | D61: 10 | E61: kWh PCI | F61: =D61/0.94 -> 10.63829787 | G61: kWh PCS | H61: =F61*0.3 -> 3.191489362 | I61: kg CO2
C62: 1 m3 gaz naturel | D62: 10 | E62: kWh PCI | F62: =D62/0.9 -> 11.11111111 | G62: kWh PCS | H62: =F62*0.23 -> 2.555555556 | I62: kg CO2
C63: 1 kg propane | D63: 12.8 | E63: kWh PCI | F63: =D63/0.92 -> 13.91304348 | G63: kWh PCS
C64: 1 kg Granulés | D64: 4.8 | E64: kWh PCI
C65: 1 Stère de bûche | D65: 2000 | E65: kWh PCI | F65: 1 | G65: kWh élec | H65: 0.18 | I65: kg CO2
C67: Coûts des Abonnements par Energies
C69: Abonnement actuel | D69: Cout annuel en €
C70: Fioul | D70: 0
C71: Gaz | D71: =IF('Consommations et Coûts de prod.'!I36+'Consommations et Coûts de prod.'!G36<>0,IF('Consommations et Coûts de prod.'!K36<'Consommations et Coûts de prod.'!U65,'Coûts énergies et Abonnements'!H32,'Coûts énergies et Abonnements'!H33),0) -> 0 | E71: Cout annuel en €
C72: Propane | D72: 0 | E72: =SUM(D70:D73) -> 93.36
C73: Chauffage électrique | D73: =IF('Consommations et Coûts de prod.'!I38=1,D76-D74,IF('Consommations et Coûts de prod.'!F38=1,D75-D74,0)) -> 93.36
C74: si pas | D74: ='Coûts énergies et Abonnements'!D20 -> 130.32 | E74: =IF(Données!G77="Electrique",0,IF(Données!G77="Actuelle",'Coûts énergies et Abonnements'!E72,IF('Consommations et Coûts de prod.'!M58=1,0,IF('Consommations et Coûts de prod.'!M59=1,'Coûts énergies et Abonnements'!H32,0)))) -> 0
C75: si ecs | D75: ='Coûts énergies et Abonnements'!H19 -> 151.32
C76: si chauffage | D76: =IF('BdD Bâtiment'!D94+6<12,'Coûts énergies et Abonnements'!H20,IF('BdD Bâtiment'!D94+6<15,'Coûts énergies et Abonnements'!H21,IF('BdD Bâtiment'!D94+6<18,'Coûts énergies et Abonnements'!H22,IF('BdD Bâtiment'!D94+6<24,'Coûts énergies et Abonnements'!H23,IF('BdD Bâtiment'!D94+6<30,'Coûts énergies et Abonnements'!H24,'Coûts énergies et Abonnements'!H25))))) -> 223.68
C78: Abonnements Elec | E78: Surcout Elec
C79: Tout elec | D79: =D76 -> 223.68 | E79: =D79-D74 -> 93.36
C80: PAC Air + app Elec | D80: =IF('BdD Bâtiment'!D94*0.5+9<12,'Coûts énergies et Abonnements'!H20,IF('BdD Bâtiment'!D94*0.5+9<15,'Coûts énergies et Abonnements'!H21,IF('BdD Bâtiment'!D94*0.5+9<18,'Coûts énergies et Abonnements'!H22,IF('BdD Bâtiment'!D94*0.5+9<24,'Coûts énergies et Abonnements'!H23,IF('BdD Bâtiment'!D94*0.5+9<30,'Coûts énergies et Abonnements'!H24,'Coûts énergies et Abonnements'!H25))))) -> 201.36 | E80: Surcout PAC
C81: PAC Sol | D81: =IF('BdD Bâtiment'!D94/4+6<12,'Coûts énergies et Abonnements'!H20,IF('BdD Bâtiment'!D94/4+6<15,'Coûts énergies et Abonnements'!H21,IF('BdD Bâtiment'!D94/4+6<18,'Coûts énergies et Abonnements'!H22,IF('BdD Bâtiment'!D94/4+6<24,'Coûts énergies et Abonnements'!H23,IF('BdD Bâtiment'!D94/4+6<30,'Coûts énergies et Abonnements'!H24,'Coûts énergies et Abonnements'!H25))))) -> 177.24 | E81: =IF('ChoixPAC + ChoixChaudière'!E93=0,D81,IF('ChoixPAC + ChoixChaudière'!E93=0,D81,IF('Consommations et Coûts de prod.'!E64=1,D80,IF('Consommations et Coûts de prod.'!E64=3,D82,D83))))-D74 -> 46.92
C82: PAC Air + app gaz | D82: ='Coûts énergies et Abonnements'!H20+'Coûts énergies et Abonnements'!H32 -> 427.77
C83: PAC Air + app autre | D83: ='Coûts énergies et Abonnements'!H20 -> 177.24
C85: Gaz Nouveau | E85: =('Consommations et Coûts de prod.'!E6+'Consommations et Coûts de prod.'!E21)/'BdD Bâtiment'!E65/0.9 -> 20654.63002 | F85: kWh
C86: Cout Abonnement | E86: =IF(E85<'Consommations et Coûts de prod.'!U65,'Coûts énergies et Abonnements'!H32,'Coûts énergies et Abonnements'!H33) -> 250.53 | F86: €
C87: Cout Energie | E87: =IF(E85<'Consommations et Coûts de prod.'!U65,'Coûts énergies et Abonnements'!D32,'Coûts énergies et Abonnements'!D33)/0.9/100 -> 0.07077777778 | F87: €
C89: Gaz Nouveau Condensation | E89: =('Consommations et Coûts de prod.'!E6+'Consommations et Coûts de prod.'!E21)/'Consommations et Coûts de prod.'!F66/0.9 -> 17622.75772 | F89: kWh
C90: Cout Abonnement | E90: =IF(E89<'Consommations et Coûts de prod.'!U65,'Coûts énergies et Abonnements'!H32,'Coûts énergies et Abonnements'!H33) -> 250.53 | F90: €
C91: Cout Energie | E91: =IF(E89<'Consommations et Coûts de prod.'!U65,'Coûts énergies et Abonnements'!D32,'Coûts énergies et Abonnements'!D33)/0.9/100 -> 0.07077777778 | F91: €
C94: Mise à jour possible : | D94: http://developpement-durable.bsocom.fr/statistiques/ReportFolders/ReportFolders.aspx

Sheet Résultats (hidden)
A1: Données de base
A3: T° départ à Tref | C3: Text mini PAC | E3: T° départ maxi PAC | H3: besoin ECS pour jours à - de 7°C (kWh) jours :
A4: =IF(AND(Données!C36="Plancher chauffant",Données!G36<>"Radiateurs"),45,Données!J36) -> 55 | C4: ='BdD PAC'!O37 -> -15 | E4: ='BdD PAC'!P37 -> 55 | H4: =('Consommations et Coûts de prod.'!$E$19/Résultats!BF48)*(1-'BdD Bâtiment'!I72)*(1+M4) -> 15.06194387 | I4: kWh/j | K4: Coeff de surconsommation arbitraire choisi: | M4: 0.25
H5: =+H4*BH48 -> 1683.925325 | I5: kWh/an
A6: T maxi départ | C6: Tdepa Maxi réelle | E6: besoin ECS (kWh) jours : | K6: Méthode : | L6: Calcul des besoins journaliers à + de 7°C à partir des besoins à - de 7°C et des besoins annuels à + de 7°C. | Q6: Besoins ECS Annuels
A7: =A4 -> 55 | C7: =IF(Données!E68="Easylife",Résultats!E4,IF(Données!G68="Oui",Résultats!E4-5,Résultats!E4)) -> 55 | E7: =('Consommations et Coûts de prod.'!$E$17/Résultats!BF48)*(1-'BdD Bâtiment'!I72) -> 12.0495551 | Q7: =H5+H12 -> 4401.1 | R7: kWh/an
A9: T coupure PAC | C9: COP biva hyrid € | E9: T° ECS
A10: =(C7-A4)*(Données!$J$30-Données!$J$22)/(20-Résultats!A4)+Données!$J$22 -> -15 | C10: =IF(Données!$C$87='ChoixPAC + ChoixChaudière'!$D$274,2.58,(('Consommations et Coûts de prod.'!$H$64/'Consommations et Coûts de prod.'!$I$64)*'BdD Chaudières'!$G$27)) -> 2.163258727 | E10: 55 | H10: besoin ECS pour jours à + de 7°C (kWh) jours :
H11: =+H12/BG48 -> 10.72075232 | I11: kWh/j | K11: Coeff de sous-consommation calculé: | M11: =H11/E7 -> 0.8897218386
A12: T° coupure PAC corrigée | H12: ='Consommations et Coûts de prod.'!E19-Résultats!H5 -> 2717.174675 | I12: kWh/an
A13: =IF(A10<Données!J22,Données!J22,Résultats!A10) -> -15
A15: Base de données station météo
A16: Text | B16: -25 | C16: -24 | D16: -23 | E16: -22 | F16: -21 | G16: -20 | H16: -19 | I16: -18 | J16: -17 | K16: -16 | L16: -15 | M16: -14 | N16: -13 | O16: -12 | P16: -11 | Q16: -10 | R16: -9 | S16: -8 | T16: -7 | U16: -6 | V16: -5 | W16: -4 | X16: -3 | Y16: -2 | Z16: -1 | AA16: 0 | AB16: 1 | AC16: 2 | AD16: 3 | AE16: 4 | AF16: 5 | AG16: 6 | AH16: 7 | AI16: 8 | AJ16: 9 | AK16: 10 | AL16: 11 | AM16: 12 | AN16: 13 | AO16: 14 | AP16: 15 | AQ16: 16 | AR16: 17 | AS16: 18 | AT16: 19 | AU16: 20 | AV16: 21 | AW16: 22 | AX16: 23 | AY16: 24 | AZ16: 25 | BA16: 26 | BB16: 27 | BC16: 28 | BD16: 29 | BE16: 30
A17: Nombre de jour | B17: 0 | C17: 0 | D17: 0 | E17: 0 | F17: 0 | G17: =VLOOKUP(Données!$C$22,'Station Météo'!$A$2:$BB$97,3,FALSE) -> 0 | H17: =VLOOKUP(Données!$C$22,'Station Météo'!$A$2:$BB$97,4,FALSE) -> 0 | I17: =VLOOKUP(Données!$C$22,'Station Météo'!$A$2:$BB$97,5,FALSE) -> 0 | J17: =VLOOKUP(Données!$C$22,'Station Météo'!$A$2:$BB$97,6,FALSE) -> 0 | K17: =VLOOKUP(Données!$C$22,'Station Météo'!$A$2:$BB$97,7,FALSE) -> 0 | L17: =VLOOKUP(Données!$C$22,'Station Météo'!$A$2:$BB$97,8,FALSE) -> 0 | M17: =VLOOKUP(Données!$C$22,'Station Météo'!$A$2:$BB$97,9,FALSE) -> 0 | N17: =VLOOKUP(Données!$C$22,'Station Météo'!$A$2:$BB$97,10,FALSE) -> 0.1 | O17: =VLOOKUP(Données!$C$22,'Station Météo'!$A$2:$BB$97,11,FALSE) -> 0.15 | P17: =VLOOKUP(Données!$C$22,'Station Météo'!$A$2:$BB$97,12,FALSE) -> 0.1 | Q17: =VLOOKUP(Données!$C$22,'Station Météo'!$A$2:$BB$97,13,FALSE) -> 0.15 | R17: =VLOOKUP(Données!$C$22,'Station Météo'!$A$2:$BB$97,14,FALSE) -> 0.35 | S17: =VLOOKUP(Données!$C$22,'Station Météo'!$A$2:$BB$97,15,FALSE) -> 0.5 | T17: =VLOOKUP(Données!$C$22,'Station Météo'!$A$2:$BB$97,16,FALSE) -> 0.8 | U17: =VLOOKUP(Données!$C$22,'Station Météo'!$A$2:$BB$97,17,FALSE) -> 1.65 | V17: =VLOOKUP(Données!$C$22,'Station Météo'!$A$2:$BB$97,18,FALSE) -> 2.4 | W17: =VLOOKUP(Données!$C$22,'Station Météo'!$A$2:$BB$97,19,FALSE) -> 3.4 | X17: =VLOOKUP(Données!$C$22,'Station Météo'!$A$2:$BB$97,20,FALSE) -> 3.55 | Y17: =VLOOKUP(Données!$C$22,'Station Météo'!$A$2:$BB$97,21,FALSE) -> 6.35 | Z17: =VLOOKUP(Données!$C$22,'Station Météo'!$A$2:$BB$97,22,FALSE) -> 6.85 | AA17: =VLOOKUP(Données!$C$22,'Station Météo'!$A$2:$BB$97,23,FALSE) -> 8.45 | AB17: =VLOOKUP(Données!$C$22,'Station Météo'!$A$2:$BB$97,24,FALSE) -> 9.8 | AC17: =VLOOKUP(Données!$C$22,'Station Météo'!$A$2:$BB$97,25,FALSE) -> 10.35 | AD17: =VLOOKUP(Données!$C$22,'Station Météo'!$A$2:$BB$97,26,FALSE) -> 11.95 | AE17: =VLOOKUP(Données!$C$22,'Station Météo'!$A$2:$BB$97,27,FALSE) -> 14.25 | AF17: =VLOOKUP(Données!$C$22,'Station Météo'!$A$2:$BB$97,28,FALSE) -> 15.75 | AG17: =VLOOKUP(Données!$C$22,'Station Météo'!$A$2:$BB$97,29,FALSE) -> 14.9 | AH17: =VLOOKUP(Données!$C$22,'Station Météo'!$A$2:$BB$97,30,FALSE) -> 16.05 | AI17: =VLOOKUP(Données!$C$22,'Station Météo'!$A$2:$BB$97,31,FALSE) -> 15.8 | AJ17: =VLOOKUP(Données!$C$22,'Station Météo'!$A$2:$BB$97,32,FALSE) -> 15.5 | AK17: =VLOOKUP(Données!$C$22,'Station Météo'!$A$2:$BB$97,33,FALSE) -> 15.45 | AL17: =VLOOKUP(Données!$C$22,'Station Météo'!$A$2:$BB$97,34,FALSE) -> 14.85 | AM17: =VLOOKUP(Données!$C$22,'Station Météo'!$A$2:$BB$97,35,FALSE) -> 13.7 | AN17: =VLOOKUP(Données!$C$22,'Station Météo'!$A$2:$BB$97,36,FALSE) -> 14.75 | AO17: =VLOOKUP(Données!$C$22,'Station Météo'!$A$2:$BB$97,37,FALSE) -> 16.7 | AP17: =VLOOKUP(Données!$C$22,'Station Météo'!$A$2:$BB$97,38,FALSE) -> 17.25 | AQ17: =IF(Données!$J$30-3<Résultats!AQ16,0,VLOOKUP(Données!$C$22,'Station Météo'!$A$2:$BB$97,39,FALSE)) -> 16.35 | AR17: =IF(Données!$J$30-3<Résultats!AR16,0,VLOOKUP(Données!$C$22,'Station Météo'!$A$2:$BB$97,40,FALSE)) -> 17.75 | AS17: =IF(Données!$J$30-3<Résultats!AS16,0,VLOOKUP(Données!$C$22,'Station Météo'!$A$2:$BB$97,41,FALSE)) -> 0 | AT17: =IF(Données!$J$30-3<Résultats!AT16,0,VLOOKUP(Données!$C$22,'Station Météo'!$A$2:$BB$97,42,FALSE)) -> 0 | AU17: =IF(Données!$J$30-3<Résultats!AU16,0,VLOOKUP(Données!$C$22,'Station Météo'!$A$2:$BB$97,43,FALSE)) -> 0 | AV17: =IF(Données!$J$30-3<Résultats!AV16,0,VLOOKUP(Données!$C$22,'Station Météo'!$A$2:$BB$97,44,FALSE)) -> 0 | AW17: =IF(Données!$J$30-3<Résultats!AW16,0,VLOOKUP(Données!$C$22,'Station Météo'!$A$2:$BB$97,42,FALSE)) -> 0 | AX17: 0 | AY17: 0 | AZ17: 0 | BA17: 0 | BB17: 0 | BC17: 0 | BD17: 0 | BE17: 0 | BF17: =SUM(G17:AW17) -> 285.95
A18: Besoins kWh selon T°EXT | B18: =B17*17*('Consommations et Coûts de prod.'!$C$85-B16)*(Données!$C$52)*Données!$C$30*Données!$G$30/1000 -> 0 | C18: =C17*17*('Consommations et Coûts de prod.'!$C$85-C16)*(Données!$C$52)*Données!$C$30*Données!$G$30/1000 -> 0 | D18: =D17*17*('Consommations et Coûts de prod.'!$C$85-D16)*(Données!$C$52)*Données!$C$30*Données!$G$30/1000 -> 0 | E18: =E17*17*('Consommations et Coûts de prod.'!$C$85-E16)*(Données!$C$52)*Données!$C$30*Données!$G$30/1000 -> 0 | F18: =F17*17*('Consommations et Coûts de prod.'!$C$85-F16)*(Données!$C$52)*Données!$C$30*Données!$G$30/1000 -> 0 | G18: =G17*17*('Consommations et Coûts de prod.'!$C$85-G16)*(Données!$C$52)*Données!$C$30*Données!$G$30/1000 -> 0 | H18: =H17*17*('Consommations et Coûts de prod.'!$C$85-H16)*(Données!$C$52)*Données!$C$30*Données!$G$30/1000 -> 0 | I18: =I17*17*('Consommations et Coûts de prod.'!$C$85-I16)*(Données!$C$52)*Données!$C$30*Données!$G$30/1000 -> 0 | J18: =J17*17*('Consommations et Coûts de prod.'!$C$85-J16)*(Données!$C$52)*Données!$C$30*Données!$G$30/1000 -> 0 | K18: =K17*17*('Consommations et Coûts de prod.'!$C$85-K16)*(Données!$C$52)*Données!$C$30*Données!$G$30/1000 -> 0 | L18: =L17*17*('Consommations et Coûts de prod.'!$C$85-L16)*(Données!$C$52)*Données!$C$30*Données!$G$30/1000 -> 0 | M18: =M17*17*('Consommations et Coûts de prod.'!$C$85-M16)*(Données!$C$52)*Données!$C$30*Données!$G$30/1000 -> 0 | N18: =N17*17*('Consommations et Coûts de prod.'!$C$85-N16)*(Données!$C$52)*Données!$C$30*Données!$G$30/1000 -> 15.00675 | O18: =O17*17*('Consommations et Coûts de prod.'!$C$85-O16)*(Données!$C$52)*Données!$C$30*Données!$G$30/1000 -> 21.828 | P18: =P17*17*('Consommations et Coûts de prod.'!$C$85-P16)*(Données!$C$52)*Données!$C$30*Données!$G$30/1000 -> 14.09725 | Q18: =Q17*17*('Consommations et Coûts de prod.'!$C$85-Q16)*(Données!$C$52)*Données!$C$30*Données!$G$30/1000 -> 20.46375 | R18: =R17*17*('Consommations et Coûts de prod.'!$C$85-R16)*(Données!$C$52)*Données!$C$30*Données!$G$30/1000 -> 46.157125 | S18: =S17*17*('Consommations et Coûts de prod.'!$C$85-S16)*(Données!$C$52)*Données!$C$30*Données!$G$30/1000 -> 63.665 | T18: =T17*17*('Consommations et Coûts de prod.'!$C$85-T16)*(Données!$C$52)*Données!$C$30*Données!$G$30/1000 -> 98.226 | U18: =U17*17*('Consommations et Coûts de prod.'!$C$85-U16)*(Données!$C$52)*Données!$C$30*Données!$G$30/1000 -> 195.08775 | V18: =V17*17*('Consommations et Coûts de prod.'!$C$85-V16)*(Données!$C$52)*Données!$C$30*Données!$G$30/1000 -> 272.85 | W18: =W17*17*('Consommations et Coûts de prod.'!$C$85-W16)*(Données!$C$52)*Données!$C$30*Données!$G$30/1000 -> 371.076 | X18: =X17*17*('Consommations et Coûts de prod.'!$C$85-X16)*(Données!$C$52)*Données!$C$30*Données!$G$30/1000 -> 371.303375 | Y18: =Y17*17*('Consommations et Coûts de prod.'!$C$85-Y16)*(Données!$C$52)*Données!$C$30*Données!$G$30/1000 -> 635.28575 | Z18: =Z17*17*('Consommations et Coûts de prod.'!$C$85-Z16)*(Données!$C$52)*Données!$C$30*Données!$G$30/1000 -> 654.157875 | AA18: =AA17*17*('Consommations et Coûts de prod.'!$C$85-AA16)*(Données!$C$52)*Données!$C$30*Données!$G$30/1000 -> 768.5275 | AB18: =AB17*17*('Consommations et Coûts de prod.'!$C$85-AB16)*(Données!$C$52)*Données!$C$30*Données!$G$30/1000 -> 846.7445 | AC18: =AC17*17*('Consommations et Coûts de prod.'!$C$85-AC16)*(Données!$C$52)*Données!$C$30*Données!$G$30/1000 -> 847.19925 | AD18: =AD17*17*('Consommations et Coûts de prod.'!$C$85-AD16)*(Données!$C$52)*Données!$C$30*Données!$G$30/1000 -> 923.824625 | AE18: =AE17*17*('Consommations et Coûts de prod.'!$C$85-AE16)*(Données!$C$52)*Données!$C$30*Données!$G$30/1000 -> 1036.83 | AF18: =AF17*17*('Consommations et Coûts de prod.'!$C$85-AF16)*(Données!$C$52)*Données!$C$30*Données!$G$30/1000 -> 1074.346875 | AG18: =AG17*17*('Consommations et Coûts de prod.'!$C$85-AG16)*(Données!$C$52)*Données!$C$30*Données!$G$30/1000 -> 948.6085 | AH18: =AH17*17*('Consommations et Coûts de prod.'!$C$85-AH16)*(Données!$C$52)*Données!$C$30*Données!$G$30/1000 -> 948.835875 | AI18: =AI17*17*('Consommations et Coûts de prod.'!$C$85-AI16)*(Données!$C$52)*Données!$C$30*Données!$G$30/1000 -> 862.206 | AJ18: =AJ17*17*('Consommations et Coûts de prod.'!$C$85-AJ16)*(Données!$C$52)*Données!$C$30*Données!$G$30/1000 -> 775.34875 | AK18: =AK17*17*('Consommations et Coûts de prod.'!$C$85-AK16)*(Données!$C$52)*Données!$C$30*Données!$G$30/1000 -> 702.58875 | AL18: =AL17*17*('Consommations et Coûts de prod.'!$C$85-AL16)*(Données!$C$52)*Données!$C$30*Données!$G$30/1000 -> 607.773375 | AM18: =AM17*17*('Consommations et Coûts de prod.'!$C$85-AM16)*(Données!$C$52)*Données!$C$30*Données!$G$30/1000 -> 498.406 | AN18: =AN17*17*('Consommations et Coûts de prod.'!$C$85-AN16)*(Données!$C$52)*Données!$C$30*Données!$G$30/1000 -> 469.529375 | AO18: =AO17*17*('Consommations et Coûts de prod.'!$C$85-AO16)*(Données!$C$52)*Données!$C$30*Données!$G$30/1000 -> 455.6595 | AP18: =AP17*17*('Consommations et Coûts de prod.'!$C$85-AP16)*(Données!$C$52)*Données!$C$30*Données!$G$30/1000 -> 392.221875 | AQ18: =AQ17*17*('Consommations et Coûts de prod.'!$C$85-AQ16)*(Données!$C$52)*Données!$C$30*Données!$G$30/1000 -> 297.4065 | AR18: =AR17*17*('Consommations et Coûts de prod.'!$C$85-AR16)*(Données!$C$52)*Données!$C$30*Données!$G$30/1000 -> 242.154375 | AS18: =AS17*17*('Consommations et Coûts de prod.'!$C$85-AS16)*(Données!$C$52)*Données!$C$30*Données!$G$30/1000 -> 0 | AT18: =AT17*17*('Consommations et Coûts de prod.'!$C$85-AT16)*(Données!$C$52)*Données!$C$30*Données!$G$30/1000 -> 0 | AU18: =AU17*17*('Consommations et Coûts de prod.'!$C$85-AU16)*(Données!$C$52)*Données!$C$30*Données!$G$30/1000 -> 0 | AV18: =AV17*17*('Consommations et Coûts de prod.'!$C$85-AV16)*(Données!$C$52)*Données!$C$30*Données!$G$30/1000 -> 0 | AW18: =AW17*17*('Consommations et Coûts de prod.'!$C$85-AW16)*(Données!$C$52)*Données!$C$30*Données!$G$30/1000 -> 0 | AX18: =AX17*17*('Consommations et Coûts de prod.'!$C$85-AX16)*(Données!$C$52)*Données!$C$30*Données!$G$30/1000 -> 0 | AY18: =AY17*17*('Consommations et Coûts de prod.'!$C$85-AY16)*(Données!$C$52)*Données!$C$30*Données!$G$30/1000 -> 0 | AZ18: =AZ17*17*('Consommations et Coûts de prod.'!$C$85-AZ16)*(Données!$C$52)*Données!$C$30*Données!$G$30/1000 -> 0 | BA18: =BA17*17*('Consommations et Coûts de prod.'!$C$85-BA16)*(Données!$C$52)*Données!$C$30*Données!$G$30/1000 -> 0 | BB18: =BB17*17*('Consommations et Coûts de prod.'!$C$85-BB16)*(Données!$C$52)*Données!$C$30*Données!$G$30/1000 -> 0 | BC18: =BC17*17*('Consommations et Coûts de prod.'!$C$85-BC16)*(Données!$C$52)*Données!$C$30*Données!$G$30/1000 -> 0 | BD18: =BD17*17*('Consommations et Coûts de prod.'!$C$85-BD16)*(Données!$C$52)*Données!$C$30*Données!$G$30/1000 -> 0 | BE18: =BE17*17*('Consommations et Coûts de prod.'!$C$85-BE16)*(Données!$C$52)*Données!$C$30*Données!$G$30/1000 -> 0 | BF18: =SUM(G18:AW18) -> 15477.41625 | BG18: =BF18/'Consommations et Coûts de prod.'!E6 -> 0.9918877371
A19: Sur 100 | B19: =B17/$BF$17 -> 0 | C19: 0 | D19: 0 | E19: 0 | F19: 0 | G19: 0 | H19: 0 | I19: 0 | J19: 0 | K19: 0 | L19: 0 | M19: 0 | N19: 0.000349711488 | O19: 0.000524567232 | P19: 0.000349711488 | Q19: 0.000524567232 | R19: 0.001223990208 | S19: 0.00174855744 | T19: 0.002797691904 | U19: 0.005770239552 | V19: 0.008393075713 | W19: 0.01189019059 | X19: 0.01241475782 | Y19: 0.02220667949 | Z19: 0.02395523693 | AA19: 0.02955062074 | AB19: 0.03427172583 | AC19: 0.03619513901 | AD19: 0.04179052282 | AE19: 0.04983388704 | AF19: 0.05507955936 | AG19: 0.05210701172 | AH19: =AH17/$BF$17 -> 0.05612869383 | AI19: 0.05525441511 | AJ19: 0.05420528064 | AK19: 0.0540304249 | AL19: 0.05193215597 | AM19: 0.04791047386 | AN19: 0.05158244448 | AO19: 0.0584018185 | AP19: 0.06032523168 | AQ19: 0.05717782829 | AR19: 0.06207378912 | AS19: 0 | AT19: 0 | AU19: 0 | AV19: 0 | AW19: 0 | AX19: 0 | AY19: 0 | AZ19: 0 | BA19: 0 | BB19: 0 | BC19: 0 | BD19: 0 | BE19: 0 | BF19: =SUM(B19:BE19) -> 1
A20: Besoins kWh corrigés (besoins annuels) | B20: =B19*'Consommations et Coûts de prod.'!$E$6 -> 0 | C20: =C19*'Consommations et Coûts de prod.'!$E$6 -> 0 | D20: =D19*'Consommations et Coûts de prod.'!$E$6 -> 0 | E20: =E19*'Consommations et Coûts de prod.'!$E$6 -> 0 | F20: =F19*'Consommations et Coûts de prod.'!$E$6 -> 0 | G20: =G19*'Consommations et Coûts de prod.'!$E$6 -> 0 | H20: =H19*'Consommations et Coûts de prod.'!$E$6 -> 0 | I20: =I19*'Consommations et Coûts de prod.'!$E$6 -> 0 | J20: =J19*'Consommations et Coûts de prod.'!$E$6 -> 0 | K20: =K19*'Consommations et Coûts de prod.'!$E$6 -> 0 | L20: =L19*'Consommations et Coûts de prod.'!$E$6 -> 0 | M20: =M19*'Consommations et Coûts de prod.'!$E$6 -> 0 | N20: =N19*'Consommations et Coûts de prod.'!$E$6 -> 5.456898059 | O20: =O19*'Consommations et Coûts de prod.'!$E$6 -> 8.185347089 | P20: =P19*'Consommations et Coûts de prod.'!$E$6 -> 5.456898059 | Q20: =Q19*'Consommations et Coûts de prod.'!$E$6 -> 8.185347089 | R20: =R19*'Consommations et Coûts de prod.'!$E$6 -> 19.09914321 | S20: =S19*'Consommations et Coûts de prod.'!$E$6 -> 27.2844903 | T20: =T19*'Consommations et Coûts de prod.'!$E$6 -> 43.65518447 | U20: =U19*'Consommations et Coûts de prod.'!$E$6 -> 90.03881798 | V20: =V19*'Consommations et Coûts de prod.'!$E$6 -> 130.9655534 | W20: =W19*'Consommations et Coûts de prod.'!$E$6 -> 185.534534 | X20: =X19*'Consommations et Coûts de prod.'!$E$6 -> 193.7198811 | Y20: =Y19*'Consommations et Coûts de prod.'!$E$6 -> 346.5130268 | Z20: =Z19*'Consommations et Coûts de prod.'!$E$6 -> 373.797517 | AA20: =AA19*'Consommations et Coûts de prod.'!$E$6 -> 461.107886 | AB20: =AB19*'Consommations et Coûts de prod.'!$E$6 -> 534.7760098 | AC20: =AC19*'Consommations et Coûts de prod.'!$E$6 -> 564.7889491 | AD20: =AD19*'Consommations et Coûts de prod.'!$E$6 -> 652.0993181 | AE20: =AE19*'Consommations et Coûts de prod.'!$E$6 -> 777.6079734 | AF20: =AF19*'Consommations et Coûts de prod.'!$E$6 -> 859.4614443 | AG20: =AG19*'Consommations et Coûts de prod.'!$E$6 -> 813.0778108 | AH20: =AH19*'Consommations et Coûts de prod.'!$E$6 -> 875.8321385 | AI20: =AI19*'Consommations et Coûts de prod.'!$E$6 -> 862.1898933 | AJ20: =AJ19*'Consommations et Coûts de prod.'!$E$6 -> 845.8191992 | AK20: =AK19*'Consommations et Coûts de prod.'!$E$6 -> 843.0907501 | AL20: =AL19*'Consommations et Coûts de prod.'!$E$6 -> 810.3493618 | AM20: =AM19*'Consommations et Coûts de prod.'!$E$6 -> 747.5950341 | AN20: =AN19*'Consommations et Coûts de prod.'!$E$6 -> 804.8924637 | AO20: =AO19*'Consommations et Coûts de prod.'!$E$6 -> 911.3019759 | AP20: =AP19*'Consommations et Coûts de prod.'!$E$6 -> 941.3149152 | AQ20: =AQ19*'Consommations et Coûts de prod.'!$E$6 -> 892.2028327 | AR20: =AR19*'Consommations et Coûts de prod.'!$E$6 -> 968.5994055 | AS20: =AS19*'Consommations et Coûts de prod.'!$E$6 -> 0 | AT20: =AT19*'Consommations et Coûts de prod.'!$E$6 -> 0 | AU20: =AU19*'Consommations et Coûts de prod.'!$E$6 -> 0 | AV20: =AV19*'Consommations et Coûts de prod.'!$E$6 -> 0 | AW20: =AW19*'Consommations et Coûts de prod.'!$E$6 -> 0 | AX20: =AX19*'Consommations et Coûts de prod.'!$E$6 -> 0 | AY20: =AY19*'Consommations et Coûts de prod.'!$E$6 -> 0 | AZ20: =AZ19*'Consommations et Coûts de prod.'!$E$6 -> 0 | BA20: =BA19*'Consommations et Coûts de prod.'!$E$6 -> 0 | BB20: =BB19*'Consommations et Coûts de prod.'!$E$6 -> 0 | BC20: =BC19*'Consommations et Coûts de prod.'!$E$6 -> 0 | BD20: =BD19*'Consommations et Coûts de prod.'!$E$6 -> 0 | BE20: =BE19*'Consommations et Coûts de prod.'!$E$6 -> 0 | BF20: =SUM(B22:BE22) -> 238.5
A21: T eau départ | B21: =IF(B16<'BdD Bâtiment'!$D$100,0,A7) -> 0 | C21: =IF(C16<'BdD Bâtiment'!$D$100,0,IF('BdD Bâtiment'!$D$100=C16,$A$7,IF(C16>'Consommations et Coûts de prod.'!$C$85,0,B21-($A$7-'Consommations et Coûts de prod.'!$C$85)/('Consommations et Coûts de prod.'!$C$85-'BdD Bâtiment'!$D$100)))) -> 0 | D21: =IF(D16<'BdD Bâtiment'!$D$100,0,IF('BdD Bâtiment'!$D$100=D16,$A$7,IF(D16>'Consommations et Coûts de prod.'!$C$85,0,C21-($A$7-'Consommations et Coûts de prod.'!$C$85)/('Consommations et Coûts de prod.'!$C$85-'BdD Bâtiment'!$D$100)))) -> 0 | E21: =IF(E16<'BdD Bâtiment'!$D$100,0,IF('BdD Bâtiment'!$D$100=E16,$A$7,IF(E16>'Consommations et Coûts de prod.'!$C$85,0,D21-($A$7-'Consommations et Coûts de prod.'!$C$85)/('Consommations et Coûts de prod.'!$C$85-'BdD Bâtiment'!$D$100)))) -> 0 | F21: =IF(F16<'BdD Bâtiment'!$D$100,0,IF('BdD Bâtiment'!$D$100=F16,$A$7,IF(F16>'Consommations et Coûts de prod.'!$C$85,0,E21-($A$7-'Consommations et Coûts de prod.'!$C$85)/('Consommations et Coûts de prod.'!$C$85-'BdD Bâtiment'!$D$100)))) -> 0 | G21: =IF(G16<'BdD Bâtiment'!$D$100,0,IF('BdD Bâtiment'!$D$100=G16,$A$7,IF(G16>'Consommations et Coûts de prod.'!$C$85,0,F21-($A$7-'Consommations et Coûts de prod.'!$C$85)/('Consommations et Coûts de prod.'!$C$85-'BdD Bâtiment'!$D$100)))) -> 0 | H21: =IF(H16<'BdD Bâtiment'!$D$100,0,IF('BdD Bâtiment'!$D$100=H16,$A$7,IF(H16>'Consommations et Coûts de prod.'!$C$85,0,G21-($A$7-'Consommations et Coûts de prod.'!$C$85)/('Consommations et Coûts de prod.'!$C$85-'BdD Bâtiment'!$D$100)))) -> 0 | I21: =IF(I16<'BdD Bâtiment'!$D$100,0,IF('BdD Bâtiment'!$D$100=I16,$A$7,IF(I16>'Consommations et Coûts de prod.'!$C$85,0,H21-($A$7-'Consommations et Coûts de prod.'!$C$85)/('Consommations et Coûts de prod.'!$C$85-'BdD Bâtiment'!$D$100)))) -> 0 | J21: =IF(J16<'BdD Bâtiment'!$D$100,0,IF('BdD Bâtiment'!$D$100=J16,$A$7,IF(J16>'Consommations et Coûts de prod.'!$C$85-3,0,I21-($A$7-'Consommations et Coûts de prod.'!$C$85-3)/('Consommations et Coûts de prod.'!$C$85-3-'BdD Bâtiment'!$D$100)))) -> 0 | K21: =IF(K16<'BdD Bâtiment'!$D$100,0,IF('BdD Bâtiment'!$D$100=K16,$A$7,IF(K16>'Consommations et Coûts de prod.'!$C$85-3,0,J21-($A$7-'Consommations et Coûts de prod.'!$C$85-3)/('Consommations et Coûts de prod.'!$C$85-3-'BdD Bâtiment'!$D$100)))) -> 0 | L21: =IF(L16<'BdD Bâtiment'!$D$100,0,IF('BdD Bâtiment'!$D$100=L16,$A$7,IF(L16>'Consommations et Coûts de prod.'!$C$85-3,0,K21-($A$7-('Consommations et Coûts de prod.'!$C$85-3))/(('Consommations et Coûts de prod.'!$C$85-3)-'BdD Bâtiment'!$D$100)))) -> 55 | M21: =IF(M16<'BdD Bâtiment'!$D$100,0,IF('BdD Bâtiment'!$D$100=M16,$A$7,IF(M16>'Consommations et Coûts de prod.'!$C$85-3,0,L21-($A$7-('Consommations et Coûts de prod.'!$C$85-3))/(('Consommations et Coûts de prod.'!$C$85-3)-'BdD Bâtiment'!$D$100)))) -> 53.8125 | N21: =IF(N16<'BdD Bâtiment'!$D$100,0,IF('BdD Bâtiment'!$D$100=N16,$A$7,IF(N16>'Consommations et Coûts de prod.'!$C$85-3,0,M21-($A$7-('Consommations et Coûts de prod.'!$C$85-3))/(('Consommations et Coûts de prod.'!$C$85-3)-'BdD Bâtiment'!$D$100)))) -> 52.625 | O21: =IF(O16<'BdD Bâtiment'!$D$100,0,IF('BdD Bâtiment'!$D$100=O16,$A$7,IF(O16>'Consommations et Coûts de prod.'!$C$85-3,0,N21-($A$7-('Consommations et Coûts de prod.'!$C$85-3))/(('Consommations et Coûts de prod.'!$C$85-3)-'BdD Bâtiment'!$D$100)))) -> 51.4375 | P21: =IF(P16<'BdD Bâtiment'!$D$100,0,IF('BdD Bâtiment'!$D$100=P16,$A$7,IF(P16>'Consommations et Coûts de prod.'!$C$85-3,0,O21-($A$7-('Consommations et Coûts de prod.'!$C$85-3))/(('Consommations et Coûts de prod.'!$C$85-3)-'BdD Bâtiment'!$D$100)))) -> 50.25 | Q21: =IF(Q16<'BdD Bâtiment'!$D$100,0,IF('BdD Bâtiment'!$D$100=Q16,$A$7,IF(Q16>'Consommations et Coûts de prod.'!$C$85-3,0,P21-($A$7-('Consommations et Coûts de prod.'!$C$85-3))/(('Consommations et Coûts de prod.'!$C$85-3)-'BdD Bâtiment'!$D$100)))) -> 49.0625 | R21: =IF(R16<'BdD Bâtiment'!$D$100,0,IF('BdD Bâtiment'!$D$100=R16,$A$7,IF(R16>'Consommations et Coûts de prod.'!$C$85,0,Q21-($A$7-'Consommations et Coûts de prod.'!$C$85)/('Consommations et Coûts de prod.'!$C$85-'BdD Bâtiment'!$D$100)))) -> 48.0625 | S21: =IF(S16<'BdD Bâtiment'!$D$100,0,IF('BdD Bâtiment'!$D$100=S16,$A$7,IF(S16>'Consommations et Coûts de prod.'!$C$85,0,R21-($A$7-'Consommations et Coûts de prod.'!$C$85)/('Consommations et Coûts de prod.'!$C$85-'BdD Bâtiment'!$D$100)))) -> 47.0625 | T21: =IF(T16<'BdD Bâtiment'!$D$100,0,IF('BdD Bâtiment'!$D$100=T16,$A$7,IF(T16>'Consommations et Coûts de prod.'!$C$85,0,S21-($A$7-'Consommations et Coûts de prod.'!$C$85)/('Consommations et Coûts de prod.'!$C$85-'BdD Bâtiment'!$D$100)))) -> 46.0625 | U21: =IF(U16<'BdD Bâtiment'!$D$100,0,IF('BdD Bâtiment'!$D$100=U16,$A$7,IF(U16>'Consommations et Coûts de prod.'!$C$85,0,T21-($A$7-'Consommations et Coûts de prod.'!$C$85)/('Consommations et Coûts de prod.'!$C$85-'BdD Bâtiment'!$D$100)))) -> 45.0625 | V21: =IF(V16<'BdD Bâtiment'!$D$100,0,IF('BdD Bâtiment'!$D$100=V16,$A$7,IF(V16>'Consommations et Coûts de prod.'!$C$85,0,U21-($A$7-'Consommations et Coûts de prod.'!$C$85)/('Consommations et Coûts de prod.'!$C$85-'BdD Bâtiment'!$D$100)))) -> 44.0625 | W21: =IF(W16<'BdD Bâtiment'!$D$100,0,IF('BdD Bâtiment'!$D$100=W16,$A$7,IF(W16>'Consommations et Coûts de prod.'!$C$85,0,V21-($A$7-'Consommations et Coûts de prod.'!$C$85)/('Consommations et Coûts de prod.'!$C$85-'BdD Bâtiment'!$D$100)))) -> 43.0625 | X21: =IF(X16<'BdD Bâtiment'!$D$100,0,IF('BdD Bâtiment'!$D$100=X16,$A$7,IF(X16>'Consommations et Coûts de prod.'!$C$85,0,W21-($A$7-'Consommations et Coûts de prod.'!$C$85)/('Consommations et Coûts de prod.'!$C$85-'BdD Bâtiment'!$D$100)))) -> 42.0625 | Y21: =IF(Y16<'BdD Bâtiment'!$D$100,0,IF('BdD Bâtiment'!$D$100=Y16,$A$7,IF(Y16>'Consommations et Coûts de prod.'!$C$85,0,X21-($A$7-'Consommations et Coûts de prod.'!$C$85)/('Consommations et Coûts de prod.'!$C$85-'BdD Bâtiment'!$D$100)))) -> 41.0625 | Z21: =IF(Z16<'BdD Bâtiment'!$D$100,0,IF('BdD Bâtiment'!$D$100=Z16,$A$7,IF(Z16>'Consommations et Coûts de prod.'!$C$85,0,Y21-($A$7-'Consommations et Coûts de prod.'!$C$85)/('Consommations et Coûts de prod.'!$C$85-'BdD Bâtiment'!$D$100)))) -> 40.0625 | AA21: =IF(AA16<'BdD Bâtiment'!$D$100,0,IF('BdD Bâtiment'!$D$100=AA16,$A$7,IF(AA16>'Consommations et Coûts de prod.'!$C$85,0,Z21-($A$7-'Consommations et Coûts de prod.'!$C$85)/('Consommations et Coûts de prod.'!$C$85-'BdD Bâtiment'!$D$100)))) -> 39.0625 | AB21: =IF(AB16<'BdD Bâtiment'!$D$100,0,IF('BdD Bâtiment'!$D$100=AB16,$A$7,IF(AB16>'Consommations et Coûts de prod.'!$C$85,0,AA21-($A$7-'Consommations et Coûts de prod.'!$C$85)/('Consommations et Coûts de prod.'!$C$85-'BdD Bâtiment'!$D$100)))) -> 38.0625 | AC21: =IF(AC16<'BdD Bâtiment'!$D$100,0,IF('BdD Bâtiment'!$D$100=AC16,$A$7,IF(AC16>'Consommations et Coûts de prod.'!$C$85,0,AB21-($A$7-'Consommations et Coûts de prod.'!$C$85)/('Consommations et Coûts de prod.'!$C$85-'BdD Bâtiment'!$D$100)))) -> 37.0625 | AD21: =IF(AD16<'BdD Bâtiment'!$D$100,0,IF('BdD Bâtiment'!$D$100=AD16,$A$7,IF(AD16>'Consommations et Coûts de prod.'!$C$85,0,AC21-($A$7-'Consommations et Coûts de prod.'!$C$85)/('Consommations et Coûts de prod.'!$C$85-'BdD Bâtiment'!$D$100)))) -> 36.0625 | AE21: =IF(AE16<'BdD Bâtiment'!$D$100,0,IF('BdD Bâtiment'!$D$100=AE16,$A$7,IF(AE16>'Consommations et Coûts de prod.'!$C$85,0,AD21-($A$7-'Consommations et Coûts de prod.'!$C$85)/('Consommations et Coûts de prod.'!$C$85-'BdD Bâtiment'!$D$100)))) -> 35.0625 | AF21: =IF(AF16<'BdD Bâtiment'!$D$100,0,IF('BdD Bâtiment'!$D$100=AF16,$A$7,IF(AF16>'Consommations et Coûts de prod.'!$C$85,0,AE21-($A$7-'Consommations et Coûts de prod.'!$C$85)/('Consommations et Coûts de prod.'!$C$85-'BdD Bâtiment'!$D$100)))) -> 34.0625 | AG21: =IF(AG16<'BdD Bâtiment'!$D$100,0,IF('BdD Bâtiment'!$D$100=AG16,$A$7,IF(AG16>'Consommations et Coûts de prod.'!$C$85,0,AF21-($A$7-'Consommations et Coûts de prod.'!$C$85)/('Consommations et Coûts de prod.'!$C$85-'BdD Bâtiment'!$D$100)))) -> 33.0625 | AH21: =IF(AH16<'BdD Bâtiment'!$D$100,0,IF('BdD Bâtiment'!$D$100=AH16,$A$7,IF(AH16>'Consommations et Coûts de prod.'!$C$85,0,AG21-($A$7-'Consommations et Coûts de prod.'!$C$85)/('Consommations et Coûts de prod.'!$C$85-'BdD Bâtiment'!$D$100)))) -> 32.0625 | AI21: =IF(AI16<'BdD Bâtiment'!$D$100,0,IF('BdD Bâtiment'!$D$100=AI16,$A$7,IF(AI16>'Consommations et Coûts de prod.'!$C$85,0,AH21-($A$7-'Consommations et Coûts de prod.'!$C$85)/('Consommations et Coûts de prod.'!$C$85-'BdD Bâtiment'!$D$100)))) -> 31.0625 | AJ21: =IF(AJ16<'BdD Bâtiment'!$D$100,0,IF('BdD Bâtiment'!$D$100=AJ16,$A$7,IF(AJ16>'Consommations et Coûts de prod.'!$C$85,0,AI21-($A$7-'Consommations et Coûts de prod.'!$C$85)/('Consommations et Coûts de prod.'!$C$85-'BdD Bâtiment'!$D$100)))) -> 30.0625 | AK21: =IF(AK16<'BdD Bâtiment'!$D$100,0,IF('BdD Bâtiment'!$D$100=AK16,$A$7,IF(AK16>'Consommations et Coûts de prod.'!$C$85,0,AJ21-($A$7-'Consommations et Coûts de prod.'!$C$85)/('Consommations et Coûts de prod.'!$C$85-'BdD Bâtiment'!$D$100)))) -> 29.0625 | AL21: =IF(AL16<'BdD Bâtiment'!$D$100,0,IF('BdD Bâtiment'!$D$100=AL16,$A$7,IF(AL16>'Consommations et Coûts de prod.'!$C$85,0,AK21-($A$7-'Consommations et Coûts de prod.'!$C$85)/('Consommations et Coûts de prod.'!$C$85-'BdD Bâtiment'!$D$100)))) -> 28.0625 | AM21: =IF(AM16<'BdD Bâtiment'!$D$100,0,IF('BdD Bâtiment'!$D$100=AM16,$A$7,IF(AM16>'Consommations et Coûts de prod.'!$C$85,0,AL21-($A$7-'Consommations et Coûts de prod.'!$C$85)/('Consommations et Coûts de prod.'!$C$85-'BdD Bâtiment'!$D$100)))) -> 27.0625 | AN21: =IF(AN16<'BdD Bâtiment'!$D$100,0,IF('BdD Bâtiment'!$D$100=AN16,$A$7,IF(AN16>'Consommations et Coûts de prod.'!$C$85,0,AM21-($A$7-'Consommations et Coûts de prod.'!$C$85)/('Consommations et Coûts de prod.'!$C$85-'BdD Bâtiment'!$D$100)))) -> 26.0625 | AO21: =IF(AO16<'BdD Bâtiment'!$D$100,0,IF('BdD Bâtiment'!$D$100=AO16,$A$7,IF(AO16>'Consommations et Coûts de prod.'!$C$85,0,AN21-($A$7-'Consommations et Coûts de prod.'!$C$85)/('Consommations et Coûts de prod.'!$C$85-'BdD Bâtiment'!$D$100)))) -> 25.0625 | AP21: =IF(AP16<'BdD Bâtiment'!$D$100,0,IF('BdD Bâtiment'!$D$100=AP16,$A$7,IF(AP16>'Consommations et Coûts de prod.'!$C$85,0,AO21-($A$7-'Consommations et Coûts de prod.'!$C$85)/('Consommations et Coûts de prod.'!$C$85-'BdD Bâtiment'!$D$100)))) -> 24.0625 | AQ21: =IF(AQ16<'BdD Bâtiment'!$D$100,0,IF('BdD Bâtiment'!$D$100=AQ16,$A$7,IF(AQ16>'Consommations et Coûts de prod.'!$C$85,0,AP21-($A$7-'Consommations et Coûts de prod.'!$C$85)/('Consommations et Coûts de prod.'!$C$85-'BdD Bâtiment'!$D$100)))) -> 23.0625 | AR21: =IF(AR16<'BdD Bâtiment'!$D$100,0,IF('BdD Bâtiment'!$D$100=AR16,$A$7,IF(AR16>'Consommations et Coûts de prod.'!$C$85,0,AQ21-($A$7-'Consommations et Coûts de prod.'!$C$85)/('Consommations et Coûts de prod.'!$C$85-'BdD Bâtiment'!$D$100)))) -> 22.0625 | AS21: =IF(AS16<'BdD Bâtiment'!$D$100,0,IF('BdD Bâtiment'!$D$100=AS16,$A$7,IF(AS16>'Consommations et Coûts de prod.'!$C$85,0,AR21-($A$7-'Consommations et Coûts de prod.'!$C$85)/('Consommations et Coûts de prod.'!$C$85-'BdD Bâtiment'!$D$100)))) -> 21.0625 | AT21: =IF(AT16<'BdD Bâtiment'!$D$100,0,IF('BdD Bâtiment'!$D$100=AT16,$A$7,IF(AT16>'Consommations et Coûts de prod.'!$C$85,0,AS21-($A$7-'Consommations et Coûts de prod.'!$C$85)/('Consommations et Coûts de prod.'!$C$85-'BdD Bâtiment'!$D$100)))) -> 20.0625 | AU21: =IF(AU16<'BdD Bâtiment'!$D$100,0,IF('BdD Bâtiment'!$D$100=AU16,$A$7,IF(AU16>'Consommations et Coûts de prod.'!$C$85,0,AT21-($A$7-'Consommations et Coûts de prod.'!$C$85)/('Consommations et Coûts de prod.'!$C$85-'BdD Bâtiment'!$D$100)))) -> 19.0625 | AV21: =IF(AV16<'BdD Bâtiment'!$D$100,0,IF('BdD Bâtiment'!$D$100=AV16,$A$7,IF(AV16>'Consommations et Coûts de prod.'!$C$85,0,AU21-($A$7-'Consommations et Coûts de prod.'!$C$85)/('Consommations et Coûts de prod.'!$C$85-'BdD Bâtiment'!$D$100)))) -> 0 | AW21: =IF(AW16<'BdD Bâtiment'!$D$100,0,IF('BdD Bâtiment'!$D$100=AW16,$A$7,IF(AW16>'Consommations et Coûts de prod.'!$C$85,0,AV21-($A$7-'Consommations et Coûts de prod.'!$C$85)/('Consommations et Coûts de prod.'!$C$85-'BdD Bâtiment'!$D$100)))) -> 0 | AX21: =IF(AX16<'BdD Bâtiment'!$D$100,0,IF('BdD Bâtiment'!$D$100=AX16,$A$7,IF(AX16>'Consommations et Coûts de prod.'!$C$85,0,AW21-($A$7-'Consommations et Coûts de prod.'!$C$85)/('Consommations et Coûts de prod.'!$C$85-'BdD Bâtiment'!$D$100)))) -> 0 | AY21: =IF(AY16<'BdD Bâtiment'!$D$100,0,IF('BdD Bâtiment'!$D$100=AY16,$A$7,IF(AY16>'Consommations et Coûts de prod.'!$C$85,0,AX21-($A$7-'Consommations et Coûts de prod.'!$C$85)/('Consommations et Coûts de prod.'!$C$85-'BdD Bâtiment'!$D$100)))) -> 0 | AZ21: =IF(AZ16<'BdD Bâtiment'!$D$100,0,IF('BdD Bâtiment'!$D$100=AZ16,$A$7,IF(AZ16>'Consommations et Coûts de prod.'!$C$85,0,AY21-($A$7-'Consommations et Coûts de prod.'!$C$85)/('Consommations et Coûts de prod.'!$C$85-'BdD Bâtiment'!$D$100)))) -> 0 | BA21: =IF(BA16<'BdD Bâtiment'!$D$100,0,IF('BdD Bâtiment'!$D$100=BA16,$A$7,IF(BA16>'Consommations et Coûts de prod.'!$C$85,0,AZ21-($A$7-'Consommations et Coûts de prod.'!$C$85)/('Consommations et Coûts de prod.'!$C$85-'BdD Bâtiment'!$D$100)))) -> 0 | BB21: =IF(BB16<'BdD Bâtiment'!$D$100,0,IF('BdD Bâtiment'!$D$100=BB16,$A$7,IF(BB16>'Consommations et Coûts de prod.'!$C$85,0,BA21-($A$7-'Consommations et Coûts de prod.'!$C$85)/('Consommations et Coûts de prod.'!$C$85-'BdD Bâtiment'!$D$100)))) -> 0 | BC21: =IF(BC16<'BdD Bâtiment'!$D$100,0,IF('BdD Bâtiment'!$D$100=BC16,$A$7,IF(BC16>'Consommations et Coûts de prod.'!$C$85,0,BB21-($A$7-'Consommations et Coûts de prod.'!$C$85)/('Consommations et Coûts de prod.'!$C$85-'BdD Bâtiment'!$D$100)))) -> 0 | BD21: =IF(BD16<'BdD Bâtiment'!$D$100,0,IF('BdD Bâtiment'!$D$100=BD16,$A$7,IF(BD16>'Consommations et Coûts de prod.'!$C$85,0,BC21-($A$7-'Consommations et Coûts de prod.'!$C$85)/('Consommations et Coûts de prod.'!$C$85-'BdD Bâtiment'!$D$100)))) -> 0 | BE21: =IF(BE16<'BdD Bâtiment'!$D$100,0,IF('BdD Bâtiment'!$D$100=BE16,$A$7,IF(BE16>'Consommations et Coûts de prod.'!$C$85,0,BD21-($A$7-'Consommations et Coûts de prod.'!$C$85)/('Consommations et Coûts de prod.'!$C$85-'BdD Bâtiment'!$D$100)))) -> 0
A22: Déper en kW | B22: =Données!$E$52 -> 9 | C22: =Données!$E$52 -> 9 | D22: =Données!$E$52 -> 9 | E22: =Données!$E$52 -> 9 | F22: =Données!$E$52 -> 9 | G22: =IF(G16<Données!J22,Données!$E$52,IF(Données!J22=G16,Données!$E$52,"")) -> 9 | H22: =IF(H16<Données!$J$22,Données!$E$52,IF(H16>Données!$J$22,G22-(Données!$E$52/(Données!$J$30-3-Données!$J$22)),IF(H16=Données!$J$22,Données!$E$52,Données!$E$52))) -> 9 | I22: =IF(I16<Données!$J$22,Données!$E$52,IF(I16>Données!$J$22,H22-(Données!$E$52/(Données!$J$30-3-Données!$J$22)),IF(I16=Données!$J$22,Données!$E$52,Données!$E$52))) -> 9 | J22: =IF(J16<Données!$J$22,Données!$E$52,IF(J16>Données!$J$22,I22-(Données!$E$52/(Données!$J$30-3-Données!$J$22)),IF(J16=Données!$J$22,Données!$E$52,Données!$E$52))) -> 9 | K22: =IF(K16<Données!$J$22,Données!$E$52,IF(K16>Données!$J$22,J22-(Données!$E$52/(Données!$J$30-3-Données!$J$22)),IF(K16=Données!$J$22,Données!$E$52,Données!$E$52))) -> 9 | L22: =IF(L16<Données!$J$22,Données!$E$52,IF(L16>Données!$J$22,K22-(Données!$E$52/(Données!$J$30-3-Données!$J$22)),IF(L16=Données!$J$22,Données!$E$52,Données!$E$52))) -> 9 | M22: =IF(M16<Données!$J$22,Données!$E$52,IF(M16>Données!$J$22,L22-(Données!$E$52/(Données!$J$30-3-Données!$J$22)),IF(M16=Données!$J$22,Données!$E$52,Données!$E$52))) -> 8.71875 | N22: =IF(N16<Données!$J$22,Données!$E$52,IF(N16>Données!$J$22,M22-(Données!$E$52/(Données!$J$30-3-Données!$J$22)),IF(N16=Données!$J$22,Données!$E$52,Données!$E$52))) -> 8.4375 | O22: =IF(O16<Données!$J$22,Données!$E$52,IF(O16>Données!$J$22,N22-(Données!$E$52/(Données!$J$30-3-Données!$J$22)),IF(O16=Données!$J$22,Données!$E$52,Données!$E$52))) -> 8.15625 | P22: =IF(P16<Données!$J$22,Données!$E$52,IF(P16>Données!$J$22,O22-(Données!$E$52/(Données!$J$30-3-Données!$J$22)),IF(P16=Données!$J$22,Données!$E$52,Données!$E$52))) -> 7.875 | Q22: =IF(Q16<Données!$J$22,Données!$E$52,IF(Q16>Données!$J$22,P22-(Données!$E$52/(Données!$J$30-3-Données!$J$22)),IF(Q16=Données!$J$22,Données!$E$52,Données!$E$52))) -> 7.59375 | R22: =IF(R16<Données!$J$22,Données!$E$52,IF(R16>Données!$J$22,Q22-(Données!$E$52/(Données!$J$30-3-Données!$J$22)),IF(R16=Données!$J$22,Données!$E$52,Données!$E$52))) -> 7.3125 | S22: =IF(S16<Données!$J$22,Données!$E$52,IF(S16>Données!$J$22,R22-(Données!$E$52/(Données!$J$30-3-Données!$J$22)),IF(S16=Données!$J$22,Données!$E$52,Données!$E$52))) -> 7.03125 | T22: =IF(T16<Données!$J$22,Données!$E$52,IF(T16>Données!$J$22,S22-(Données!$E$52/(Données!$J$30-3-Données!$J$22)),IF(T16=Données!$J$22,Données!$E$52,Données!$E$52))) -> 6.75 | U22: =IF(U16<Données!$J$22,Données!$E$52,IF(U16>Données!$J$22,T22-(Données!$E$52/(Données!$J$30-3-Données!$J$22)),IF(U16=Données!$J$22,Données!$E$52,Données!$E$52))) -> 6.46875 | V22: =IF(V16<Données!$J$22,Données!$E$52,IF(V16>Données!$J$22,U22-(Données!$E$52/(Données!$J$30-3-Données!$J$22)),IF(V16=Données!$J$22,Données!$E$52,Données!$E$52))) -> 6.1875 | W22: =IF(W16<Données!$J$22,Données!$E$52,IF(W16>Données!$J$22,V22-(Données!$E$52/(Données!$J$30-3-Données!$J$22)),IF(W16=Données!$J$22,Données!$E$52,Données!$E$52))) -> 5.90625 | X22: =IF(X16<Données!$J$22,Données!$E$52,IF(X16>Données!$J$22,W22-(Données!$E$52/(Données!$J$30-3-Données!$J$22)),IF(X16=Données!$J$22,Données!$E$52,Données!$E$52))) -> 5.625 | Y22: =IF(Y16<Données!$J$22,Données!$E$52,IF(Y16>Données!$J$22,X22-(Données!$E$52/(Données!$J$30-3-Données!$J$22)),IF(Y16=Données!$J$22,Données!$E$52,Données!$E$52))) -> 5.34375 | Z22: =IF(Z16<Données!$J$22,Données!$E$52,IF(Z16>Données!$J$22,Y22-(Données!$E$52/(Données!$J$30-3-Données!$J$22)),IF(Z16=Données!$J$22,Données!$E$52,Données!$E$52))) -> 5.0625 | AA22: =IF(AA16<Données!$J$22,Données!$E$52,IF(AA16>Données!$J$22,Z22-(Données!$E$52/(Données!$J$30-3-Données!$J$22)),IF(AA16=Données!$J$22,Données!$E$52,Données!$E$52))) -> 4.78125 | AB22: =IF(AB16<Données!$J$22,Données!$E$52,IF(AB16>Données!$J$22,AA22-(Données!$E$52/(Données!$J$30-3-Données!$J$22)),IF(AB16=Données!$J$22,Données!$E$52,Données!$E$52))) -> 4.5 | AC22: =IF(AC16<Données!$J$22,Données!$E$52,IF(AC16>Données!$J$22,AB22-(Données!$E$52/(Données!$J$30-3-Données!$J$22)),IF(AC16=Données!$J$22,Données!$E$52,Données!$E$52))) -> 4.21875 | AD22: =IF(AD16<Données!$J$22,Données!$E$52,IF(AD16>Données!$J$22,AC22-(Données!$E$52/(Données!$J$30-3-Données!$J$22)),IF(AD16=Données!$J$22,Données!$E$52,Données!$E$52))) -> 3.9375 | AE22: =IF(AE16<Données!$J$22,Données!$E$52,IF(AE16>Données!$J$22,AD22-(Données!$E$52/(Données!$J$30-3-Données!$J$22)),IF(AE16=Données!$J$22,Données!$E$52,Données!$E$52))) -> 3.65625 | AF22: =IF(AF16<Données!$J$22,Données!$E$52,IF(AF16>Données!$J$22,AE22-(Données!$E$52/(Données!$J$30-3-Données!$J$22)),IF(AF16=Données!$J$22,Données!$E$52,Données!$E$52))) -> 3.375 | AG22: =IF(AG16<Données!$J$22,Données!$E$52,IF(AG16>Données!$J$22,AF22-(Données!$E$52/(Données!$J$30-3-Données!$J$22)),IF(AG16=Données!$J$22,Données!$E$52,Données!$E$52))) -> 3.09375 | AH22: =IF(AH16<Données!$J$22,Données!$E$52,IF(AH16>Données!$J$22,AG22-(Données!$E$52/(Données!$J$30-3-Données!$J$22)),IF(AH16=Données!$J$22,Données!$E$52,Données!$E$52))) -> 2.8125 | AI22: =IF(AI16<Données!$J$22,Données!$E$52,IF(AI16>Données!$J$22,AH22-(Données!$E$52/(Données!$J$30-3-Données!$J$22)),IF(AI16=Données!$J$22,Données!$E$52,Données!$E$52))) -> 2.53125 | AJ22: =IF(AJ16<Données!$J$22,Données!$E$52,IF(AJ16>Données!$J$22,AI22-(Données!$E$52/(Données!$J$30-3-Données!$J$22)),IF(AJ16=Données!$J$22,Données!$E$52,Données!$E$52))) -> 2.25 | AK22: =IF(AK16<Données!$J$22,Données!$E$52,IF(AK16>Données!$J$22,AJ22-(Données!$E$52/(Données!$J$30-3-Données!$J$22)),IF(AK16=Données!$J$22,Données!$E$52,Données!$E$52))) -> 1.96875 | AL22: =IF(AL16<Données!$J$22,Données!$E$52,IF(AL16>Données!$J$22,AK22-(Données!$E$52/(Données!$J$30-3-Données!$J$22)),IF(AL16=Données!$J$22,Données!$E$52,Données!$E$52))) -> 1.6875 | AM22: =IF(AM16<Données!$J$22,Données!$E$52,IF(AM16>Données!$J$22,AL22-(Données!$E$52/(Données!$J$30-3-Données!$J$22)),IF(AM16=Données!$J$22,Données!$E$52,Données!$E$52))) -> 1.40625 | AN22: =IF(AN16<Données!$J$22,Données!$E$52,IF(AN16>Données!$J$22,AM22-(Données!$E$52/(Données!$J$30-3-Données!$J$22)),IF(AN16=Données!$J$22,Données!$E$52,Données!$E$52))) -> 1.125 | AO22: =IF(AO16<Données!$J$22,Données!$E$52,IF(AO16>Données!$J$22,AN22-(Données!$E$52/(Données!$J$30-3-Données!$J$22)),IF(AO16=Données!$J$22,Données!$E$52,Données!$E$52))) -> 0.84375 | AP22: =IF(AP16>Données!$J$30-3,0,IF(AP16<Données!$J$22,Données!$E$52,IF(AP16>Données!$J$22,AO22-(Données!$E$52/(Données!$J$30-3-Données!$J$22)),IF(AP16=Données!$J$22,Données!$E$52,Données!$E$52)))) -> 0.5625 | AQ22: =IF(AQ16>Données!$J$30-3,0,IF(AQ16<Données!$J$22,Données!$E$52,IF(AQ16>Données!$J$22,AP22-(Données!$E$52/(Données!$J$30-3-Données!$J$22)),IF(AQ16=Données!$J$22,Données!$E$52,Données!$E$52)))) -> 0.28125 | AR22: =IF(AR16>Données!$J$30-3,0,IF(AR16<Données!$J$22,Données!$E$52,IF(AR16>Données!$J$22,AQ22-(Données!$E$52/(Données!$J$30-3-Données!$J$22)),IF(AR16=Données!$J$22,Données!$E$52,Données!$E$52)))) -> 0 | AS22: =IF(AS16>Données!$J$30-3,0,IF(AS16<Données!$J$22,Données!$E$52,IF(AS16>Données!$J$22,AR22-(Données!$E$52/(Données!$J$30-3-Données!$J$22)),IF(AS16=Données!$J$22,Données!$E$52,Données!$E$52)))) -> 0 | AT22: =IF(AT16>Données!$J$30-3,0,IF(AT16<Données!$J$22,Données!$E$52,IF(AT16>Données!$J$22,AS22-(Données!$E$52/(Données!$J$30-3-Données!$J$22)),IF(AT16=Données!$J$22,Données!$E$52,Données!$E$52)))) -> 0 | AU22: =IF(AU16>Données!$J$30-3,0,IF(AU16<Données!$J$22,Données!$E$52,IF(AU16>Données!$J$22,AT22-(Données!$E$52/(Données!$J$30-3-Données!$J$22)),IF(AU16=Données!$J$22,Données!$E$52,Données!$E$52)))) -> 0 | AV22: =IF(AV16>Données!$J$30-3,0,IF(AV16<Données!$J$22,Données!$E$52,IF(AV16>Données!$J$22,AU22-(Données!$E$52/(Données!$J$30-3-Données!$J$22)),IF(AV16=Données!$J$22,Données!$E$52,Données!$E$52)))) -> 0 | AW22: =IF(AW16>Données!$J$30-3,0,IF(AW16<Données!$J$22,Données!$E$52,IF(AW16>Données!$J$22,AV22-(Données!$E$52/(Données!$J$30-3-Données!$J$22)),IF(AW16=Données!$J$22,Données!$E$52,Données!$E$52)))) -> 0 | AX22: =IF(AX16>Données!$J$30-3,0,IF(AX16<Données!$J$22,Données!$E$52,IF(AX16>Données!$J$22,AW22-(Données!$E$52/(Données!$J$30-3-Données!$J$22)),IF(AX16=Données!$J$22,Données!$E$52,Données!$E$52)))) -> 0 | AY22: =IF(AY16>Données!$J$30-3,0,IF(AY16<Données!$J$22,Données!$E$52,IF(AY16>Données!$J$22,AX22-(Données!$E$52/(Données!$J$30-3-Données!$J$22)),IF(AY16=Données!$J$22,Données!$E$52,Données!$E$52)))) -> 0 | AZ22: =IF(AZ16>Données!$J$30-3,0,IF(AZ16<Données!$J$22,Données!$E$52,IF(AZ16>Données!$J$22,AY22-(Données!$E$52/(Données!$J$30-3-Données!$J$22)),IF(AZ16=Données!$J$22,Données!$E$52,Données!$E$52)))) -> 0 | BA22: =IF(BA16>Données!$J$30-3,0,IF(BA16<Données!$J$22,Données!$E$52,IF(BA16>Données!$J$22,AZ22-(Données!$E$52/(Données!$J$30-3-Données!$J$22)),IF(BA16=Données!$J$22,Données!$E$52,Données!$E$52)))) -> 0 | BB22: =IF(BB16>Données!$J$30-3,0,IF(BB16<Données!$J$22,Données!$E$52,IF(BB16>Données!$J$22,BA22-(Données!$E$52/(Données!$J$30-3-Données!$J$22)),IF(BB16=Données!$J$22,Données!$E$52,Données!$E$52)))) -> 0 | BC22: =IF(BC16>Données!$J$30-3,0,IF(BC16<Données!$J$22,Données!$E$52,IF(BC16>Données!$J$22,BB22-(Données!$E$52/(Données!$J$30-3-Données!$J$22)),IF(BC16=Données!$J$22,Données!$E$52,Données!$E$52)))) -> 0 | BD22: =IF(BD16>Données!$J$30-3,0,IF(BD16<Données!$J$22,Données!$E$52,IF(BD16>Données!$J$22,BC22-(Données!$E$52/(Données!$J$30-3-Données!$J$22)),IF(BD16=Données!$J$22,Données!$E$52,Données!$E$52)))) -> 0 | BE22: =IF(BE16>Données!$J$30-3,0,IF(BE16<Données!$J$22,Données!$E$52,IF(BE16>Données!$J$22,BD22-(Données!$E$52/(Données!$J$30-3-Données!$J$22)),IF(BE16=Données!$J$22,Données!$E$52,Données!$E$52)))) -> 0
A23: Puiss PAC à T°ext/35 | B23: =IF(B16<$C$4,0,('BdD PAC'!$C$37-'BdD PAC'!$E$37)/14*B16+('BdD PAC'!$E$37*(-7)-'BdD PAC'!$C$37*7)/(-14)) -> 0 | C23: =IF(C16<$C$4,0,('BdD PAC'!$C$37-'BdD PAC'!$E$37)/14*C16+('BdD PAC'!$E$37*(-7)-'BdD PAC'!$C$37*7)/(-14)) -> 0 | D23: =IF(D16<$C$4,0,('BdD PAC'!$C$37-'BdD PAC'!$E$37)/14*D16+('BdD PAC'!$E$37*(-7)-'BdD PAC'!$C$37*7)/(-14)) -> 0 | E23: =IF(E16<$C$4,0,('BdD PAC'!$C$37-'BdD PAC'!$E$37)/14*E16+('BdD PAC'!$E$37*(-7)-'BdD PAC'!$C$37*7)/(-14)) -> 0 | F23: =IF(F16<$C$4,0,('BdD PAC'!$C$37-'BdD PAC'!$E$37)/14*F16+('BdD PAC'!$E$37*(-7)-'BdD PAC'!$C$37*7)/(-14)) -> 0 | G23: =IF(G16<$C$4,0,('BdD PAC'!$C$37-'BdD PAC'!$E$37)/14*G16+('BdD PAC'!$E$37*(-7)-'BdD PAC'!$C$37*7)/(-14)) -> 0 | H23: =IF(H16<$C$4,0,('BdD PAC'!$C$37-'BdD PAC'!$E$37)/14*H16+('BdD PAC'!$E$37*(-7)-'BdD PAC'!$C$37*7)/(-14)) -> 0 | I23: =IF(I16<$C$4,0,('BdD PAC'!$C$37-'BdD PAC'!$E$37)/14*I16+('BdD PAC'!$E$37*(-7)-'BdD PAC'!$C$37*7)/(-14)) -> 0 | J23: =IF(J16<$C$4,0,('BdD PAC'!$C$37-'BdD PAC'!$E$37)/14*J16+('BdD PAC'!$E$37*(-7)-'BdD PAC'!$C$37*7)/(-14)) -> 0 | K23: =IF(K16<$C$4,0,('BdD PAC'!$C$37-'BdD PAC'!$E$37)/14*K16+('BdD PAC'!$E$37*(-7)-'BdD PAC'!$C$37*7)/(-14)) -> 0 | L23: =IF(L16<$C$4,0,('BdD PAC'!$C$37-'BdD PAC'!$E$37)/14*L16+('BdD PAC'!$E$37*(-7)-'BdD PAC'!$C$37*7)/(-14)) -> 3.342857143 | M23: =IF(M16<$C$4,0,('BdD PAC'!$C$37-'BdD PAC'!$E$37)/14*M16+('BdD PAC'!$E$37*(-7)-'BdD PAC'!$C$37*7)/(-14)) -> 3.4 | N23: =IF(N16<$C$4,0,('BdD PAC'!$C$37-'BdD PAC'!$E$37)/14*N16+('BdD PAC'!$E$37*(-7)-'BdD PAC'!$C$37*7)/(-14)) -> 3.457142857 | O23: =IF(O16<$C$4,0,('BdD PAC'!$C$37-'BdD PAC'!$E$37)/14*O16+('BdD PAC'!$E$37*(-7)-'BdD PAC'!$C$37*7)/(-14)) -> 3.514285714 | P23: =IF(P16<$C$4,0,('BdD PAC'!$C$37-'BdD PAC'!$E$37)/14*P16+('BdD PAC'!$E$37*(-7)-'BdD PAC'!$C$37*7)/(-14)) -> 3.571428571 | Q23: =IF(Q16<$C$4,0,('BdD PAC'!$C$37-'BdD PAC'!$E$37)/14*Q16+('BdD PAC'!$E$37*(-7)-'BdD PAC'!$C$37*7)/(-14)) -> 3.628571429 | R23: =IF(R16<$C$4,0,('BdD PAC'!$C$37-'BdD PAC'!$E$37)/14*R16+('BdD PAC'!$E$37*(-7)-'BdD PAC'!$C$37*7)/(-14)) -> 3.685714286 | S23: =IF(S16<$C$4,0,('BdD PAC'!$C$37-'BdD PAC'!$E$37)/14*S16+('BdD PAC'!$E$37*(-7)-'BdD PAC'!$C$37*7)/(-14)) -> 3.742857143 | T23: =IF(T16<$C$4,0,('BdD PAC'!$C$37-'BdD PAC'!$E$37)/14*T16+('BdD PAC'!$E$37*(-7)-'BdD PAC'!$C$37*7)/(-14)) -> 3.8 | U23: =IF(U16<$C$4,0,('BdD PAC'!$C$37-'BdD PAC'!$E$37)/14*U16+('BdD PAC'!$E$37*(-7)-'BdD PAC'!$C$37*7)/(-14)) -> 3.857142857 | V23: =IF(V16<$C$4,0,('BdD PAC'!$C$37-'BdD PAC'!$E$37)/14*V16+('BdD PAC'!$E$37*(-7)-'BdD PAC'!$C$37*7)/(-14)) -> 3.914285714 | W23: =IF(W16<$C$4,0,('BdD PAC'!$C$37-'BdD PAC'!$E$37)/14*W16+('BdD PAC'!$E$37*(-7)-'BdD PAC'!$C$37*7)/(-14)) -> 3.971428571 | X23: =IF(X16<$C$4,0,('BdD PAC'!$C$37-'BdD PAC'!$E$37)/14*X16+('BdD PAC'!$E$37*(-7)-'BdD PAC'!$C$37*7)/(-14)) -> 4.028571429 | Y23: =IF(Y16<$C$4,0,('BdD PAC'!$C$37-'BdD PAC'!$E$37)/14*Y16+('BdD PAC'!$E$37*(-7)-'BdD PAC'!$C$37*7)/(-14)) -> 4.085714286 | Z23: =IF(Z16<$C$4,0,('BdD PAC'!$C$37-'BdD PAC'!$E$37)/14*Z16+('BdD PAC'!$E$37*(-7)-'BdD PAC'!$C$37*7)/(-14)) -> 4.142857143 | AA23: =IF(AA16<$C$4,0,('BdD PAC'!$C$37-'BdD PAC'!$E$37)/14*AA16+('BdD PAC'!$E$37*(-7)-'BdD PAC'!$C$37*7)/(-14)) -> 4.2 | AB23: =IF(AB16<$C$4,0,('BdD PAC'!$C$37-'BdD PAC'!$E$37)/14*AB16+('BdD PAC'!$E$37*(-7)-'BdD PAC'!$C$37*7)/(-14)) -> 4.257142857 | AC23: =IF(AC16<$C$4,0,('BdD PAC'!$C$37-'BdD PAC'!$E$37)/14*AC16+('BdD PAC'!$E$37*(-7)-'BdD PAC'!$C$37*7)/(-14)) -> 4.314285714 | AD23: =IF(AD16<$C$4,0,('BdD PAC'!$C$37-'BdD PAC'!$E$37)/14*AD16+('BdD PAC'!$E$37*(-7)-'BdD PAC'!$C$37*7)/(-14)) -> 4.371428571 | AE23: =IF(AE16<$C$4,0,('BdD PAC'!$C$37-'BdD PAC'!$E$37)/14*AE16+('BdD PAC'!$E$37*(-7)-'BdD PAC'!$C$37*7)/(-14)) -> 4.428571429 | AF23: =IF(AF16<$C$4,0,('BdD PAC'!$C$37-'BdD PAC'!$E$37)/14*AF16+('BdD PAC'!$E$37*(-7)-'BdD PAC'!$C$37*7)/(-14)) -> 4.485714286 | AG23: =IF(AG16<$C$4,0,('BdD PAC'!$C$37-'BdD PAC'!$E$37)/14*AG16+('BdD PAC'!$E$37*(-7)-'BdD PAC'!$C$37*7)/(-14)) -> 4.542857143 | AH23: =IF(AH16<$C$4,0,('BdD PAC'!$C$37-'BdD PAC'!$E$37)/14*AH16+('BdD PAC'!$E$37*(-7)-'BdD PAC'!$C$37*7)/(-14)) -> 4.6 | AI23: =IF(AI16<$C$4,0,('BdD PAC'!$C$37-'BdD PAC'!$E$37)/14*AI16+('BdD PAC'!$E$37*(-7)-'BdD PAC'!$C$37*7)/(-14)) -> 4.657142857 | AJ23: =IF(AJ16<$C$4,0,('BdD PAC'!$C$37-'BdD PAC'!$E$37)/14*AJ16+('BdD PAC'!$E$37*(-7)-'BdD PAC'!$C$37*7)/(-14)) -> 4.714285714 | AK23: =IF(AK16<$C$4,0,('BdD PAC'!$C$37-'BdD PAC'!$E$37)/14*AK16+('BdD PAC'!$E$37*(-7)-'BdD PAC'!$C$37*7)/(-14)) -> 4.771428571 | AL23: =IF(AL16<$C$4,0,('BdD PAC'!$C$37-'BdD PAC'!$E$37)/14*AL16+('BdD PAC'!$E$37*(-7)-'BdD PAC'!$C$37*7)/(-14)) -> 4.828571429 | AM23: =IF(AM16<$C$4,0,('BdD PAC'!$C$37-'BdD PAC'!$E$37)/14*AM16+('BdD PAC'!$E$37*(-7)-'BdD PAC'!$C$37*7)/(-14)) -> 4.885714286 | AN23: =IF(AN16<$C$4,0,('BdD PAC'!$C$37-'BdD PAC'!$E$37)/14*AN16+('BdD PAC'!$E$37*(-7)-'BdD PAC'!$C$37*7)/(-14)) -> 4.942857143 | AO23: =IF(AO16<$C$4,0,('BdD PAC'!$C$37-'BdD PAC'!$E$37)/14*AO16+('BdD PAC'!$E$37*(-7)-'BdD PAC'!$C$37*7)/(-14)) -> 5 | AP23: =IF(AP16<$C$4,0,('BdD PAC'!$C$37-'BdD PAC'!$E$37)/14*AP16+('BdD PAC'!$E$37*(-7)-'BdD PAC'!$C$37*7)/(-14)) -> 5.057142857 | AQ23: =IF(AQ16<$C$4,0,('BdD PAC'!$C$37-'BdD PAC'!$E$37)/14*AQ16+('BdD PAC'!$E$37*(-7)-'BdD PAC'!$C$37*7)/(-14)) -> 5.114285714 | AR23: =IF(AR16<$C$4,0,('BdD PAC'!$C$37-'BdD PAC'!$E$37)/14*AR16+('BdD PAC'!$E$37*(-7)-'BdD PAC'!$C$37*7)/(-14)) -> 5.171428571 | AS23: =IF(AS16<$C$4,0,('BdD PAC'!$C$37-'BdD PAC'!$E$37)/14*AS16+('BdD PAC'!$E$37*(-7)-'BdD PAC'!$C$37*7)/(-14)) -> 5.228571429 | AT23: =IF(AT16<$C$4,0,('BdD PAC'!$C$37-'BdD PAC'!$E$37)/14*AT16+('BdD PAC'!$E$37*(-7)-'BdD PAC'!$C$37*7)/(-14)) -> 5.285714286 | AU23: =IF(AU16<$C$4,0,('BdD PAC'!$C$37-'BdD PAC'!$E$37)/14*AU16+('BdD PAC'!$E$37*(-7)-'BdD PAC'!$C$37*7)/(-14)) -> 5.342857143 | AV23: =IF(AV16<$C$4,0,('BdD PAC'!$C$37-'BdD PAC'!$E$37)/14*AV16+('BdD PAC'!$E$37*(-7)-'BdD PAC'!$C$37*7)/(-14)) -> 5.4 | AW23: =IF(AW16<$C$4,0,('BdD PAC'!$C$37-'BdD PAC'!$E$37)/14*AW16+('BdD PAC'!$E$37*(-7)-'BdD PAC'!$C$37*7)/(-14)) -> 5.457142857 | AX23: =IF(AX16<$C$4,0,('BdD PAC'!$C$37-'BdD PAC'!$E$37)/14*AX16+('BdD PAC'!$E$37*(-7)-'BdD PAC'!$C$37*7)/(-14)) -> 5.514285714 | AY23: =IF(AY16<$C$4,0,('BdD PAC'!$C$37-'BdD PAC'!$E$37)/14*AY16+('BdD PAC'!$E$37*(-7)-'BdD PAC'!$C$37*7)/(-14)) -> 5.571428571 | AZ23: =IF(AZ16<$C$4,0,('BdD PAC'!$C$37-'BdD PAC'!$E$37)/14*AZ16+('BdD PAC'!$E$37*(-7)-'BdD PAC'!$C$37*7)/(-14)) -> 5.628571429 | BA23: =IF(BA16<$C$4,0,('BdD PAC'!$C$37-'BdD PAC'!$E$37)/14*BA16+('BdD PAC'!$E$37*(-7)-'BdD PAC'!$C$37*7)/(-14)) -> 5.685714286 | BB23: =IF(BB16<$C$4,0,('BdD PAC'!$C$37-'BdD PAC'!$E$37)/14*BB16+('BdD PAC'!$E$37*(-7)-'BdD PAC'!$C$37*7)/(-14)) -> 5.742857143 | BC23: =IF(BC16<$C$4,0,('BdD PAC'!$C$37-'BdD PAC'!$E$37)/14*BC16+('BdD PAC'!$E$37*(-7)-'BdD PAC'!$C$37*7)/(-14)) -> 5.8 | BD23: =IF(BD16<$C$4,0,('BdD PAC'!$C$37-'BdD PAC'!$E$37)/14*BD16+('BdD PAC'!$E$37*(-7)-'BdD PAC'!$C$37*7)/(-14)) -> 5.857142857 | BE23: =IF(BE16<$C$4,0,('BdD PAC'!$C$37-'BdD PAC'!$E$37)/14*BE16+('BdD PAC'!$E$37*(-7)-'BdD PAC'!$C$37*7)/(-14)) -> 5.914285714
A24: Puiss PAC à T°ext/50 | B24: =IF(B16<$C$4,0,('BdD PAC'!$G$37-'BdD PAC'!$I$37)/14*B16+('BdD PAC'!$I$37*(-7)-'BdD PAC'!$G$37*7)/(-14)) -> 0 | C24: =IF(C16<$C$4,0,('BdD PAC'!$G$37-'BdD PAC'!$I$37)/14*C16+('BdD PAC'!$I$37*(-7)-'BdD PAC'!$G$37*7)/(-14)) -> 0 | D24: =IF(D16<$C$4,0,('BdD PAC'!$G$37-'BdD PAC'!$I$37)/14*D16+('BdD PAC'!$I$37*(-7)-'BdD PAC'!$G$37*7)/(-14)) -> 0 | E24: =IF(E16<$C$4,0,('BdD PAC'!$G$37-'BdD PAC'!$I$37)/14*E16+('BdD PAC'!$I$37*(-7)-'BdD PAC'!$G$37*7)/(-14)) -> 0 | F24: =IF(F16<$C$4,0,('BdD PAC'!$G$37-'BdD PAC'!$I$37)/14*F16+('BdD PAC'!$I$37*(-7)-'BdD PAC'!$G$37*7)/(-14)) -> 0 | G24: =IF(G16<$C$4,0,('BdD PAC'!$G$37-'BdD PAC'!$I$37)/14*G16+('BdD PAC'!$I$37*(-7)-'BdD PAC'!$G$37*7)/(-14)) -> 0 | H24: =IF(H16<$C$4,0,('BdD PAC'!$G$37-'BdD PAC'!$I$37)/14*H16+('BdD PAC'!$I$37*(-7)-'BdD PAC'!$G$37*7)/(-14)) -> 0 | I24: =IF(I16<$C$4,0,('BdD PAC'!$G$37-'BdD PAC'!$I$37)/14*I16+('BdD PAC'!$I$37*(-7)-'BdD PAC'!$G$37*7)/(-14)) -> 0 | J24: =IF(J16<$C$4,0,('BdD PAC'!$G$37-'BdD PAC'!$I$37)/14*J16+('BdD PAC'!$I$37*(-7)-'BdD PAC'!$G$37*7)/(-14)) -> 0 | K24: =IF(K16<$C$4,0,('BdD PAC'!$G$37-'BdD PAC'!$I$37)/14*K16+('BdD PAC'!$I$37*(-7)-'BdD PAC'!$G$37*7)/(-14)) -> 0 | L24: =IF(L16<$C$4,0,('BdD PAC'!$G$37-'BdD PAC'!$I$37)/14*L16+('BdD PAC'!$I$37*(-7)-'BdD PAC'!$G$37*7)/(-14)) -> 3.4 | M24: =IF(M16<$C$4,0,('BdD PAC'!$G$37-'BdD PAC'!$I$37)/14*M16+('BdD PAC'!$I$37*(-7)-'BdD PAC'!$G$37*7)/(-14)) -> 3.45 | N24: =IF(N16<$C$4,0,('BdD PAC'!$G$37-'BdD PAC'!$I$37)/14*N16+('BdD PAC'!$I$37*(-7)-'BdD PAC'!$G$37*7)/(-14)) -> 3.5 | O24: =IF(O16<$C$4,0,('BdD PAC'!$G$37-'BdD PAC'!$I$37)/14*O16+('BdD PAC'!$I$37*(-7)-'BdD PAC'!$G$37*7)/(-14)) -> 3.55 | P24: =IF(P16<$C$4,0,('BdD PAC'!$G$37-'BdD PAC'!$I$37)/14*P16+('BdD PAC'!$I$37*(-7)-'BdD PAC'!$G$37*7)/(-14)) -> 3.6 | Q24: =IF(Q16<$C$4,0,('BdD PAC'!$G$37-'BdD PAC'!$I$37)/14*Q16+('BdD PAC'!$I$37*(-7)-'BdD PAC'!$G$37*7)/(-14)) -> 3.65 | R24: =IF(R16<$C$4,0,('BdD PAC'!$G$37-'BdD PAC'!$I$37)/14*R16+('BdD PAC'!$I$37*(-7)-'BdD PAC'!$G$37*7)/(-14)) -> 3.7 | S24: =IF(S16<$C$4,0,('BdD PAC'!$G$37-'BdD PAC'!$I$37)/14*S16+('BdD PAC'!$I$37*(-7)-'BdD PAC'!$G$37*7)/(-14)) -> 3.75 | T24: =IF(T16<$C$4,0,('BdD PAC'!$G$37-'BdD PAC'!$I$37)/14*T16+('BdD PAC'!$I$37*(-7)-'BdD PAC'!$G$37*7)/(-14)) -> 3.8 | U24: =IF(U16<$C$4,0,('BdD PAC'!$G$37-'BdD PAC'!$I$37)/14*U16+('BdD PAC'!$I$37*(-7)-'BdD PAC'!$G$37*7)/(-14)) -> 3.85 | V24: =IF(V16<$C$4,0,('BdD PAC'!$G$37-'BdD PAC'!$I$37)/14*V16+('BdD PAC'!$I$37*(-7)-'BdD PAC'!$G$37*7)/(-14)) -> 3.9 | W24: =IF(W16<$C$4,0,('BdD PAC'!$G$37-'BdD PAC'!$I$37)/14*W16+('BdD PAC'!$I$37*(-7)-'BdD PAC'!$G$37*7)/(-14)) -> 3.95 | X24: =IF(X16<$C$4,0,('BdD PAC'!$G$37-'BdD PAC'!$I$37)/14*X16+('BdD PAC'!$I$37*(-7)-'BdD PAC'!$G$37*7)/(-14)) -> 4 | Y24: =IF(Y16<$C$4,0,('BdD PAC'!$G$37-'BdD PAC'!$I$37)/14*Y16+('BdD PAC'!$I$37*(-7)-'BdD PAC'!$G$37*7)/(-14)) -> 4.05 | Z24: =IF(Z16<$C$4,0,('BdD PAC'!$G$37-'BdD PAC'!$I$37)/14*Z16+('BdD PAC'!$I$37*(-7)-'BdD PAC'!$G$37*7)/(-14)) -> 4.1 | AA24: =IF(AA16<$C$4,0,('BdD PAC'!$G$37-'BdD PAC'!$I$37)/14*AA16+('BdD PAC'!$I$37*(-7)-'BdD PAC'!$G$37*7)/(-14)) -> 4.15 | AB24: =IF(AB16<$C$4,0,('BdD PAC'!$G$37-'BdD PAC'!$I$37)/14*AB16+('BdD PAC'!$I$37*(-7)-'BdD PAC'!$G$37*7)/(-14)) -> 4.2 | AC24: =IF(AC16<$C$4,0,('BdD PAC'!$G$37-'BdD PAC'!$I$37)/14*AC16+('BdD PAC'!$I$37*(-7)-'BdD PAC'!$G$37*7)/(-14)) -> 4.25 | AD24: =IF(AD16<$C$4,0,('BdD PAC'!$G$37-'BdD PAC'!$I$37)/14*AD16+('BdD PAC'!$I$37*(-7)-'BdD PAC'!$G$37*7)/(-14)) -> 4.3 | AE24: =IF(AE16<$C$4,0,('BdD PAC'!$G$37-'BdD PAC'!$I$37)/14*AE16+('BdD PAC'!$I$37*(-7)-'BdD PAC'!$G$37*7)/(-14)) -> 4.35 | AF24: =IF(AF16<$C$4,0,('BdD PAC'!$G$37-'BdD PAC'!$I$37)/14*AF16+('BdD PAC'!$I$37*(-7)-'BdD PAC'!$G$37*7)/(-14)) -> 4.4 | AG24: =IF(AG16<$C$4,0,('BdD PAC'!$G$37-'BdD PAC'!$I$37)/14*AG16+('BdD PAC'!$I$37*(-7)-'BdD PAC'!$G$37*7)/(-14)) -> 4.45 | AH24: =IF(AH16<$C$4,0,('BdD PAC'!$G$37-'BdD PAC'!$I$37)/14*AH16+('BdD PAC'!$I$37*(-7)-'BdD PAC'!$G$37*7)/(-14)) -> 4.5 | AI24: =IF(AI16<$C$4,0,('BdD PAC'!$G$37-'BdD PAC'!$I$37)/14*AI16+('BdD PAC'!$I$37*(-7)-'BdD PAC'!$G$37*7)/(-14)) -> 4.55 | AJ24: =IF(AJ16<$C$4,0,('BdD PAC'!$G$37-'BdD PAC'!$I$37)/14*AJ16+('BdD PAC'!$I$37*(-7)-'BdD PAC'!$G$37*7)/(-14)) -> 4.6 | AK24: =IF(AK16<$C$4,0,('BdD PAC'!$G$37-'BdD PAC'!$I$37)/14*AK16+('BdD PAC'!$I$37*(-7)-'BdD PAC'!$G$37*7)/(-14)) -> 4.65 | AL24: =IF(AL16<$C$4,0,('BdD PAC'!$G$37-'BdD PAC'!$I$37)/14*AL16+('BdD PAC'!$I$37*(-7)-'BdD PAC'!$G$37*7)/(-14)) -> 4.7 | AM24: =IF(AM16<$C$4,0,('BdD PAC'!$G$37-'BdD PAC'!$I$37)/14*AM16+('BdD PAC'!$I$37*(-7)-'BdD PAC'!$G$37*7)/(-14)) -> 4.75 | AN24: =IF(AN16<$C$4,0,('BdD PAC'!$G$37-'BdD PAC'!$I$37)/14*AN16+('BdD PAC'!$I$37*(-7)-'BdD PAC'!$G$37*7)/(-14)) -> 4.8 | AO24: =IF(AO16<$C$4,0,('BdD PAC'!$G$37-'BdD PAC'!$I$37)/14*AO16+('BdD PAC'!$I$37*(-7)-'BdD PAC'!$G$37*7)/(-14)) -> 4.85 | AP24: =IF(AP16<$C$4,0,('BdD PAC'!$G$37-'BdD PAC'!$I$37)/14*AP16+('BdD PAC'!$I$37*(-7)-'BdD PAC'!$G$37*7)/(-14)) -> 4.9 | AQ24: =IF(AQ16<$C$4,0,('BdD PAC'!$G$37-'BdD PAC'!$I$37)/14*AQ16+('BdD PAC'!$I$37*(-7)-'BdD PAC'!$G$37*7)/(-14)) -> 4.95 | AR24: =IF(AR16<$C$4,0,('BdD PAC'!$G$37-'BdD PAC'!$I$37)/14*AR16+('BdD PAC'!$I$37*(-7)-'BdD PAC'!$G$37*7)/(-14)) -> 5 | AS24: =IF(AS16<$C$4,0,('BdD PAC'!$G$37-'BdD PAC'!$I$37)/14*AS16+('BdD PAC'!$I$37*(-7)-'BdD PAC'!$G$37*7)/(-14)) -> 5.05 | AT24: =IF(AT16<$C$4,0,('BdD PAC'!$G$37-'BdD PAC'!$I$37)/14*AT16+('BdD PAC'!$I$37*(-7)-'BdD PAC'!$G$37*7)/(-14)) -> 5.1 | AU24: =IF(AU16<$C$4,0,('BdD PAC'!$G$37-'BdD PAC'!$I$37)/14*AU16+('BdD PAC'!$I$37*(-7)-'BdD PAC'!$G$37*7)/(-14)) -> 5.15 | AV24: =IF(AV16<$C$4,0,('BdD PAC'!$G$37-'BdD PAC'!$I$37)/14*AV16+('BdD PAC'!$I$37*(-7)-'BdD PAC'!$G$37*7)/(-14)) -> 5.2 | AW24: =IF(AW16<$C$4,0,('BdD PAC'!$G$37-'BdD PAC'!$I$37)/14*AW16+('BdD PAC'!$I$37*(-7)-'BdD PAC'!$G$37*7)/(-14)) -> 5.25 | AX24: =IF(AX16<$C$4,0,('BdD PAC'!$G$37-'BdD PAC'!$I$37)/14*AX16+('BdD PAC'!$I$37*(-7)-'BdD PAC'!$G$37*7)/(-14)) -> 5.3 | AY24: =IF(AY16<$C$4,0,('BdD PAC'!$G$37-'BdD PAC'!$I$37)/14*AY16+('BdD PAC'!$I$37*(-7)-'BdD PAC'!$G$37*7)/(-14)) -> 5.35 | AZ24: =IF(AZ16<$C$4,0,('BdD PAC'!$G$37-'BdD PAC'!$I$37)/14*AZ16+('BdD PAC'!$I$37*(-7)-'BdD PAC'!$G$37*7)/(-14)) -> 5.4 | BA24: =IF(BA16<$C$4,0,('BdD PAC'!$G$37-'BdD PAC'!$I$37)/14*BA16+('BdD PAC'!$I$37*(-7)-'BdD PAC'!$G$37*7)/(-14)) -> 5.45 | BB24: =IF(BB16<$C$4,0,('BdD PAC'!$G$37-'BdD PAC'!$I$37)/14*BB16+('BdD PAC'!$I$37*(-7)-'BdD PAC'!$G$37*7)/(-14)) -> 5.5 | BC24: =IF(BC16<$C$4,0,('BdD PAC'!$G$37-'BdD PAC'!$I$37)/14*BC16+('BdD PAC'!$I$37*(-7)-'BdD PAC'!$G$37*7)/(-14)) -> 5.55 | BD24: =IF(BD16<$C$4,0,('BdD PAC'!$G$37-'BdD PAC'!$I$37)/14*BD16+('BdD PAC'!$I$37*(-7)-'BdD PAC'!$G$37*7)/(-14)) -> 5.6 | BE24: =IF(BE16<$C$4,0,('BdD PAC'!$G$37-'BdD PAC'!$I$37)/14*BE16+('BdD PAC'!$I$37*(-7)-'BdD PAC'!$G$37*7)/(-14)) -> 5.65
A25: Puiss PAC à T°ext/Tdep | B25: =B23+(B21-35)*(B24-B23)/15 -> 0 | C25: 0 | D25: 0 | E25: 0 | F25: 0 | G25: 0 | H25: 0 | I25: 0 | J25: 0 | K25: 0 | L25: 3.419047619 | M25: 3.462708333 | N25: 3.5075 | O25: 3.553422619 | P25: =P23+(P21-35)*(P24-P23)/15 -> 3.60047619 | Q25: 3.648660714 | R25: 3.698154762 | S25: 3.74860119 | T25: 3.8 | U25: 3.85235119 | V25: 3.905654762 | W25: 3.959910714 | X25: 4.015119048 | Y25: 4.071279762 | Z25: 4.128392857 | AA25: 4.186458333 | AB25: 4.24547619 | AC25: 4.305446429 | AD25: 4.366369048 | AE25: 4.428244048 | AF25: 4.491071429 | AG25: 4.55485119 | AH25: =AH23+(AH21-35)*(AH24-AH23)/15 -> 4.619583333 | AI25: 4.685267857 | AJ25: 4.751904762 | AK25: 4.819494048 | AL25: 4.888035714 | AM25: 4.957529762 | AN25: 5.02797619 | AO25: 5.099375 | AP25: 5.17172619 | AQ25: 5.245029762 | AR25: 5.319285714 | AS25: 5.394494048 | AT25: 5.470654762 | AU25: 5.547767857 | AV25: 5.866666667 | AW25: 5.94047619 | AX25: 6.014285714 | AY25: 6.088095238 | AZ25: 6.161904762 | BA25: 6.235714286 | BB25: 6.30952381 | BC25: 6.383333333 | BD25: 6.457142857 | BE25: 6.530952381
A26: COP PAC à T°ext/35 | B26: =IF(B16<$C$4,0,('BdD PAC'!$D$37-'BdD PAC'!$F$37)/14*B16+('BdD PAC'!$F$37*(-7)-'BdD PAC'!$D$37*7)/(-14)) -> 0 | C26: =IF(C16<$C$4,0,('BdD PAC'!$D$37-'BdD PAC'!$F$37)/14*C16+('BdD PAC'!$F$37*(-7)-'BdD PAC'!$D$37*7)/(-14)) -> 0 | D26: =IF(D16<$C$4,0,('BdD PAC'!$D$37-'BdD PAC'!$F$37)/14*D16+('BdD PAC'!$F$37*(-7)-'BdD PAC'!$D$37*7)/(-14)) -> 0 | E26: =IF(E16<$C$4,0,('BdD PAC'!$D$37-'BdD PAC'!$F$37)/14*E16+('BdD PAC'!$F$37*(-7)-'BdD PAC'!$D$37*7)/(-14)) -> 0 | F26: =IF(F16<$C$4,0,('BdD PAC'!$D$37-'BdD PAC'!$F$37)/14*F16+('BdD PAC'!$F$37*(-7)-'BdD PAC'!$D$37*7)/(-14)) -> 0 | G26: =IF(G16<$C$4,0,('BdD PAC'!$D$37-'BdD PAC'!$F$37)/14*G16+('BdD PAC'!$F$37*(-7)-'BdD PAC'!$D$37*7)/(-14)) -> 0 | H26: =IF(H16<$C$4,0,('BdD PAC'!$D$37-'BdD PAC'!$F$37)/14*H16+('BdD PAC'!$F$37*(-7)-'BdD PAC'!$D$37*7)/(-14)) -> 0 | I26: =IF(I16<$C$4,0,('BdD PAC'!$D$37-'BdD PAC'!$F$37)/14*I16+('BdD PAC'!$F$37*(-7)-'BdD PAC'!$D$37*7)/(-14)) -> 0 | J26: =IF(J16<$C$4,0,('BdD PAC'!$D$37-'BdD PAC'!$F$37)/14*J16+('BdD PAC'!$F$37*(-7)-'BdD PAC'!$D$37*7)/(-14)) -> 0 | K26: =IF(K16<$C$4,0,('BdD PAC'!$D$37-'BdD PAC'!$F$37)/14*K16+('BdD PAC'!$F$37*(-7)-'BdD PAC'!$D$37*7)/(-14)) -> 0 | L26: =IF(L16<$C$4,0,('BdD PAC'!$D$37-'BdD PAC'!$F$37)/14*L16+('BdD PAC'!$F$37*(-7)-'BdD PAC'!$D$37*7)/(-14)) -> 1.338571429 | M26: =IF(M16<$C$4,0,('BdD PAC'!$D$37-'BdD PAC'!$F$37)/14*M16+('BdD PAC'!$F$37*(-7)-'BdD PAC'!$D$37*7)/(-14)) -> 1.51 | N26: =IF(N16<$C$4,0,('BdD PAC'!$D$37-'BdD PAC'!$F$37)/14*N16+('BdD PAC'!$F$37*(-7)-'BdD PAC'!$D$37*7)/(-14)) -> 1.681428571 | O26: =IF(O16<$C$4,0,('BdD PAC'!$D$37-'BdD PAC'!$F$37)/14*O16+('BdD PAC'!$F$37*(-7)-'BdD PAC'!$D$37*7)/(-14)) -> 1.852857143 | P26: =IF(P16<$C$4,0,('BdD PAC'!$D$37-'BdD PAC'!$F$37)/14*P16+('BdD PAC'!$F$37*(-7)-'BdD PAC'!$D$37*7)/(-14)) -> 2.024285714 | Q26: =IF(Q16<$C$4,0,('BdD PAC'!$D$37-'BdD PAC'!$F$37)/14*Q16+('BdD PAC'!$F$37*(-7)-'BdD PAC'!$D$37*7)/(-14)) -> 2.195714286 | R26: =IF(R16<$C$4,0,('BdD PAC'!$D$37-'BdD PAC'!$F$37)/14*R16+('BdD PAC'!$F$37*(-7)-'BdD PAC'!$D$37*7)/(-14)) -> 2.367142857 | S26: =IF(S16<$C$4,0,('BdD PAC'!$D$37-'BdD PAC'!$F$37)/14*S16+('BdD PAC'!$F$37*(-7)-'BdD PAC'!$D$37*7)/(-14)) -> 2.538571429 | T26: =IF(T16<$C$4,0,('BdD PAC'!$D$37-'BdD PAC'!$F$37)/14*T16+('BdD PAC'!$F$37*(-7)-'BdD PAC'!$D$37*7)/(-14)) -> 2.71 | U26: =IF(U16<$C$4,0,('BdD PAC'!$D$37-'BdD PAC'!$F$37)/14*U16+('BdD PAC'!$F$37*(-7)-'BdD PAC'!$D$37*7)/(-14)) -> 2.881428571 | V26: =IF(V16<$C$4,0,('BdD PAC'!$D$37-'BdD PAC'!$F$37)/14*V16+('BdD PAC'!$F$37*(-7)-'BdD PAC'!$D$37*7)/(-14)) -> 3.052857143 | W26: =IF(W16<$C$4,0,('BdD PAC'!$D$37-'BdD PAC'!$F$37)/14*W16+('BdD PAC'!$F$37*(-7)-'BdD PAC'!$D$37*7)/(-14)) -> 3.224285714 | X26: =IF(X16<$C$4,0,('BdD PAC'!$D$37-'BdD PAC'!$F$37)/14*X16+('BdD PAC'!$F$37*(-7)-'BdD PAC'!$D$37*7)/(-14)) -> 3.395714286 | Y26: =IF(Y16<$C$4,0,('BdD PAC'!$D$37-'BdD PAC'!$F$37)/14*Y16+('BdD PAC'!$F$37*(-7)-'BdD PAC'!$D$37*7)/(-14)) -> 3.567142857 | Z26: =IF(Z16<$C$4,0,('BdD PAC'!$D$37-'BdD PAC'!$F$37)/14*Z16+('BdD PAC'!$F$37*(-7)-'BdD PAC'!$D$37*7)/(-14)) -> 3.738571429 | AA26: =IF(AA16<$C$4,0,('BdD PAC'!$D$37-'BdD PAC'!$F$37)/14*AA16+('BdD PAC'!$F$37*(-7)-'BdD PAC'!$D$37*7)/(-14)) -> 3.91 | AB26: =IF(AB16<$C$4,0,('BdD PAC'!$D$37-'BdD PAC'!$F$37)/14*AB16+('BdD PAC'!$F$37*(-7)-'BdD PAC'!$D$37*7)/(-14)) -> 4.081428571 | AC26: =IF(AC16<$C$4,0,('BdD PAC'!$D$37-'BdD PAC'!$F$37)/14*AC16+('BdD PAC'!$F$37*(-7)-'BdD PAC'!$D$37*7)/(-14)) -> 4.252857143 | AD26: =IF(AD16<$C$4,0,('BdD PAC'!$D$37-'BdD PAC'!$F$37)/14*AD16+('BdD PAC'!$F$37*(-7)-'BdD PAC'!$D$37*7)/(-14)) -> 4.424285714 | AE26: =IF(AE16<$C$4,0,('BdD PAC'!$D$37-'BdD PAC'!$F$37)/14*AE16+('BdD PAC'!$F$37*(-7)-'BdD PAC'!$D$37*7)/(-14)) -> 4.595714286 | AF26: =IF(AF16<$C$4,0,('BdD PAC'!$D$37-'BdD PAC'!$F$37)/14*AF16+('BdD PAC'!$F$37*(-7)-'BdD PAC'!$D$37*7)/(-14)) -> 4.767142857 | AG26: =IF(AG16<$C$4,0,('BdD PAC'!$D$37-'BdD PAC'!$F$37)/14*AG16+('BdD PAC'!$F$37*(-7)-'BdD PAC'!$D$37*7)/(-14)) -> 4.938571429 | AH26: =IF(AH16<$C$4,0,('BdD PAC'!$D$37-'BdD PAC'!$F$37)/14*AH16+('BdD PAC'!$F$37*(-7)-'BdD PAC'!$D$37*7)/(-14)) -> 5.11 | AI26: =IF(AI16<$C$4,0,('BdD PAC'!$D$37-'BdD PAC'!$F$37)/14*AI16+('BdD PAC'!$F$37*(-7)-'BdD PAC'!$D$37*7)/(-14)) -> 5.281428571 | AJ26: =IF(AJ16<$C$4,0,('BdD PAC'!$D$37-'BdD PAC'!$F$37)/14*AJ16+('BdD PAC'!$F$37*(-7)-'BdD PAC'!$D$37*7)/(-14)) -> 5.452857143 | AK26: =IF(AK16<$C$4,0,('BdD PAC'!$D$37-'BdD PAC'!$F$37)/14*AK16+('BdD PAC'!$F$37*(-7)-'BdD PAC'!$D$37*7)/(-14)) -> 5.624285714 | AL26: =IF(AL16<$C$4,0,('BdD PAC'!$D$37-'BdD PAC'!$F$37)/14*AL16+('BdD PAC'!$F$37*(-7)-'BdD PAC'!$D$37*7)/(-14)) -> 5.795714286 | AM26: =IF(AM16<$C$4,0,('BdD PAC'!$D$37-'BdD PAC'!$F$37)/14*AM16+('BdD PAC'!$F$37*(-7)-'BdD PAC'!$D$37*7)/(-14)) -> 5.967142857 | AN26: =IF(AN16<$C$4,0,('BdD PAC'!$D$37-'BdD PAC'!$F$37)/14*AN16+('BdD PAC'!$F$37*(-7)-'BdD PAC'!$D$37*7)/(-14)) -> 6.138571429 | AO26: =IF(AO16<$C$4,0,('BdD PAC'!$D$37-'BdD PAC'!$F$37)/14*AO16+('BdD PAC'!$F$37*(-7)-'BdD PAC'!$D$37*7)/(-14)) -> 6.31 | AP26: =IF(AP16<$C$4,0,('BdD PAC'!$D$37-'BdD PAC'!$F$37)/14*AP16+('BdD PAC'!$F$37*(-7)-'BdD PAC'!$D$37*7)/(-14)) -> 6.481428571 | AQ26: =IF(AQ16<$C$4,0,('BdD PAC'!$D$37-'BdD PAC'!$F$37)/14*AQ16+('BdD PAC'!$F$37*(-7)-'BdD PAC'!$D$37*7)/(-14)) -> 6.652857143 | AR26: =IF(AR16<$C$4,0,('BdD PAC'!$D$37-'BdD PAC'!$F$37)/14*AR16+('BdD PAC'!$F$37*(-7)-'BdD PAC'!$D$37*7)/(-14)) -> 6.824285714 | AS26: =IF(AS16<$C$4,0,('BdD PAC'!$D$37-'BdD PAC'!$F$37)/14*AS16+('BdD PAC'!$F$37*(-7)-'BdD PAC'!$D$37*7)/(-14)) -> 6.995714286 | AT26: =IF(AT16<$C$4,0,('BdD PAC'!$D$37-'BdD PAC'!$F$37)/14*AT16+('BdD PAC'!$F$37*(-7)-'BdD PAC'!$D$37*7)/(-14)) -> 7.167142857 | AU26: =IF(AU16<$C$4,0,('BdD PAC'!$D$37-'BdD PAC'!$F$37)/14*AU16+('BdD PAC'!$F$37*(-7)-'BdD PAC'!$D$37*7)/(-14)) -> 7.338571429 | AV26: =IF(AV16<$C$4,0,('BdD PAC'!$D$37-'BdD PAC'!$F$37)/14*AV16+('BdD PAC'!$F$37*(-7)-'BdD PAC'!$D$37*7)/(-14)) -> 7.51 | AW26: =IF(AW16<$C$4,0,('BdD PAC'!$D$37-'BdD PAC'!$F$37)/14*AW16+('BdD PAC'!$F$37*(-7)-'BdD PAC'!$D$37*7)/(-14)) -> 7.681428571 | AX26: =IF(AX16<$C$4,0,('BdD PAC'!$D$37-'BdD PAC'!$F$37)/14*AX16+('BdD PAC'!$F$37*(-7)-'BdD PAC'!$D$37*7)/(-14)) -> 7.852857143 | AY26: =IF(AY16<$C$4,0,('BdD PAC'!$D$37-'BdD PAC'!$F$37)/14*AY16+('BdD PAC'!$F$37*(-7)-'BdD PAC'!$D$37*7)/(-14)) -> 8.024285714 | AZ26: =IF(AZ16<$C$4,0,('BdD PAC'!$D$37-'BdD PAC'!$F$37)/14*AZ16+('BdD PAC'!$F$37*(-7)-'BdD PAC'!$D$37*7)/(-14)) -> 8.195714286 | BA26: =IF(BA16<$C$4,0,('BdD PAC'!$D$37-'BdD PAC'!$F$37)/14*BA16+('BdD PAC'!$F$37*(-7)-'BdD PAC'!$D$37*7)/(-14)) -> 8.367142857 | BB26: =IF(BB16<$C$4,0,('BdD PAC'!$D$37-'BdD PAC'!$F$37)/14*BB16+('BdD PAC'!$F$37*(-7)-'BdD PAC'!$D$37*7)/(-14)) -> 8.538571429 | BC26: =IF(BC16<$C$4,0,('BdD PAC'!$D$37-'BdD PAC'!$F$37)/14*BC16+('BdD PAC'!$F$37*(-7)-'BdD PAC'!$D$37*7)/(-14)) -> 8.71 | BD26: =IF(BD16<$C$4,0,('BdD PAC'!$D$37-'BdD PAC'!$F$37)/14*BD16+('BdD PAC'!$F$37*(-7)-'BdD PAC'!$D$37*7)/(-14)) -> 8.881428571 | BE26: =IF(BE16<$C$4,0,('BdD PAC'!$D$37-'BdD PAC'!$F$37)/14*BE16+('BdD PAC'!$F$37*(-7)-'BdD PAC'!$D$37*7)/(-14)) -> 9.052857143
A27: COP PAC à T°ext/50 | B27: =IF(B16<$C$4,0,('BdD PAC'!$H$37-'BdD PAC'!$J$37)/14*B16+('BdD PAC'!$J$37*(-7)-'BdD PAC'!$H$37*7)/(-14)) -> 0 | C27: =IF(C16<$C$4,0,('BdD PAC'!$H$37-'BdD PAC'!$J$37)/14*C16+('BdD PAC'!$J$37*(-7)-'BdD PAC'!$H$37*7)/(-14)) -> 0 | D27: =IF(D16<$C$4,0,('BdD PAC'!$H$37-'BdD PAC'!$J$37)/14*D16+('BdD PAC'!$J$37*(-7)-'BdD PAC'!$H$37*7)/(-14)) -> 0 | E27: =IF(E16<$C$4,0,('BdD PAC'!$H$37-'BdD PAC'!$J$37)/14*E16+('BdD PAC'!$J$37*(-7)-'BdD PAC'!$H$37*7)/(-14)) -> 0 | F27: =IF(F16<$C$4,0,('BdD PAC'!$H$37-'BdD PAC'!$J$37)/14*F16+('BdD PAC'!$J$37*(-7)-'BdD PAC'!$H$37*7)/(-14)) -> 0 | G27: =IF(G16<$C$4,0,('BdD PAC'!$H$37-'BdD PAC'!$J$37)/14*G16+('BdD PAC'!$J$37*(-7)-'BdD PAC'!$H$37*7)/(-14)) -> 0 | H27: =IF(H16<$C$4,0,('BdD PAC'!$H$37-'BdD PAC'!$J$37)/14*H16+('BdD PAC'!$J$37*(-7)-'BdD PAC'!$H$37*7)/(-14)) -> 0 | I27: =IF(I16<$C$4,0,('BdD PAC'!$H$37-'BdD PAC'!$J$37)/14*I16+('BdD PAC'!$J$37*(-7)-'BdD PAC'!$H$37*7)/(-14)) -> 0 | J27: =IF(J16<$C$4,0,('BdD PAC'!$H$37-'BdD PAC'!$J$37)/14*J16+('BdD PAC'!$J$37*(-7)-'BdD PAC'!$H$37*7)/(-14)) -> 0 | K27: =IF(K16<$C$4,0,('BdD PAC'!$H$37-'BdD PAC'!$J$37)/14*K16+('BdD PAC'!$J$37*(-7)-'BdD PAC'!$H$37*7)/(-14)) -> 0 | L27: =IF(L16<$C$4,0,('BdD PAC'!$H$37-'BdD PAC'!$J$37)/14*L16+('BdD PAC'!$J$37*(-7)-'BdD PAC'!$H$37*7)/(-14)) -> 1.154285714 | M27: =IF(M16<$C$4,0,('BdD PAC'!$H$37-'BdD PAC'!$J$37)/14*M16+('BdD PAC'!$J$37*(-7)-'BdD PAC'!$H$37*7)/(-14)) -> 1.27 | N27: =IF(N16<$C$4,0,('BdD PAC'!$H$37-'BdD PAC'!$J$37)/14*N16+('BdD PAC'!$J$37*(-7)-'BdD PAC'!$H$37*7)/(-14)) -> 1.385714286 | O27: =IF(O16<$C$4,0,('BdD PAC'!$H$37-'BdD PAC'!$J$37)/14*O16+('BdD PAC'!$J$37*(-7)-'BdD PAC'!$H$37*7)/(-14)) -> 1.501428571 | P27: =IF(P16<$C$4,0,('BdD PAC'!$H$37-'BdD PAC'!$J$37)/14*P16+('BdD PAC'!$J$37*(-7)-'BdD PAC'!$H$37*7)/(-14)) -> 1.617142857 | Q27: =IF(Q16<$C$4,0,('BdD PAC'!$H$37-'BdD PAC'!$J$37)/14*Q16+('BdD PAC'!$J$37*(-7)-'BdD PAC'!$H$37*7)/(-14)) -> 1.732857143 | R27: =IF(R16<$C$4,0,('BdD PAC'!$H$37-'BdD PAC'!$J$37)/14*R16+('BdD PAC'!$J$37*(-7)-'BdD PAC'!$H$37*7)/(-14)) -> 1.848571429 | S27: =IF(S16<$C$4,0,('BdD PAC'!$H$37-'BdD PAC'!$J$37)/14*S16+('BdD PAC'!$J$37*(-7)-'BdD PAC'!$H$37*7)/(-14)) -> 1.964285714 | T27: =IF(T16<$C$4,0,('BdD PAC'!$H$37-'BdD PAC'!$J$37)/14*T16+('BdD PAC'!$J$37*(-7)-'BdD PAC'!$H$37*7)/(-14)) -> 2.08 | U27: =IF(U16<$C$4,0,('BdD PAC'!$H$37-'BdD PAC'!$J$37)/14*U16+('BdD PAC'!$J$37*(-7)-'BdD PAC'!$H$37*7)/(-14)) -> 2.195714286 | V27: =IF(V16<$C$4,0,('BdD PAC'!$H$37-'BdD PAC'!$J$37)/14*V16+('BdD PAC'!$J$37*(-7)-'BdD PAC'!$H$37*7)/(-14)) -> 2.311428571 | W27: =IF(W16<$C$4,0,('BdD PAC'!$H$37-'BdD PAC'!$J$37)/14*W16+('BdD PAC'!$J$37*(-7)-'BdD PAC'!$H$37*7)/(-14)) -> 2.427142857 | X27: =IF(X16<$C$4,0,('BdD PAC'!$H$37-'BdD PAC'!$J$37)/14*X16+('BdD PAC'!$J$37*(-7)-'BdD PAC'!$H$37*7)/(-14)) -> 2.542857143 | Y27: =IF(Y16<$C$4,0,('BdD PAC'!$H$37-'BdD PAC'!$J$37)/14*Y16+('BdD PAC'!$J$37*(-7)-'BdD PAC'!$H$37*7)/(-14)) -> 2.658571429 | Z27: =IF(Z16<$C$4,0,('BdD PAC'!$H$37-'BdD PAC'!$J$37)/14*Z16+('BdD PAC'!$J$37*(-7)-'BdD PAC'!$H$37*7)/(-14)) -> 2.774285714 | AA27: =IF(AA16<$C$4,0,('BdD PAC'!$H$37-'BdD PAC'!$J$37)/14*AA16+('BdD PAC'!$J$37*(-7)-'BdD PAC'!$H$37*7)/(-14)) -> 2.89 | AB27: =IF(AB16<$C$4,0,('BdD PAC'!$H$37-'BdD PAC'!$J$37)/14*AB16+('BdD PAC'!$J$37*(-7)-'BdD PAC'!$H$37*7)/(-14)) -> 3.005714286 | AC27: =IF(AC16<$C$4,0,('BdD PAC'!$H$37-'BdD PAC'!$J$37)/14*AC16+('BdD PAC'!$J$37*(-7)-'BdD PAC'!$H$37*7)/(-14)) -> 3.121428571 | AD27: =IF(AD16<$C$4,0,('BdD PAC'!$H$37-'BdD PAC'!$J$37)/14*AD16+('BdD PAC'!$J$37*(-7)-'BdD PAC'!$H$37*7)/(-14)) -> 3.237142857 | AE27: =IF(AE16<$C$4,0,('BdD PAC'!$H$37-'BdD PAC'!$J$37)/14*AE16+('BdD PAC'!$J$37*(-7)-'BdD PAC'!$H$37*7)/(-14)) -> 3.352857143 | AF27: =IF(AF16<$C$4,0,('BdD PAC'!$H$37-'BdD PAC'!$J$37)/14*AF16+('BdD PAC'!$J$37*(-7)-'BdD PAC'!$H$37*7)/(-14)) -> 3.468571429 | AG27: =IF(AG16<$C$4,0,('BdD PAC'!$H$37-'BdD PAC'!$J$37)/14*AG16+('BdD PAC'!$J$37*(-7)-'BdD PAC'!$H$37*7)/(-14)) -> 3.584285714 | AH27: =IF(AH16<$C$4,0,('BdD PAC'!$H$37-'BdD PAC'!$J$37)/14*AH16+('BdD PAC'!$J$37*(-7)-'BdD PAC'!$H$37*7)/(-14)) -> 3.7 | AI27: =IF(AI16<$C$4,0,('BdD PAC'!$H$37-'BdD PAC'!$J$37)/14*AI16+('BdD PAC'!$J$37*(-7)-'BdD PAC'!$H$37*7)/(-14)) -> 3.815714286 | AJ27: =IF(AJ16<$C$4,0,('BdD PAC'!$H$37-'BdD PAC'!$J$37)/14*AJ16+('BdD PAC'!$J$37*(-7)-'BdD PAC'!$H$37*7)/(-14)) -> 3.931428571 | AK27: =IF(AK16<$C$4,0,('BdD PAC'!$H$37-'BdD PAC'!$J$37)/14*AK16+('BdD PAC'!$J$37*(-7)-'BdD PAC'!$H$37*7)/(-14)) -> 4.047142857 | AL27: =IF(AL16<$C$4,0,('BdD PAC'!$H$37-'BdD PAC'!$J$37)/14*AL16+('BdD PAC'!$J$37*(-7)-'BdD PAC'!$H$37*7)/(-14)) -> 4.162857143 | AM27: =IF(AM16<$C$4,0,('BdD PAC'!$H$37-'BdD PAC'!$J$37)/14*AM16+('BdD PAC'!$J$37*(-7)-'BdD PAC'!$H$37*7)/(-14)) -> 4.278571429 | AN27: =IF(AN16<$C$4,0,('BdD PAC'!$H$37-'BdD PAC'!$J$37)/14*AN16+('BdD PAC'!$J$37*(-7)-'BdD PAC'!$H$37*7)/(-14)) -> 4.394285714 | AO27: =IF(AO16<$C$4,0,('BdD PAC'!$H$37-'BdD PAC'!$J$37)/14*AO16+('BdD PAC'!$J$37*(-7)-'BdD PAC'!$H$37*7)/(-14)) -> 4.51 | AP27: =IF(AP16<$C$4,0,('BdD PAC'!$H$37-'BdD PAC'!$J$37)/14*AP16+('BdD PAC'!$J$37*(-7)-'BdD PAC'!$H$37*7)/(-14)) -> 4.625714286 | AQ27: =IF(AQ16<$C$4,0,('BdD PAC'!$H$37-'BdD PAC'!$J$37)/14*AQ16+('BdD PAC'!$J$37*(-7)-'BdD PAC'!$H$37*7)/(-14)) -> 4.741428571 | AR27: =IF(AR16<$C$4,0,('BdD PAC'!$H$37-'BdD PAC'!$J$37)/14*AR16+('BdD PAC'!$J$37*(-7)-'BdD PAC'!$H$37*7)/(-14)) -> 4.857142857 | AS27: =IF(AS16<$C$4,0,('BdD PAC'!$H$37-'BdD PAC'!$J$37)/14*AS16+('BdD PAC'!$J$37*(-7)-'BdD PAC'!$H$37*7)/(-14)) -> 4.972857143 | AT27: =IF(AT16<$C$4,0,('BdD PAC'!$H$37-'BdD PAC'!$J$37)/14*AT16+('BdD PAC'!$J$37*(-7)-'BdD PAC'!$H$37*7)/(-14)) -> 5.088571429 | AU27: =IF(AU16<$C$4,0,('BdD PAC'!$H$37-'BdD PAC'!$J$37)/14*AU16+('BdD PAC'!$J$37*(-7)-'BdD PAC'!$H$37*7)/(-14)) -> 5.204285714 | AV27: =IF(AV16<$C$4,0,('BdD PAC'!$H$37-'BdD PAC'!$J$37)/14*AV16+('BdD PAC'!$J$37*(-7)-'BdD PAC'!$H$37*7)/(-14)) -> 5.32 | AW27: =IF(AW16<$C$4,0,('BdD PAC'!$H$37-'BdD PAC'!$J$37)/14*AW16+('BdD PAC'!$J$37*(-7)-'BdD PAC'!$H$37*7)/(-14)) -> 5.435714286 | AX27: =IF(AX16<$C$4,0,('BdD PAC'!$H$37-'BdD PAC'!$J$37)/14*AX16+('BdD PAC'!$J$37*(-7)-'BdD PAC'!$H$37*7)/(-14)) -> 5.551428571 | AY27: =IF(AY16<$C$4,0,('BdD PAC'!$H$37-'BdD PAC'!$J$37)/14*AY16+('BdD PAC'!$J$37*(-7)-'BdD PAC'!$H$37*7)/(-14)) -> 5.667142857 | AZ27: =IF(AZ16<$C$4,0,('BdD PAC'!$H$37-'BdD PAC'!$J$37)/14*AZ16+('BdD PAC'!$J$37*(-7)-'BdD PAC'!$H$37*7)/(-14)) -> 5.782857143 | BA27: =IF(BA16<$C$4,0,('BdD PAC'!$H$37-'BdD PAC'!$J$37)/14*BA16+('BdD PAC'!$J$37*(-7)-'BdD PAC'!$H$37*7)/(-14)) -> 5.898571429 | BB27: =IF(BB16<$C$4,0,('BdD PAC'!$H$37-'BdD PAC'!$J$37)/14*BB16+('BdD PAC'!$J$37*(-7)-'BdD PAC'!$H$37*7)/(-14)) -> 6.014285714 | BC27: =IF(BC16<$C$4,0,('BdD PAC'!$H$37-'BdD PAC'!$J$37)/14*BC16+('BdD PAC'!$J$37*(-7)-'BdD PAC'!$H$37*7)/(-14)) -> 6.13 | BD27: =IF(BD16<$C$4,0,('BdD PAC'!$H$37-'BdD PAC'!$J$37)/14*BD16+('BdD PAC'!$J$37*(-7)-'BdD PAC'!$H$37*7)/(-14)) -> 6.245714286 | BE27: =IF(BE16<$C$4,0,('BdD PAC'!$H$37-'BdD PAC'!$J$37)/14*BE16+('BdD PAC'!$J$37*(-7)-'BdD PAC'!$H$37*7)/(-14)) -> 6.361428571
A28: COP PAC à T°ext/Tdep | B28: =B26+(B21-35)*(B27-B26)/'BdD PAC'!$Q$37 -> 0 | C28: =C26+(C21-35)*(C27-C26)/'BdD PAC'!$Q$37 -> 0 | D28: =D26+(D21-35)*(D27-D26)/'BdD PAC'!$Q$37 -> 0 | E28: =E26+(E21-35)*(E27-E26)/'BdD PAC'!$Q$37 -> 0 | F28: =F26+(F21-35)*(F27-F26)/'BdD PAC'!$Q$37 -> 0 | G28: =G26+(G21-35)*(G27-G26)/'BdD PAC'!$Q$37 -> 0 | H28: =H26+(H21-35)*(H27-H26)/'BdD PAC'!$Q$37 -> 0 | I28: =I26+(I21-35)*(I27-I26)/'BdD PAC'!$Q$37 -> 0 | J28: =J26+(J21-35)*(J27-J26)/'BdD PAC'!$Q$37 -> 0 | K28: =K26+(K21-35)*(K27-K26)/'BdD PAC'!$Q$37 -> 0 | L28: =L26+(L21-35)*(L27-L26)/'BdD PAC'!$Q$37 -> 0.97 | M28: =M26+(M21-35)*(M27-M26)/'BdD PAC'!$Q$37 -> 1.0585 | N28: =N26+(N21-35)*(N27-N26)/'BdD PAC'!$Q$37 -> 1.160232143 | O28: =O26+(O21-35)*(O27-O26)/'BdD PAC'!$Q$37 -> 1.275196429 | P28: =P26+(P21-35)*(P27-P26)/'BdD PAC'!$Q$37 -> 1.403392857 | Q28: =Q26+(Q21-35)*(Q27-Q26)/'BdD PAC'!$Q$37 -> 1.544821429 | R28: =R26+(R21-35)*(R27-R26)/'BdD PAC'!$Q$37 -> 1.689758929 | S28: =S26+(S21-35)*(S27-S26)/'BdD PAC'!$Q$37 -> 1.845839286 | T28: =T26+(T21-35)*(T27-T26)/'BdD PAC'!$Q$37 -> 2.0130625 | U28: =U26+(U21-35)*(U27-U26)/'BdD PAC'!$Q$37 -> 2.191428571 | V28: =V26+(V21-35)*(V27-V26)/'BdD PAC'!$Q$37 -> 2.3809375 | W28: =W26+(W21-35)*(W27-W26)/'BdD PAC'!$Q$37 -> 2.581589286 | X28: =X26+(X21-35)*(X27-X26)/'BdD PAC'!$Q$37 -> 2.793383929 | Y28: =Y26+(Y21-35)*(Y27-Y26)/'BdD PAC'!$Q$37 -> 3.016321429 | Z28: =Z26+(Z21-35)*(Z27-Z26)/'BdD PAC'!$Q$37 -> 3.250401786 | AA28: =AA26+(AA21-35)*(AA27-AA26)/'BdD PAC'!$Q$37 -> 3.495625 | AB28: =AB26+(AB21-35)*(AB27-AB26)/'BdD PAC'!$Q$37 -> 3.751991071 | AC28: =AC26+(AC21-35)*(AC27-AC26)/'BdD PAC'!$Q$37 -> 4.0195 | AD28: =AD26+(AD21-35)*(AD27-AD26)/'BdD PAC'!$Q$37 -> 4.298151786 | AE28: =AE26+(AE21-35)*(AE27-AE26)/'BdD PAC'!$Q$37 -> 4.587946429 | AF28: =AF26+(AF21-35)*(AF27-AF26)/'BdD PAC'!$Q$37 -> 4.888883929 | AG28: =AG26+(AG21-35)*(AG27-AG26)/'BdD PAC'!$Q$37 -> 5.200964286 | AH28: =AH26+(AH21-35)*(AH27-AH26)/'BdD PAC'!$Q$37 -> 5.5241875 | AI28: =AI26+(AI21-35)*(AI27-AI26)/'BdD PAC'!$Q$37 -> 5.858553571 | AJ28: =AJ26+(AJ21-35)*(AJ27-AJ26)/'BdD PAC'!$Q$37 -> 6.2040625 | AK28: =AK26+(AK21-35)*(AK27-AK26)/'BdD PAC'!$Q$37 -> 6.560714286 | AL28: =AL26+(AL21-35)*(AL27-AL26)/'BdD PAC'!$Q$37 -> 6.928508929 | AM28: =AM26+(AM21-35)*(AM27-AM26)/'BdD PAC'!$Q$37 -> 7.307446429 | AN28: =AN26+(AN21-35)*(AN27-AN26)/'BdD PAC'!$Q$37 -> 7.697526786 | AO28: =AO26+(AO21-35)*(AO27-AO26)/'BdD PAC'!$Q$37 -> 8.09875 | AP28: =AP26+(AP21-35)*(AP27-AP26)/'BdD PAC'!$Q$37 -> 8.511116071 | AQ28: =AQ26+(AQ21-35)*(AQ27-AQ26)/'BdD PAC'!$Q$37 -> 8.934625 | AR28: =AR26+(AR21-35)*(AR27-AR26)/'BdD PAC'!$Q$37 -> 9.369276786 | AS28: =AS26+(AS21-35)*(AS27-AS26)/'BdD PAC'!$Q$37 -> 9.815071429 | AT28: =AT26+(AT21-35)*(AT27-AT26)/'BdD PAC'!$Q$37 -> 10.27200893 | AU28: =AU26+(AU21-35)*(AU27-AU26)/'BdD PAC'!$Q$37 -> 10.74008929 | AV28: =AV26+(AV21-35)*(AV27-AV26)/'BdD PAC'!$Q$37 -> 15.175 | AW28: =AW26+(AW21-35)*(AW27-AW26)/'BdD PAC'!$Q$37 -> 15.54142857 | AX28: =AX26+(AX21-35)*(AX27-AX26)/'BdD PAC'!$Q$37 -> 15.90785714 | AY28: =AY26+(AY21-35)*(AY27-AY26)/'BdD PAC'!$Q$37 -> 16.27428571 | AZ28: =AZ26+(AZ21-35)*(AZ27-AZ26)/'BdD PAC'!$Q$37 -> 16.64071429 | BA28: =BA26+(BA21-35)*(BA27-BA26)/'BdD PAC'!$Q$37 -> 17.00714286 | BB28: =BB26+(BB21-35)*(BB27-BB26)/'BdD PAC'!$Q$37 -> 17.37357143 | BC28: =BC26+(BC21-35)*(BC27-BC26)/'BdD PAC'!$Q$37 -> 17.74 | BD28: =BD26+(BD21-35)*(BD27-BD26)/'BdD PAC'!$Q$37 -> 18.10642857 | BE28: =BE26+(BE21-35)*(BE27-BE26)/'BdD PAC'!$Q$37 -> 18.47285714
A29: TdepaMaxi | B29: =IF($C$7<>54,$C$7,IF(B16>=0,$C$7,54+11/15*B16)) -> 55 | C29: 55 | D29: 55 | E29: 55 | F29: 55 | G29: 55 | H29: 55 | I29: 55 | J29: 55 | K29: 55 | L29: 55 | M29: 55 | N29: 55 | O29: 55 | P29: 55 | Q29: 55 | R29: 55 | S29: 55 | T29: 55 | U29: 55 | V29: 55 | W29: 55 | X29: 55 | Y29: 55 | Z29: 55 | AA29: 55 | AB29: 55 | AC29: 55 | AD29: 55 | AE29: 55 | AF29: 55 | AG29: 55 | AH29: =IF($C$7<>54,$C$7,IF(AH16>=0,$C$7,54+11/15*AH16)) -> 55 | AI29: 55 | AJ29: 55 | AK29: 55 | AL29: 55 | AM29: 55 | AN29: 55 | AO29: 55 | AP29: 55 | AQ29: 55 | AR29: 55 | AS29: 55 | AT29: 55 | AU29: 55 | AV29: 55 | AW29: 55 | AX29: 55 | AY29: 55 | AZ29: 55 | BA29: 55 | BB29: 55 | BC29: 55 | BD29: 55 | BE29: 55
A30: PAC ON | B30: =IF(B16<Données!$J$22,0,IF(B28>$C$10,1,0)) -> 0 | C30: =IF(C16<Données!$J$22,0,IF(C28>$C$10,1,0)) -> 0 | D30: =IF(D16<Données!$J$22,0,IF(D28>$C$10,1,0)) -> 0 | E30: =IF(E16<Données!$J$22,0,IF(E28>$C$10,1,0)) -> 0 | F30: =IF(F16<Données!$J$22,0,IF(F28>$C$10,1,0)) -> 0 | G30: =IF(G16<Données!$J$22,0,IF(G28>$C$10,1,0)) -> 0 | H30: =IF(H16<Données!$J$22,0,IF(H28>$C$10,1,0)) -> 0 | I30: =IF(I16<Données!$J$22,0,IF(I28>$C$10,1,0)) -> 0 | J30: =IF(J16<Données!$J$22,0,IF(J28>$C$10,1,0)) -> 0 | K30: =IF(K16<Données!$J$22,0,IF(K28>$C$10,1,0)) -> 0 | L30: =IF(L16<Données!$J$22,0,IF(L28>$C$10,1,0)) -> 0 | M30: =IF(M16<Données!$J$22,0,IF(M28>$C$10,1,0)) -> 0 | N30: =IF(N16<Données!$J$22,0,IF(N28>$C$10,1,0)) -> 0 | O30: =IF(O16<Données!$J$22,0,IF(O28>$C$10,1,0)) -> 0 | P30: =IF(P16<Données!$J$22,0,IF(P28>$C$10,1,0)) -> 0 | Q30: =IF(Q16<Données!$J$22,0,IF(Q28>$C$10,1,0)) -> 0 | R30: =IF(R16<Données!$J$22,0,IF(R28>$C$10,1,0)) -> 0 | S30: =IF(S16<Données!$J$22,0,IF(S28>$C$10,1,0)) -> 0 | T30: =IF(T16<Données!$J$22,0,IF(T28>$C$10,1,0)) -> 0 | U30: =IF(U16<Données!$J$22,0,IF(U28>$C$10,1,0)) -> 1 | V30: =IF(V16<Données!$J$22,0,IF(V28>$C$10,1,0)) -> 1 | W30: =IF(W16<Données!$J$22,0,IF(W28>$C$10,1,0)) -> 1 | X30: =IF(X16<Données!$J$22,0,IF(X28>$C$10,1,0)) -> 1 | Y30: =IF(Y16<Données!$J$22,0,IF(Y28>$C$10,1,0)) -> 1 | Z30: =IF(Z16<Données!$J$22,0,IF(Z28>$C$10,1,0)) -> 1 | AA30: =IF(AA16<Données!$J$22,0,IF(AA28>$C$10,1,0)) -> 1 | AB30: =IF(AB16<Données!$J$22,0,IF(AB28>$C$10,1,0)) -> 1 | AC30: =IF(AC16<Données!$J$22,0,IF(AC28>$C$10,1,0)) -> 1 | AD30: =IF(AD16<Données!$J$22,0,IF(AD28>$C$10,1,0)) -> 1 | AE30: =IF(AE16<Données!$J$22,0,IF(AE28>$C$10,1,0)) -> 1 | AF30: =IF(AF16<Données!$J$22,0,IF(AF28>$C$10,1,0)) -> 1 | AG30: =IF(AG16<Données!$J$22,0,IF(AG28>$C$10,1,0)) -> 1 | AH30: =IF(AH16<Données!$J$22,0,IF(AH28>$C$10,1,0)) -> 1 | AI30: =IF(AI16<Données!$J$22,0,IF(AI28>$C$10,1,0)) -> 1 | AJ30: =IF(AJ16<Données!$J$22,0,IF(AJ28>$C$10,1,0)) -> 1 | AK30: =IF(AK16<Données!$J$22,0,IF(AK28>$C$10,1,0)) -> 1 | AL30: =IF(AL16<Données!$J$22,0,IF(AL28>$C$10,1,0)) -> 1 | AM30: =IF(AM16<Données!$J$22,0,IF(AM28>$C$10,1,0)) -> 1 | AN30: =IF(AN16<Données!$J$22,0,IF(AN28>$C$10,1,0)) -> 1 | AO30: =IF(AO16<Données!$J$22,0,IF(AO28>$C$10,1,0)) -> 1 | AP30: =IF(AP16<Données!$J$22,0,IF(AP28>$C$10,1,0)) -> 1 | AQ30: =IF(AQ16<Données!$J$22,0,IF(AQ28>$C$10,1,0)) -> 1 | AR30: =IF(AR16<Données!$J$22,0,IF(AR28>$C$10,1,0)) -> 1 | AS30: =IF(AS16<Données!$J$22,0,IF(AS28>$C$10,1,0)) -> 1 | AT30: =IF(AT16<Données!$J$22,0,IF(AT28>$C$10,1,0)) -> 1 | AU30: =IF(AU16<Données!$J$22,0,IF(AU28>$C$10,1,0)) -> 1 | AV30: =IF(AV16<Données!$J$22,0,IF(AV28>$C$10,1,0)) -> 1 | AW30: =IF(AW16<Données!$J$22,0,IF(AW28>$C$10,1,0)) -> 1 | AX30: =IF(AX16<Données!$J$22,0,IF(AX28>$C$10,1,0)) -> 1 | AY30: =IF(AY16<Données!$J$22,0,IF(AY28>$C$10,1,0)) -> 1 | AZ30: =IF(AZ16<Données!$J$22,0,IF(AZ28>$C$10,1,0)) -> 1 | BA30: =IF(BA16<Données!$J$22,0,IF(BA28>$C$10,1,0)) -> 1 | BB30: =IF(BB16<Données!$J$22,0,IF(BB28>$C$10,1,0)) -> 1 | BC30: =IF(BC16<Données!$J$22,0,IF(BC28>$C$10,1,0)) -> 1 | BD30: =IF(BD16<Données!$J$22,0,IF(BD28>$C$10,1,0)) -> 1 | BE30: =IF(BE16<Données!$J$22,0,IF(BE28>$C$10,1,0)) -> 1 | BH30: Part solaire | BI30: =IF(Données!C83="SSC",Données!J83,0) -> 0 | BJ30: %
BH31: Energie solaire | BI31: =(BI30/100) -> 0 | BJ31: soit : | BK31: ='Consommations et Coûts de prod.'!E7 -> 0 | BL31: kWh
A32: Chauffage
A33: Part PAC | B33: =IF(B17=0,0,IF(B30=0,0,IF(B16<$C$4,0,IF(B21>B29,0,IF(B25>B22,100,B25/B22*100))))) -> 0 | C33: 0 | D33: 0 | E33: 0 | F33: 0 | G33: 0 | H33: 0 | I33: 0 | J33: 0 | K33: 0 | L33: 0 | M33: 0 | N33: 0 | O33: 0 | P33: 0 | Q33: 0 | R33: 0 | S33: 0 | T33: 0 | U33: 59.55325512 | V33: 63.12169312 | W33: 67.04610733 | X33: 71.37989418 | Y33: 76.18769145 | Z33: 81.54850088 | AA33: 87.55991285 | AB33: 94.34391534 | AC33: 100 | AD33: 100 | AE33: 100 | AF33: 100 | AG33: 100 | AH33: 100 | AI33: 100 | AJ33: 100 | AK33: 100 | AL33: 100 | AM33: 100 | AN33: 100 | AO33: 100 | AP33: 100 | AQ33: 100 | AR33: 100 | AS33: 0 | AT33: 0 | AU33: 0 | AV33: 0 | AW33: 0 | AX33: 0 | AY33: 0 | AZ33: 0 | BA33: 0 | BB33: 0 | BC33: 0 | BD33: 0 | BE33: =IF(BE17=0,0,IF(BE30=0,0,IF(BE16<$C$4,0,IF(BE21>BE29,0,IF(BE25>BE22,100,BE25/BE22*100))))) -> 0
A34: Part appoint | B34: =IF(B17=0,0,100-B33) -> 0 | C34: 0 | D34: 0 | E34: 0 | F34: 0 | G34: 0 | H34: 0 | I34: 0 | J34: 0 | K34: 0 | L34: 0 | M34: 0 | N34: 100 | O34: 100 | P34: 100 | Q34: 100 | R34: 100 | S34: 100 | T34: 100 | U34: 40.44674488 | V34: 36.87830688 | W34: 32.95389267 | X34: 28.62010582 | Y34: 23.81230855 | Z34: 18.45149912 | AA34: 12.44008715 | AB34: 5.656084656 | AC34: 0 | AD34: 0 | AE34: 0 | AF34: 0 | AG34: 0 | AH34: 0 | AI34: 0 | AJ34: 0 | AK34: 0 | AL34: 0 | AM34: 0 | AN34: 0 | AO34: 0 | AP34: 0 | AQ34: 0 | AR34: 0 | AS34: 0 | AT34: 0 | AU34: 0 | AV34: 0 | AW34: 0 | AX34: 0 | AY34: 0 | AZ34: 0 | BA34: 0 | BB34: 0 | BC34: 0 | BD34: 0 | BE34: =IF(BE17=0,0,100-BE33) -> 0 | BF34: Calculée | BG34: Corrigée avec solaire
A35: Energie PAC | B35: =B18*B33/100 -> 0 | C35: 0 | D35: 0 | E35: 0 | F35: 0 | G35: 0 | H35: 0 | I35: 0 | J35: 0 | K35: 0 | L35: 0 | M35: 0 | N35: 0 | O35: 0 | P35: 0 | Q35: 0 | R35: 0 | S35: 0 | T35: 0 | U35: 116.1811055 | V35: 172.2275397 | W35: 248.7920132 | X35: 265.0359562 | Y35: 484.009547 | Z35: 533.4559405 | AA35: 672.9220093 | AB35: 798.8519143 | AC35: 847.19925 | AD35: 923.824625 | AE35: 1036.83 | AF35: 1074.346875 | AG35: 948.6085 | AH35: =AH18*AH33/100 -> 948.835875 | AI35: 862.206 | AJ35: 775.34875 | AK35: 702.58875 | AL35: 607.773375 | AM35: 498.406 | AN35: 469.529375 | AO35: 455.6595 | AP35: 392.221875 | AQ35: 297.4065 | AR35: 242.154375 | AS35: 0 | AT35: 0 | AU35: 0 | AV35: 0 | AW35: 0 | AX35: 0 | AY35: 0 | AZ35: 0 | BA35: 0 | BB35: 0 | BC35: 0 | BD35: 0 | BE35: 0 | BF35: =SUM(B35:BE35) -> 14374.41565 | BG35: =(BF35/$BG$18)*(1-BI31) -> 14491.97839 | BH35: kWh
A36: Energie Appoint | B36: =B18*B34/100 -> 0 | C36: 0 | D36: 0 | E36: 0 | F36: 0 | G36: 0 | H36: 0 | I36: 0 | J36: 0 | K36: 0 | L36: 0 | M36: 0 | N36: 15.00675 | O36: 21.828 | P36: 14.09725 | Q36: 20.46375 | R36: 46.157125 | S36: 63.665 | T36: 98.226 | U36: 78.90664454 | V36: 100.6224603 | W36: 122.2839868 | X36: 106.2674188 | Y36: 151.276203 | Z36: 120.7019345 | AA36: 95.60549074 | AB36: 47.89258574 | AC36: 0 | AD36: 0 | AE36: 0 | AF36: 0 | AG36: 0 | AH36: =AH18*AH34/100 -> 0 | AI36: 0 | AJ36: 0 | AK36: 0 | AL36: 0 | AM36: 0 | AN36: 0 | AO36: 0 | AP36: 0 | AQ36: 0 | AR36: 0 | AS36: 0 | AT36: 0 | AU36: 0 | AV36: 0 | AW36: 0 | AX36: 0 | AY36: 0 | AZ36: 0 | BA36: 0 | BB36: 0 | BC36: 0 | BD36: 0 | BE36: 0 | BF36: =SUM(B36:BE36) -> 1103.000599 | BG36: =(BF36/$BG$18)*(1-BI31) -> 1112.021611 | BH36: kWh
BI37: Conso chauff Appoint | BJ37: =BG36/'BdD Chaudières'!$G$26 -> 1039.272534 | BK37: kWh
A38: Conso élec PAC | B38: =IF(B28<>0,B35/B28,0) -> 0 | C38: 0 | D38: 0 | E38: 0 | F38: 0 | G38: 0 | H38: 0 | I38: 0 | J38: 0 | K38: 0 | L38: 0 | M38: 0 | N38: 0 | O38: 0 | P38: 0 | Q38: 0 | R38: 0 | S38: 0 | T38: 0 | U38: 53.01614982 | V38: 72.33601877 | W38: 96.37164774 | X38: 94.87988867 | Y38: 160.4635177 | Z38: 164.1199998 | AA38: 192.5040613 | AB38: 212.9141299 | AC38: 210.7722975 | AD38: 214.935319 | AE38: 225.9899971 | AF38: 219.7529929 | AG38: 182.3908891 | AH38: =IF(AH28<>0,AH35/AH28,0) -> 171.7602589 | AI38: 147.1704559 | AJ38: 124.9743616 | AK38: 107.0902831 | AL38: 87.72065985 | AM38: 68.20522119 | AN38: 60.99743308 | AO38: 56.26294181 | AP38: 46.08348326 | AQ38: 33.28695944 | AR38: 25.84557811 | AS38: 0 | AT38: 0 | AU38: 0 | AV38: 0 | AW38: 0 | AX38: 0 | AY38: 0 | AZ38: 0 | BA38: 0 | BB38: 0 | BC38: 0 | BD38: 0 | BE38: 0 | BF38: =SUM(B38:BE38) -> 3029.844545 | BG38: =(BF38/$BG$18)*(1-BI31) -> 3054.624462 | BH38: kWh | BN38: PAC
A39: Energie gratuite | B39: =B35-B38 -> 0 | C39: 0 | D39: 0 | E39: 0 | F39: 0 | G39: 0 | H39: 0 | I39: 0 | J39: 0 | K39: 0 | L39: 0 | M39: 0 | N39: 0 | O39: 0 | P39: 0 | Q39: 0 | R39: 0 | S39: 0 | T39: 0 | U39: 63.16495564 | V39: 99.89152092 | W39: 152.4203655 | X39: 170.1560675 | Y39: 323.5460293 | Z39: 369.3359407 | AA39: 480.417948 | AB39: 585.9377844 | AC39: 636.4269525 | AD39: 708.889306 | AE39: 810.8400029 | AF39: 854.5938821 | AG39: 766.2176109 | AH39: =AH35-AH38 -> 777.0756161 | AI39: 715.0355441 | AJ39: 650.3743884 | AK39: 595.4984669 | AL39: 520.0527151 | AM39: 430.2007788 | AN39: 408.5319419 | AO39: 399.3965582 | AP39: 346.1383917 | AQ39: 264.1195406 | AR39: 216.3087969 | AS39: 0 | AT39: 0 | AU39: 0 | AV39: 0 | AW39: 0 | AX39: 0 | AY39: 0 | AZ39: 0 | BA39: 0 | BB39: 0 | BC39: 0 | BD39: 0 | BE39: 0 | BF39: 11344.57111 | BG39: =(BF39/$BG$18)*(1-BI31) -> 11437.35393 | BH39: kWh | BN39: Coût chauffage | BO39: =BF38*'Consommations et Coûts de prod.'!H64/100 -> 443.3672518
BN40: Coût Ecs | BO40: =BF52 -> 91.65796727
A41: ECS par tranche de 5°C de 40 à 55°C
A42: COP à TECS = 55°c | B42: =B27+(TECS-50)*(B27-B26)/'BdD PAC'!$Q$37 -> 0 | C42: =C27+(TECS-50)*(C27-C26)/'BdD PAC'!$Q$37 -> 0 | D42: =D27+(TECS-50)*(D27-D26)/'BdD PAC'!$Q$37 -> 0 | E42: =E27+(TECS-50)*(E27-E26)/'BdD PAC'!$Q$37 -> 0 | F42: =F27+(TECS-50)*(F27-F26)/'BdD PAC'!$Q$37 -> 0 | G42: =G27+(TECS-50)*(G27-G26)/'BdD PAC'!$Q$37 -> 0 | H42: =H27+(TECS-50)*(H27-H26)/'BdD PAC'!$Q$37 -> 0 | I42: =I27+(TECS-50)*(I27-I26)/'BdD PAC'!$Q$37 -> 0 | J42: =J27+(TECS-50)*(J27-J26)/'BdD PAC'!$Q$37 -> 0 | K42: =K27+(TECS-50)*(K27-K26)/'BdD PAC'!$Q$37 -> 0 | L42: =L27+(TECS-50)*(L27-L26)/'BdD PAC'!$Q$37 -> 1.062142857 | M42: =M27+(TECS-50)*(M27-M26)/'BdD PAC'!$Q$37 -> 1.15 | N42: =N27+(TECS-50)*(N27-N26)/'BdD PAC'!$Q$37 -> 1.237857143 | O42: =O27+(TECS-50)*(O27-O26)/'BdD PAC'!$Q$37 -> 1.325714286 | P42: =P27+(TECS-50)*(P27-P26)/'BdD PAC'!$Q$37 -> 1.413571429 | Q42: =Q27+(TECS-50)*(Q27-Q26)/'BdD PAC'!$Q$37 -> 1.501428571 | R42: =R27+(TECS-50)*(R27-R26)/'BdD PAC'!$Q$37 -> 1.589285714 | S42: =S27+(TECS-50)*(S27-S26)/'BdD PAC'!$Q$37 -> 1.677142857 | T42: =T27+(TECS-50)*(T27-T26)/'BdD PAC'!$Q$37 -> 1.765 | U42: =U27+(TECS-50)*(U27-U26)/'BdD PAC'!$Q$37 -> 1.852857143 | V42: =V27+(TECS-50)*(V27-V26)/'BdD PAC'!$Q$37 -> 1.940714286 | W42: =W27+(TECS-50)*(W27-W26)/'BdD PAC'!$Q$37 -> 2.028571429 | X42: =X27+(TECS-50)*(X27-X26)/'BdD PAC'!$Q$37 -> 2.116428571 | Y42: =Y27+(TECS-50)*(Y27-Y26)/'BdD PAC'!$Q$37 -> 2.204285714 | Z42: =Z27+(TECS-50)*(Z27-Z26)/'BdD PAC'!$Q$37 -> 2.292142857 | AA42: =AA27+(TECS-50)*(AA27-AA26)/'BdD PAC'!$Q$37 -> 2.38 | AB42: =AB27+(TECS-50)*(AB27-AB26)/'BdD PAC'!$Q$37 -> 2.467857143 | AC42: =AC27+(TECS-50)*(AC27-AC26)/'BdD PAC'!$Q$37 -> 2.555714286 | AD42: =AD27+(TECS-50)*(AD27-AD26)/'BdD PAC'!$Q$37 -> 2.643571429 | AE42: =AE27+(TECS-50)*(AE27-AE26)/'BdD PAC'!$Q$37 -> 2.731428571 | AF42: =AF27+(TECS-50)*(AF27-AF26)/'BdD PAC'!$Q$37 -> 2.819285714 | AG42: =AG27+(TECS-50)*(AG27-AG26)/'BdD PAC'!$Q$37 -> 2.907142857 | AH42: =AH27+(TECS-50)*(AH27-AH26)/'BdD PAC'!$Q$37 -> 2.995 | AI42: =AI27+(TECS-50)*(AI27-AI26)/'BdD PAC'!$Q$37 -> 3.082857143 | AJ42: =AJ27+(TECS-50)*(AJ27-AJ26)/'BdD PAC'!$Q$37 -> 3.170714286 | AK42: =AK27+(TECS-50)*(AK27-AK26)/'BdD PAC'!$Q$37 -> 3.258571429 | AL42: =AL27+(TECS-50)*(AL27-AL26)/'BdD PAC'!$Q$37 -> 3.346428571 | AM42: =AM27+(TECS-50)*(AM27-AM26)/'BdD PAC'!$Q$37 -> 3.434285714 | AN42: =AN27+(TECS-50)*(AN27-AN26)/'BdD PAC'!$Q$37 -> 3.522142857 | AO42: =AO27+(TECS-50)*(AO27-AO26)/'BdD PAC'!$Q$37 -> 3.61 | AP42: =AP27+(TECS-50)*(AP27-AP26)/'BdD PAC'!$Q$37 -> 3.697857143 | AQ42: =AQ27+(TECS-50)*(AQ27-AQ26)/'BdD PAC'!$Q$37 -> 3.785714286 | AR42: =AR27+(TECS-50)*(AR27-AR26)/'BdD PAC'!$Q$37 -> 3.873571429 | AS42: =AS27+(TECS-50)*(AS27-AS26)/'BdD PAC'!$Q$37 -> 3.961428571 | AT42: =AT27+(TECS-50)*(AT27-AT26)/'BdD PAC'!$Q$37 -> 4.049285714 | AU42: =AU27+(TECS-50)*(AU27-AU26)/'BdD PAC'!$Q$37 -> 4.137142857 | AV42: =AV27+(TECS-50)*(AV27-AV26)/'BdD PAC'!$Q$37 -> 4.225 | AW42: =AW27+(TECS-50)*(AW27-AW26)/'BdD PAC'!$Q$37 -> 4.312857143 | AX42: =AX27+(TECS-50)*(AX27-AX26)/'BdD PAC'!$Q$37 -> 4.400714286 | AY42: =AY27+(TECS-50)*(AY27-AY26)/'BdD PAC'!$Q$37 -> 4.488571429 | AZ42: =AZ27+(TECS-50)*(AZ27-AZ26)/'BdD PAC'!$Q$37 -> 4.576428571 | BA42: =BA27+(TECS-50)*(BA27-BA26)/'BdD PAC'!$Q$37 -> 4.664285714 | BB42: =BB27+(TECS-50)*(BB27-BB26)/'BdD PAC'!$Q$37 -> 4.752142857 | BC42: =BC27+(TECS-50)*(BC27-BC26)/'BdD PAC'!$Q$37 -> 4.84 | BD42: =BD27+(TECS-50)*(BD27-BD26)/'BdD PAC'!$Q$37 -> 4.927857143 | BE42: =BE27+(TECS-50)*(BE27-BE26)/'BdD PAC'!$Q$37 -> 5.015714286 | BN42: Coût Total PAC : | BO42: =BO39+BO40 -> 535.0252191
A43: COP à TECS = 50°c | B43: =B27 -> 0 | C43: =C27 -> 0 | D43: 0 | E43: 0 | F43: 0 | G43: 0 | H43: 0 | I43: 0 | J43: 0 | K43: 0 | L43: 1.154285714 | M43: 1.27 | N43: 1.385714286 | O43: 1.501428571 | P43: 1.617142857 | Q43: 1.732857143 | R43: 1.848571429 | S43: 1.964285714 | T43: 2.08 | U43: 2.195714286 | V43: 2.311428571 | W43: 2.427142857 | X43: 2.542857143 | Y43: 2.658571429 | Z43: 2.774285714 | AA43: 2.89 | AB43: 3.005714286 | AC43: 3.121428571 | AD43: 3.237142857 | AE43: 3.352857143 | AF43: 3.468571429 | AG43: 3.584285714 | AH43: 3.7 | AI43: 3.815714286 | AJ43: 3.931428571 | AK43: 4.047142857 | AL43: 4.162857143 | AM43: 4.278571429 | AN43: 4.394285714 | AO43: 4.51 | AP43: 4.625714286 | AQ43: 4.741428571 | AR43: 4.857142857 | AS43: 4.972857143 | AT43: 5.088571429 | AU43: 5.204285714 | AV43: 5.32 | AW43: 5.435714286 | AX43: 5.551428571 | AY43: 5.667142857 | AZ43: 5.782857143 | BA43: 5.898571429 | BB43: 6.014285714 | BC43: 6.13 | BD43: 6.245714286 | BE43: 6.361428571
A44: COP à TECS = 45°c | B44: =B26+(45-35)*(B27-B26)/15 -> 0 | C44: =C26+(45-35)*(C27-C26)/15 -> 0 | D44: 0 | E44: 0 | F44: 0 | G44: 0 | H44: 0 | I44: 0 | J44: 0 | K44: 0 | L44: 1.215714286 | M44: 1.35 | N44: 1.484285714 | O44: 1.618571429 | P44: 1.752857143 | Q44: =Q26+(45-35)*(Q27-Q26)/15 -> 1.887142857 | R44: =R26+(45-35)*(R27-R26)/15 -> 2.021428571 | S44: 2.155714286 | T44: 2.29 | U44: 2.424285714 | V44: 2.558571429 | W44: 2.692857143 | X44: 2.827142857 | Y44: 2.961428571 | Z44: 3.095714286 | AA44: 3.23 | AB44: 3.364285714 | AC44: 3.498571429 | AD44: 3.632857143 | AE44: 3.767142857 | AF44: 3.901428571 | AG44: 4.035714286 | AH44: 4.17 | AI44: 4.304285714 | AJ44: 4.438571429 | AK44: 4.572857143 | AL44: 4.707142857 | AM44: 4.841428571 | AN44: 4.975714286 | AO44: 5.11 | AP44: 5.244285714 | AQ44: 5.378571429 | AR44: 5.512857143 | AS44: 5.647142857 | AT44: 5.781428571 | AU44: 5.915714286 | AV44: 6.05 | AW44: 6.184285714 | AX44: 6.318571429 | AY44: 6.452857143 | AZ44: 6.587142857 | BA44: 6.721428571 | BB44: 6.855714286 | BC44: 6.99 | BD44: 7.124285714 | BE44: 7.258571429 | BN44: Appoint
A45: PAC ON 55 | B45: =IF(B$16<Données!$J$22,0,IF(AND(B42>$C$10,B$75<B$25),1,0)) -> 0 | C45: =IF(C$16<Données!$J$22,0,IF(AND(C42>$C$10,C$75<C$25),1,0)) -> 0 | D45: =IF(D$16<Données!$J$22,0,IF(AND(D42>$C$10,D$75<D$25),1,0)) -> 0 | E45: =IF(E$16<Données!$J$22,0,IF(AND(E42>$C$10,E$75<E$25),1,0)) -> 0 | F45: =IF(F$16<Données!$J$22,0,IF(AND(F42>$C$10,F$75<F$25),1,0)) -> 0 | G45: =IF(G$16<Données!$J$22,0,IF(AND(G42>$C$10,G$75<G$25),1,0)) -> 0 | H45: =IF(H$16<Données!$J$22,0,IF(AND(H42>$C$10,H$75<H$25),1,0)) -> 0 | I45: =IF(I$16<Données!$J$22,0,IF(AND(I42>$C$10,I$75<I$25),1,0)) -> 0 | J45: =IF(J$16<Données!$J$22,0,IF(AND(J42>$C$10,J$75<J$25),1,0)) -> 0 | K45: =IF(K$16<Données!$J$22,0,IF(AND(K42>$C$10,K$75<K$25),1,0)) -> 0 | L45: =IF(L$16<Données!$J$22,0,IF(AND(L42>$C$10,L$75<L$25),1,0)) -> 0 | M45: =IF(M$16<Données!$J$22,0,IF(AND(M42>$C$10,M$75<M$25),1,0)) -> 0 | N45: =IF(N$16<Données!$J$22,0,IF(AND(N42>$C$10,N$75<N$25),1,0)) -> 0 | O45: =IF(O$16<Données!$J$22,0,IF(AND(O42>$C$10,O$75<O$25),1,0)) -> 0 | P45: =IF(P$16<Données!$J$22,0,IF(AND(P42>$C$10,P$75<P$25),1,0)) -> 0 | Q45: =IF(Q$16<Données!$J$22,0,IF(AND(Q42>$C$10,Q$75<Q$25),1,0)) -> 0 | R45: =IF(R$16<Données!$J$22,0,IF(AND(R42>$C$10,R$75<R$25),1,0)) -> 0 | S45: =IF(S$16<Données!$J$22,0,IF(AND(S42>$C$10,S$75<S$25),1,0)) -> 0 | T45: =IF(T$16<Données!$J$22,0,IF(AND(T42>$C$10,T$75<T$25),1,0)) -> 0 | U45: =IF(U$16<Données!$J$22,0,IF(AND(U42>$C$10,U$75<U$25),1,0)) -> 0 | V45: =IF(V$16<Données!$J$22,0,IF(AND(V42>$C$10,V$75<V$25),1,0)) -> 0 | W45: =IF(W$16<Données!$J$22,0,IF(AND(W42>$C$10,W$75<W$25),1,0)) -> 0 | X45: =IF(X$16<Données!$J$22,0,IF(AND(X42>$C$10,X$75<X$25),1,0)) -> 0 | Y45: =IF(Y$16<Données!$J$22,0,IF(AND(Y42>$C$10,Y$75<Y$25),1,0)) -> 0 | Z45: =IF(Z$16<Données!$J$22,0,IF(AND(Z42>$C$10,Z$75<Z$25),1,0)) -> 0 | AA45: =IF(AA$16<Données!$J$22,0,IF(AND(AA42>$C$10,AA$75<AA$25),1,0)) -> 0 | AB45: =IF(AB$16<Données!$J$22,0,IF(AND(AB42>$C$10,AB$75<AB$25),1,0)) -> 0 | AC45: =IF(AC$16<Données!$J$22,0,IF(AND(AC42>$C$10,AC$75<AC$25),1,0)) -> 0 | AD45: =IF(AD$16<Données!$J$22,0,IF(AND(AD42>$C$10,AD$75<AD$25),1,0)) -> 0 | AE45: =IF(AE$16<Données!$J$22,0,IF(AND(AE42>$C$10,AE$75<AE$25),1,0)) -> 0 | AF45: =IF(AF$16<Données!$J$22,0,IF(AND(AF42>$C$10,AF$75<AF$25),1,0)) -> 0 | AG45: =IF(AG$16<Données!$J$22,0,IF(AND(AG42>$C$10,AG$75<AG$25),1,0)) -> 0 | AH45: =IF(AH$16<Données!$J$22,0,IF(AND(AH42>$C$10,AH$75<AH$25),1,0)) -> 1 | AI45: =IF(AI$16<Données!$J$22,0,IF(AND(AI42>$C$10,AI$75<AI$25),1,0)) -> 1 | AJ45: =IF(AJ$16<Données!$J$22,0,IF(AND(AJ42>$C$10,AJ$75<AJ$25),1,0)) -> 1 | AK45: =IF(AK$16<Données!$J$22,0,IF(AND(AK42>$C$10,AK$75<AK$25),1,0)) -> 1 | AL45: =IF(AL$16<Données!$J$22,0,IF(AND(AL42>$C$10,AL$75<AL$25),1,0)) -> 1 | AM45: =IF(AM$16<Données!$J$22,0,IF(AND(AM42>$C$10,AM$75<AM$25),1,0)) -> 1 | AN45: =IF(AN$16<Données!$J$22,0,IF(AND(AN42>$C$10,AN$75<AN$25),1,0)) -> 1 | AO45: =IF(AO$16<Données!$J$22,0,IF(AND(AO42>$C$10,AO$75<AO$25),1,0)) -> 1 | AP45: =IF(AP$16<Données!$J$22,0,IF(AND(AP42>$C$10,AP$75<AP$25),1,0)) -> 1 | AQ45: =IF(AQ$16<Données!$J$22,0,IF(AND(AQ42>$C$10,AQ$75<AQ$25),1,0)) -> 1 | AR45: =IF(AR$16<Données!$J$22,0,IF(AND(AR42>$C$10,AR$75<AR$25),1,0)) -> 1 | AS45: =IF(AS$16<Données!$J$22,0,IF(AND(AS42>$C$10,AS$75<AS$25),1,0)) -> 1 | AT45: =IF(AT$16<Données!$J$22,0,IF(AND(AT42>$C$10,AT$75<AT$25),1,0)) -> 1 | AU45: =IF(AU$16<Données!$J$22,0,IF(AND(AU42>$C$10,AU$75<AU$25),1,0)) -> 1 | AV45: =IF(AV$16<Données!$J$22,0,IF(AND(AV42>$C$10,AV$75<AV$25),1,0)) -> 1 | AW45: =IF(AW$16<Données!$J$22,0,IF(AND(AW42>$C$10,AW$75<AW$25),1,0)) -> 1 | AX45: =IF(AX$16<Données!$J$22,0,IF(AND(AX42>$C$10,AX$75<AX$25),1,0)) -> 1 | AY45: =IF(AY$16<Données!$J$22,0,IF(AND(AY42>$C$10,AY$75<AY$25),1,0)) -> 1 | AZ45: =IF(AZ$16<Données!$J$22,0,IF(AND(AZ42>$C$10,AZ$75<AZ$25),1,0)) -> 1 | BA45: =IF(BA$16<Données!$J$22,0,IF(AND(BA42>$C$10,BA$75<BA$25),1,0)) -> 1 | BB45: =IF(BB$16<Données!$J$22,0,IF(AND(BB42>$C$10,BB$75<BB$25),1,0)) -> 1 | BC45: =IF(BC$16<Données!$J$22,0,IF(AND(BC42>$C$10,BC$75<BC$25),1,0)) -> 1 | BD45: =IF(BD$16<Données!$J$22,0,IF(AND(BD42>$C$10,BD$75<BD$25),1,0)) -> 1 | BE45: =IF(BE$16<Données!$J$22,0,IF(AND(BE42>$C$10,BE$75<BE$25),1,0)) -> 1 | BN45: Coût chauffage | BO45: =BJ37*'Consommations et Coûts de prod.'!I64/100 -> 75.22254599
A46: PAC ON 50 | B46: =IF(B$16<Données!$J$22,0,IF(AND(B43>$C$10,B$75<B$25),1,0)) -> 0 | C46: =IF(C$16<Données!$J$22,0,IF(AND(C43>$C$10,C$75<C$25),1,0)) -> 0 | D46: =IF(D$16<Données!$J$22,0,IF(AND(D43>$C$10,D$75<D$25),1,0)) -> 0 | E46: =IF(E$16<Données!$J$22,0,IF(AND(E43>$C$10,E$75<E$25),1,0)) -> 0 | F46: =IF(F$16<Données!$J$22,0,IF(AND(F43>$C$10,F$75<F$25),1,0)) -> 0 | G46: =IF(G$16<Données!$J$22,0,IF(AND(G43>$C$10,G$75<G$25),1,0)) -> 0 | H46: =IF(H$16<Données!$J$22,0,IF(AND(H43>$C$10,H$75<H$25),1,0)) -> 0 | I46: =IF(I$16<Données!$J$22,0,IF(AND(I43>$C$10,I$75<I$25),1,0)) -> 0 | J46: =IF(J$16<Données!$J$22,0,IF(AND(J43>$C$10,J$75<J$25),1,0)) -> 0 | K46: =IF(K$16<Données!$J$22,0,IF(AND(K43>$C$10,K$75<K$25),1,0)) -> 0 | L46: =IF(L$16<Données!$J$22,0,IF(AND(L43>$C$10,L$75<L$25),1,0)) -> 0 | M46: =IF(M$16<Données!$J$22,0,IF(AND(M43>$C$10,M$75<M$25),1,0)) -> 0 | N46: =IF(N$16<Données!$J$22,0,IF(AND(N43>$C$10,N$75<N$25),1,0)) -> 0 | O46: =IF(O$16<Données!$J$22,0,IF(AND(O43>$C$10,O$75<O$25),1,0)) -> 0 | P46: =IF(P$16<Données!$J$22,0,IF(AND(P43>$C$10,P$75<P$25),1,0)) -> 0 | Q46: =IF(Q$16<Données!$J$22,0,IF(AND(Q43>$C$10,Q$75<Q$25),1,0)) -> 0 | R46: =IF(R$16<Données!$J$22,0,IF(AND(R43>$C$10,R$75<R$25),1,0)) -> 0 | S46: =IF(S$16<Données!$J$22,0,IF(AND(S43>$C$10,S$75<S$25),1,0)) -> 0 | T46: =IF(T$16<Données!$J$22,0,IF(AND(T43>$C$10,T$75<T$25),1,0)) -> 0 | U46: =IF(U$16<Données!$J$22,0,IF(AND(U43>$C$10,U$75<U$25),1,0)) -> 0 | V46: =IF(V$16<Données!$J$22,0,IF(AND(V43>$C$10,V$75<V$25),1,0)) -> 0 | W46: =IF(W$16<Données!$J$22,0,IF(AND(W43>$C$10,W$75<W$25),1,0)) -> 0 | X46: =IF(X$16<Données!$J$22,0,IF(AND(X43>$C$10,X$75<X$25),1,0)) -> 0 | Y46: =IF(Y$16<Données!$J$22,0,IF(AND(Y43>$C$10,Y$75<Y$25),1,0)) -> 0 | Z46: =IF(Z$16<Données!$J$22,0,IF(AND(Z43>$C$10,Z$75<Z$25),1,0)) -> 0 | AA46: =IF(AA$16<Données!$J$22,0,IF(AND(AA43>$C$10,AA$75<AA$25),1,0)) -> 0 | AB46: =IF(AB$16<Données!$J$22,0,IF(AND(AB43>$C$10,AB$75<AB$25),1,0)) -> 0 | AC46: =IF(AC$16<Données!$J$22,0,IF(AND(AC43>$C$10,AC$75<AC$25),1,0)) -> 0 | AD46: =IF(AD$16<Données!$J$22,0,IF(AND(AD43>$C$10,AD$75<AD$25),1,0)) -> 0 | AE46: =IF(AE$16<Données!$J$22,0,IF(AND(AE43>$C$10,AE$75<AE$25),1,0)) -> 0 | AF46: =IF(AF$16<Données!$J$22,0,IF(AND(AF43>$C$10,AF$75<AF$25),1,0)) -> 0 | AG46: =IF(AG$16<Données!$J$22,0,IF(AND(AG43>$C$10,AG$75<AG$25),1,0)) -> 0 | AH46: =IF(AH$16<Données!$J$22,0,IF(AND(AH43>$C$10,AH$75<AH$25),1,0)) -> 1 | AI46: =IF(AI$16<Données!$J$22,0,IF(AND(AI43>$C$10,AI$75<AI$25),1,0)) -> 1 | AJ46: =IF(AJ$16<Données!$J$22,0,IF(AND(AJ43>$C$10,AJ$75<AJ$25),1,0)) -> 1 | AK46: =IF(AK$16<Données!$J$22,0,IF(AND(AK43>$C$10,AK$75<AK$25),1,0)) -> 1 | AL46: =IF(AL$16<Données!$J$22,0,IF(AND(AL43>$C$10,AL$75<AL$25),1,0)) -> 1 | AM46: =IF(AM$16<Données!$J$22,0,IF(AND(AM43>$C$10,AM$75<AM$25),1,0)) -> 1 | AN46: =IF(AN$16<Données!$J$22,0,IF(AND(AN43>$C$10,AN$75<AN$25),1,0)) -> 1 | AO46: =IF(AO$16<Données!$J$22,0,IF(AND(AO43>$C$10,AO$75<AO$25),1,0)) -> 1 | AP46: =IF(AP$16<Données!$J$22,0,IF(AND(AP43>$C$10,AP$75<AP$25),1,0)) -> 1 | AQ46: =IF(AQ$16<Données!$J$22,0,IF(AND(AQ43>$C$10,AQ$75<AQ$25),1,0)) -> 1 | AR46: =IF(AR$16<Données!$J$22,0,IF(AND(AR43>$C$10,AR$75<AR$25),1,0)) -> 1 | AS46: =IF(AS$16<Données!$J$22,0,IF(AND(AS43>$C$10,AS$75<AS$25),1,0)) -> 1 | AT46: =IF(AT$16<Données!$J$22,0,IF(AND(AT43>$C$10,AT$75<AT$25),1,0)) -> 1 | AU46: =IF(AU$16<Données!$J$22,0,IF(AND(AU43>$C$10,AU$75<AU$25),1,0)) -> 1 | AV46: =IF(AV$16<Données!$J$22,0,IF(AND(AV43>$C$10,AV$75<AV$25),1,0)) -> 1 | AW46: =IF(AW$16<Données!$J$22,0,IF(AND(AW43>$C$10,AW$75<AW$25),1,0)) -> 1 | AX46: =IF(AX$16<Données!$J$22,0,IF(AND(AX43>$C$10,AX$75<AX$25),1,0)) -> 1 | AY46: =IF(AY$16<Données!$J$22,0,IF(AND(AY43>$C$10,AY$75<AY$25),1,0)) -> 1 | AZ46: =IF(AZ$16<Données!$J$22,0,IF(AND(AZ43>$C$10,AZ$75<AZ$25),1,0)) -> 1 | BA46: =IF(BA$16<Données!$J$22,0,IF(AND(BA43>$C$10,BA$75<BA$25),1,0)) -> 1 | BB46: =IF(BB$16<Données!$J$22,0,IF(AND(BB43>$C$10,BB$75<BB$25),1,0)) -> 1 | BC46: =IF(BC$16<Données!$J$22,0,IF(AND(BC43>$C$10,BC$75<BC$25),1,0)) -> 1 | BD46: =IF(BD$16<Données!$J$22,0,IF(AND(BD43>$C$10,BD$75<BD$25),1,0)) -> 1 | BE46: =IF(BE$16<Données!$J$22,0,IF(AND(BE43>$C$10,BE$75<BE$25),1,0)) -> 1 | BN46: Coût Ecs | BO46: =BF64 -> 122.741707
A47: PAC ON 45 | B47: =IF(B$16<Données!$J$22,0,IF(AND(B44>$C$10,B$75<B$25),1,0)) -> 0 | C47: =IF(C$16<Données!$J$22,0,IF(AND(C44>$C$10,C$75<C$25),1,0)) -> 0 | D47: =IF(D$16<Données!$J$22,0,IF(AND(D44>$C$10,D$75<D$25),1,0)) -> 0 | E47: =IF(E$16<Données!$J$22,0,IF(AND(E44>$C$10,E$75<E$25),1,0)) -> 0 | F47: =IF(F$16<Données!$J$22,0,IF(AND(F44>$C$10,F$75<F$25),1,0)) -> 0 | G47: =IF(G$16<Données!$J$22,0,IF(AND(G44>$C$10,G$75<G$25),1,0)) -> 0 | H47: =IF(H$16<Données!$J$22,0,IF(AND(H44>$C$10,H$75<H$25),1,0)) -> 0 | I47: =IF(I$16<Données!$J$22,0,IF(AND(I44>$C$10,I$75<I$25),1,0)) -> 0 | J47: =IF(J$16<Données!$J$22,0,IF(AND(J44>$C$10,J$75<J$25),1,0)) -> 0 | K47: =IF(K$16<Données!$J$22,0,IF(AND(K44>$C$10,K$75<K$25),1,0)) -> 0 | L47: =IF(L$16<Données!$J$22,0,IF(AND(L44>$C$10,L$75<L$25),1,0)) -> 0 | M47: =IF(M$16<Données!$J$22,0,IF(AND(M44>$C$10,M$75<M$25),1,0)) -> 0 | N47: =IF(N$16<Données!$J$22,0,IF(AND(N44>$C$10,N$75<N$25),1,0)) -> 0 | O47: =IF(O$16<Données!$J$22,0,IF(AND(O44>$C$10,O$75<O$25),1,0)) -> 0 | P47: =IF(P$16<Données!$J$22,0,IF(AND(P44>$C$10,P$75<P$25),1,0)) -> 0 | Q47: =IF(Q$16<Données!$J$22,0,IF(AND(Q44>$C$10,Q$75<Q$25),1,0)) -> 0 | R47: =IF(R$16<Données!$J$22,0,IF(AND(R44>$C$10,R$75<R$25),1,0)) -> 0 | S47: =IF(S$16<Données!$J$22,0,IF(AND(S44>$C$10,S$75<S$25),1,0)) -> 0 | T47: =IF(T$16<Données!$J$22,0,IF(AND(T44>$C$10,T$75<T$25),1,0)) -> 0 | U47: =IF(U$16<Données!$J$22,0,IF(AND(U44>$C$10,U$75<U$25),1,0)) -> 0 | V47: =IF(V$16<Données!$J$22,0,IF(AND(V44>$C$10,V$75<V$25),1,0)) -> 0 | W47: =IF(W$16<Données!$J$22,0,IF(AND(W44>$C$10,W$75<W$25),1,0)) -> 0 | X47: =IF(X$16<Données!$J$22,0,IF(AND(X44>$C$10,X$75<X$25),1,0)) -> 0 | Y47: =IF(Y$16<Données!$J$22,0,IF(AND(Y44>$C$10,Y$75<Y$25),1,0)) -> 0 | Z47: =IF(Z$16<Données!$J$22,0,IF(AND(Z44>$C$10,Z$75<Z$25),1,0)) -> 0 | AA47: =IF(AA$16<Données!$J$22,0,IF(AND(AA44>$C$10,AA$75<AA$25),1,0)) -> 0 | AB47: =IF(AB$16<Données!$J$22,0,IF(AND(AB44>$C$10,AB$75<AB$25),1,0)) -> 0 | AC47: =IF(AC$16<Données!$J$22,0,IF(AND(AC44>$C$10,AC$75<AC$25),1,0)) -> 0 | AD47: =IF(AD$16<Données!$J$22,0,IF(AND(AD44>$C$10,AD$75<AD$25),1,0)) -> 0 | AE47: =IF(AE$16<Données!$J$22,0,IF(AND(AE44>$C$10,AE$75<AE$25),1,0)) -> 0 | AF47: =IF(AF$16<Données!$J$22,0,IF(AND(AF44>$C$10,AF$75<AF$25),1,0)) -> 0 | AG47: =IF(AG$16<Données!$J$22,0,IF(AND(AG44>$C$10,AG$75<AG$25),1,0)) -> 0 | AH47: =IF(AH$16<Données!$J$22,0,IF(AND(AH44>$C$10,AH$75<AH$25),1,0)) -> 1 | AI47: =IF(AI$16<Données!$J$22,0,IF(AND(AI44>$C$10,AI$75<AI$25),1,0)) -> 1 | AJ47: =IF(AJ$16<Données!$J$22,0,IF(AND(AJ44>$C$10,AJ$75<AJ$25),1,0)) -> 1 | AK47: =IF(AK$16<Données!$J$22,0,IF(AND(AK44>$C$10,AK$75<AK$25),1,0)) -> 1 | AL47: =IF(AL$16<Données!$J$22,0,IF(AND(AL44>$C$10,AL$75<AL$25),1,0)) -> 1 | AM47: =IF(AM$16<Données!$J$22,0,IF(AND(AM44>$C$10,AM$75<AM$25),1,0)) -> 1 | AN47: =IF(AN$16<Données!$J$22,0,IF(AND(AN44>$C$10,AN$75<AN$25),1,0)) -> 1 | AO47: =IF(AO$16<Données!$J$22,0,IF(AND(AO44>$C$10,AO$75<AO$25),1,0)) -> 1 | AP47: =IF(AP$16<Données!$J$22,0,IF(AND(AP44>$C$10,AP$75<AP$25),1,0)) -> 1 | AQ47: =IF(AQ$16<Données!$J$22,0,IF(AND(AQ44>$C$10,AQ$75<AQ$25),1,0)) -> 1 | AR47: =IF(AR$16<Données!$J$22,0,IF(AND(AR44>$C$10,AR$75<AR$25),1,0)) -> 1 | AS47: =IF(AS$16<Données!$J$22,0,IF(AND(AS44>$C$10,AS$75<AS$25),1,0)) -> 1 | AT47: =IF(AT$16<Données!$J$22,0,IF(AND(AT44>$C$10,AT$75<AT$25),1,0)) -> 1 | AU47: =IF(AU$16<Données!$J$22,0,IF(AND(AU44>$C$10,AU$75<AU$25),1,0)) -> 1 | AV47: =IF(AV$16<Données!$J$22,0,IF(AND(AV44>$C$10,AV$75<AV$25),1,0)) -> 1 | AW47: =IF(AW$16<Données!$J$22,0,IF(AND(AW44>$C$10,AW$75<AW$25),1,0)) -> 1 | AX47: =IF(AX$16<Données!$J$22,0,IF(AND(AX44>$C$10,AX$75<AX$25),1,0)) -> 1 | AY47: =IF(AY$16<Données!$J$22,0,IF(AND(AY44>$C$10,AY$75<AY$25),1,0)) -> 1 | AZ47: =IF(AZ$16<Données!$J$22,0,IF(AND(AZ44>$C$10,AZ$75<AZ$25),1,0)) -> 1 | BA47: =IF(BA$16<Données!$J$22,0,IF(AND(BA44>$C$10,BA$75<BA$25),1,0)) -> 1 | BB47: =IF(BB$16<Données!$J$22,0,IF(AND(BB44>$C$10,BB$75<BB$25),1,0)) -> 1 | BC47: =IF(BC$16<Données!$J$22,0,IF(AND(BC44>$C$10,BC$75<BC$25),1,0)) -> 1 | BD47: =IF(BD$16<Données!$J$22,0,IF(AND(BD44>$C$10,BD$75<BD$25),1,0)) -> 1 | BE47: =IF(BE$16<Données!$J$22,0,IF(AND(BE44>$C$10,BE$75<BE$25),1,0)) -> 1 | BG47: Jours à + de 7°C | BH47: Jours à - de 7°C
A48: Nb jour | B48: 0 | C48: 0 | D48: 0 | E48: 0 | F48: 0 | G48: =VLOOKUP(Données!$C$22,'Station Météo'!$A$2:$BB$97,3,FALSE) -> 0 | H48: =VLOOKUP(Données!$C$22,'Station Météo'!$A$2:$BB$97,4,FALSE) -> 0 | I48: =VLOOKUP(Données!$C$22,'Station Météo'!$A$2:$BB$97,5,FALSE) -> 0 | J48: =VLOOKUP(Données!$C$22,'Station Météo'!$A$2:$BB$97,6,FALSE) -> 0 | K48: =VLOOKUP(Données!$C$22,'Station Météo'!$A$2:$BB$97,7,FALSE) -> 0 | L48: =VLOOKUP(Données!$C$22,'Station Météo'!$A$2:$BB$97,8,FALSE) -> 0 | M48: =VLOOKUP(Données!$C$22,'Station Météo'!$A$2:$BB$97,9,FALSE) -> 0 | N48: =VLOOKUP(Données!$C$22,'Station Météo'!$A$2:$BB$97,10,FALSE) -> 0.1 | O48: =VLOOKUP(Données!$C$22,'Station Météo'!$A$2:$BB$97,11,FALSE) -> 0.15 | P48: =VLOOKUP(Données!$C$22,'Station Météo'!$A$2:$BB$97,12,FALSE) -> 0.1 | Q48: =VLOOKUP(Données!$C$22,'Station Météo'!$A$2:$BB$97,13,FALSE) -> 0.15 | R48: =VLOOKUP(Données!$C$22,'Station Météo'!$A$2:$BB$97,14,FALSE) -> 0.35 | S48: =VLOOKUP(Données!$C$22,'Station Météo'!$A$2:$BB$97,15,FALSE) -> 0.5 | T48: =VLOOKUP(Données!$C$22,'Station Météo'!$A$2:$BB$97,16,FALSE) -> 0.8 | U48: =VLOOKUP(Données!$C$22,'Station Météo'!$A$2:$BB$97,17,FALSE) -> 1.65 | V48: =VLOOKUP(Données!$C$22,'Station Météo'!$A$2:$BB$97,18,FALSE) -> 2.4 | W48: =VLOOKUP(Données!$C$22,'Station Météo'!$A$2:$BB$97,19,FALSE) -> 3.4 | X48: =VLOOKUP(Données!$C$22,'Station Météo'!$A$2:$BB$97,20,FALSE) -> 3.55 | Y48: =VLOOKUP(Données!$C$22,'Station Météo'!$A$2:$BB$97,21,FALSE) -> 6.35 | Z48: =VLOOKUP(Données!$C$22,'Station Météo'!$A$2:$BB$97,22,FALSE) -> 6.85 | AA48: =VLOOKUP(Données!$C$22,'Station Météo'!$A$2:$BB$97,23,FALSE) -> 8.45 | AB48: =VLOOKUP(Données!$C$22,'Station Météo'!$A$2:$BB$97,24,FALSE) -> 9.8 | AC48: =VLOOKUP(Données!$C$22,'Station Météo'!$A$2:$BB$97,25,FALSE) -> 10.35 | AD48: =VLOOKUP(Données!$C$22,'Station Météo'!$A$2:$BB$97,26,FALSE) -> 11.95 | AE48: =VLOOKUP(Données!$C$22,'Station Météo'!$A$2:$BB$97,27,FALSE) -> 14.25 | AF48: =VLOOKUP(Données!$C$22,'Station Météo'!$A$2:$BB$97,28,FALSE) -> 15.75 | AG48: =VLOOKUP(Données!$C$22,'Station Météo'!$A$2:$BB$97,29,FALSE) -> 14.9 | AH48: =VLOOKUP(Données!$C$22,'Station Météo'!$A$2:$BB$97,30,FALSE) -> 16.05 | AI48: =VLOOKUP(Données!$C$22,'Station Météo'!$A$2:$BB$97,31,FALSE) -> 15.8 | AJ48: =VLOOKUP(Données!$C$22,'Station Météo'!$A$2:$BB$97,32,FALSE) -> 15.5 | AK48: =VLOOKUP(Données!$C$22,'Station Météo'!$A$2:$BB$97,33,FALSE) -> 15.45 | AL48: =VLOOKUP(Données!$C$22,'Station Météo'!$A$2:$BB$97,34,FALSE) -> 14.85 | AM48: =VLOOKUP(Données!$C$22,'Station Météo'!$A$2:$BB$97,35,FALSE) -> 13.7 | AN48: =VLOOKUP(Données!$C$22,'Station Météo'!$A$2:$BB$97,36,FALSE) -> 14.75 | AO48: =VLOOKUP(Données!$C$22,'Station Météo'!$A$2:$BB$97,37,FALSE) -> 16.7 | AP48: =VLOOKUP(Données!$C$22,'Station Météo'!$A$2:$BB$97,38,FALSE) -> 17.25 | AQ48: =IF(Données!$J$30-3<Résultats!AQ45,0,VLOOKUP(Données!$C$22,'Station Météo'!$A$2:$BB$97,39,FALSE)) -> 16.35 | AR48: =IF(Données!$J$30-3<Résultats!AR45,0,VLOOKUP(Données!$C$22,'Station Météo'!$A$2:$BB$97,40,FALSE)) -> 17.75 | AS48: =VLOOKUP(Données!$C$22,'Station Météo'!$A$2:$BB$97,41,FALSE) -> 16.3 | AT48: =VLOOKUP(Données!$C$22,'Station Météo'!$A$2:$BB$97,42,FALSE) -> 14.45 | AU48: =VLOOKUP(Données!$C$22,'Station Météo'!$A$2:$BB$97,43,FALSE) -> 11.6 | AV48: =VLOOKUP(Données!$C$22,'Station Météo'!$A$2:$BB$97,44,FALSE) -> 11.4 | AW48: =VLOOKUP(Données!$C$22,'Station Météo'!$A$2:$BB$97,45,FALSE) -> 10.2 | AX48: =VLOOKUP(Données!$C$22,'Station Météo'!$A$2:$BB$97,46,FALSE) -> 6.65 | AY48: =VLOOKUP(Données!$C$22,'Station Météo'!$A$2:$BB$97,47,FALSE) -> 4.5 | AZ48: =VLOOKUP(Données!$C$22,'Station Météo'!$A$2:$BB$97,48,FALSE) -> 2.35 | BA48: =VLOOKUP(Données!$C$22,'Station Météo'!$A$2:$BB$97,49,FALSE) -> 0.9 | BB48: =VLOOKUP(Données!$C$22,'Station Météo'!$A$2:$BC$97,50,FALSE) -> 0.6 | BC48: =VLOOKUP(Données!$C$22,'Station Météo'!$A$2:$BB$97,51,FALSE) -> 0.25 | BD48: =VLOOKUP(Données!$C$22,'Station Météo'!$A$2:$BB$97,52,FALSE) -> 0.1 | BE48: =VLOOKUP(Données!$C$22,'Station Météo'!$A$2:$BB$97,53,FALSE) -> 0 | BF48: =SUM(B48:BE48) -> 365.25 | BG48: =SUM(AH48:BE48) -> 253.45 | BH48: =SUM(B48:AG48) -> 111.8 | BI48: =+BH48/BF48 -> 0.306091718 | BJ48: =+BG48/BF48 -> 0.693908282 | BN48: Coût Total Appoint : | BO48: =BO45+BO46 -> 197.964253
A49: Cout 55 PAC | B49: =B48*$H$4/3*IF(B45=0,0,'Consommations et Coûts de prod.'!$H$64/B42)/100 -> 0 | C49: =C48*$H$4/3*IF(C45=0,0,'Consommations et Coûts de prod.'!$H$64/C42)/100 -> 0 | D49: =D48*$H$4/3*IF(D45=0,0,'Consommations et Coûts de prod.'!$H$64/D42)/100 -> 0 | E49: =E48*$H$4/3*IF(E45=0,0,'Consommations et Coûts de prod.'!$H$64/E42)/100 -> 0 | F49: =F48*$H$4/3*IF(F45=0,0,'Consommations et Coûts de prod.'!$H$64/F42)/100 -> 0 | G49: =G48*$H$4/3*IF(G45=0,0,'Consommations et Coûts de prod.'!$H$64/G42)/100 -> 0 | H49: =H48*$H$4/3*IF(H45=0,0,'Consommations et Coûts de prod.'!$H$64/H42)/100 -> 0 | I49: =I48*$H$4/3*IF(I45=0,0,'Consommations et Coûts de prod.'!$H$64/I42)/100 -> 0 | J49: =J48*$H$4/3*IF(J45=0,0,'Consommations et Coûts de prod.'!$H$64/J42)/100 -> 0 | K49: =K48*$H$4/3*IF(K45=0,0,'Consommations et Coûts de prod.'!$H$64/K42)/100 -> 0 | L49: =L48*$H$4/3*IF(L45=0,0,'Consommations et Coûts de prod.'!$H$64/L42)/100 -> 0 | M49: =M48*$H$4/3*IF(M45=0,0,'Consommations et Coûts de prod.'!$H$64/M42)/100 -> 0 | N49: =N48*$H$4/3*IF(N45=0,0,'Consommations et Coûts de prod.'!$H$64/N42)/100 -> 0 | O49: =O48*$H$4/3*IF(O45=0,0,'Consommations et Coûts de prod.'!$H$64/O42)/100 -> 0 | P49: =P48*$H$4/3*IF(P45=0,0,'Consommations et Coûts de prod.'!$H$64/P42)/100 -> 0 | Q49: =Q48*$H$4/3*IF(Q45=0,0,'Consommations et Coûts de prod.'!$H$64/Q42)/100 -> 0 | R49: =R48*$H$4/3*IF(R45=0,0,'Consommations et Coûts de prod.'!$H$64/R42)/100 -> 0 | S49: =S48*$H$4/3*IF(S45=0,0,'Consommations et Coûts de prod.'!$H$64/S42)/100 -> 0 | T49: =T48*$H$4/3*IF(T45=0,0,'Consommations et Coûts de prod.'!$H$64/T42)/100 -> 0 | U49: =U48*$H$4/3*IF(U45=0,0,'Consommations et Coûts de prod.'!$H$64/U42)/100 -> 0 | V49: =V48*$H$4/3*IF(V45=0,0,'Consommations et Coûts de prod.'!$H$64/V42)/100 -> 0 | W49: =W48*$H$4/3*IF(W45=0,0,'Consommations et Coûts de prod.'!$H$64/W42)/100 -> 0 | X49: =X48*$H$4/3*IF(X45=0,0,'Consommations et Coûts de prod.'!$H$64/X42)/100 -> 0 | Y49: =Y48*$H$4/3*IF(Y45=0,0,'Consommations et Coûts de prod.'!$H$64/Y42)/100 -> 0 | Z49: =Z48*$H$4/3*IF(Z45=0,0,'Consommations et Coûts de prod.'!$H$64/Z42)/100 -> 0 | AA49: =AA48*$H$4/3*IF(AA45=0,0,'Consommations et Coûts de prod.'!$H$64/AA42)/100 -> 0 | AB49: =AB48*$H$4/3*IF(AB45=0,0,'Consommations et Coûts de prod.'!$H$64/AB42)/100 -> 0 | AC49: =AC48*$H$4/3*IF(AC45=0,0,'Consommations et Coûts de prod.'!$H$64/AC42)/100 -> 0 | AD49: =AD48*$H$4/3*IF(AD45=0,0,'Consommations et Coûts de prod.'!$H$64/AD42)/100 -> 0 | AE49: =AE48*$H$4/3*IF(AE45=0,0,'Consommations et Coûts de prod.'!$H$64/AE42)/100 -> 0 | AF49: =AF48*$H$4/3*IF(AF45=0,0,'Consommations et Coûts de prod.'!$H$64/AF42)/100 -> 0 | AG49: =AG48*$H$4/3*IF(AG45=0,0,'Consommations et Coûts de prod.'!$H$64/AG42)/100 -> 0 | AH49: =AH48*$H$11/3*IF(AH45=0,0,'Consommations et Coûts de prod.'!$H$64/AH42)/100 -> 2.802370053 | AI49: =AI48*$H$11/3*IF(AI45=0,0,'Consommations et Coûts de prod.'!$H$64/AI42)/100 -> 2.680099761 | AJ49: =AJ48*$H$11/3*IF(AJ45=0,0,'Consommations et Coûts de prod.'!$H$64/AJ42)/100 -> 2.55635911 | AK49: =AK48*$H$11/3*IF(AK45=0,0,'Consommations et Coûts de prod.'!$H$64/AK42)/100 -> 2.479410933 | AL49: =AL48*$H$11/3*IF(AL45=0,0,'Consommations et Coûts de prod.'!$H$64/AL42)/100 -> 2.32055661 | AM49: =AM48*$H$11/3*IF(AM45=0,0,'Consommations et Coûts de prod.'!$H$64/AM42)/100 -> 2.086082199 | AN49: =AN48*$H$11/3*IF(AN45=0,0,'Consommations et Coûts de prod.'!$H$64/AN42)/100 -> 2.189940558 | AO49: =AO48*$H$11/3*IF(AO45=0,0,'Consommations et Coûts de prod.'!$H$64/AO42)/100 -> 2.419115157 | AP49: =AP48*$H$11/3*IF(AP45=0,0,'Consommations et Coûts de prod.'!$H$64/AP42)/100 -> 2.439418109 | AQ49: =AQ48*$H$11/3*IF(AQ45=0,0,'Consommations et Coûts de prod.'!$H$64/AQ42)/100 -> 2.258484927 | AR49: =AR48*$H$11/3*IF(AR45=0,0,'Consommations et Coûts de prod.'!$H$64/AR42)/100 -> 2.396260683 | AS49: =AS48*$H$11/3*IF(AS45=0,0,'Consommations et Coûts de prod.'!$H$64/AS42)/100 -> 2.151706581 | AT49: =AT48*$H$11/3*IF(AT45=0,0,'Consommations et Coûts de prod.'!$H$64/AT42)/100 -> 1.866107675 | AU49: =AU48*$H$11/3*IF(AU45=0,0,'Consommations et Coûts de prod.'!$H$64/AU42)/100 -> 1.466238926 | AV49: =AV48*$H$11/3*IF(AV45=0,0,'Consommations et Coûts de prod.'!$H$64/AV42)/100 -> 1.410994794 | AW49: =AW48*$H$11/3*IF(AW45=0,0,'Consommations et Coûts de prod.'!$H$64/AW42)/100 -> 1.23675129 | AX49: =AX48*$H$11/3*IF(AX45=0,0,'Consommations et Coûts de prod.'!$H$64/AX42)/100 -> 0.7902158666 | AY49: =AY48*$H$11/3*IF(AY45=0,0,'Consommations et Coûts de prod.'!$H$64/AY42)/100 -> 0.5242659432 | AZ49: =AZ48*$H$11/3*IF(AZ45=0,0,'Consommations et Coûts de prod.'!$H$64/AZ42)/100 -> 0.2685273014 | BA49: =BA48*$H$11/3*IF(BA45=0,0,'Consommations et Coûts de prod.'!$H$64/BA42)/100 -> 0.1009031298 | BB49: =BB48*$H$11/3*IF(BB45=0,0,'Consommations et Coûts de prod.'!$H$64/BB42)/100 -> 0.06602509519 | BC49: =BC48*$H$11/3*IF(BC45=0,0,'Consommations et Coûts de prod.'!$H$64/BC42)/100 -> 0.02701107821 | BD49: =BD48*$H$11/3*IF(BD45=0,0,'Consommations et Coûts de prod.'!$H$64/BD42)/100 -> 0.01061180264 | BE49: =BE48*$H$11/3*IF(BE45=0,0,'Consommations et Coûts de prod.'!$H$64/BE42)/100 -> 0 | BF49: 36.54745759 | BG49: €
A50: Cout 50 PAC | B50: =B48*$H$4/3*IF(B46=0,0,'Consommations et Coûts de prod.'!$H$64/B43)/100 -> 0 | C50: =C48*$H$4/3*IF(C46=0,0,'Consommations et Coûts de prod.'!$H$64/C43)/100 -> 0 | D50: =D48*$H$4/3*IF(D46=0,0,'Consommations et Coûts de prod.'!$H$64/D43)/100 -> 0 | E50: =E48*$H$4/3*IF(E46=0,0,'Consommations et Coûts de prod.'!$H$64/E43)/100 -> 0 | F50: =F48*$H$4/3*IF(F46=0,0,'Consommations et Coûts de prod.'!$H$64/F43)/100 -> 0 | G50: =G48*$H$4/3*IF(G46=0,0,'Consommations et Coûts de prod.'!$H$64/G43)/100 -> 0 | H50: =H48*$H$4/3*IF(H46=0,0,'Consommations et Coûts de prod.'!$H$64/H43)/100 -> 0 | I50: =I48*$H$4/3*IF(I46=0,0,'Consommations et Coûts de prod.'!$H$64/I43)/100 -> 0 | J50: =J48*$H$4/3*IF(J46=0,0,'Consommations et Coûts de prod.'!$H$64/J43)/100 -> 0 | K50: =K48*$H$4/3*IF(K46=0,0,'Consommations et Coûts de prod.'!$H$64/K43)/100 -> 0 | L50: =L48*$H$4/3*IF(L46=0,0,'Consommations et Coûts de prod.'!$H$64/L43)/100 -> 0 | M50: =M48*$H$4/3*IF(M46=0,0,'Consommations et Coûts de prod.'!$H$64/M43)/100 -> 0 | N50: =N48*$H$4/3*IF(N46=0,0,'Consommations et Coûts de prod.'!$H$64/N43)/100 -> 0 | O50: =O48*$H$4/3*IF(O46=0,0,'Consommations et Coûts de prod.'!$H$64/O43)/100 -> 0 | P50: =P48*$H$4/3*IF(P46=0,0,'Consommations et Coûts de prod.'!$H$64/P43)/100 -> 0 | Q50: =Q48*$H$4/3*IF(Q46=0,0,'Consommations et Coûts de prod.'!$H$64/Q43)/100 -> 0 | R50: =R48*$H$4/3*IF(R46=0,0,'Consommations et Coûts de prod.'!$H$64/R43)/100 -> 0 | S50: =S48*$H$4/3*IF(S46=0,0,'Consommations et Coûts de prod.'!$H$64/S43)/100 -> 0 | T50: =T48*$H$4/3*IF(T46=0,0,'Consommations et Coûts de prod.'!$H$64/T43)/100 -> 0 | U50: =U48*$H$4/3*IF(U46=0,0,'Consommations et Coûts de prod.'!$H$64/U43)/100 -> 0 | V50: =V48*$H$4/3*IF(V46=0,0,'Consommations et Coûts de prod.'!$H$64/V43)/100 -> 0 | W50: =W48*$H$4/3*IF(W46=0,0,'Consommations et Coûts de prod.'!$H$64/W43)/100 -> 0 | X50: =X48*$H$4/3*IF(X46=0,0,'Consommations et Coûts de prod.'!$H$64/X43)/100 -> 0 | Y50: =Y48*$H$4/3*IF(Y46=0,0,'Consommations et Coûts de prod.'!$H$64/Y43)/100 -> 0 | Z50: =Z48*$H$4/3*IF(Z46=0,0,'Consommations et Coûts de prod.'!$H$64/Z43)/100 -> 0 | AA50: =AA48*$H$4/3*IF(AA46=0,0,'Consommations et Coûts de prod.'!$H$64/AA43)/100 -> 0 | AB50: =AB48*$H$4/3*IF(AB46=0,0,'Consommations et Coûts de prod.'!$H$64/AB43)/100 -> 0 | AC50: =AC48*$H$4/3*IF(AC46=0,0,'Consommations et Coûts de prod.'!$H$64/AC43)/100 -> 0 | AD50: =AD48*$H$4/3*IF(AD46=0,0,'Consommations et Coûts de prod.'!$H$64/AD43)/100 -> 0 | AE50: =AE48*$H$4/3*IF(AE46=0,0,'Consommations et Coûts de prod.'!$H$64/AE43)/100 -> 0 | AF50: =AF48*$H$4/3*IF(AF46=0,0,'Consommations et Coûts de prod.'!$H$64/AF43)/100 -> 0 | AG50: =AG48*$H$4/3*IF(AG46=0,0,'Consommations et Coûts de prod.'!$H$64/AG43)/100 -> 0 | AH50: =AH48*$H$11/3*IF(AH46=0,0,'Consommations et Coûts de prod.'!$H$64/AH43)/100 -> 2.268404949 | AI50: =AI48*$H$11/3*IF(AI46=0,0,'Consommations et Coûts de prod.'!$H$64/AI43)/100 -> 2.165352035 | AJ50: =AJ48*$H$11/3*IF(AJ46=0,0,'Consommations et Coûts de prod.'!$H$64/AJ43)/100 -> 2.061714769 | AK50: =AK48*$H$11/3*IF(AK46=0,0,'Consommations et Coûts de prod.'!$H$64/AK43)/100 -> 1.996306508 | AL50: =AL48*$H$11/3*IF(AL46=0,0,'Consommations et Coûts de prod.'!$H$64/AL43)/100 -> 1.865444015 | AM50: =AM48*$H$11/3*IF(AM46=0,0,'Consommations et Coûts de prod.'!$H$64/AM43)/100 -> 1.674437932 | AN50: =AN48*$H$11/3*IF(AN46=0,0,'Consommations et Coûts de prod.'!$H$64/AN43)/100 -> 1.755298584 | AO50: =AO48*$H$11/3*IF(AO46=0,0,'Consommations et Coûts de prod.'!$H$64/AO43)/100 -> 1.936364904 | AP50: =AP48*$H$11/3*IF(AP46=0,0,'Consommations et Coûts de prod.'!$H$64/AP43)/100 -> 1.950103081 | AQ50: =AQ48*$H$11/3*IF(AQ46=0,0,'Consommations et Coûts de prod.'!$H$64/AQ43)/100 -> 1.80324949 | AR50: =AR48*$H$11/3*IF(AR46=0,0,'Consommations et Coûts de prod.'!$H$64/AR43)/100 -> 1.911017895 | AS50: =AS48*$H$11/3*IF(AS46=0,0,'Consommations et Coûts de prod.'!$H$64/AS43)/100 -> 1.714071344 | AT50: =AT48*$H$11/3*IF(AT46=0,0,'Consommations et Coûts de prod.'!$H$64/AT43)/100 -> 1.484975353 | AU50: =AU48*$H$11/3*IF(AU46=0,0,'Consommations et Coûts de prod.'!$H$64/AU43)/100 -> 1.165585487 | AV50: =AV48*$H$11/3*IF(AV46=0,0,'Consommations et Coûts de prod.'!$H$64/AV43)/100 -> 1.120573873 | AW50: =AW48*$H$11/3*IF(AW46=0,0,'Consommations et Coûts de prod.'!$H$64/AW43)/100 -> 0.9812752025 | AX50: =AX48*$H$11/3*IF(AX46=0,0,'Consommations et Coûts de prod.'!$H$64/AX43)/100 -> 0.6264179046 | AY50: =AY48*$H$11/3*IF(AY46=0,0,'Consommations et Coûts de prod.'!$H$64/AY43)/100 -> 0.4152366004 | AZ50: =AZ48*$H$11/3*IF(AZ46=0,0,'Consommations et Coûts de prod.'!$H$64/AZ43)/100 -> 0.2125067218 | BA50: =BA48*$H$11/3*IF(BA46=0,0,'Consommations et Coûts de prod.'!$H$64/BA43)/100 -> 0.07978898492 | BB50: =BB48*$H$11/3*IF(BB46=0,0,'Consommations et Coûts de prod.'!$H$64/BB43)/100 -> 0.05216923495 | BC50: =BC48*$H$11/3*IF(BC46=0,0,'Consommations et Coûts de prod.'!$H$64/BC43)/100 -> 0.02132685457 | BD50: =BD48*$H$11/3*IF(BD46=0,0,'Consommations et Coûts de prod.'!$H$64/BD43)/100 -> 0.008372692862 | BE50: =BE48*$H$11/3*IF(BE46=0,0,'Consommations et Coûts de prod.'!$H$64/BE43)/100 -> 0 | BF50: 29.26999442 | BG50: €
A51: Cout 45 PAC | B51: =B48*$H$4/3*IF(B47=0,0,'Consommations et Coûts de prod.'!$H$64/B44)/100 -> 0 | C51: =C48*$H$4/3*IF(C47=0,0,'Consommations et Coûts de prod.'!$H$64/C44)/100 -> 0 | D51: =D48*$H$4/3*IF(D47=0,0,'Consommations et Coûts de prod.'!$H$64/D44)/100 -> 0 | E51: =E48*$H$4/3*IF(E47=0,0,'Consommations et Coûts de prod.'!$H$64/E44)/100 -> 0 | F51: =F48*$H$4/3*IF(F47=0,0,'Consommations et Coûts de prod.'!$H$64/F44)/100 -> 0 | G51: =G48*$H$4/3*IF(G47=0,0,'Consommations et Coûts de prod.'!$H$64/G44)/100 -> 0 | H51: =H48*$H$4/3*IF(H47=0,0,'Consommations et Coûts de prod.'!$H$64/H44)/100 -> 0 | I51: =I48*$H$4/3*IF(I47=0,0,'Consommations et Coûts de prod.'!$H$64/I44)/100 -> 0 | J51: =J48*$H$4/3*IF(J47=0,0,'Consommations et Coûts de prod.'!$H$64/J44)/100 -> 0 | K51: =K48*$H$4/3*IF(K47=0,0,'Consommations et Coûts de prod.'!$H$64/K44)/100 -> 0 | L51: =L48*$H$4/3*IF(L47=0,0,'Consommations et Coûts de prod.'!$H$64/L44)/100 -> 0 | M51: =M48*$H$4/3*IF(M47=0,0,'Consommations et Coûts de prod.'!$H$64/M44)/100 -> 0 | N51: =N48*$H$4/3*IF(N47=0,0,'Consommations et Coûts de prod.'!$H$64/N44)/100 -> 0 | O51: =O48*$H$4/3*IF(O47=0,0,'Consommations et Coûts de prod.'!$H$64/O44)/100 -> 0 | P51: =P48*$H$4/3*IF(P47=0,0,'Consommations et Coûts de prod.'!$H$64/P44)/100 -> 0 | Q51: =Q48*$H$4/3*IF(Q47=0,0,'Consommations et Coûts de prod.'!$H$64/Q44)/100 -> 0 | R51: =R48*$H$4/3*IF(R47=0,0,'Consommations et Coûts de prod.'!$H$64/R44)/100 -> 0 | S51: =S48*$H$4/3*IF(S47=0,0,'Consommations et Coûts de prod.'!$H$64/S44)/100 -> 0 | T51: =T48*$H$4/3*IF(T47=0,0,'Consommations et Coûts de prod.'!$H$64/T44)/100 -> 0 | U51: =U48*$H$4/3*IF(U47=0,0,'Consommations et Coûts de prod.'!$H$64/U44)/100 -> 0 | V51: =V48*$H$4/3*IF(V47=0,0,'Consommations et Coûts de prod.'!$H$64/V44)/100 -> 0 | W51: =W48*$H$4/3*IF(W47=0,0,'Consommations et Coûts de prod.'!$H$64/W44)/100 -> 0 | X51: =X48*$H$4/3*IF(X47=0,0,'Consommations et Coûts de prod.'!$H$64/X44)/100 -> 0 | Y51: =Y48*$H$4/3*IF(Y47=0,0,'Consommations et Coûts de prod.'!$H$64/Y44)/100 -> 0 | Z51: =Z48*$H$4/3*IF(Z47=0,0,'Consommations et Coûts de prod.'!$H$64/Z44)/100 -> 0 | AA51: =AA48*$H$4/3*IF(AA47=0,0,'Consommations et Coûts de prod.'!$H$64/AA44)/100 -> 0 | AB51: =AB48*$H$4/3*IF(AB47=0,0,'Consommations et Coûts de prod.'!$H$64/AB44)/100 -> 0 | AC51: =AC48*$H$4/3*IF(AC47=0,0,'Consommations et Coûts de prod.'!$H$64/AC44)/100 -> 0 | AD51: =AD48*$H$4/3*IF(AD47=0,0,'Consommations et Coûts de prod.'!$H$64/AD44)/100 -> 0 | AE51: =AE48*$H$4/3*IF(AE47=0,0,'Consommations et Coûts de prod.'!$H$64/AE44)/100 -> 0 | AF51: =AF48*$H$4/3*IF(AF47=0,0,'Consommations et Coûts de prod.'!$H$64/AF44)/100 -> 0 | AG51: =AG48*$H$4/3*IF(AG47=0,0,'Consommations et Coûts de prod.'!$H$64/AG44)/100 -> 0 | AH51: =AH48*$H$11/3*IF(AH47=0,0,'Consommations et Coûts de prod.'!$H$64/AH44)/100 -> 2.012733408 | AI51: =AI48*$H$11/3*IF(AI47=0,0,'Consommations et Coûts de prod.'!$H$64/AI44)/100 -> 1.919566971 | AJ51: =AJ48*$H$11/3*IF(AJ47=0,0,'Consommations et Coûts de prod.'!$H$64/AJ44)/100 -> 1.826147102 | AK51: =AK48*$H$11/3*IF(AK47=0,0,'Consommations et Coûts de prod.'!$H$64/AK44)/100 -> 1.76680298 | AL51: =AL48*$H$11/3*IF(AL47=0,0,'Consommations et Coûts de prod.'!$H$64/AL44)/100 -> 1.649743205 | AM51: =AM48*$H$11/3*IF(AM47=0,0,'Consommations et Coûts de prod.'!$H$64/AM44)/100 -> 1.479770318 | AN51: =AN48*$H$11/3*IF(AN47=0,0,'Consommations et Coûts de prod.'!$H$64/AN44)/100 -> 1.550186174 | AO51: =AO48*$H$11/3*IF(AO47=0,0,'Consommations et Coûts de prod.'!$H$64/AO44)/100 -> 1.709003076 | AP51: =AP48*$H$11/3*IF(AP47=0,0,'Consommations et Coûts de prod.'!$H$64/AP44)/100 -> 1.720085474 | AQ51: =AQ48*$H$11/3*IF(AQ47=0,0,'Consommations et Coûts de prod.'!$H$64/AQ44)/100 -> 1.589637465 | AR51: =AR48*$H$11/3*IF(AR47=0,0,'Consommations et Coûts de prod.'!$H$64/AR44)/100 -> 1.683716207 | AS51: =AS48*$H$11/3*IF(AS47=0,0,'Consommations et Coûts de prod.'!$H$64/AS44)/100 -> 1.509406109 | AT51: =AT48*$H$11/3*IF(AT47=0,0,'Consommations et Coûts de prod.'!$H$64/AT44)/100 -> 1.307013147 | AU51: =AU48*$H$11/3*IF(AU47=0,0,'Consommations et Coûts de prod.'!$H$64/AU44)/100 -> 1.025411236 | AV51: =AV48*$H$11/3*IF(AV47=0,0,'Consommations et Coûts de prod.'!$H$64/AV44)/100 -> 0.9853641331 | AW51: =AW48*$H$11/3*IF(AW47=0,0,'Consommations et Coûts de prod.'!$H$64/AW44)/100 -> 0.8624976081 | AX51: =AX48*$H$11/3*IF(AX47=0,0,'Consommations et Coûts de prod.'!$H$64/AX44)/100 -> 0.5503640012 | AY51: =AY48*$H$11/3*IF(AY47=0,0,'Consommations et Coûts de prod.'!$H$64/AY44)/100 -> 0.3646764653 | AZ51: =AZ48*$H$11/3*IF(AZ47=0,0,'Consommations et Coûts de prod.'!$H$64/AZ44)/100 -> 0.186559794 | BA51: =BA48*$H$11/3*IF(BA47=0,0,'Consommations et Coûts de prod.'!$H$64/BA44)/100 -> 0.07002098166 | BB51: =BB48*$H$11/3*IF(BB47=0,0,'Consommations et Coûts de prod.'!$H$64/BB44)/100 -> 0.04576630113 | BC51: =BC48*$H$11/3*IF(BC47=0,0,'Consommations et Coûts de prod.'!$H$64/BC44)/100 -> 0.01870294972 | BD51: =BD48*$H$11/3*IF(BD47=0,0,'Consommations et Coûts de prod.'!$H$64/BD44)/100 -> 0.007340167073 | BE51: =BE48*$H$11/3*IF(BE47=0,0,'Consommations et Coûts de prod.'!$H$64/BE44)/100 -> 0 | BF51: 25.84051527 | BG51: € | BN51: PAC+ Appoint
A52: Cout ECS optimisée MIV 4 | B52: =SUM(B49:B51) -> 0 | C52: =SUM(C49:C51) -> 0 | D52: 0 | E52: 0 | F52: 0 | G52: 0 | H52: 0 | I52: 0 | J52: 0 | K52: 0 | L52: 0 | M52: 0 | N52: 0 | O52: 0 | P52: 0 | Q52: 0 | R52: 0 | S52: 0 | T52: 0 | U52: 0 | V52: 0 | W52: 0 | X52: 0 | Y52: 0 | Z52: 0 | AA52: 0 | AB52: 0 | AC52: 0 | AD52: 0 | AE52: 0 | AF52: 0 | AG52: 0 | AH52: 7.08350841 | AI52: 6.765018767 | AJ52: 6.444220981 | AK52: 6.242520421 | AL52: 5.835743829 | AM52: 5.240290449 | AN52: 5.495425317 | AO52: 6.064483138 | AP52: 6.109606664 | AQ52: 5.651371882 | AR52: 5.990994784 | AS52: 5.375184035 | AT52: 4.658096175 | AU52: 3.65723565 | AV52: 3.5169328 | AW52: 3.080524101 | AX52: 1.966997772 | AY52: 1.304179009 | AZ52: 0.6675938172 | BA52: 0.2507130964 | BB52: 0.1639606313 | BC52: 0.0670408825 | BD52: 0.02632466257 | BE52: 0 | BF52: 91.65796727 | BG52: € ECS optimisée PAC | BI52: TOTAL PAC + APPOINT Optimisé | BJ52: =BF52+BF64 -> 214.3996743 | BN52: Coût chauffage | BO52: =BO45+BO39 -> 518.5897978
A53: PROD ECS PAC MIV 4 à 55 | B53: =IFERROR((B49/('Consommations et Coûts de prod.'!$H$64/100))*Résultats!B42,0) -> 0 | C53: =IFERROR((C49/('Consommations et Coûts de prod.'!$H$64/100))*Résultats!C42,0) -> 0 | D53: =IFERROR((D49/('Consommations et Coûts de prod.'!$H$64/100))*Résultats!D42,0) -> 0 | E53: =IFERROR((E49/('Consommations et Coûts de prod.'!$H$64/100))*Résultats!E42,0) -> 0 | F53: =IFERROR((F49/('Consommations et Coûts de prod.'!$H$64/100))*Résultats!F42,0) -> 0 | G53: =IFERROR((G49/('Consommations et Coûts de prod.'!$H$64/100))*Résultats!G42,0) -> 0 | H53: =IFERROR((H49/('Consommations et Coûts de prod.'!$H$64/100))*Résultats!H42,0) -> 0 | I53: =IFERROR((I49/('Consommations et Coûts de prod.'!$H$64/100))*Résultats!I42,0) -> 0 | J53: =IFERROR((J49/('Consommations et Coûts de prod.'!$H$64/100))*Résultats!J42,0) -> 0 | K53: =IFERROR((K49/('Consommations et Coûts de prod.'!$H$64/100))*Résultats!K42,0) -> 0 | L53: =IFERROR((L49/('Consommations et Coûts de prod.'!$H$64/100))*Résultats!L42,0) -> 0 | M53: =IFERROR((M49/('Consommations et Coûts de prod.'!$H$64/100))*Résultats!M42,0) -> 0 | N53: =IFERROR((N49/('Consommations et Coûts de prod.'!$H$64/100))*Résultats!N42,0) -> 0 | O53: =IFERROR((O49/('Consommations et Coûts de prod.'!$H$64/100))*Résultats!O42,0) -> 0 | P53: =IFERROR((P49/('Consommations et Coûts de prod.'!$H$64/100))*Résultats!P42,0) -> 0 | Q53: =IFERROR((Q49/('Consommations et Coûts de prod.'!$H$64/100))*Résultats!Q42,0) -> 0 | R53: =IFERROR((R49/('Consommations et Coûts de prod.'!$H$64/100))*Résultats!R42,0) -> 0 | S53: =IFERROR((S49/('Consommations et Coûts de prod.'!$H$64/100))*Résultats!S42,0) -> 0 | T53: =IFERROR((T49/('Consommations et Coûts de prod.'!$H$64/100))*Résultats!T42,0) -> 0 | U53: =IFERROR((U49/('Consommations et Coûts de prod.'!$H$64/100))*Résultats!U42,0) -> 0 | V53: =IFERROR((V49/('Consommations et Coûts de prod.'!$H$64/100))*Résultats!V42,0) -> 0 | W53: =IFERROR((W49/('Consommations et Coûts de prod.'!$H$64/100))*Résultats!W42,0) -> 0 | X53: =IFERROR((X49/('Consommations et Coûts de prod.'!$H$64/100))*Résultats!X42,0) -> 0 | Y53: =IFERROR((Y49/('Consommations et Coûts de prod.'!$H$64/100))*Résultats!Y42,0) -> 0 | Z53: =IFERROR((Z49/('Consommations et Coûts de prod.'!$H$64/100))*Résultats!Z42,0) -> 0 | AA53: =IFERROR((AA49/('Consommations et Coûts de prod.'!$H$64/100))*Résultats!AA42,0) -> 0 | AB53: =IFERROR((AB49/('Consommations et Coûts de prod.'!$H$64/100))*Résultats!AB42,0) -> 0 | AC53: =IFERROR((AC49/('Consommations et Coûts de prod.'!$H$64/100))*Résultats!AC42,0) -> 0 | AD53: =IFERROR((AD49/('Consommations et Coûts de prod.'!$H$64/100))*Résultats!AD42,0) -> 0 | AE53: =IFERROR((AE49/('Consommations et Coûts de prod.'!$H$64/100))*Résultats!AE42,0) -> 0 | AF53: =IFERROR((AF49/('Consommations et Coûts de prod.'!$H$64/100))*Résultats!AF42,0) -> 0 | AG53: =IFERROR((AG49/('Consommations et Coûts de prod.'!$H$64/100))*Résultats!AG42,0) -> 0 | AH53: =IFERROR((AH49/('Consommations et Coûts de prod.'!$H$64/100))*Résultats!AH42,0) -> 57.3560249 | AI53: =IFERROR((AI49/('Consommations et Coûts de prod.'!$H$64/100))*Résultats!AI42,0) -> 56.46262887 | AJ53: =IFERROR((AJ49/('Consommations et Coûts de prod.'!$H$64/100))*Résultats!AJ42,0) -> 55.39055364 | AK53: =IFERROR((AK49/('Consommations et Coûts de prod.'!$H$64/100))*Résultats!AK42,0) -> 55.21187444 | AL53: =IFERROR((AL49/('Consommations et Coûts de prod.'!$H$64/100))*Résultats!AL42,0) -> 53.06772397 | AM53: =IFERROR((AM49/('Consommations et Coûts de prod.'!$H$64/100))*Résultats!AM42,0) -> 48.95810225 | AN53: =IFERROR((AN49/('Consommations et Coûts de prod.'!$H$64/100))*Résultats!AN42,0) -> 52.71036556 | AO53: =IFERROR((AO49/('Consommations et Coûts de prod.'!$H$64/100))*Résultats!AO42,0) -> 59.67885457 | AP53: =IFERROR((AP49/('Consommations et Coûts de prod.'!$H$64/100))*Résultats!AP42,0) -> 61.64432583 | AQ53: =IFERROR((AQ49/('Consommations et Coûts de prod.'!$H$64/100))*Résultats!AQ42,0) -> 58.42810013 | AR53: =IFERROR((AR49/('Consommations et Coûts de prod.'!$H$64/100))*Résultats!AR42,0) -> 63.43111788 | AS53: =IFERROR((AS49/('Consommations et Coûts de prod.'!$H$64/100))*Résultats!AS42,0) -> 58.24942093 | AT53: =IFERROR((AT49/('Consommations et Coûts de prod.'!$H$64/100))*Résultats!AT42,0) -> 51.63829033 | AU53: =IFERROR((AU49/('Consommations et Coûts de prod.'!$H$64/100))*Résultats!AU42,0) -> 41.45357563 | AV53: =IFERROR((AV49/('Consommations et Coûts de prod.'!$H$64/100))*Résultats!AV42,0) -> 40.73885881 | AW53: =IFERROR((AW49/('Consommations et Coûts de prod.'!$H$64/100))*Résultats!AW42,0) -> 36.45055788 | AX53: =IFERROR((AX49/('Consommations et Coûts de prod.'!$H$64/100))*Résultats!AX42,0) -> 23.7643343 | AY53: =IFERROR((AY49/('Consommations et Coûts de prod.'!$H$64/100))*Résultats!AY42,0) -> 16.08112848 | AZ53: =IFERROR((AZ49/('Consommations et Coûts de prod.'!$H$64/100))*Résultats!AZ42,0) -> 8.397922649 | BA53: =IFERROR((BA49/('Consommations et Coûts de prod.'!$H$64/100))*Résultats!BA42,0) -> 3.216225695 | BB53: =IFERROR((BB49/('Consommations et Coûts de prod.'!$H$64/100))*Résultats!BB42,0) -> 2.144150464 | BC53: =IFERROR((BC49/('Consommations et Coûts de prod.'!$H$64/100))*Résultats!BC42,0) -> 0.8933960265 | BD53: =IFERROR((BD49/('Consommations et Coûts de prod.'!$H$64/100))*Résultats!BD42,0) -> 0.3573584106 | BE53: =IFERROR((BE49/('Consommations et Coûts de prod.'!$H$64/100))*Résultats!BE42,0) -> 0 | BF53: 905.7248916 | BG53: kWh Produits | BN53: Coût Ecs | BO53: =BJ52 -> 214.3996743
A54: PROD ECS PAC MIV 4 à 50 | B54: =IFERROR((B50/('Consommations et Coûts de prod.'!$H$64/100))*Résultats!B43,0) -> 0 | C54: =IFERROR((C50/('Consommations et Coûts de prod.'!$H$64/100))*Résultats!C43,0) -> 0 | D54: =IFERROR((D50/('Consommations et Coûts de prod.'!$H$64/100))*Résultats!D43,0) -> 0 | E54: =IFERROR((E50/('Consommations et Coûts de prod.'!$H$64/100))*Résultats!E43,0) -> 0 | F54: =IFERROR((F50/('Consommations et Coûts de prod.'!$H$64/100))*Résultats!F43,0) -> 0 | G54: =IFERROR((G50/('Consommations et Coûts de prod.'!$H$64/100))*Résultats!G43,0) -> 0 | H54: =IFERROR((H50/('Consommations et Coûts de prod.'!$H$64/100))*Résultats!H43,0) -> 0 | I54: =IFERROR((I50/('Consommations et Coûts de prod.'!$H$64/100))*Résultats!I43,0) -> 0 | J54: =IFERROR((J50/('Consommations et Coûts de prod.'!$H$64/100))*Résultats!J43,0) -> 0 | K54: =IFERROR((K50/('Consommations et Coûts de prod.'!$H$64/100))*Résultats!K43,0) -> 0 | L54: =IFERROR((L50/('Consommations et Coûts de prod.'!$H$64/100))*Résultats!L43,0) -> 0 | M54: =IFERROR((M50/('Consommations et Coûts de prod.'!$H$64/100))*Résultats!M43,0) -> 0 | N54: =IFERROR((N50/('Consommations et Coûts de prod.'!$H$64/100))*Résultats!N43,0) -> 0 | O54: =IFERROR((O50/('Consommations et Coûts de prod.'!$H$64/100))*Résultats!O43,0) -> 0 | P54: =IFERROR((P50/('Consommations et Coûts de prod.'!$H$64/100))*Résultats!P43,0) -> 0 | Q54: =IFERROR((Q50/('Consommations et Coûts de prod.'!$H$64/100))*Résultats!Q43,0) -> 0 | R54: =IFERROR((R50/('Consommations et Coûts de prod.'!$H$64/100))*Résultats!R43,0) -> 0 | S54: =IFERROR((S50/('Consommations et Coûts de prod.'!$H$64/100))*Résultats!S43,0) -> 0 | T54: =IFERROR((T50/('Consommations et Coûts de prod.'!$H$64/100))*Résultats!T43,0) -> 0 | U54: =IFERROR((U50/('Consommations et Coûts de prod.'!$H$64/100))*Résultats!U43,0) -> 0 | V54: =IFERROR((V50/('Consommations et Coûts de prod.'!$H$64/100))*Résultats!V43,0) -> 0 | W54: =IFERROR((W50/('Consommations et Coûts de prod.'!$H$64/100))*Résultats!W43,0) -> 0 | X54: =IFERROR((X50/('Consommations et Coûts de prod.'!$H$64/100))*Résultats!X43,0) -> 0 | Y54: =IFERROR((Y50/('Consommations et Coûts de prod.'!$H$64/100))*Résultats!Y43,0) -> 0 | Z54: =IFERROR((Z50/('Consommations et Coûts de prod.'!$H$64/100))*Résultats!Z43,0) -> 0 | AA54: =IFERROR((AA50/('Consommations et Coûts de prod.'!$H$64/100))*Résultats!AA43,0) -> 0 | AB54: =IFERROR((AB50/('Consommations et Coûts de prod.'!$H$64/100))*Résultats!AB43,0) -> 0 | AC54: =IFERROR((AC50/('Consommations et Coûts de prod.'!$H$64/100))*Résultats!AC43,0) -> 0 | AD54: =IFERROR((AD50/('Consommations et Coûts de prod.'!$H$64/100))*Résultats!AD43,0) -> 0 | AE54: =IFERROR((AE50/('Consommations et Coûts de prod.'!$H$64/100))*Résultats!AE43,0) -> 0 | AF54: =IFERROR((AF50/('Consommations et Coûts de prod.'!$H$64/100))*Résultats!AF43,0) -> 0 | AG54: =IFERROR((AG50/('Consommations et Coûts de prod.'!$H$64/100))*Résultats!AG43,0) -> 0 | AH54: =IFERROR((AH50/('Consommations et Coûts de prod.'!$H$64/100))*Résultats!AH43,0) -> 57.3560249 | AI54: =IFERROR((AI50/('Consommations et Coûts de prod.'!$H$64/100))*Résultats!AI43,0) -> 56.46262887 | AJ54: =IFERROR((AJ50/('Consommations et Coûts de prod.'!$H$64/100))*Résultats!AJ43,0) -> 55.39055364 | AK54: =IFERROR((AK50/('Consommations et Coûts de prod.'!$H$64/100))*Résultats!AK43,0) -> 55.21187444 | AL54: =IFERROR((AL50/('Consommations et Coûts de prod.'!$H$64/100))*Résultats!AL43,0) -> 53.06772397 | AM54: =IFERROR((AM50/('Consommations et Coûts de prod.'!$H$64/100))*Résultats!AM43,0) -> 48.95810225 | AN54: =IFERROR((AN50/('Consommations et Coûts de prod.'!$H$64/100))*Résultats!AN43,0) -> 52.71036556 | AO54: =IFERROR((AO50/('Consommations et Coûts de prod.'!$H$64/100))*Résultats!AO43,0) -> 59.67885457 | AP54: =IFERROR((AP50/('Consommations et Coûts de prod.'!$H$64/100))*Résultats!AP43,0) -> 61.64432583 | AQ54: =IFERROR((AQ50/('Consommations et Coûts de prod.'!$H$64/100))*Résultats!AQ43,0) -> 58.42810013 | AR54: =IFERROR((AR50/('Consommations et Coûts de prod.'!$H$64/100))*Résultats!AR43,0) -> 63.43111788 | AS54: =IFERROR((AS50/('Consommations et Coûts de prod.'!$H$64/100))*Résultats!AS43,0) -> 58.24942093 | AT54: =IFERROR((AT50/('Consommations et Coûts de prod.'!$H$64/100))*Résultats!AT43,0) -> 51.63829033 | AU54: =IFERROR((AU50/('Consommations et Coûts de prod.'!$H$64/100))*Résultats!AU43,0) -> 41.45357563 | AV54: =IFERROR((AV50/('Consommations et Coûts de prod.'!$H$64/100))*Résultats!AV43,0) -> 40.73885881 | AW54: =IFERROR((AW50/('Consommations et Coûts de prod.'!$H$64/100))*Résultats!AW43,0) -> 36.45055788 | AX54: =IFERROR((AX50/('Consommations et Coûts de prod.'!$H$64/100))*Résultats!AX43,0) -> 23.7643343 | AY54: =IFERROR((AY50/('Consommations et Coûts de prod.'!$H$64/100))*Résultats!AY43,0) -> 16.08112848 | AZ54: =IFERROR((AZ50/('Consommations et Coûts de prod.'!$H$64/100))*Résultats!AZ43,0) -> 8.397922649 | BA54: =IFERROR((BA50/('Consommations et Coûts de prod.'!$H$64/100))*Résultats!BA43,0) -> 3.216225695 | BB54: =IFERROR((BB50/('Consommations et Coûts de prod.'!$H$64/100))*Résultats!BB43,0) -> 2.144150464 | BC54: =IFERROR((BC50/('Consommations et Coûts de prod.'!$H$64/100))*Résultats!BC43,0) -> 0.8933960265 | BD54: =IFERROR((BD50/('Consommations et Coûts de prod.'!$H$64/100))*Résultats!BD43,0) -> 0.3573584106 | BE54: =IFERROR((BE50/('Consommations et Coûts de prod.'!$H$64/100))*Résultats!BE43,0) -> 0 | BF54: 905.7248916 | BG54: kWh Produits | BN54: Coût abonnements : | BO54: ='Coûts énergies et Abonnements'!E81+'Coûts énergies et Abonnements'!E74 -> 46.92
A55: PROD ECS PAC MIV 4 à 45 | B55: =IFERROR((B51/('Consommations et Coûts de prod.'!$H$64/100))*Résultats!B44,0) -> 0 | C55: =IFERROR((C51/('Consommations et Coûts de prod.'!$H$64/100))*Résultats!C44,0) -> 0 | D55: =IFERROR((D51/('Consommations et Coûts de prod.'!$H$64/100))*Résultats!D44,0) -> 0 | E55: =IFERROR((E51/('Consommations et Coûts de prod.'!$H$64/100))*Résultats!E44,0) -> 0 | F55: =IFERROR((F51/('Consommations et Coûts de prod.'!$H$64/100))*Résultats!F44,0) -> 0 | G55: =IFERROR((G51/('Consommations et Coûts de prod.'!$H$64/100))*Résultats!G44,0) -> 0 | H55: =IFERROR((H51/('Consommations et Coûts de prod.'!$H$64/100))*Résultats!H44,0) -> 0 | I55: =IFERROR((I51/('Consommations et Coûts de prod.'!$H$64/100))*Résultats!I44,0) -> 0 | J55: =IFERROR((J51/('Consommations et Coûts de prod.'!$H$64/100))*Résultats!J44,0) -> 0 | K55: =IFERROR((K51/('Consommations et Coûts de prod.'!$H$64/100))*Résultats!K44,0) -> 0 | L55: =IFERROR((L51/('Consommations et Coûts de prod.'!$H$64/100))*Résultats!L44,0) -> 0 | M55: =IFERROR((M51/('Consommations et Coûts de prod.'!$H$64/100))*Résultats!M44,0) -> 0 | N55: =IFERROR((N51/('Consommations et Coûts de prod.'!$H$64/100))*Résultats!N44,0) -> 0 | O55: =IFERROR((O51/('Consommations et Coûts de prod.'!$H$64/100))*Résultats!O44,0) -> 0 | P55: =IFERROR((P51/('Consommations et Coûts de prod.'!$H$64/100))*Résultats!P44,0) -> 0 | Q55: =IFERROR((Q51/('Consommations et Coûts de prod.'!$H$64/100))*Résultats!Q44,0) -> 0 | R55: =IFERROR((R51/('Consommations et Coûts de prod.'!$H$64/100))*Résultats!R44,0) -> 0 | S55: =IFERROR((S51/('Consommations et Coûts de prod.'!$H$64/100))*Résultats!S44,0) -> 0 | T55: =IFERROR((T51/('Consommations et Coûts de prod.'!$H$64/100))*Résultats!T44,0) -> 0 | U55: =IFERROR((U51/('Consommations et Coûts de prod.'!$H$64/100))*Résultats!U44,0) -> 0 | V55: =IFERROR((V51/('Consommations et Coûts de prod.'!$H$64/100))*Résultats!V44,0) -> 0 | W55: =IFERROR((W51/('Consommations et Coûts de prod.'!$H$64/100))*Résultats!W44,0) -> 0 | X55: =IFERROR((X51/('Consommations et Coûts de prod.'!$H$64/100))*Résultats!X44,0) -> 0 | Y55: =IFERROR((Y51/('Consommations et Coûts de prod.'!$H$64/100))*Résultats!Y44,0) -> 0 | Z55: =IFERROR((Z51/('Consommations et Coûts de prod.'!$H$64/100))*Résultats!Z44,0) -> 0 | AA55: =IFERROR((AA51/('Consommations et Coûts de prod.'!$H$64/100))*Résultats!AA44,0) -> 0 | AB55: =IFERROR((AB51/('Consommations et Coûts de prod.'!$H$64/100))*Résultats!AB44,0) -> 0 | AC55: =IFERROR((AC51/('Consommations et Coûts de prod.'!$H$64/100))*Résultats!AC44,0) -> 0 | AD55: =IFERROR((AD51/('Consommations et Coûts de prod.'!$H$64/100))*Résultats!AD44,0) -> 0 | AE55: =IFERROR((AE51/('Consommations et Coûts de prod.'!$H$64/100))*Résultats!AE44,0) -> 0 | AF55: =IFERROR((AF51/('Consommations et Coûts de prod.'!$H$64/100))*Résultats!AF44,0) -> 0 | AG55: =IFERROR((AG51/('Consommations et Coûts de prod.'!$H$64/100))*Résultats!AG44,0) -> 0 | AH55: =IFERROR((AH51/('Consommations et Coûts de prod.'!$H$64/100))*Résultats!AH44,0) -> 57.3560249 | AI55: =IFERROR((AI51/('Consommations et Coûts de prod.'!$H$64/100))*Résultats!AI44,0) -> 56.46262887 | AJ55: =IFERROR((AJ51/('Consommations et Coûts de prod.'!$H$64/100))*Résultats!AJ44,0) -> 55.39055364 | AK55: =IFERROR((AK51/('Consommations et Coûts de prod.'!$H$64/100))*Résultats!AK44,0) -> 55.21187444 | AL55: =IFERROR((AL51/('Consommations et Coûts de prod.'!$H$64/100))*Résultats!AL44,0) -> 53.06772397 | AM55: =IFERROR((AM51/('Consommations et Coûts de prod.'!$H$64/100))*Résultats!AM44,0) -> 48.95810225 | AN55: =IFERROR((AN51/('Consommations et Coûts de prod.'!$H$64/100))*Résultats!AN44,0) -> 52.71036556 | AO55: =IFERROR((AO51/('Consommations et Coûts de prod.'!$H$64/100))*Résultats!AO44,0) -> 59.67885457 | AP55: =IFERROR((AP51/('Consommations et Coûts de prod.'!$H$64/100))*Résultats!AP44,0) -> 61.64432583 | AQ55: =IFERROR((AQ51/('Consommations et Coûts de prod.'!$H$64/100))*Résultats!AQ44,0) -> 58.42810013 | AR55: =IFERROR((AR51/('Consommations et Coûts de prod.'!$H$64/100))*Résultats!AR44,0) -> 63.43111788 | AS55: =IFERROR((AS51/('Consommations et Coûts de prod.'!$H$64/100))*Résultats!AS44,0) -> 58.24942093 | AT55: =IFERROR((AT51/('Consommations et Coûts de prod.'!$H$64/100))*Résultats!AT44,0) -> 51.63829033 | AU55: =IFERROR((AU51/('Consommations et Coûts de prod.'!$H$64/100))*Résultats!AU44,0) -> 41.45357563 | AV55: =IFERROR((AV51/('Consommations et Coûts de prod.'!$H$64/100))*Résultats!AV44,0) -> 40.73885881 | AW55: =IFERROR((AW51/('Consommations et Coûts de prod.'!$H$64/100))*Résultats!AW44,0) -> 36.45055788 | AX55: =IFERROR((AX51/('Consommations et Coûts de prod.'!$H$64/100))*Résultats!AX44,0) -> 23.7643343 | AY55: =IFERROR((AY51/('Consommations et Coûts de prod.'!$H$64/100))*Résultats!AY44,0) -> 16.08112848 | AZ55: =IFERROR((AZ51/('Consommations et Coûts de prod.'!$H$64/100))*Résultats!AZ44,0) -> 8.397922649 | BA55: =IFERROR((BA51/('Consommations et Coûts de prod.'!$H$64/100))*Résultats!BA44,0) -> 3.216225695 | BB55: =IFERROR((BB51/('Consommations et Coûts de prod.'!$H$64/100))*Résultats!BB44,0) -> 2.144150464 | BC55: =IFERROR((BC51/('Consommations et Coûts de prod.'!$H$64/100))*Résultats!BC44,0) -> 0.8933960265 | BD55: =IFERROR((BD51/('Consommations et Coûts de prod.'!$H$64/100))*Résultats!BD44,0) -> 0.3573584106 | BE55: =IFERROR((BE51/('Consommations et Coûts de prod.'!$H$64/100))*Résultats!BE44,0) -> 0 | BF55: 905.7248916 | BG55: kWh Produits
A56: PROD PAC totale Optimisée | B56: =B53+B54+B55 -> 0 | C56: =C53+C54+C55 -> 0 | D56: 0 | E56: 0 | F56: 0 | G56: 0 | H56: 0 | I56: 0 | J56: 0 | K56: 0 | L56: 0 | M56: 0 | N56: 0 | O56: 0 | P56: 0 | Q56: 0 | R56: 0 | S56: 0 | T56: 0 | U56: 0 | V56: 0 | W56: 0 | X56: 0 | Y56: 0 | Z56: 0 | AA56: 0 | AB56: 0 | AC56: 0 | AD56: 0 | AE56: 0 | AF56: 0 | AG56: 0 | AH56: 172.0680747 | AI56: 169.3878866 | AJ56: 166.1716609 | AK56: 165.6356233 | AL56: 159.2031719 | AM56: 146.8743068 | AN56: 158.1310967 | AO56: 179.0365637 | AP56: 184.9329775 | AQ56: 175.2843004 | AR56: 190.2933536 | AS56: 174.7482628 | AT56: 154.914871 | AU56: 124.3607269 | AV56: 122.2165764 | AW56: 109.3516736 | AX56: 71.29300291 | AY56: 48.24338543 | AZ56: 25.19376795 | BA56: 9.648677086 | BB56: 6.432451391 | BC56: 2.680188079 | BD56: 1.072075232 | BE56: 0 | BF56: 2717.174675 | BG56: kWh Prod PAC Total | BN56: Coût Total : | BO56: =BO48+BO42+'Coûts énergies et Abonnements'!E81+'Coûts énergies et Abonnements'!E74 -> 779.909472
A57: CONSO PAC optimisée à 55 | B57: =IFERROR(B53/B42,0) -> 0 | C57: =IFERROR(C53/C42,0) -> 0 | D57: 0 | E57: 0 | F57: 0 | G57: 0 | H57: 0 | I57: 0 | J57: 0 | K57: 0 | L57: 0 | M57: 0 | N57: 0 | O57: 0 | P57: 0 | Q57: 0 | R57: 0 | S57: 0 | T57: 0 | U57: 0 | V57: 0 | W57: 0 | X57: 0 | Y57: 0 | Z57: 0 | AA57: 0 | AB57: 0 | AC57: 0 | AD57: 0 | AE57: 0 | AF57: 0 | AG57: 0 | AH57: 19.15059262 | AI57: 18.31503254 | AJ57: 17.46942444 | AK57: 16.94358269 | AL57: 15.85801784 | AM57: 14.25568701 | AN57: 14.96542523 | AO57: 16.53153866 | AP57: 16.67028321 | AQ57: 15.43383777 | AR57: 16.37535774 | AS57: 14.7041452 | AT57: 12.75244425 | AU57: 10.01985599 | AV57: 9.642333445 | AW57: 8.451603351 | AX57: 5.400108428 | AY57: 3.582682983 | AZ57: 1.835038506 | BA57: 0.6895430281 | BB57: 0.4511965503 | BC57: 0.1845859559 | BD57: 0.07251801345 | BE57: 0 | BF57: 249.7548354 | BG57: kWh consommés
A58: CONSO PAC optimisée à 50 | B58: =IFERROR(B54/B43,0) -> 0 | C58: 0 | D58: 0 | E58: 0 | F58: 0 | G58: 0 | H58: 0 | I58: 0 | J58: 0 | K58: 0 | L58: 0 | M58: 0 | N58: 0 | O58: 0 | P58: 0 | Q58: 0 | R58: 0 | S58: 0 | T58: 0 | U58: 0 | V58: 0 | W58: 0 | X58: 0 | Y58: 0 | Z58: 0 | AA58: 0 | AB58: 0 | AC58: 0 | AD58: 0 | AE58: 0 | AF58: 0 | AG58: 0 | AH58: 15.50162835 | AI58: 14.79739431 | AJ58: 14.08916699 | AK58: 13.64218571 | AL58: 12.74790898 | AM58: 11.44262824 | AN58: 11.99520673 | AO58: 13.23256199 | AP58: 13.32644474 | AQ58: 12.32288945 | AR58: 13.0593478 | AS58: 11.7134716 | AT58: 10.14789535 | AU58: 7.965276678 | AV58: 7.657680227 | AW58: 6.705753092 | AX58: 4.280760168 | AY58: 2.837607747 | AZ58: 1.452209944 | BA58: 0.5452550222 | BB58: 0.3565095783 | BC58: 0.145741603 | BD58: 0.05721657992 | BE58: 0 | BF58: 200.0227409 | BG58: kWh consommés
A59: CONSO PAC optimisée à 45 | B59: 0 | C59: 0 | D59: 0 | E59: 0 | F59: 0 | G59: 0 | H59: 0 | I59: 0 | J59: 0 | K59: 0 | L59: 0 | M59: 0 | N59: 0 | O59: 0 | P59: 0 | Q59: 0 | R59: 0 | S59: 0 | T59: 0 | U59: 0 | V59: 0 | W59: 0 | X59: 0 | Y59: 0 | Z59: 0 | AA59: 0 | AB59: 0 | AC59: 0 | AD59: 0 | AE59: 0 | AF59: 0 | AG59: 0 | AH59: 13.75444242 | AI59: 13.11776973 | AJ59: 12.47936516 | AK59: 12.07382446 | AL59: 11.27387156 | AM59: 10.11232563 | AN59: 10.59352739 | AO59: 11.67883651 | AP59: 11.75457044 | AQ59: 10.86312619 | AR59: 11.5060333 | AS59: 10.31484813 | AT59: 8.931752713 | AU59: 7.007366081 | AV59: 6.733695671 | AW59: 5.894061103 | AX59: 3.761029621 | AY59: 2.492094296 | AZ59: 1.274896086 | BA59: 0.4785032915 | BB59: 0.3127537663 | BC59: 0.1278105903 | BD59: 0.05016059503 | BE59: 0 | BF59: 176.5866647 | BG59: kWh consommés
A60: CONSO TOTALE PAC Optimisée | B60: =B57+B58+B59 -> 0 | C60: =C57+C58+C59 -> 0 | D60: 0 | E60: 0 | F60: 0 | G60: 0 | H60: 0 | I60: 0 | J60: 0 | K60: 0 | L60: 0 | M60: 0 | N60: 0 | O60: 0 | P60: 0 | Q60: 0 | R60: 0 | S60: 0 | T60: 0 | U60: 0 | V60: 0 | W60: 0 | X60: 0 | Y60: 0 | Z60: 0 | AA60: 0 | AB60: 0 | AC60: 0 | AD60: 0 | AE60: 0 | AF60: 0 | AG60: 0 | AH60: 48.40666339 | AI60: 46.23019658 | AJ60: 44.03795659 | AK60: 42.65959285 | AL60: 39.87979838 | AM60: 35.81064088 | AN60: 37.55415934 | AO60: 41.44293716 | AP60: 41.75129839 | AQ60: 38.61985341 | AR60: 40.94073884 | AS60: 36.73246493 | AT60: 31.83209231 | AU60: 24.99249875 | AV60: 24.03370934 | AW60: 21.05141755 | AX60: 13.44189822 | AY60: 8.912385026 | AZ60: 4.562144537 | BA60: 1.713301342 | BB60: 1.120459895 | BC60: 0.4581381492 | BD60: 0.1798951884 | BE60: 0 | BF60: 626.3642411 | BG60: kWh conso Total
A61: Cout 55 Appoint | B61: =B48*$H$4/3*IF(B45=0,'Consommations et Coûts de prod.'!$I$64/'BdD Chaudières'!$D$26,0)/100 -> 0 | C61: =C48*$H$4/3*IF(C45=0,'Consommations et Coûts de prod.'!$I$64/'BdD Chaudières'!$D$26,0)/100 -> 0 | D61: =D48*$H$4/3*IF(D45=0,'Consommations et Coûts de prod.'!$I$64/'BdD Chaudières'!$D$26,0)/100 -> 0 | E61: =E48*$H$4/3*IF(E45=0,'Consommations et Coûts de prod.'!$I$64/'BdD Chaudières'!$D$26,0)/100 -> 0 | F61: =F48*$H$4/3*IF(F45=0,'Consommations et Coûts de prod.'!$I$64/'BdD Chaudières'!$D$26,0)/100 -> 0 | G61: =G48*$H$4/3*IF(G45=0,'Consommations et Coûts de prod.'!$I$64/'BdD Chaudières'!$D$26,0)/100 -> 0 | H61: =H48*$H$4/3*IF(H45=0,'Consommations et Coûts de prod.'!$I$64/'BdD Chaudières'!$D$26,0)/100 -> 0 | I61: =I48*$H$4/3*IF(I45=0,'Consommations et Coûts de prod.'!$I$64/'BdD Chaudières'!$D$26,0)/100 -> 0 | J61: =J48*$H$4/3*IF(J45=0,'Consommations et Coûts de prod.'!$I$64/'BdD Chaudières'!$D$26,0)/100 -> 0 | K61: =K48*$H$4/3*IF(K45=0,'Consommations et Coûts de prod.'!$I$64/'BdD Chaudières'!$D$26,0)/100 -> 0 | L61: =L48*$H$4/3*IF(L45=0,'Consommations et Coûts de prod.'!$I$64/'BdD Chaudières'!$D$26,0)/100 -> 0 | M61: =M48*$H$4/3*IF(M45=0,'Consommations et Coûts de prod.'!$I$64/'BdD Chaudières'!$D$26,0)/100 -> 0 | N61: =N48*$H$4/3*IF(N45=0,'Consommations et Coûts de prod.'!$I$64/'BdD Chaudières'!$D$26,0)/100 -> 0.03659561925 | O61: =O48*$H$4/3*IF(O45=0,'Consommations et Coûts de prod.'!$I$64/'BdD Chaudières'!$D$26,0)/100 -> 0.05489342888 | P61: =P48*$H$4/3*IF(P45=0,'Consommations et Coûts de prod.'!$I$64/'BdD Chaudières'!$D$26,0)/100 -> 0.03659561925 | Q61: =Q48*$H$4/3*IF(Q45=0,'Consommations et Coûts de prod.'!$I$64/'BdD Chaudières'!$D$26,0)/100 -> 0.05489342888 | R61: =R48*$H$4/3*IF(R45=0,'Consommations et Coûts de prod.'!$I$64/'BdD Chaudières'!$D$26,0)/100 -> 0.1280846674 | S61: =S48*$H$4/3*IF(S45=0,'Consommations et Coûts de prod.'!$I$64/'BdD Chaudières'!$D$26,0)/100 -> 0.1829780963 | T61: =T48*$H$4/3*IF(T45=0,'Consommations et Coûts de prod.'!$I$64/'BdD Chaudières'!$D$26,0)/100 -> 0.292764954 | U61: =U48*$H$4/3*IF(U45=0,'Consommations et Coûts de prod.'!$I$64/'BdD Chaudières'!$D$26,0)/100 -> 0.6038277177 | V61: =V48*$H$4/3*IF(V45=0,'Consommations et Coûts de prod.'!$I$64/'BdD Chaudières'!$D$26,0)/100 -> 0.8782948621 | W61: =W48*$H$4/3*IF(W45=0,'Consommations et Coûts de prod.'!$I$64/'BdD Chaudières'!$D$26,0)/100 -> 1.244251055 | X61: =X48*$H$4/3*IF(X45=0,'Consommations et Coûts de prod.'!$I$64/'BdD Chaudières'!$D$26,0)/100 -> 1.299144484 | Y61: =Y48*$H$4/3*IF(Y45=0,'Consommations et Coûts de prod.'!$I$64/'BdD Chaudières'!$D$26,0)/100 -> 2.323821823 | Z61: =Z48*$H$4/3*IF(Z45=0,'Consommations et Coûts de prod.'!$I$64/'BdD Chaudières'!$D$26,0)/100 -> 2.506799919 | AA61: =AA48*$H$4/3*IF(AA45=0,'Consommations et Coûts de prod.'!$I$64/'BdD Chaudières'!$D$26,0)/100 -> 3.092329827 | AB61: =AB48*$H$4/3*IF(AB45=0,'Consommations et Coûts de prod.'!$I$64/'BdD Chaudières'!$D$26,0)/100 -> 3.586370687 | AC61: =AC48*$H$4/3*IF(AC45=0,'Consommations et Coûts de prod.'!$I$64/'BdD Chaudières'!$D$26,0)/100 -> 3.787646593 | AD61: =AD48*$H$4/3*IF(AD45=0,'Consommations et Coûts de prod.'!$I$64/'BdD Chaudières'!$D$26,0)/100 -> 4.373176501 | AE61: =AE48*$H$4/3*IF(AE45=0,'Consommations et Coûts de prod.'!$I$64/'BdD Chaudières'!$D$26,0)/100 -> 5.214875744 | AF61: =AF48*$H$4/3*IF(AF45=0,'Consommations et Coûts de prod.'!$I$64/'BdD Chaudières'!$D$26,0)/100 -> 5.763810033 | AG61: =AG48*$H$4/3*IF(AG45=0,'Consommations et Coûts de prod.'!$I$64/'BdD Chaudières'!$D$26,0)/100 -> 5.452747269 | AH61: =AH48*$H$11/3*IF(AH45=0,'Consommations et Coûts de prod.'!$I$64/'BdD Chaudières'!$D$26,0)/100 -> 0 | AI61: =AI48*$H$11/3*IF(AI45=0,'Consommations et Coûts de prod.'!$I$64/'BdD Chaudières'!$D$26,0)/100 -> 0 | AJ61: =AJ48*$H$11/3*IF(AJ45=0,'Consommations et Coûts de prod.'!$I$64/'BdD Chaudières'!$D$26,0)/100 -> 0 | AK61: =AK48*$H$11/3*IF(AK45=0,'Consommations et Coûts de prod.'!$I$64/'BdD Chaudières'!$D$26,0)/100 -> 0 | AL61: =AL48*$H$11/3*IF(AL45=0,'Consommations et Coûts de prod.'!$I$64/'BdD Chaudières'!$D$26,0)/100 -> 0 | AM61: =AM48*$H$11/3*IF(AM45=0,'Consommations et Coûts de prod.'!$I$64/'BdD Chaudières'!$D$26,0)/100 -> 0 | AN61: =AN48*$H$11/3*IF(AN45=0,'Consommations et Coûts de prod.'!$I$64/'BdD Chaudières'!$D$26,0)/100 -> 0 | AO61: =AO48*$H$11/3*IF(AO45=0,'Consommations et Coûts de prod.'!$I$64/'BdD Chaudières'!$D$26,0)/100 -> 0 | AP61: =AP48*$H$11/3*IF(AP45=0,'Consommations et Coûts de prod.'!$I$64/'BdD Chaudières'!$D$26,0)/100 -> 0 | AQ61: =AQ48*$H$11/3*IF(AQ45=0,'Consommations et Coûts de prod.'!$I$64/'BdD Chaudières'!$D$26,0)/100 -> 0 | AR61: =AR48*$H$11/3*IF(AR45=0,'Consommations et Coûts de prod.'!$I$64/'BdD Chaudières'!$D$26,0)/100 -> 0 | AS61: =AS48*$H$11/3*IF(AS45=0,'Consommations et Coûts de prod.'!$I$64/'BdD Chaudières'!$D$26,0)/100 -> 0 | AT61: =AT48*$H$11/3*IF(AT45=0,'Consommations et Coûts de prod.'!$I$64/'BdD Chaudières'!$D$26,0)/100 -> 0 | AU61: =AU48*$H$11/3*IF(AU45=0,'Consommations et Coûts de prod.'!$I$64/'BdD Chaudières'!$D$26,0)/100 -> 0 | AV61: =AV48*$H$11/3*IF(AV45=0,'Consommations et Coûts de prod.'!$I$64/'BdD Chaudières'!$D$26,0)/100 -> 0 | AW61: =AW48*$H$11/3*IF(AW45=0,'Consommations et Coûts de prod.'!$I$64/'BdD Chaudières'!$D$26,0)/100 -> 0 | AX61: =AX48*$H$11/3*IF(AX45=0,'Consommations et Coûts de prod.'!$I$64/'BdD Chaudières'!$D$26,0)/100 -> 0 | AY61: =AY48*$H$11/3*IF(AY45=0,'Consommations et Coûts de prod.'!$I$64/'BdD Chaudières'!$D$26,0)/100 -> 0 | AZ61: =AZ48*$H$11/3*IF(AZ45=0,'Consommations et Coûts de prod.'!$I$64/'BdD Chaudières'!$D$26,0)/100 -> 0 | BA61: =BA48*$H$11/3*IF(BA45=0,'Consommations et Coûts de prod.'!$I$64/'BdD Chaudières'!$D$26,0)/100 -> 0 | BB61: =BB48*$H$11/3*IF(BB45=0,'Consommations et Coûts de prod.'!$I$64/'BdD Chaudières'!$D$26,0)/100 -> 0 | BC61: =BC48*$H$11/3*IF(BC45=0,'Consommations et Coûts de prod.'!$I$64/'BdD Chaudières'!$D$26,0)/100 -> 0 | BD61: =BD48*$H$11/3*IF(BD45=0,'Consommations et Coûts de prod.'!$I$64/'BdD Chaudières'!$D$26,0)/100 -> 0 | BE61: =BE48*$H$11/3*IF(BE45=0,'Consommations et Coûts de prod.'!$I$64/'BdD Chaudières'!$D$26,0)/100 -> 0 | BF61: 40.91390233 | BG61: € | BJ61: Besoins ECS Annuels
A62: Cout 50 Appoint | B62: =B48*$H$4/3*IF(B46=0,'Consommations et Coûts de prod.'!$I$64/'BdD Chaudières'!$D$26,0)/100 -> 0 | C62: =C48*$H$4/3*IF(C46=0,'Consommations et Coûts de prod.'!$I$64/'BdD Chaudières'!$D$26,0)/100 -> 0 | D62: =D48*$H$4/3*IF(D46=0,'Consommations et Coûts de prod.'!$I$64/'BdD Chaudières'!$D$26,0)/100 -> 0 | E62: =E48*$H$4/3*IF(E46=0,'Consommations et Coûts de prod.'!$I$64/'BdD Chaudières'!$D$26,0)/100 -> 0 | F62: =F48*$H$4/3*IF(F46=0,'Consommations et Coûts de prod.'!$I$64/'BdD Chaudières'!$D$26,0)/100 -> 0 | G62: =G48*$H$4/3*IF(G46=0,'Consommations et Coûts de prod.'!$I$64/'BdD Chaudières'!$D$26,0)/100 -> 0 | H62: =H48*$H$4/3*IF(H46=0,'Consommations et Coûts de prod.'!$I$64/'BdD Chaudières'!$D$26,0)/100 -> 0 | I62: =I48*$H$4/3*IF(I46=0,'Consommations et Coûts de prod.'!$I$64/'BdD Chaudières'!$D$26,0)/100 -> 0 | J62: =J48*$H$4/3*IF(J46=0,'Consommations et Coûts de prod.'!$I$64/'BdD Chaudières'!$D$26,0)/100 -> 0 | K62: =K48*$H$4/3*IF(K46=0,'Consommations et Coûts de prod.'!$I$64/'BdD Chaudières'!$D$26,0)/100 -> 0 | L62: =L48*$H$4/3*IF(L46=0,'Consommations et Coûts de prod.'!$I$64/'BdD Chaudières'!$D$26,0)/100 -> 0 | M62: =M48*$H$4/3*IF(M46=0,'Consommations et Coûts de prod.'!$I$64/'BdD Chaudières'!$D$26,0)/100 -> 0 | N62: =N48*$H$4/3*IF(N46=0,'Consommations et Coûts de prod.'!$I$64/'BdD Chaudières'!$D$26,0)/100 -> 0.03659561925 | O62: =O48*$H$4/3*IF(O46=0,'Consommations et Coûts de prod.'!$I$64/'BdD Chaudières'!$D$26,0)/100 -> 0.05489342888 | P62: =P48*$H$4/3*IF(P46=0,'Consommations et Coûts de prod.'!$I$64/'BdD Chaudières'!$D$26,0)/100 -> 0.03659561925 | Q62: =Q48*$H$4/3*IF(Q46=0,'Consommations et Coûts de prod.'!$I$64/'BdD Chaudières'!$D$26,0)/100 -> 0.05489342888 | R62: =R48*$H$4/3*IF(R46=0,'Consommations et Coûts de prod.'!$I$64/'BdD Chaudières'!$D$26,0)/100 -> 0.1280846674 | S62: =S48*$H$4/3*IF(S46=0,'Consommations et Coûts de prod.'!$I$64/'BdD Chaudières'!$D$26,0)/100 -> 0.1829780963 | T62: =T48*$H$4/3*IF(T46=0,'Consommations et Coûts de prod.'!$I$64/'BdD Chaudières'!$D$26,0)/100 -> 0.292764954 | U62: =U48*$H$4/3*IF(U46=0,'Consommations et Coûts de prod.'!$I$64/'BdD Chaudières'!$D$26,0)/100 -> 0.6038277177 | V62: =V48*$H$4/3*IF(V46=0,'Consommations et Coûts de prod.'!$I$64/'BdD Chaudières'!$D$26,0)/100 -> 0.8782948621 | W62: =W48*$H$4/3*IF(W46=0,'Consommations et Coûts de prod.'!$I$64/'BdD Chaudières'!$D$26,0)/100 -> 1.244251055 | X62: =X48*$H$4/3*IF(X46=0,'Consommations et Coûts de prod.'!$I$64/'BdD Chaudières'!$D$26,0)/100 -> 1.299144484 | Y62: =Y48*$H$4/3*IF(Y46=0,'Consommations et Coûts de prod.'!$I$64/'BdD Chaudières'!$D$26,0)/100 -> 2.323821823 | Z62: =Z48*$H$4/3*IF(Z46=0,'Consommations et Coûts de prod.'!$I$64/'BdD Chaudières'!$D$26,0)/100 -> 2.506799919 | AA62: =AA48*$H$4/3*IF(AA46=0,'Consommations et Coûts de prod.'!$I$64/'BdD Chaudières'!$D$26,0)/100 -> 3.092329827 | AB62: =AB48*$H$4/3*IF(AB46=0,'Consommations et Coûts de prod.'!$I$64/'BdD Chaudières'!$D$26,0)/100 -> 3.586370687 | AC62: =AC48*$H$4/3*IF(AC46=0,'Consommations et Coûts de prod.'!$I$64/'BdD Chaudières'!$D$26,0)/100 -> 3.787646593 | AD62: =AD48*$H$4/3*IF(AD46=0,'Consommations et Coûts de prod.'!$I$64/'BdD Chaudières'!$D$26,0)/100 -> 4.373176501 | AE62: =AE48*$H$4/3*IF(AE46=0,'Consommations et Coûts de prod.'!$I$64/'BdD Chaudières'!$D$26,0)/100 -> 5.214875744 | AF62: =AF48*$H$4/3*IF(AF46=0,'Consommations et Coûts de prod.'!$I$64/'BdD Chaudières'!$D$26,0)/100 -> 5.763810033 | AG62: =AG48*$H$4/3*IF(AG46=0,'Consommations et Coûts de prod.'!$I$64/'BdD Chaudières'!$D$26,0)/100 -> 5.452747269 | AH62: =AH48*$H$11/3*IF(AH46=0,'Consommations et Coûts de prod.'!$I$64/'BdD Chaudières'!$D$26,0)/100 -> 0 | AI62: =AI48*$H$11/3*IF(AI46=0,'Consommations et Coûts de prod.'!$I$64/'BdD Chaudières'!$D$26,0)/100 -> 0 | AJ62: =AJ48*$H$11/3*IF(AJ46=0,'Consommations et Coûts de prod.'!$I$64/'BdD Chaudières'!$D$26,0)/100 -> 0 | AK62: =AK48*$H$11/3*IF(AK46=0,'Consommations et Coûts de prod.'!$I$64/'BdD Chaudières'!$D$26,0)/100 -> 0 | AL62: =AL48*$H$11/3*IF(AL46=0,'Consommations et Coûts de prod.'!$I$64/'BdD Chaudières'!$D$26,0)/100 -> 0 | AM62: =AM48*$H$11/3*IF(AM46=0,'Consommations et Coûts de prod.'!$I$64/'BdD Chaudières'!$D$26,0)/100 -> 0 | AN62: =AN48*$H$11/3*IF(AN46=0,'Consommations et Coûts de prod.'!$I$64/'BdD Chaudières'!$D$26,0)/100 -> 0 | AO62: =AO48*$H$11/3*IF(AO46=0,'Consommations et Coûts de prod.'!$I$64/'BdD Chaudières'!$D$26,0)/100 -> 0 | AP62: =AP48*$H$11/3*IF(AP46=0,'Consommations et Coûts de prod.'!$I$64/'BdD Chaudières'!$D$26,0)/100 -> 0 | AQ62: =AQ48*$H$11/3*IF(AQ46=0,'Consommations et Coûts de prod.'!$I$64/'BdD Chaudières'!$D$26,0)/100 -> 0 | AR62: =AR48*$H$11/3*IF(AR46=0,'Consommations et Coûts de prod.'!$I$64/'BdD Chaudières'!$D$26,0)/100 -> 0 | AS62: =AS48*$H$11/3*IF(AS46=0,'Consommations et Coûts de prod.'!$I$64/'BdD Chaudières'!$D$26,0)/100 -> 0 | AT62: =AT48*$H$11/3*IF(AT46=0,'Consommations et Coûts de prod.'!$I$64/'BdD Chaudières'!$D$26,0)/100 -> 0 | AU62: =AU48*$H$11/3*IF(AU46=0,'Consommations et Coûts de prod.'!$I$64/'BdD Chaudières'!$D$26,0)/100 -> 0 | AV62: =AV48*$H$11/3*IF(AV46=0,'Consommations et Coûts de prod.'!$I$64/'BdD Chaudières'!$D$26,0)/100 -> 0 | AW62: =AW48*$H$11/3*IF(AW46=0,'Consommations et Coûts de prod.'!$I$64/'BdD Chaudières'!$D$26,0)/100 -> 0 | AX62: =AX48*$H$11/3*IF(AX46=0,'Consommations et Coûts de prod.'!$I$64/'BdD Chaudières'!$D$26,0)/100 -> 0 | AY62: =AY48*$H$11/3*IF(AY46=0,'Consommations et Coûts de prod.'!$I$64/'BdD Chaudières'!$D$26,0)/100 -> 0 | AZ62: =AZ48*$H$11/3*IF(AZ46=0,'Consommations et Coûts de prod.'!$I$64/'BdD Chaudières'!$D$26,0)/100 -> 0 | BA62: =BA48*$H$11/3*IF(BA46=0,'Consommations et Coûts de prod.'!$I$64/'BdD Chaudières'!$D$26,0)/100 -> 0 | BB62: =BB48*$H$11/3*IF(BB46=0,'Consommations et Coûts de prod.'!$I$64/'BdD Chaudières'!$D$26,0)/100 -> 0 | BC62: =BC48*$H$11/3*IF(BC46=0,'Consommations et Coûts de prod.'!$I$64/'BdD Chaudières'!$D$26,0)/100 -> 0 | BD62: =BD48*$H$11/3*IF(BD46=0,'Consommations et Coûts de prod.'!$I$64/'BdD Chaudières'!$D$26,0)/100 -> 0 | BE62: =BE48*$H$11/3*IF(BE46=0,'Consommations et Coûts de prod.'!$I$64/'BdD Chaudières'!$D$26,0)/100 -> 0 | BF62: 40.91390233 | BG62: € | BJ62: =Q7 -> 4401.1 | BK62: kWh/an | BL62: Différence
A63: Cout 45 Appoint | B63: =B48*$H$4/3*IF(B47=0,'Consommations et Coûts de prod.'!$I$64/'BdD Chaudières'!$D$26,0)/100 -> 0 | C63: =C48*$H$4/3*IF(C47=0,'Consommations et Coûts de prod.'!$I$64/'BdD Chaudières'!$D$26,0)/100 -> 0 | D63: =D48*$H$4/3*IF(D47=0,'Consommations et Coûts de prod.'!$I$64/'BdD Chaudières'!$D$26,0)/100 -> 0 | E63: =E48*$H$4/3*IF(E47=0,'Consommations et Coûts de prod.'!$I$64/'BdD Chaudières'!$D$26,0)/100 -> 0 | F63: =F48*$H$4/3*IF(F47=0,'Consommations et Coûts de prod.'!$I$64/'BdD Chaudières'!$D$26,0)/100 -> 0 | G63: =G48*$H$4/3*IF(G47=0,'Consommations et Coûts de prod.'!$I$64/'BdD Chaudières'!$D$26,0)/100 -> 0 | H63: =H48*$H$4/3*IF(H47=0,'Consommations et Coûts de prod.'!$I$64/'BdD Chaudières'!$D$26,0)/100 -> 0 | I63: =I48*$H$4/3*IF(I47=0,'Consommations et Coûts de prod.'!$I$64/'BdD Chaudières'!$D$26,0)/100 -> 0 | J63: =J48*$H$4/3*IF(J47=0,'Consommations et Coûts de prod.'!$I$64/'BdD Chaudières'!$D$26,0)/100 -> 0 | K63: =K48*$H$4/3*IF(K47=0,'Consommations et Coûts de prod.'!$I$64/'BdD Chaudières'!$D$26,0)/100 -> 0 | L63: =L48*$H$4/3*IF(L47=0,'Consommations et Coûts de prod.'!$I$64/'BdD Chaudières'!$D$26,0)/100 -> 0 | M63: =M48*$H$4/3*IF(M47=0,'Consommations et Coûts de prod.'!$I$64/'BdD Chaudières'!$D$26,0)/100 -> 0 | N63: =N48*$H$4/3*IF(N47=0,'Consommations et Coûts de prod.'!$I$64/'BdD Chaudières'!$D$26,0)/100 -> 0.03659561925 | O63: =O48*$H$4/3*IF(O47=0,'Consommations et Coûts de prod.'!$I$64/'BdD Chaudières'!$D$26,0)/100 -> 0.05489342888 | P63: =P48*$H$4/3*IF(P47=0,'Consommations et Coûts de prod.'!$I$64/'BdD Chaudières'!$D$26,0)/100 -> 0.03659561925 | Q63: =Q48*$H$4/3*IF(Q47=0,'Consommations et Coûts de prod.'!$I$64/'BdD Chaudières'!$D$26,0)/100 -> 0.05489342888 | R63: =R48*$H$4/3*IF(R47=0,'Consommations et Coûts de prod.'!$I$64/'BdD Chaudières'!$D$26,0)/100 -> 0.1280846674 | S63: =S48*$H$4/3*IF(S47=0,'Consommations et Coûts de prod.'!$I$64/'BdD Chaudières'!$D$26,0)/100 -> 0.1829780963 | T63: =T48*$H$4/3*IF(T47=0,'Consommations et Coûts de prod.'!$I$64/'BdD Chaudières'!$D$26,0)/100 -> 0.292764954 | U63: =U48*$H$4/3*IF(U47=0,'Consommations et Coûts de prod.'!$I$64/'BdD Chaudières'!$D$26,0)/100 -> 0.6038277177 | V63: =V48*$H$4/3*IF(V47=0,'Consommations et Coûts de prod.'!$I$64/'BdD Chaudières'!$D$26,0)/100 -> 0.8782948621 | W63: =W48*$H$4/3*IF(W47=0,'Consommations et Coûts de prod.'!$I$64/'BdD Chaudières'!$D$26,0)/100 -> 1.244251055 | X63: =X48*$H$4/3*IF(X47=0,'Consommations et Coûts de prod.'!$I$64/'BdD Chaudières'!$D$26,0)/100 -> 1.299144484 | Y63: =Y48*$H$4/3*IF(Y47=0,'Consommations et Coûts de prod.'!$I$64/'BdD Chaudières'!$D$26,0)/100 -> 2.323821823 | Z63: =Z48*$H$4/3*IF(Z47=0,'Consommations et Coûts de prod.'!$I$64/'BdD Chaudières'!$D$26,0)/100 -> 2.506799919 | AA63: =AA48*$H$4/3*IF(AA47=0,'Consommations et Coûts de prod.'!$I$64/'BdD Chaudières'!$D$26,0)/100 -> 3.092329827 | AB63: =AB48*$H$4/3*IF(AB47=0,'Consommations et Coûts de prod.'!$I$64/'BdD Chaudières'!$D$26,0)/100 -> 3.586370687 | AC63: =AC48*$H$4/3*IF(AC47=0,'Consommations et Coûts de prod.'!$I$64/'BdD Chaudières'!$D$26,0)/100 -> 3.787646593 | AD63: =AD48*$H$4/3*IF(AD47=0,'Consommations et Coûts de prod.'!$I$64/'BdD Chaudières'!$D$26,0)/100 -> 4.373176501 | AE63: =AE48*$H$4/3*IF(AE47=0,'Consommations et Coûts de prod.'!$I$64/'BdD Chaudières'!$D$26,0)/100 -> 5.214875744 | AF63: =AF48*$H$4/3*IF(AF47=0,'Consommations et Coûts de prod.'!$I$64/'BdD Chaudières'!$D$26,0)/100 -> 5.763810033 | AG63: =AG48*$H$4/3*IF(AG47=0,'Consommations et Coûts de prod.'!$I$64/'BdD Chaudières'!$D$26,0)/100 -> 5.452747269 | AH63: =AH48*$H$11/3*IF(AH47=0,'Consommations et Coûts de prod.'!$I$64/'BdD Chaudières'!$D$26,0)/100 -> 0 | AI63: =AI48*$H$11/3*IF(AI47=0,'Consommations et Coûts de prod.'!$I$64/'BdD Chaudières'!$D$26,0)/100 -> 0 | AJ63: =AJ48*$H$11/3*IF(AJ47=0,'Consommations et Coûts de prod.'!$I$64/'BdD Chaudières'!$D$26,0)/100 -> 0 | AK63: =AK48*$H$11/3*IF(AK47=0,'Consommations et Coûts de prod.'!$I$64/'BdD Chaudières'!$D$26,0)/100 -> 0 | AL63: =AL48*$H$11/3*IF(AL47=0,'Consommations et Coûts de prod.'!$I$64/'BdD Chaudières'!$D$26,0)/100 -> 0 | AM63: =AM48*$H$11/3*IF(AM47=0,'Consommations et Coûts de prod.'!$I$64/'BdD Chaudières'!$D$26,0)/100 -> 0 | AN63: =AN48*$H$11/3*IF(AN47=0,'Consommations et Coûts de prod.'!$I$64/'BdD Chaudières'!$D$26,0)/100 -> 0 | AO63: =AO48*$H$11/3*IF(AO47=0,'Consommations et Coûts de prod.'!$I$64/'BdD Chaudières'!$D$26,0)/100 -> 0 | AP63: =AP48*$H$11/3*IF(AP47=0,'Consommations et Coûts de prod.'!$I$64/'BdD Chaudières'!$D$26,0)/100 -> 0 | AQ63: =AQ48*$H$11/3*IF(AQ47=0,'Consommations et Coûts de prod.'!$I$64/'BdD Chaudières'!$D$26,0)/100 -> 0 | AR63: =AR48*$H$11/3*IF(AR47=0,'Consommations et Coûts de prod.'!$I$64/'BdD Chaudières'!$D$26,0)/100 -> 0 | AS63: =AS48*$H$11/3*IF(AS47=0,'Consommations et Coûts de prod.'!$I$64/'BdD Chaudières'!$D$26,0)/100 -> 0 | AT63: =AT48*$H$11/3*IF(AT47=0,'Consommations et Coûts de prod.'!$I$64/'BdD Chaudières'!$D$26,0)/100 -> 0 | AU63: =AU48*$H$11/3*IF(AU47=0,'Consommations et Coûts de prod.'!$I$64/'BdD Chaudières'!$D$26,0)/100 -> 0 | AV63: =AV48*$H$11/3*IF(AV47=0,'Consommations et Coûts de prod.'!$I$64/'BdD Chaudières'!$D$26,0)/100 -> 0 | AW63: =AW48*$H$11/3*IF(AW47=0,'Consommations et Coûts de prod.'!$I$64/'BdD Chaudières'!$D$26,0)/100 -> 0 | AX63: =AX48*$H$11/3*IF(AX47=0,'Consommations et Coûts de prod.'!$I$64/'BdD Chaudières'!$D$26,0)/100 -> 0 | AY63: =AY48*$H$11/3*IF(AY47=0,'Consommations et Coûts de prod.'!$I$64/'BdD Chaudières'!$D$26,0)/100 -> 0 | AZ63: =AZ48*$H$11/3*IF(AZ47=0,'Consommations et Coûts de prod.'!$I$64/'BdD Chaudières'!$D$26,0)/100 -> 0 | BA63: =BA48*$H$11/3*IF(BA47=0,'Consommations et Coûts de prod.'!$I$64/'BdD Chaudières'!$D$26,0)/100 -> 0 | BB63: =BB48*$H$11/3*IF(BB47=0,'Consommations et Coûts de prod.'!$I$64/'BdD Chaudières'!$D$26,0)/100 -> 0 | BC63: =BC48*$H$11/3*IF(BC47=0,'Consommations et Coûts de prod.'!$I$64/'BdD Chaudières'!$D$26,0)/100 -> 0 | BD63: =BD48*$H$11/3*IF(BD47=0,'Consommations et Coûts de prod.'!$I$64/'BdD Chaudières'!$D$26,0)/100 -> 0 | BE63: =BE48*$H$11/3*IF(BE47=0,'Consommations et Coûts de prod.'!$I$64/'BdD Chaudières'!$D$26,0)/100 -> 0 | BF63: 40.91390233 | BG63: € | BL63: =ABS(ROUND(1-BJ65/BJ62,2)*100) -> 0 | BM63: %
A64: Cout Appoint avec ECS Optimisé | B64: =B61+B62+B63 -> 0 | C64: =C61+C62+C63 -> 0 | D64: 0 | E64: 0 | F64: 0 | G64: 0 | H64: 0 | I64: 0 | J64: 0 | K64: 0 | L64: 0 | M64: 0 | N64: 0.1097868578 | O64: 0.1646802866 | P64: 0.1097868578 | Q64: 0.1646802866 | R64: 0.3842540022 | S64: 0.5489342888 | T64: 0.8782948621 | U64: 1.811483153 | V64: 2.634884586 | W64: 3.732753164 | X64: 3.897433451 | Y64: 6.971465468 | Z64: 7.520399757 | AA64: 9.276989481 | AB64: 10.75911206 | AC64: 11.36293978 | AD64: 13.1195295 | AE64: 15.64462723 | AF64: 17.2914301 | AG64: 16.35824181 | AH64: 0 | AI64: 0 | AJ64: 0 | AK64: 0 | AL64: 0 | AM64: 0 | AN64: 0 | AO64: 0 | AP64: 0 | AQ64: 0 | AR64: 0 | AS64: 0 | AT64: 0 | AU64: 0 | AV64: 0 | AW64: 0 | AX64: 0 | AY64: 0 | AZ64: 0 | BA64: 0 | BB64: 0 | BC64: 0 | BD64: 0 | BE64: 0 | BF64: 122.741707 | BG64: € ECS optimisé Appoint | BJ64: Production annuelle
A65: PROD ECS Appoint à 55 | B65: =IFERROR((B61/('Consommations et Coûts de prod.'!$I$64/100))*'BdD Chaudières'!$D$26,0) -> 0 | C65: =IFERROR((C61/('Consommations et Coûts de prod.'!$I$64/100))*'BdD Chaudières'!$D$26,0) -> 0 | D65: =IFERROR((D61/('Consommations et Coûts de prod.'!$I$64/100))*'BdD Chaudières'!$D$26,0) -> 0 | E65: =IFERROR((E61/('Consommations et Coûts de prod.'!$I$64/100))*'BdD Chaudières'!$D$26,0) -> 0 | F65: =IFERROR((F61/('Consommations et Coûts de prod.'!$I$64/100))*'BdD Chaudières'!$D$26,0) -> 0 | G65: =IFERROR((G61/('Consommations et Coûts de prod.'!$I$64/100))*'BdD Chaudières'!$D$26,0) -> 0 | H65: =IFERROR((H61/('Consommations et Coûts de prod.'!$I$64/100))*'BdD Chaudières'!$D$26,0) -> 0 | I65: =IFERROR((I61/('Consommations et Coûts de prod.'!$I$64/100))*'BdD Chaudières'!$D$26,0) -> 0 | J65: =IFERROR((J61/('Consommations et Coûts de prod.'!$I$64/100))*'BdD Chaudières'!$D$26,0) -> 0 | K65: =IFERROR((K61/('Consommations et Coûts de prod.'!$I$64/100))*'BdD Chaudières'!$D$26,0) -> 0 | L65: =IFERROR((L61/('Consommations et Coûts de prod.'!$I$64/100))*'BdD Chaudières'!$D$26,0) -> 0 | M65: =IFERROR((M61/('Consommations et Coûts de prod.'!$I$64/100))*'BdD Chaudières'!$D$26,0) -> 0 | N65: =IFERROR((N61/('Consommations et Coûts de prod.'!$I$64/100))*'BdD Chaudières'!$D$26,0) -> 0.5020647958 | O65: =IFERROR((O61/('Consommations et Coûts de prod.'!$I$64/100))*'BdD Chaudières'!$D$26,0) -> 0.7530971937 | P65: =IFERROR((P61/('Consommations et Coûts de prod.'!$I$64/100))*'BdD Chaudières'!$D$26,0) -> 0.5020647958 | Q65: =IFERROR((Q61/('Consommations et Coûts de prod.'!$I$64/100))*'BdD Chaudières'!$D$26,0) -> 0.7530971937 | R65: =IFERROR((R61/('Consommations et Coûts de prod.'!$I$64/100))*'BdD Chaudières'!$D$26,0) -> 1.757226785 | S65: =IFERROR((S61/('Consommations et Coûts de prod.'!$I$64/100))*'BdD Chaudières'!$D$26,0) -> 2.510323979 | T65: =IFERROR((T61/('Consommations et Coûts de prod.'!$I$64/100))*'BdD Chaudières'!$D$26,0) -> 4.016518366 | U65: =IFERROR((U61/('Consommations et Coûts de prod.'!$I$64/100))*'BdD Chaudières'!$D$26,0) -> 8.284069131 | V65: =IFERROR((V61/('Consommations et Coûts de prod.'!$I$64/100))*'BdD Chaudières'!$D$26,0) -> 12.0495551 | W65: =IFERROR((W61/('Consommations et Coûts de prod.'!$I$64/100))*'BdD Chaudières'!$D$26,0) -> 17.07020306 | X65: =IFERROR((X61/('Consommations et Coûts de prod.'!$I$64/100))*'BdD Chaudières'!$D$26,0) -> 17.82330025 | Y65: =IFERROR((Y61/('Consommations et Coûts de prod.'!$I$64/100))*'BdD Chaudières'!$D$26,0) -> 31.88111453 | Z65: =IFERROR((Z61/('Consommations et Coûts de prod.'!$I$64/100))*'BdD Chaudières'!$D$26,0) -> 34.39143851 | AA65: =IFERROR((AA61/('Consommations et Coûts de prod.'!$I$64/100))*'BdD Chaudières'!$D$26,0) -> 42.42447525 | AB65: =IFERROR((AB61/('Consommations et Coûts de prod.'!$I$64/100))*'BdD Chaudières'!$D$26,0) -> 49.20234999 | AC65: =IFERROR((AC61/('Consommations et Coûts de prod.'!$I$64/100))*'BdD Chaudières'!$D$26,0) -> 51.96370637 | AD65: =IFERROR((AD61/('Consommations et Coûts de prod.'!$I$64/100))*'BdD Chaudières'!$D$26,0) -> 59.9967431 | AE65: =IFERROR((AE61/('Consommations et Coûts de prod.'!$I$64/100))*'BdD Chaudières'!$D$26,0) -> 71.5442334 | AF65: =IFERROR((AF61/('Consommations et Coûts de prod.'!$I$64/100))*'BdD Chaudières'!$D$26,0) -> 79.07520534 | AG65: =IFERROR((AG61/('Consommations et Coûts de prod.'!$I$64/100))*'BdD Chaudières'!$D$26,0) -> 74.80765457 | AH65: =IFERROR((AH61/('Consommations et Coûts de prod.'!$I$64/100))*'BdD Chaudières'!$D$26,0) -> 0 | AI65: =IFERROR((AI61/('Consommations et Coûts de prod.'!$I$64/100))*'BdD Chaudières'!$D$26,0) -> 0 | AJ65: =IFERROR((AJ61/('Consommations et Coûts de prod.'!$I$64/100))*'BdD Chaudières'!$D$26,0) -> 0 | AK65: =IFERROR((AK61/('Consommations et Coûts de prod.'!$I$64/100))*'BdD Chaudières'!$D$26,0) -> 0 | AL65: =IFERROR((AL61/('Consommations et Coûts de prod.'!$I$64/100))*'BdD Chaudières'!$D$26,0) -> 0 | AM65: =IFERROR((AM61/('Consommations et Coûts de prod.'!$I$64/100))*'BdD Chaudières'!$D$26,0) -> 0 | AN65: =IFERROR((AN61/('Consommations et Coûts de prod.'!$I$64/100))*'BdD Chaudières'!$D$26,0) -> 0 | AO65: =IFERROR((AO61/('Consommations et Coûts de prod.'!$I$64/100))*'BdD Chaudières'!$D$26,0) -> 0 | AP65: =IFERROR((AP61/('Consommations et Coûts de prod.'!$I$64/100))*'BdD Chaudières'!$D$26,0) -> 0 | AQ65: =IFERROR((AQ61/('Consommations et Coûts de prod.'!$I$64/100))*'BdD Chaudières'!$D$26,0) -> 0 | AR65: =IFERROR((AR61/('Consommations et Coûts de prod.'!$I$64/100))*'BdD Chaudières'!$D$26,0) -> 0 | AS65: =IFERROR((AS61/('Consommations et Coûts de prod.'!$I$64/100))*'BdD Chaudières'!$D$26,0) -> 0 | AT65: =IFERROR((AT61/('Consommations et Coûts de prod.'!$I$64/100))*'BdD Chaudières'!$D$26,0) -> 0 | AU65: =IFERROR((AU61/('Consommations et Coûts de prod.'!$I$64/100))*'BdD Chaudières'!$D$26,0) -> 0 | AV65: =IFERROR((AV61/('Consommations et Coûts de prod.'!$I$64/100))*'BdD Chaudières'!$D$26,0) -> 0 | AW65: =IFERROR((AW61/('Consommations et Coûts de prod.'!$I$64/100))*'BdD Chaudières'!$D$26,0) -> 0 | AX65: =IFERROR((AX61/('Consommations et Coûts de prod.'!$I$64/100))*'BdD Chaudières'!$D$26,0) -> 0 | AY65: =IFERROR((AY61/('Consommations et Coûts de prod.'!$I$64/100))*'BdD Chaudières'!$D$26,0) -> 0 | AZ65: =IFERROR((AZ61/('Consommations et Coûts de prod.'!$I$64/100))*'BdD Chaudières'!$D$26,0) -> 0 | BA65: =IFERROR((BA61/('Consommations et Coûts de prod.'!$I$64/100))*'BdD Chaudières'!$D$26,0) -> 0 | BB65: =IFERROR((BB61/('Consommations et Coûts de prod.'!$I$64/100))*'BdD Chaudières'!$D$26,0) -> 0 | BC65: =IFERROR((BC61/('Consommations et Coûts de prod.'!$I$64/100))*'BdD Chaudières'!$D$26,0) -> 0 | BD65: =IFERROR((BD61/('Consommations et Coûts de prod.'!$I$64/100))*'BdD Chaudières'!$D$26,0) -> 0 | BE65: =IFERROR((BE61/('Consommations et Coûts de prod.'!$I$64/100))*'BdD Chaudières'!$D$26,0) -> 0 | BF65: 561.3084417 | BG65: kWh Produits | BJ65: =BF56+BF68 -> 4401.1 | BK65: kWh/an
A66: PROD ECS Appoint à 50 | B66: =IFERROR((B62/('Consommations et Coûts de prod.'!$I$64/100))*'BdD Chaudières'!$D$26,0) -> 0 | C66: =IFERROR((C62/('Consommations et Coûts de prod.'!$I$64/100))*'BdD Chaudières'!$D$26,0) -> 0 | D66: =IFERROR((D62/('Consommations et Coûts de prod.'!$I$64/100))*'BdD Chaudières'!$D$26,0) -> 0 | E66: =IFERROR((E62/('Consommations et Coûts de prod.'!$I$64/100))*'BdD Chaudières'!$D$26,0) -> 0 | F66: =IFERROR((F62/('Consommations et Coûts de prod.'!$I$64/100))*'BdD Chaudières'!$D$26,0) -> 0 | G66: =IFERROR((G62/('Consommations et Coûts de prod.'!$I$64/100))*'BdD Chaudières'!$D$26,0) -> 0 | H66: =IFERROR((H62/('Consommations et Coûts de prod.'!$I$64/100))*'BdD Chaudières'!$D$26,0) -> 0 | I66: =IFERROR((I62/('Consommations et Coûts de prod.'!$I$64/100))*'BdD Chaudières'!$D$26,0) -> 0 | J66: =IFERROR((J62/('Consommations et Coûts de prod.'!$I$64/100))*'BdD Chaudières'!$D$26,0) -> 0 | K66: =IFERROR((K62/('Consommations et Coûts de prod.'!$I$64/100))*'BdD Chaudières'!$D$26,0) -> 0 | L66: =IFERROR((L62/('Consommations et Coûts de prod.'!$I$64/100))*'BdD Chaudières'!$D$26,0) -> 0 | M66: =IFERROR((M62/('Consommations et Coûts de prod.'!$I$64/100))*'BdD Chaudières'!$D$26,0) -> 0 | N66: =IFERROR((N62/('Consommations et Coûts de prod.'!$I$64/100))*'BdD Chaudières'!$D$26,0) -> 0.5020647958 | O66: =IFERROR((O62/('Consommations et Coûts de prod.'!$I$64/100))*'BdD Chaudières'!$D$26,0) -> 0.7530971937 | P66: =IFERROR((P62/('Consommations et Coûts de prod.'!$I$64/100))*'BdD Chaudières'!$D$26,0) -> 0.5020647958 | Q66: =IFERROR((Q62/('Consommations et Coûts de prod.'!$I$64/100))*'BdD Chaudières'!$D$26,0) -> 0.7530971937 | R66: =IFERROR((R62/('Consommations et Coûts de prod.'!$I$64/100))*'BdD Chaudières'!$D$26,0) -> 1.757226785 | S66: =IFERROR((S62/('Consommations et Coûts de prod.'!$I$64/100))*'BdD Chaudières'!$D$26,0) -> 2.510323979 | T66: =IFERROR((T62/('Consommations et Coûts de prod.'!$I$64/100))*'BdD Chaudières'!$D$26,0) -> 4.016518366 | U66: =IFERROR((U62/('Consommations et Coûts de prod.'!$I$64/100))*'BdD Chaudières'!$D$26,0) -> 8.284069131 | V66: =IFERROR((V62/('Consommations et Coûts de prod.'!$I$64/100))*'BdD Chaudières'!$D$26,0) -> 12.0495551 | W66: =IFERROR((W62/('Consommations et Coûts de prod.'!$I$64/100))*'BdD Chaudières'!$D$26,0) -> 17.07020306 | X66: =IFERROR((X62/('Consommations et Coûts de prod.'!$I$64/100))*'BdD Chaudières'!$D$26,0) -> 17.82330025 | Y66: =IFERROR((Y62/('Consommations et Coûts de prod.'!$I$64/100))*'BdD Chaudières'!$D$26,0) -> 31.88111453 | Z66: =IFERROR((Z62/('Consommations et Coûts de prod.'!$I$64/100))*'BdD Chaudières'!$D$26,0) -> 34.39143851 | AA66: =IFERROR((AA62/('Consommations et Coûts de prod.'!$I$64/100))*'BdD Chaudières'!$D$26,0) -> 42.42447525 | AB66: =IFERROR((AB62/('Consommations et Coûts de prod.'!$I$64/100))*'BdD Chaudières'!$D$26,0) -> 49.20234999 | AC66: =IFERROR((AC62/('Consommations et Coûts de prod.'!$I$64/100))*'BdD Chaudières'!$D$26,0) -> 51.96370637 | AD66: =IFERROR((AD62/('Consommations et Coûts de prod.'!$I$64/100))*'BdD Chaudières'!$D$26,0) -> 59.9967431 | AE66: =IFERROR((AE62/('Consommations et Coûts de prod.'!$I$64/100))*'BdD Chaudières'!$D$26,0) -> 71.5442334 | AF66: =IFERROR((AF62/('Consommations et Coûts de prod.'!$I$64/100))*'BdD Chaudières'!$D$26,0) -> 79.07520534 | AG66: =IFERROR((AG62/('Consommations et Coûts de prod.'!$I$64/100))*'BdD Chaudières'!$D$26,0) -> 74.80765457 | AH66: =IFERROR((AH62/('Consommations et Coûts de prod.'!$I$64/100))*'BdD Chaudières'!$D$26,0) -> 0 | AI66: =IFERROR((AI62/('Consommations et Coûts de prod.'!$I$64/100))*'BdD Chaudières'!$D$26,0) -> 0 | AJ66: =IFERROR((AJ62/('Consommations et Coûts de prod.'!$I$64/100))*'BdD Chaudières'!$D$26,0) -> 0 | AK66: =IFERROR((AK62/('Consommations et Coûts de prod.'!$I$64/100))*'BdD Chaudières'!$D$26,0) -> 0 | AL66: =IFERROR((AL62/('Consommations et Coûts de prod.'!$I$64/100))*'BdD Chaudières'!$D$26,0) -> 0 | AM66: =IFERROR((AM62/('Consommations et Coûts de prod.'!$I$64/100))*'BdD Chaudières'!$D$26,0) -> 0 | AN66: =IFERROR((AN62/('Consommations et Coûts de prod.'!$I$64/100))*'BdD Chaudières'!$D$26,0) -> 0 | AO66: =IFERROR((AO62/('Consommations et Coûts de prod.'!$I$64/100))*'BdD Chaudières'!$D$26,0) -> 0 | AP66: =IFERROR((AP62/('Consommations et Coûts de prod.'!$I$64/100))*'BdD Chaudières'!$D$26,0) -> 0 | AQ66: =IFERROR((AQ62/('Consommations et Coûts de prod.'!$I$64/100))*'BdD Chaudières'!$D$26,0) -> 0 | AR66: =IFERROR((AR62/('Consommations et Coûts de prod.'!$I$64/100))*'BdD Chaudières'!$D$26,0) -> 0 | AS66: =IFERROR((AS62/('Consommations et Coûts de prod.'!$I$64/100))*'BdD Chaudières'!$D$26,0) -> 0 | AT66: =IFERROR((AT62/('Consommations et Coûts de prod.'!$I$64/100))*'BdD Chaudières'!$D$26,0) -> 0 | AU66: =IFERROR((AU62/('Consommations et Coûts de prod.'!$I$64/100))*'BdD Chaudières'!$D$26,0) -> 0 | AV66: =IFERROR((AV62/('Consommations et Coûts de prod.'!$I$64/100))*'BdD Chaudières'!$D$26,0) -> 0 | AW66: =IFERROR((AW62/('Consommations et Coûts de prod.'!$I$64/100))*'BdD Chaudières'!$D$26,0) -> 0 | AX66: =IFERROR((AX62/('Consommations et Coûts de prod.'!$I$64/100))*'BdD Chaudières'!$D$26,0) -> 0 | AY66: =IFERROR((AY62/('Consommations et Coûts de prod.'!$I$64/100))*'BdD Chaudières'!$D$26,0) -> 0 | AZ66: =IFERROR((AZ62/('Consommations et Coûts de prod.'!$I$64/100))*'BdD Chaudières'!$D$26,0) -> 0 | BA66: =IFERROR((BA62/('Consommations et Coûts de prod.'!$I$64/100))*'BdD Chaudières'!$D$26,0) -> 0 | BB66: =IFERROR((BB62/('Consommations et Coûts de prod.'!$I$64/100))*'BdD Chaudières'!$D$26,0) -> 0 | BC66: =IFERROR((BC62/('Consommations et Coûts de prod.'!$I$64/100))*'BdD Chaudières'!$D$26,0) -> 0 | BD66: =IFERROR((BD62/('Consommations et Coûts de prod.'!$I$64/100))*'BdD Chaudières'!$D$26,0) -> 0 | BE66: =IFERROR((BE62/('Consommations et Coûts de prod.'!$I$64/100))*'BdD Chaudières'!$D$26,0) -> 0 | BF66: 561.3084417 | BG66: kWh Produits
A67: PROD ECS Appoint à 45 | B67: =IFERROR((B63/('Consommations et Coûts de prod.'!$I$64/100))*'BdD Chaudières'!$D$26,0) -> 0 | C67: =IFERROR((C63/('Consommations et Coûts de prod.'!$I$64/100))*'BdD Chaudières'!$D$26,0) -> 0 | D67: =IFERROR((D63/('Consommations et Coûts de prod.'!$I$64/100))*'BdD Chaudières'!$D$26,0) -> 0 | E67: =IFERROR((E63/('Consommations et Coûts de prod.'!$I$64/100))*'BdD Chaudières'!$D$26,0) -> 0 | F67: =IFERROR((F63/('Consommations et Coûts de prod.'!$I$64/100))*'BdD Chaudières'!$D$26,0) -> 0 | G67: =IFERROR((G63/('Consommations et Coûts de prod.'!$I$64/100))*'BdD Chaudières'!$D$26,0) -> 0 | H67: =IFERROR((H63/('Consommations et Coûts de prod.'!$I$64/100))*'BdD Chaudières'!$D$26,0) -> 0 | I67: =IFERROR((I63/('Consommations et Coûts de prod.'!$I$64/100))*'BdD Chaudières'!$D$26,0) -> 0 | J67: =IFERROR((J63/('Consommations et Coûts de prod.'!$I$64/100))*'BdD Chaudières'!$D$26,0) -> 0 | K67: =IFERROR((K63/('Consommations et Coûts de prod.'!$I$64/100))*'BdD Chaudières'!$D$26,0) -> 0 | L67: =IFERROR((L63/('Consommations et Coûts de prod.'!$I$64/100))*'BdD Chaudières'!$D$26,0) -> 0 | M67: =IFERROR((M63/('Consommations et Coûts de prod.'!$I$64/100))*'BdD Chaudières'!$D$26,0) -> 0 | N67: =IFERROR((N63/('Consommations et Coûts de prod.'!$I$64/100))*'BdD Chaudières'!$D$26,0) -> 0.5020647958 | O67: =IFERROR((O63/('Consommations et Coûts de prod.'!$I$64/100))*'BdD Chaudières'!$D$26,0) -> 0.7530971937 | P67: =IFERROR((P63/('Consommations et Coûts de prod.'!$I$64/100))*'BdD Chaudières'!$D$26,0) -> 0.5020647958 | Q67: =IFERROR((Q63/('Consommations et Coûts de prod.'!$I$64/100))*'BdD Chaudières'!$D$26,0) -> 0.7530971937 | R67: =IFERROR((R63/('Consommations et Coûts de prod.'!$I$64/100))*'BdD Chaudières'!$D$26,0) -> 1.757226785 | S67: =IFERROR((S63/('Consommations et Coûts de prod.'!$I$64/100))*'BdD Chaudières'!$D$26,0) -> 2.510323979 | T67: =IFERROR((T63/('Consommations et Coûts de prod.'!$I$64/100))*'BdD Chaudières'!$D$26,0) -> 4.016518366 | U67: =IFERROR((U63/('Consommations et Coûts de prod.'!$I$64/100))*'BdD Chaudières'!$D$26,0) -> 8.284069131 | V67: =IFERROR((V63/('Consommations et Coûts de prod.'!$I$64/100))*'BdD Chaudières'!$D$26,0) -> 12.0495551 | W67: =IFERROR((W63/('Consommations et Coûts de prod.'!$I$64/100))*'BdD Chaudières'!$D$26,0) -> 17.07020306 | X67: =IFERROR((X63/('Consommations et Coûts de prod.'!$I$64/100))*'BdD Chaudières'!$D$26,0) -> 17.82330025 | Y67: =IFERROR((Y63/('Consommations et Coûts de prod.'!$I$64/100))*'BdD Chaudières'!$D$26,0) -> 31.88111453 | Z67: =IFERROR((Z63/('Consommations et Coûts de prod.'!$I$64/100))*'BdD Chaudières'!$D$26,0) -> 34.39143851 | AA67: =IFERROR((AA63/('Consommations et Coûts de prod.'!$I$64/100))*'BdD Chaudières'!$D$26,0) -> 42.42447525 | AB67: =IFERROR((AB63/('Consommations et Coûts de prod.'!$I$64/100))*'BdD Chaudières'!$D$26,0) -> 49.20234999 | AC67: =IFERROR((AC63/('Consommations et Coûts de prod.'!$I$64/100))*'BdD Chaudières'!$D$26,0) -> 51.96370637 | AD67: =IFERROR((AD63/('Consommations et Coûts de prod.'!$I$64/100))*'BdD Chaudières'!$D$26,0) -> 59.9967431 | AE67: =IFERROR((AE63/('Consommations et Coûts de prod.'!$I$64/100))*'BdD Chaudières'!$D$26,0) -> 71.5442334 | AF67: =IFERROR((AF63/('Consommations et Coûts de prod.'!$I$64/100))*'BdD Chaudières'!$D$26,0) -> 79.07520534 | AG67: =IFERROR((AG63/('Consommations et Coûts de prod.'!$I$64/100))*'BdD Chaudières'!$D$26,0) -> 74.80765457 | AH67: =IFERROR((AH63/('Consommations et Coûts de prod.'!$I$64/100))*'BdD Chaudières'!$D$26,0) -> 0 | AI67: =IFERROR((AI63/('Consommations et Coûts de prod.'!$I$64/100))*'BdD Chaudières'!$D$26,0) -> 0 | AJ67: =IFERROR((AJ63/('Consommations et Coûts de prod.'!$I$64/100))*'BdD Chaudières'!$D$26,0) -> 0 | AK67: =IFERROR((AK63/('Consommations et Coûts de prod.'!$I$64/100))*'BdD Chaudières'!$D$26,0) -> 0 | AL67: =IFERROR((AL63/('Consommations et Coûts de prod.'!$I$64/100))*'BdD Chaudières'!$D$26,0) -> 0 | AM67: =IFERROR((AM63/('Consommations et Coûts de prod.'!$I$64/100))*'BdD Chaudières'!$D$26,0) -> 0 | AN67: =IFERROR((AN63/('Consommations et Coûts de prod.'!$I$64/100))*'BdD Chaudières'!$D$26,0) -> 0 | AO67: =IFERROR((AO63/('Consommations et Coûts de prod.'!$I$64/100))*'BdD Chaudières'!$D$26,0) -> 0 | AP67: =IFERROR((AP63/('Consommations et Coûts de prod.'!$I$64/100))*'BdD Chaudières'!$D$26,0) -> 0 | AQ67: =IFERROR((AQ63/('Consommations et Coûts de prod.'!$I$64/100))*'BdD Chaudières'!$D$26,0) -> 0 | AR67: =IFERROR((AR63/('Consommations et Coûts de prod.'!$I$64/100))*'BdD Chaudières'!$D$26,0) -> 0 | AS67: =IFERROR((AS63/('Consommations et Coûts de prod.'!$I$64/100))*'BdD Chaudières'!$D$26,0) -> 0 | AT67: =IFERROR((AT63/('Consommations et Coûts de prod.'!$I$64/100))*'BdD Chaudières'!$D$26,0) -> 0 | AU67: =IFERROR((AU63/('Consommations et Coûts de prod.'!$I$64/100))*'BdD Chaudières'!$D$26,0) -> 0 | AV67: =IFERROR((AV63/('Consommations et Coûts de prod.'!$I$64/100))*'BdD Chaudières'!$D$26,0) -> 0 | AW67: =IFERROR((AW63/('Consommations et Coûts de prod.'!$I$64/100))*'BdD Chaudières'!$D$26,0) -> 0 | AX67: =IFERROR((AX63/('Consommations et Coûts de prod.'!$I$64/100))*'BdD Chaudières'!$D$26,0) -> 0 | AY67: =IFERROR((AY63/('Consommations et Coûts de prod.'!$I$64/100))*'BdD Chaudières'!$D$26,0) -> 0 | AZ67: =IFERROR((AZ63/('Consommations et Coûts de prod.'!$I$64/100))*'BdD Chaudières'!$D$26,0) -> 0 | BA67: =IFERROR((BA63/('Consommations et Coûts de prod.'!$I$64/100))*'BdD Chaudières'!$D$26,0) -> 0 | BB67: =IFERROR((BB63/('Consommations et Coûts de prod.'!$I$64/100))*'BdD Chaudières'!$D$26,0) -> 0 | BC67: =IFERROR((BC63/('Consommations et Coûts de prod.'!$I$64/100))*'BdD Chaudières'!$D$26,0) -> 0 | BD67: =IFERROR((BD63/('Consommations et Coûts de prod.'!$I$64/100))*'BdD Chaudières'!$D$26,0) -> 0 | BE67: =IFERROR((BE63/('Consommations et Coûts de prod.'!$I$64/100))*'BdD Chaudières'!$D$26,0) -> 0 | BF67: 561.3084417 | BG67: kWh Produits
A68: PROD Appoint total | B68: =B65+B66+B67 -> 0 | C68: =C65+C66+C67 -> 0 | D68: 0 | E68: 0 | F68: 0 | G68: 0 | H68: 0 | I68: 0 | J68: 0 | K68: 0 | L68: 0 | M68: 0 | N68: 1.506194387 | O68: 2.259291581 | P68: 1.506194387 | Q68: 2.259291581 | R68: 5.271680356 | S68: 7.530971937 | T68: 12.0495551 | U68: 24.85220739 | V68: 36.1486653 | W68: 51.21060917 | X68: 53.46990075 | Y68: 95.6433436 | Z68: 103.1743155 | AA68: 127.2734257 | AB68: 147.60705 | AC68: 155.8911191 | AD68: 179.9902293 | AE68: 214.6327002 | AF68: 237.225616 | AG68: 224.4229637 | AH68: 0 | AI68: 0 | AJ68: 0 | AK68: 0 | AL68: 0 | AM68: 0 | AN68: 0 | AO68: 0 | AP68: 0 | AQ68: 0 | AR68: 0 | AS68: 0 | AT68: 0 | AU68: 0 | AV68: 0 | AW68: 0 | AX68: 0 | AY68: 0 | AZ68: 0 | BA68: 0 | BB68: 0 | BC68: 0 | BD68: 0 | BE68: 0 | BF68: 1683.925325 | BG68: kWh Prod Appoint total
A69: CONSO Totale Appoint | B69: =B68/'BdD Chaudières'!$D$26 -> 0 | C69: =C68/'BdD Chaudières'!$D$26 -> 0 | D69: =D68/'BdD Chaudières'!$D$26 -> 0 | E69: =E68/'BdD Chaudières'!$D$26 -> 0 | F69: =F68/'BdD Chaudières'!$D$26 -> 0 | G69: =G68/'BdD Chaudières'!$D$26 -> 0 | H69: =H68/'BdD Chaudières'!$D$26 -> 0 | I69: =I68/'BdD Chaudières'!$D$26 -> 0 | J69: =J68/'BdD Chaudières'!$D$26 -> 0 | K69: =K68/'BdD Chaudières'!$D$26 -> 0 | L69: =L68/'BdD Chaudières'!$D$26 -> 0 | M69: =M68/'BdD Chaudières'!$D$26 -> 0 | N69: =N68/'BdD Chaudières'!$D$26 -> 1.516812072 | O69: =O68/'BdD Chaudières'!$D$26 -> 2.275218108 | P69: =P68/'BdD Chaudières'!$D$26 -> 1.516812072 | Q69: =Q68/'BdD Chaudières'!$D$26 -> 2.275218108 | R69: =R68/'BdD Chaudières'!$D$26 -> 5.308842252 | S69: =S68/'BdD Chaudières'!$D$26 -> 7.58406036 | T69: =T68/'BdD Chaudières'!$D$26 -> 12.13449658 | U69: =U68/'BdD Chaudières'!$D$26 -> 25.02739919 | V69: =V68/'BdD Chaudières'!$D$26 -> 36.40348973 | W69: =W68/'BdD Chaudières'!$D$26 -> 51.57161044 | X69: =X68/'BdD Chaudières'!$D$26 -> 53.84682855 | Y69: =Y68/'BdD Chaudières'!$D$26 -> 96.31756657 | Z69: =Z68/'BdD Chaudières'!$D$26 -> 103.9016269 | AA69: =AA68/'BdD Chaudières'!$D$26 -> 128.1706201 | AB69: =AB68/'BdD Chaudières'!$D$26 -> 148.647583 | AC69: =AC68/'BdD Chaudières'!$D$26 -> 156.9900494 | AD69: =AD68/'BdD Chaudières'!$D$26 -> 181.2590426 | AE69: =AE68/'BdD Chaudières'!$D$26 -> 216.1457202 | AF69: =AF68/'BdD Chaudières'!$D$26 -> 238.8979013 | AG69: =AG68/'BdD Chaudières'!$D$26 -> 226.0049987 | AH69: =AH68/'BdD Chaudières'!$D$26 -> 0 | AI69: =AI68/'BdD Chaudières'!$D$26 -> 0 | AJ69: =AJ68/'BdD Chaudières'!$D$26 -> 0 | AK69: =AK68/'BdD Chaudières'!$D$26 -> 0 | AL69: =AL68/'BdD Chaudières'!$D$26 -> 0 | AM69: =AM68/'BdD Chaudières'!$D$26 -> 0 | AN69: =AN68/'BdD Chaudières'!$D$26 -> 0 | AO69: =AO68/'BdD Chaudières'!$D$26 -> 0 | AP69: =AP68/'BdD Chaudières'!$D$26 -> 0 | AQ69: =AQ68/'BdD Chaudières'!$D$26 -> 0 | AR69: =AR68/'BdD Chaudières'!$D$26 -> 0 | AS69: =AS68/'BdD Chaudières'!$D$26 -> 0 | AT69: =AT68/'BdD Chaudières'!$D$26 -> 0 | AU69: =AU68/'BdD Chaudières'!$D$26 -> 0 | AV69: =AV68/'BdD Chaudières'!$D$26 -> 0 | AW69: =AW68/'BdD Chaudières'!$D$26 -> 0 | AX69: =AX68/'BdD Chaudières'!$D$26 -> 0 | AY69: =AY68/'BdD Chaudières'!$D$26 -> 0 | AZ69: =AZ68/'BdD Chaudières'!$D$26 -> 0 | BA69: =BA68/'BdD Chaudières'!$D$26 -> 0 | BB69: =BB68/'BdD Chaudières'!$D$26 -> 0 | BC69: =BC68/'BdD Chaudières'!$D$26 -> 0 | BD69: =BD68/'BdD Chaudières'!$D$26 -> 0 | BE69: =BE68/'BdD Chaudières'!$D$26 -> 0 | BF69: 1695.795896 | BG69: kWh conso Appoint total
A70: Couverture PAC Optimisée seule | B70: =IF(B68=0,B47*B48,0) -> 0 | C70: =IF(C68=0,C47*C48,0) -> 0 | D70: 0 | E70: 0 | F70: 0 | G70: 0 | H70: 0 | I70: 0 | J70: 0 | K70: 0 | L70: 0 | M70: 0 | N70: 0 | O70: 0 | P70: 0 | Q70: 0 | R70: 0 | S70: 0 | T70: 0 | U70: 0 | V70: 0 | W70: 0 | X70: 0 | Y70: 0 | Z70: 0 | AA70: 0 | AB70: 0 | AC70: 0 | AD70: 0 | AE70: 0 | AF70: 0 | AG70: 0 | AH70: 16.05 | AI70: 15.8 | AJ70: 15.5 | AK70: 15.45 | AL70: 14.85 | AM70: 13.7 | AN70: 14.75 | AO70: 16.7 | AP70: 17.25 | AQ70: 16.35 | AR70: 17.75 | AS70: 16.3 | AT70: 14.45 | AU70: 11.6 | AV70: 11.4 | AW70: 10.2 | AX70: 6.65 | AY70: 4.5 | AZ70: 2.35 | BA70: 0.9 | BB70: 0.6 | BC70: 0.25 | BD70: 0.1 | BE70: 0 | BF70: =SUM(B70:BE70) -> 253.45 | BG70: Nb jours couverts par PAC
A71: Couverture Appoint seul | B71: =IF(B47=0,B48,0) -> 0 | C71: =IF(C47=0,C48,0) -> 0 | D71: 0 | E71: 0 | F71: 0 | G71: 0 | H71: 0 | I71: 0 | J71: 0 | K71: 0 | L71: 0 | M71: 0 | N71: 0.1 | O71: 0.15 | P71: 0.1 | Q71: 0.15 | R71: 0.35 | S71: 0.5 | T71: 0.8 | U71: 1.65 | V71: 2.4 | W71: 3.4 | X71: 3.55 | Y71: 6.35 | Z71: 6.85 | AA71: 8.45 | AB71: 9.8 | AC71: 10.35 | AD71: 11.95 | AE71: 14.25 | AF71: 15.75 | AG71: 14.9 | AH71: 0 | AI71: 0 | AJ71: 0 | AK71: 0 | AL71: 0 | AM71: 0 | AN71: 0 | AO71: 0 | AP71: 0 | AQ71: 0 | AR71: 0 | AS71: 0 | AT71: 0 | AU71: 0 | AV71: 0 | AW71: 0 | AX71: 0 | AY71: 0 | AZ71: 0 | BA71: 0 | BB71: 0 | BC71: 0 | BD71: 0 | BE71: 0 | BF71: =SUM(B71:BE71) -> 111.8 | BG71: Nb jours couverts par Appoint
A72: Couverture des PAC et appoint en même temps | B72: =IF(AND(B68<>0,B56<>0),B48,0) -> 0 | C72: =IF(AND(C68<>0,C56<>0),C48,0) -> 0 | D72: 0 | E72: 0 | F72: 0 | G72: 0 | H72: 0 | I72: 0 | J72: 0 | K72: 0 | L72: 0 | M72: 0 | N72: 0 | O72: 0 | P72: 0 | Q72: 0 | R72: 0 | S72: 0 | T72: 0 | U72: 0 | V72: 0 | W72: 0 | X72: 0 | Y72: 0 | Z72: 0 | AA72: 0 | AB72: 0 | AC72: 0 | AD72: 0 | AE72: 0 | AF72: 0 | AG72: 0 | AH72: 0 | AI72: 0 | AJ72: 0 | AK72: 0 | AL72: 0 | AM72: 0 | AN72: 0 | AO72: 0 | AP72: 0 | AQ72: 0 | AR72: 0 | AS72: 0 | AT72: 0 | AU72: 0 | AV72: 0 | AW72: 0 | AX72: 0 | AY72: 0 | AZ72: 0 | BA72: 0 | BB72: 0 | BC72: 0 | BD72: 0 | BE72: 0 | BF72: =SUM(B72:BE72) -> 0 | BG72: Nb jours couverts par Appoint et PAC
A74: Vérification : prix/jour | B74: =$E$7*IF(B45=0,'Consommations et Coûts de prod.'!$I$64/'Consommations et Coûts de prod.'!$G$64,'Consommations et Coûts de prod.'!$H$64/B42)/100 -> 0.8550458805 | C74: =$E$7*IF(C45=0,'Consommations et Coûts de prod.'!$I$64/'Consommations et Coûts de prod.'!$G$64,'Consommations et Coûts de prod.'!$H$64/C42)/100 -> 0.8550458805 | D74: =$E$7*IF(D45=0,'Consommations et Coûts de prod.'!$I$64/'Consommations et Coûts de prod.'!$G$64,'Consommations et Coûts de prod.'!$H$64/D42)/100 -> 0.8550458805 | E74: =$E$7*IF(E45=0,'Consommations et Coûts de prod.'!$I$64/'Consommations et Coûts de prod.'!$G$64,'Consommations et Coûts de prod.'!$H$64/E42)/100 -> 0.8550458805 | F74: =$E$7*IF(F45=0,'Consommations et Coûts de prod.'!$I$64/'Consommations et Coûts de prod.'!$G$64,'Consommations et Coûts de prod.'!$H$64/F42)/100 -> 0.8550458805 | G74: =$E$7*IF(G45=0,'Consommations et Coûts de prod.'!$I$64/'Consommations et Coûts de prod.'!$G$64,'Consommations et Coûts de prod.'!$H$64/G42)/100 -> 0.8550458805 | H74: =$E$7*IF(H45=0,'Consommations et Coûts de prod.'!$I$64/'Consommations et Coûts de prod.'!$G$64,'Consommations et Coûts de prod.'!$H$64/H42)/100 -> 0.8550458805 | I74: =$E$7*IF(I45=0,'Consommations et Coûts de prod.'!$I$64/'Consommations et Coûts de prod.'!$G$64,'Consommations et Coûts de prod.'!$H$64/I42)/100 -> 0.8550458805 | J74: =$E$7*IF(J45=0,'Consommations et Coûts de prod.'!$I$64/'Consommations et Coûts de prod.'!$G$64,'Consommations et Coûts de prod.'!$H$64/J42)/100 -> 0.8550458805 | K74: =$E$7*IF(K45=0,'Consommations et Coûts de prod.'!$I$64/'Consommations et Coûts de prod.'!$G$64,'Consommations et Coûts de prod.'!$H$64/K42)/100 -> 0.8550458805 | L74: =$E$7*IF(L45=0,'Consommations et Coûts de prod.'!$I$64/'Consommations et Coûts de prod.'!$G$64,'Consommations et Coûts de prod.'!$H$64/L42)/100 -> 0.8550458805 | M74: =$E$7*IF(M45=0,'Consommations et Coûts de prod.'!$I$64/'Consommations et Coûts de prod.'!$G$64,'Consommations et Coûts de prod.'!$H$64/M42)/100 -> 0.8550458805 | N74: =$E$7*IF(N45=0,'Consommations et Coûts de prod.'!$I$64/'Consommations et Coûts de prod.'!$G$64,'Consommations et Coûts de prod.'!$H$64/N42)/100 -> 0.8550458805 | O74: =$E$7*IF(O45=0,'Consommations et Coûts de prod.'!$I$64/'Consommations et Coûts de prod.'!$G$64,'Consommations et Coûts de prod.'!$H$64/O42)/100 -> 0.8550458805 | P74: =$E$7*IF(P45=0,'Consommations et Coûts de prod.'!$I$64/'Consommations et Coûts de prod.'!$G$64,'Consommations et Coûts de prod.'!$H$64/P42)/100 -> 0.8550458805 | Q74: =$E$7*IF(Q45=0,'Consommations et Coûts de prod.'!$I$64/'Consommations et Coûts de prod.'!$G$64,'Consommations et Coûts de prod.'!$H$64/Q42)/100 -> 0.8550458805 | R74: =$E$7*IF(R45=0,'Consommations et Coûts de prod.'!$I$64/'Consommations et Coûts de prod.'!$G$64,'Consommations et Coûts de prod.'!$H$64/R42)/100 -> 0.8550458805 | S74: =$E$7*IF(S45=0,'Consommations et Coûts de prod.'!$I$64/'Consommations et Coûts de prod.'!$G$64,'Consommations et Coûts de prod.'!$H$64/S42)/100 -> 0.8550458805 | T74: =$E$7*IF(T45=0,'Consommations et Coûts de prod.'!$I$64/'Consommations et Coûts de prod.'!$G$64,'Consommations et Coûts de prod.'!$H$64/T42)/100 -> 0.8550458805 | U74: =$E$7*IF(U45=0,'Consommations et Coûts de prod.'!$I$64/'Consommations et Coûts de prod.'!$G$64,'Consommations et Coûts de prod.'!$H$64/U42)/100 -> 0.8550458805 | V74: =$E$7*IF(V45=0,'Consommations et Coûts de prod.'!$I$64/'Consommations et Coûts de prod.'!$G$64,'Consommations et Coûts de prod.'!$H$64/V42)/100 -> 0.8550458805 | W74: =$E$7*IF(W45=0,'Consommations et Coûts de prod.'!$I$64/'Consommations et Coûts de prod.'!$G$64,'Consommations et Coûts de prod.'!$H$64/W42)/100 -> 0.8550458805 | X74: =$E$7*IF(X45=0,'Consommations et Coûts de prod.'!$I$64/'Consommations et Coûts de prod.'!$G$64,'Consommations et Coûts de prod.'!$H$64/X42)/100 -> 0.8550458805 | Y74: =$E$7*IF(Y45=0,'Consommations et Coûts de prod.'!$I$64/'Consommations et Coûts de prod.'!$G$64,'Consommations et Coûts de prod.'!$H$64/Y42)/100 -> 0.8550458805 | Z74: =$E$7*IF(Z45=0,'Consommations et Coûts de prod.'!$I$64/'Consommations et Coûts de prod.'!$G$64,'Consommations et Coûts de prod.'!$H$64/Z42)/100 -> 0.8550458805 | AA74: =$E$7*IF(AA45=0,'Consommations et Coûts de prod.'!$I$64/'Consommations et Coûts de prod.'!$G$64,'Consommations et Coûts de prod.'!$H$64/AA42)/100 -> 0.8550458805 | AB74: =$E$7*IF(AB45=0,'Consommations et Coûts de prod.'!$I$64/'Consommations et Coûts de prod.'!$G$64,'Consommations et Coûts de prod.'!$H$64/AB42)/100 -> 0.8550458805 | AC74: =$E$7*IF(AC45=0,'Consommations et Coûts de prod.'!$I$64/'Consommations et Coûts de prod.'!$G$64,'Consommations et Coûts de prod.'!$H$64/AC42)/100 -> 0.8550458805 | AD74: =$E$7*IF(AD45=0,'Consommations et Coûts de prod.'!$I$64/'Consommations et Coûts de prod.'!$G$64,'Consommations et Coûts de prod.'!$H$64/AD42)/100 -> 0.8550458805 | AE74: =$E$7*IF(AE45=0,'Consommations et Coûts de prod.'!$I$64/'Consommations et Coûts de prod.'!$G$64,'Consommations et Coûts de prod.'!$H$64/AE42)/100 -> 0.8550458805 | AF74: =$E$7*IF(AF45=0,'Consommations et Coûts de prod.'!$I$64/'Consommations et Coûts de prod.'!$G$64,'Consommations et Coûts de prod.'!$H$64/AF42)/100 -> 0.8550458805 | AG74: =$E$7*IF(AG45=0,'Consommations et Coûts de prod.'!$I$64/'Consommations et Coûts de prod.'!$G$64,'Consommations et Coûts de prod.'!$H$64/AG42)/100 -> 0.8550458805 | AH74: =$E$7*IF(AH45=0,'Consommations et Coûts de prod.'!$I$64/'Consommations et Coûts de prod.'!$G$64,'Consommations et Coûts de prod.'!$H$64/AH42)/100 -> 0.5887317405 | AI74: =$E$7*IF(AI45=0,'Consommations et Coûts de prod.'!$I$64/'Consommations et Coûts de prod.'!$G$64,'Consommations et Coûts de prod.'!$H$64/AI42)/100 -> 0.5719537044 | AJ74: =$E$7*IF(AJ45=0,'Consommations et Coûts de prod.'!$I$64/'Consommations et Coûts de prod.'!$G$64,'Consommations et Coûts de prod.'!$H$64/AJ42)/100 -> 0.5561054715 | AK74: =$E$7*IF(AK45=0,'Consommations et Coûts de prod.'!$I$64/'Consommations et Coûts de prod.'!$G$64,'Consommations et Coûts de prod.'!$H$64/AK42)/100 -> 0.5411118343 | AL74: =$E$7*IF(AL45=0,'Consommations et Coûts de prod.'!$I$64/'Consommations et Coûts de prod.'!$G$64,'Consommations et Coûts de prod.'!$H$64/AL42)/100 -> 0.526905483 | AM74: =$E$7*IF(AM45=0,'Consommations et Coûts de prod.'!$I$64/'Consommations et Coûts de prod.'!$G$64,'Consommations et Coûts de prod.'!$H$64/AM42)/100 -> 0.5134259958 | AN74: =$E$7*IF(AN45=0,'Consommations et Coûts de prod.'!$I$64/'Consommations et Coûts de prod.'!$G$64,'Consommations et Coûts de prod.'!$H$64/AN42)/100 -> 0.5006189795 | AO74: =$E$7*IF(AO45=0,'Consommations et Coûts de prod.'!$I$64/'Consommations et Coûts de prod.'!$G$64,'Consommations et Coûts de prod.'!$H$64/AO42)/100 -> 0.488435336 | AP74: =$E$7*IF(AP45=0,'Consommations et Coûts de prod.'!$I$64/'Consommations et Coûts de prod.'!$G$64,'Consommations et Coûts de prod.'!$H$64/AP42)/100 -> 0.4768306332 | AQ74: =$E$7*IF(AQ45=0,'Consommations et Coûts de prod.'!$I$64/'Consommations et Coûts de prod.'!$G$64,'Consommations et Coûts de prod.'!$H$64/AQ42)/100 -> 0.4657645638 | AR74: =$E$7*IF(AR45=0,'Consommations et Coûts de prod.'!$I$64/'Consommations et Coûts de prod.'!$G$64,'Consommations et Coûts de prod.'!$H$64/AR42)/100 -> 0.4552004772 | AS74: =$E$7*IF(AS45=0,'Consommations et Coûts de prod.'!$I$64/'Consommations et Coûts de prod.'!$G$64,'Consommations et Coûts de prod.'!$H$64/AS42)/100 -> 0.4451049744 | AT74: =$E$7*IF(AT45=0,'Consommations et Coûts de prod.'!$I$64/'Consommations et Coûts de prod.'!$G$64,'Consommations et Coûts de prod.'!$H$64/AT42)/100 -> 0.4354475548 | AU74: =$E$7*IF(AU45=0,'Consommations et Coûts de prod.'!$I$64/'Consommations et Coûts de prod.'!$G$64,'Consommations et Coûts de prod.'!$H$64/AU42)/100 -> 0.4262003087 | AV74: =$E$7*IF(AV45=0,'Consommations et Coûts de prod.'!$I$64/'Consommations et Coûts de prod.'!$G$64,'Consommations et Coûts de prod.'!$H$64/AV42)/100 -> 0.417337648 | AW74: =$E$7*IF(AW45=0,'Consommations et Coûts de prod.'!$I$64/'Consommations et Coûts de prod.'!$G$64,'Consommations et Coûts de prod.'!$H$64/AW42)/100 -> 0.4088360696 | AX74: =$E$7*IF(AX45=0,'Consommations et Coûts de prod.'!$I$64/'Consommations et Coûts de prod.'!$G$64,'Consommations et Coûts de prod.'!$H$64/AX42)/100 -> 0.4006739471 | AY74: =$E$7*IF(AY45=0,'Consommations et Coûts de prod.'!$I$64/'Consommations et Coûts de prod.'!$G$64,'Consommations et Coûts de prod.'!$H$64/AY42)/100 -> 0.3928313475 | AZ74: =$E$7*IF(AZ45=0,'Consommations et Coûts de prod.'!$I$64/'Consommations et Coûts de prod.'!$G$64,'Consommations et Coûts de prod.'!$H$64/AZ42)/100 -> 0.3852898686 | BA74: =$E$7*IF(BA45=0,'Consommations et Coûts de prod.'!$I$64/'Consommations et Coûts de prod.'!$G$64,'Consommations et Coûts de prod.'!$H$64/BA42)/100 -> 0.3780324943 | BB74: =$E$7*IF(BB45=0,'Consommations et Coûts de prod.'!$I$64/'Consommations et Coûts de prod.'!$G$64,'Consommations et Coûts de prod.'!$H$64/BB42)/100 -> 0.3710434673 | BC74: =$E$7*IF(BC45=0,'Consommations et Coûts de prod.'!$I$64/'Consommations et Coûts de prod.'!$G$64,'Consommations et Coûts de prod.'!$H$64/BC42)/100 -> 0.3643081741 | BD74: =$E$7*IF(BD45=0,'Consommations et Coûts de prod.'!$I$64/'Consommations et Coûts de prod.'!$G$64,'Consommations et Coûts de prod.'!$H$64/BD42)/100 -> 0.3578130436 | BE74: =$E$7*IF(BE45=0,'Consommations et Coûts de prod.'!$I$64/'Consommations et Coûts de prod.'!$G$64,'Consommations et Coûts de prod.'!$H$64/BE42)/100 -> 0.3515454554
A75: Déper + 1,5 (condition ECS par PAC) | B75: =B22+1.5 -> 10.5 | C75: 10.5 | D75: 10.5 | E75: 10.5 | F75: 10.5 | G75: 10.5 | H75: 10.5 | I75: 10.5 | J75: 10.5 | K75: 10.5 | L75: 10.5 | M75: 10.21875 | N75: 9.9375 | O75: 9.65625 | P75: 9.375 | Q75: 9.09375 | R75: 8.8125 | S75: 8.53125 | T75: 8.25 | U75: 7.96875 | V75: 7.6875 | W75: 7.40625 | X75: 7.125 | Y75: 6.84375 | Z75: 6.5625 | AA75: 6.28125 | AB75: 6 | AC75: 5.71875 | AD75: 5.4375 | AE75: 5.15625 | AF75: 4.875 | AG75: 4.59375 | AH75: =AH22+1.5 -> 4.3125 | AI75: 4.03125 | AJ75: 3.75 | AK75: 3.46875 | AL75: 3.1875 | AM75: 2.90625 | AN75: 2.625 | AO75: 2.34375 | AP75: 2.0625 | AQ75: 1.78125 | AR75: 1.5 | AS75: 1.5 | AT75: 1.5 | AU75: 1.5 | AV75: 1.5 | AW75: 1.5 | AX75: 1.5 | AY75: 1.5 | AZ75: 1.5 | BA75: 1.5 | BB75: 1.5 | BC75: 1.5 | BD75: 1.5 | BE75: 1.5
A77: Coût PAC non optimisé | B77: =B48*$E$7*IF(B45=0,0,'Consommations et Coûts de prod.'!$H$64/B42)/100 -> 0 | C77: =C48*$E$7*IF(C45=0,0,'Consommations et Coûts de prod.'!$H$64/C42)/100 -> 0 | D77: =D48*$E$7*IF(D45=0,0,'Consommations et Coûts de prod.'!$H$64/D42)/100 -> 0 | E77: =E48*$E$7*IF(E45=0,0,'Consommations et Coûts de prod.'!$H$64/E42)/100 -> 0 | F77: =F48*$E$7*IF(F45=0,0,'Consommations et Coûts de prod.'!$H$64/F42)/100 -> 0 | G77: =G48*$E$7*IF(G45=0,0,'Consommations et Coûts de prod.'!$H$64/G42)/100 -> 0 | H77: =H48*$E$7*IF(H45=0,0,'Consommations et Coûts de prod.'!$H$64/H42)/100 -> 0 | I77: =I48*$E$7*IF(I45=0,0,'Consommations et Coûts de prod.'!$H$64/I42)/100 -> 0 | J77: =J48*$E$7*IF(J45=0,0,'Consommations et Coûts de prod.'!$H$64/J42)/100 -> 0 | K77: =K48*$E$7*IF(K45=0,0,'Consommations et Coûts de prod.'!$H$64/K42)/100 -> 0 | L77: =L48*$E$7*IF(L45=0,0,'Consommations et Coûts de prod.'!$H$64/L42)/100 -> 0 | M77: =M48*$E$7*IF(M45=0,0,'Consommations et Coûts de prod.'!$H$64/M42)/100 -> 0 | N77: =N48*$E$7*IF(N45=0,0,'Consommations et Coûts de prod.'!$H$64/N42)/100 -> 0 | O77: =O48*$E$7*IF(O45=0,0,'Consommations et Coûts de prod.'!$H$64/O42)/100 -> 0 | P77: =P48*$E$7*IF(P45=0,0,'Consommations et Coûts de prod.'!$H$64/P42)/100 -> 0 | Q77: =Q48*$E$7*IF(Q45=0,0,'Consommations et Coûts de prod.'!$H$64/Q42)/100 -> 0 | R77: =R48*$E$7*IF(R45=0,0,'Consommations et Coûts de prod.'!$H$64/R42)/100 -> 0 | S77: =S48*$E$7*IF(S45=0,0,'Consommations et Coûts de prod.'!$H$64/S42)/100 -> 0 | T77: =T48*$E$7*IF(T45=0,0,'Consommations et Coûts de prod.'!$H$64/T42)/100 -> 0 | U77: =U48*$E$7*IF(U45=0,0,'Consommations et Coûts de prod.'!$H$64/U42)/100 -> 0 | V77: =V48*$E$7*IF(V45=0,0,'Consommations et Coûts de prod.'!$H$64/V42)/100 -> 0 | W77: =W48*$E$7*IF(W45=0,0,'Consommations et Coûts de prod.'!$H$64/W42)/100 -> 0 | X77: =X48*$E$7*IF(X45=0,0,'Consommations et Coûts de prod.'!$H$64/X42)/100 -> 0 | Y77: =Y48*$E$7*IF(Y45=0,0,'Consommations et Coûts de prod.'!$H$64/Y42)/100 -> 0 | Z77: =Z48*$E$7*IF(Z45=0,0,'Consommations et Coûts de prod.'!$H$64/Z42)/100 -> 0 | AA77: =AA48*$E$7*IF(AA45=0,0,'Consommations et Coûts de prod.'!$H$64/AA42)/100 -> 0 | AB77: =AB48*$E$7*IF(AB45=0,0,'Consommations et Coûts de prod.'!$H$64/AB42)/100 -> 0 | AC77: =AC48*$E$7*IF(AC45=0,0,'Consommations et Coûts de prod.'!$H$64/AC42)/100 -> 0 | AD77: =AD48*$E$7*IF(AD45=0,0,'Consommations et Coûts de prod.'!$H$64/AD42)/100 -> 0 | AE77: =AE48*$E$7*IF(AE45=0,0,'Consommations et Coûts de prod.'!$H$64/AE42)/100 -> 0 | AF77: =AF48*$E$7*IF(AF45=0,0,'Consommations et Coûts de prod.'!$H$64/AF42)/100 -> 0 | AG77: =AG48*$E$7*IF(AG45=0,0,'Consommations et Coûts de prod.'!$H$64/AG42)/100 -> 0 | AH77: =AH48*$E$7*IF(AH45=0,0,'Consommations et Coûts de prod.'!$H$64/AH42)/100 -> 9.449144435 | AI77: =AI48*$E$7*IF(AI45=0,0,'Consommations et Coûts de prod.'!$H$64/AI42)/100 -> 9.036868529 | AJ77: =AJ48*$E$7*IF(AJ45=0,0,'Consommations et Coûts de prod.'!$H$64/AJ42)/100 -> 8.619634808 | AK77: =AK48*$E$7*IF(AK45=0,0,'Consommations et Coûts de prod.'!$H$64/AK42)/100 -> 8.36017784 | AL77: =AL48*$E$7*IF(AL45=0,0,'Consommations et Coûts de prod.'!$H$64/AL42)/100 -> 7.824546423 | AM77: =AM48*$E$7*IF(AM45=0,0,'Consommations et Coûts de prod.'!$H$64/AM42)/100 -> 7.033936143 | AN77: =AN48*$E$7*IF(AN45=0,0,'Consommations et Coûts de prod.'!$H$64/AN42)/100 -> 7.384129948 | AO77: =AO48*$E$7*IF(AO45=0,0,'Consommations et Coûts de prod.'!$H$64/AO42)/100 -> 8.156870111 | AP77: =AP48*$E$7*IF(AP45=0,0,'Consommations et Coûts de prod.'!$H$64/AP42)/100 -> 8.225328422 | AQ77: =AQ48*$E$7*IF(AQ45=0,0,'Consommations et Coûts de prod.'!$H$64/AQ42)/100 -> 7.615250618 | AR77: =AR48*$E$7*IF(AR45=0,0,'Consommations et Coûts de prod.'!$H$64/AR42)/100 -> 8.079808471 | AS77: =AS48*$E$7*IF(AS45=0,0,'Consommations et Coûts de prod.'!$H$64/AS42)/100 -> 7.255211083 | AT77: =AT48*$E$7*IF(AT45=0,0,'Consommations et Coûts de prod.'!$H$64/AT42)/100 -> 6.292217166 | AU77: =AU48*$E$7*IF(AU45=0,0,'Consommations et Coûts de prod.'!$H$64/AU42)/100 -> 4.943923581 | AV77: =AV48*$E$7*IF(AV45=0,0,'Consommations et Coûts de prod.'!$H$64/AV42)/100 -> 4.757649187 | AW77: =AW48*$E$7*IF(AW45=0,0,'Consommations et Coûts de prod.'!$H$64/AW42)/100 -> 4.17012791 | AX77: =AX48*$E$7*IF(AX45=0,0,'Consommations et Coûts de prod.'!$H$64/AX42)/100 -> 2.664481748 | AY77: =AY48*$E$7*IF(AY45=0,0,'Consommations et Coûts de prod.'!$H$64/AY42)/100 -> 1.767741064 | AZ77: =AZ48*$E$7*IF(AZ45=0,0,'Consommations et Coûts de prod.'!$H$64/AZ42)/100 -> 0.9054311912 | BA77: =BA48*$E$7*IF(BA45=0,0,'Consommations et Coûts de prod.'!$H$64/BA42)/100 -> 0.3402292449 | BB77: =BB48*$E$7*IF(BB45=0,0,'Consommations et Coûts de prod.'!$H$64/BB42)/100 -> 0.2226260804 | BC77: =BC48*$E$7*IF(BC45=0,0,'Consommations et Coûts de prod.'!$H$64/BC42)/100 -> 0.09107704354 | BD77: =BD48*$E$7*IF(BD45=0,0,'Consommations et Coûts de prod.'!$H$64/BD42)/100 -> 0.03578130436 | BE77: =BE48*$E$7*IF(BE45=0,0,'Consommations et Coûts de prod.'!$H$64/BE42)/100 -> 0 | BF77: Total ECS PAC | BG77: =SUM(B77:BE77) -> 123.2321924
A78: Coût Appoint | B78: =B48*$E$7*IF(B45=0,'Consommations et Coûts de prod.'!$I$64/'BdD Chaudières'!$D$26,0)/100 -> 0 | C78: =C48*$E$7*IF(C45=0,'Consommations et Coûts de prod.'!$I$64/'BdD Chaudières'!$D$26,0)/100 -> 0 | D78: =D48*$E$7*IF(D45=0,'Consommations et Coûts de prod.'!$I$64/'BdD Chaudières'!$D$26,0)/100 -> 0 | E78: =E48*$E$7*IF(E45=0,'Consommations et Coûts de prod.'!$I$64/'BdD Chaudières'!$D$26,0)/100 -> 0 | F78: =F48*$E$7*IF(F45=0,'Consommations et Coûts de prod.'!$I$64/'BdD Chaudières'!$D$26,0)/100 -> 0 | G78: =G48*$E$7*IF(G45=0,'Consommations et Coûts de prod.'!$I$64/'BdD Chaudières'!$D$26,0)/100 -> 0 | H78: =H48*$E$7*IF(H45=0,'Consommations et Coûts de prod.'!$I$64/'BdD Chaudières'!$D$26,0)/100 -> 0 | I78: =I48*$E$7*IF(I45=0,'Consommations et Coûts de prod.'!$I$64/'BdD Chaudières'!$D$26,0)/100 -> 0 | J78: =J48*$E$7*IF(J45=0,'Consommations et Coûts de prod.'!$I$64/'BdD Chaudières'!$D$26,0)/100 -> 0 | K78: =K48*$E$7*IF(K45=0,'Consommations et Coûts de prod.'!$I$64/'BdD Chaudières'!$D$26,0)/100 -> 0 | L78: =L48*$E$7*IF(L45=0,'Consommations et Coûts de prod.'!$I$64/'BdD Chaudières'!$D$26,0)/100 -> 0 | M78: =M48*$E$7*IF(M45=0,'Consommations et Coûts de prod.'!$I$64/'BdD Chaudières'!$D$26,0)/100 -> 0 | N78: =N48*$E$7*IF(N45=0,'Consommations et Coûts de prod.'!$I$64/'BdD Chaudières'!$D$26,0)/100 -> 0.08782948621 | O78: =O48*$E$7*IF(O45=0,'Consommations et Coûts de prod.'!$I$64/'BdD Chaudières'!$D$26,0)/100 -> 0.1317442293 | P78: =P48*$E$7*IF(P45=0,'Consommations et Coûts de prod.'!$I$64/'BdD Chaudières'!$D$26,0)/100 -> 0.08782948621 | Q78: =Q48*$E$7*IF(Q45=0,'Consommations et Coûts de prod.'!$I$64/'BdD Chaudières'!$D$26,0)/100 -> 0.1317442293 | R78: =R48*$E$7*IF(R45=0,'Consommations et Coûts de prod.'!$I$64/'BdD Chaudières'!$D$26,0)/100 -> 0.3074032017 | S78: =S48*$E$7*IF(S45=0,'Consommations et Coûts de prod.'!$I$64/'BdD Chaudières'!$D$26,0)/100 -> 0.4391474311 | T78: =T48*$E$7*IF(T45=0,'Consommations et Coûts de prod.'!$I$64/'BdD Chaudières'!$D$26,0)/100 -> 0.7026358897 | U78: =U48*$E$7*IF(U45=0,'Consommations et Coûts de prod.'!$I$64/'BdD Chaudières'!$D$26,0)/100 -> 1.449186522 | V78: =V48*$E$7*IF(V45=0,'Consommations et Coûts de prod.'!$I$64/'BdD Chaudières'!$D$26,0)/100 -> 2.107907669 | W78: =W48*$E$7*IF(W45=0,'Consommations et Coûts de prod.'!$I$64/'BdD Chaudières'!$D$26,0)/100 -> 2.986202531 | X78: =X48*$E$7*IF(X45=0,'Consommations et Coûts de prod.'!$I$64/'BdD Chaudières'!$D$26,0)/100 -> 3.117946761 | Y78: =Y48*$E$7*IF(Y45=0,'Consommations et Coûts de prod.'!$I$64/'BdD Chaudières'!$D$26,0)/100 -> 5.577172374 | Z78: =Z48*$E$7*IF(Z45=0,'Consommations et Coûts de prod.'!$I$64/'BdD Chaudières'!$D$26,0)/100 -> 6.016319806 | AA78: =AA48*$E$7*IF(AA45=0,'Consommations et Coûts de prod.'!$I$64/'BdD Chaudières'!$D$26,0)/100 -> 7.421591585 | AB78: =AB48*$E$7*IF(AB45=0,'Consommations et Coûts de prod.'!$I$64/'BdD Chaudières'!$D$26,0)/100 -> 8.607289649 | AC78: =AC48*$E$7*IF(AC45=0,'Consommations et Coûts de prod.'!$I$64/'BdD Chaudières'!$D$26,0)/100 -> 9.090351823 | AD78: =AD48*$E$7*IF(AD45=0,'Consommations et Coûts de prod.'!$I$64/'BdD Chaudières'!$D$26,0)/100 -> 10.4956236 | AE78: =AE48*$E$7*IF(AE45=0,'Consommations et Coûts de prod.'!$I$64/'BdD Chaudières'!$D$26,0)/100 -> 12.51570179 | AF78: =AF48*$E$7*IF(AF45=0,'Consommations et Coûts de prod.'!$I$64/'BdD Chaudières'!$D$26,0)/100 -> 13.83314408 | AG78: =AG48*$E$7*IF(AG45=0,'Consommations et Coûts de prod.'!$I$64/'BdD Chaudières'!$D$26,0)/100 -> 13.08659345 | AH78: =AH48*$E$7*IF(AH45=0,'Consommations et Coûts de prod.'!$I$64/'BdD Chaudières'!$D$26,0)/100 -> 0 | AI78: =AI48*$E$7*IF(AI45=0,'Consommations et Coûts de prod.'!$I$64/'BdD Chaudières'!$D$26,0)/100 -> 0 | AJ78: =AJ48*$E$7*IF(AJ45=0,'Consommations et Coûts de prod.'!$I$64/'BdD Chaudières'!$D$26,0)/100 -> 0 | AK78: =AK48*$E$7*IF(AK45=0,'Consommations et Coûts de prod.'!$I$64/'BdD Chaudières'!$D$26,0)/100 -> 0 | AL78: =AL48*$E$7*IF(AL45=0,'Consommations et Coûts de prod.'!$I$64/'BdD Chaudières'!$D$26,0)/100 -> 0 | AM78: =AM48*$E$7*IF(AM45=0,'Consommations et Coûts de prod.'!$I$64/'BdD Chaudières'!$D$26,0)/100 -> 0 | AN78: =AN48*$E$7*IF(AN45=0,'Consommations et Coûts de prod.'!$I$64/'BdD Chaudières'!$D$26,0)/100 -> 0 | AO78: =AO48*$E$7*IF(AO45=0,'Consommations et Coûts de prod.'!$I$64/'BdD Chaudières'!$D$26,0)/100 -> 0 | AP78: =AP48*$E$7*IF(AP45=0,'Consommations et Coûts de prod.'!$I$64/'BdD Chaudières'!$D$26,0)/100 -> 0 | AQ78: =AQ48*$E$7*IF(AQ45=0,'Consommations et Coûts de prod.'!$I$64/'BdD Chaudières'!$D$26,0)/100 -> 0 | AR78: =AR48*$E$7*IF(AR45=0,'Consommations et Coûts de prod.'!$I$64/'BdD Chaudières'!$D$26,0)/100 -> 0 | AS78: =AS48*$E$7*IF(AS45=0,'Consommations et Coûts de prod.'!$I$64/'BdD Chaudières'!$D$26,0)/100 -> 0 | AT78: =AT48*$E$7*IF(AT45=0,'Consommations et Coûts de prod.'!$I$64/'BdD Chaudières'!$D$26,0)/100 -> 0 | AU78: =AU48*$E$7*IF(AU45=0,'Consommations et Coûts de prod.'!$I$64/'BdD Chaudières'!$D$26,0)/100 -> 0 | AV78: =AV48*$E$7*IF(AV45=0,'Consommations et Coûts de prod.'!$I$64/'BdD Chaudières'!$D$26,0)/100 -> 0 | AW78: =AW48*$E$7*IF(AW45=0,'Consommations et Coûts de prod.'!$I$64/'BdD Chaudières'!$D$26,0)/100 -> 0 | AX78: =AX48*$E$7*IF(AX45=0,'Consommations et Coûts de prod.'!$I$64/'BdD Chaudières'!$D$26,0)/100 -> 0 | AY78: =AY48*$E$7*IF(AY45=0,'Consommations et Coûts de prod.'!$I$64/'BdD Chaudières'!$D$26,0)/100 -> 0 | AZ78: =AZ48*$E$7*IF(AZ45=0,'Consommations et Coûts de prod.'!$I$64/'BdD Chaudières'!$D$26,0)/100 -> 0 | BA78: =BA48*$E$7*IF(BA45=0,'Consommations et Coûts de prod.'!$I$64/'BdD Chaudières'!$D$26,0)/100 -> 0 | BB78: =BB48*$E$7*IF(BB45=0,'Consommations et Coûts de prod.'!$I$64/'BdD Chaudières'!$D$26,0)/100 -> 0 | BC78: =BC48*$E$7*IF(BC45=0,'Consommations et Coûts de prod.'!$I$64/'BdD Chaudières'!$D$26,0)/100 -> 0 | BD78: =BD48*$E$7*IF(BD45=0,'Consommations et Coûts de prod.'!$I$64/'BdD Chaudières'!$D$26,0)/100 -> 0 | BE78: =BE48*$E$7*IF(BE45=0,'Consommations et Coûts de prod.'!$I$64/'BdD Chaudières'!$D$26,0)/100 -> 0 | BF78: Total ECS Appoint | BG78: =SUM(B78:BE78) -> 98.19336558
A79: Coût PAC non optimisé + Appoint | B79: =B77+B78 -> 0 | C79: =C77+C78 -> 0 | D79: 0 | E79: 0 | F79: 0 | G79: 0 | H79: 0 | I79: 0 | J79: 0 | K79: 0 | L79: 0 | M79: 0 | N79: 0.08782948621 | O79: 0.1317442293 | P79: 0.08782948621 | Q79: 0.1317442293 | R79: 0.3074032017 | S79: 0.4391474311 | T79: 0.7026358897 | U79: 1.449186522 | V79: 2.107907669 | W79: 2.986202531 | X79: 3.117946761 | Y79: 5.577172374 | Z79: 6.016319806 | AA79: 7.421591585 | AB79: 8.607289649 | AC79: 9.090351823 | AD79: 10.4956236 | AE79: 12.51570179 | AF79: 13.83314408 | AG79: 13.08659345 | AH79: 9.449144435 | AI79: 9.036868529 | AJ79: 8.619634808 | AK79: 8.36017784 | AL79: 7.824546423 | AM79: 7.033936143 | AN79: 7.384129948 | AO79: 8.156870111 | AP79: 8.225328422 | AQ79: 7.615250618 | AR79: 8.079808471 | AS79: 7.255211083 | AT79: 6.292217166 | AU79: 4.943923581 | AV79: 4.757649187 | AW79: 4.17012791 | AX79: 2.664481748 | AY79: 1.767741064 | AZ79: 0.9054311912 | BA79: 0.3402292449 | BB79: 0.2226260804 | BC79: 0.09107704354 | BD79: 0.03578130436 | BE79: 0 | BF79: Total PAC + App | BG79: =SUM(B79:BE79) -> 221.4255579 | BI79: cout 100% appoint = | BJ79: =BF48*E7*'Consommations et Coûts de prod.'!I64/'BdD Chaudières'!$D$26*0.01 -> 320.7971984 | BL79: % utilisation appoint | BM79: =BG78/BJ79*100 -> 30.6091718
A80: Couverture PAC non optimisée | B80: =B45*B48 -> 0 | C80: 0 | D80: 0 | E80: 0 | F80: 0 | G80: 0 | H80: 0 | I80: 0 | J80: 0 | K80: 0 | L80: 0 | M80: 0 | N80: 0 | O80: 0 | P80: 0 | Q80: 0 | R80: 0 | S80: 0 | T80: 0 | U80: 0 | V80: 0 | W80: 0 | X80: 0 | Y80: 0 | Z80: 0 | AA80: 0 | AB80: 0 | AC80: 0 | AD80: 0 | AE80: 0 | AF80: 0 | AG80: 0 | AH80: =AH45*AH48 -> 16.05 | AI80: 15.8 | AJ80: 15.5 | AK80: 15.45 | AL80: 14.85 | AM80: 13.7 | AN80: 14.75 | AO80: 16.7 | AP80: 17.25 | AQ80: 16.35 | AR80: 17.75 | AS80: 16.3 | AT80: 14.45 | AU80: 11.6 | AV80: 11.4 | AW80: 10.2 | AX80: 6.65 | AY80: 4.5 | AZ80: 2.35 | BA80: 0.9 | BB80: 0.6 | BC80: 0.25 | BD80: 0.1 | BE80: 0
A81: Conso PAC élec ECS | B81: =IF(B48<>0,IF(B45<>0,$E$7*B48/B42,0),0) -> 0 | C81: 0 | D81: 0 | E81: 0 | F81: 0 | G81: 0 | H81: 0 | I81: 0 | J81: 0 | K81: 0 | L81: 0 | M81: 0 | N81: 0 | O81: 0 | P81: 0 | Q81: 0 | R81: 0 | S81: 0 | T81: 0 | U81: 0 | V81: 0 | W81: 0 | X81: 0 | Y81: 0 | Z81: 0 | AA81: 0 | AB81: 0 | AC81: 0 | AD81: 0 | AE81: 0 | AF81: 0 | AG81: 0 | AH81: =IF(AH48<>0,IF(AH45<>0,$E$7*AH48/AH42,0),0) -> 64.57274102 | AI81: 61.7553658 | AJ81: 58.90411031 | AK81: 57.13105585 | AL81: 53.47070449 | AM81: 48.06790075 | AN81: 50.4610247 | AO81: 55.74170918 | AP81: 56.20953364 | AQ81: 52.04043702 | AR81: 55.21509206 | AS81: 49.58003018 | AT81: 42.99920615 | AU81: 33.78535477 | AV81: 32.51240903 | AW81: 28.49745724 | AX81: 18.20830352 | AY81: 12.08023506 | AZ81: 6.187456887 | BA81: 2.325029008 | BB81: 1.521362736 | BC81: 0.622394375 | BD81: 0.2445191642 | BE81: 0 | BI81: Nb Jour couverts | BJ81: =SUM(B80:BE80) -> 253.45 | BK81: Prod ECS PAC | BL81: =BJ81*E7 -> 3053.95974 | BM81: kWh/an
A82: Couverture appoint | B82: =IF(B45=0,B48,0) -> 0 | C82: 0 | D82: 0 | E82: 0 | F82: 0 | G82: 0 | H82: 0 | I82: 0 | J82: 0 | K82: 0 | L82: 0 | M82: 0 | N82: 0.1 | O82: 0.15 | P82: 0.1 | Q82: 0.15 | R82: 0.35 | S82: 0.5 | T82: 0.8 | U82: 1.65 | V82: 2.4 | W82: 3.4 | X82: 3.55 | Y82: 6.35 | Z82: 6.85 | AA82: 8.45 | AB82: 9.8 | AC82: 10.35 | AD82: 11.95 | AE82: 14.25 | AF82: 15.75 | AG82: 14.9 | AH82: =IF(AH45=0,AH48,0) -> 0 | AI82: 0 | AJ82: 0 | AK82: 0 | AL82: 0 | AM82: 0 | AN82: 0 | AO82: 0 | AP82: 0 | AQ82: 0 | AR82: 0 | AS82: 0 | AT82: 0 | AU82: 0 | AV82: 0 | AW82: 0 | AX82: 0 | AY82: 0 | AZ82: 0 | BA82: 0 | BB82: 0 | BC82: 0 | BD82: 0 | BE82: 0 | BK82: Conso ECS PAC | BL82: =SUM(B81:BE81) -> 842.1334329 | BM82: kWh/an
A83: Conso appoint | B83: =B48*$E$7*IF(B45=0,1,0) -> 0 | C83: 0 | D83: 0 | E83: 0 | F83: 0 | G83: 0 | H83: 0 | I83: 0 | J83: 0 | K83: 0 | L83: 0 | M83: 0 | N83: 1.20495551 | O83: 1.807433265 | P83: 1.20495551 | Q83: 1.807433265 | R83: 4.217344285 | S83: 6.02477755 | T83: 9.639644079 | U83: 19.88176591 | V83: 28.91893224 | W83: 40.96848734 | X83: 42.7759206 | Y83: 76.51467488 | Z83: 82.53945243 | AA83: 101.8187406 | AB83: 118.08564 | AC83: 124.7128953 | AD83: 143.9921834 | AE83: 171.7061602 | AF83: 189.7804928 | AG83: 179.538371 | AH83: =AH48*$E$7*IF(AH45=0,1,0) -> 0 | AI83: 0 | AJ83: 0 | AK83: 0 | AL83: 0 | AM83: 0 | AN83: 0 | AO83: 0 | AP83: 0 | AQ83: 0 | AR83: 0 | AS83: 0 | AT83: 0 | AU83: 0 | AV83: 0 | AW83: 0 | AX83: 0 | AY83: 0 | AZ83: 0 | BA83: 0 | BB83: 0 | BC83: 0 | BD83: 0 | BE83: 0 | BI83: Nb Jour couverts | BJ83: =SUM(B82:BE82) -> 111.8 | BK83: Conso appoint | BL83: =SUM(B83:BE83) -> 1347.14026 | BM83: kWh/an
A103: DJ | B103: =B17*(Données!$J$30-3-Résultats!B16) -> 0 | C103: =C17*(Données!$J$30-3-Résultats!C16) -> 0 | D103: =D17*(Données!$J$30-3-Résultats!D16) -> 0 | E103: =E17*(Données!$J$30-3-Résultats!E16) -> 0 | F103: =F17*(Données!$J$30-3-Résultats!F16) -> 0 | G103: =G17*(Données!$J$30-3-Résultats!G16) -> 0 | H103: =H17*(Données!$J$30-3-Résultats!H16) -> 0 | I103: =I17*(Données!$J$30-3-Résultats!I16) -> 0 | J103: =J17*(Données!$J$30-3-Résultats!J16) -> 0 | K103: =K17*(Données!$J$30-3-Résultats!K16) -> 0 | L103: =L17*(Données!$J$30-3-Résultats!L16) -> 0 | M103: =M17*(Données!$J$30-3-Résultats!M16) -> 0 | N103: =N17*(Données!$J$30-3-Résultats!N16) -> 3 | O103: =O17*(Données!$J$30-3-Résultats!O16) -> 4.35 | P103: =P17*(Données!$J$30-3-Résultats!P16) -> 2.8 | Q103: =Q17*(Données!$J$30-3-Résultats!Q16) -> 4.05 | R103: =R17*(Données!$J$30-3-Résultats!R16) -> 9.1 | S103: =S17*(Données!$J$30-3-Résultats!S16) -> 12.5 | T103: =T17*(Données!$J$30-3-Résultats!T16) -> 19.2 | U103: =U17*(Données!$J$30-3-Résultats!U16) -> 37.95 | V103: =V17*(Données!$J$30-3-Résultats!V16) -> 52.8 | W103: =W17*(Données!$J$30-3-Résultats!W16) -> 71.4 | X103: =X17*(Données!$J$30-3-Résultats!X16) -> 71 | Y103: =Y17*(Données!$J$30-3-Résultats!Y16) -> 120.65 | Z103: =Z17*(Données!$J$30-3-Résultats!Z16) -> 123.3 | AA103: =AA17*(Données!$J$30-3-Résultats!AA16) -> 143.65 | AB103: =AB17*(Données!$J$30-3-Résultats!AB16) -> 156.8 | AC103: =AC17*(Données!$J$30-3-Résultats!AC16) -> 155.25 | AD103: =AD17*(Données!$J$30-3-Résultats!AD16) -> 167.3 | AE103: =AE17*(Données!$J$30-3-Résultats!AE16) -> 185.25 | AF103: =AF17*(Données!$J$30-3-Résultats!AF16) -> 189 | AG103: =AG17*(Données!$J$30-3-Résultats!AG16) -> 163.9 | AH103: =AH17*(Données!$J$30-3-Résultats!AH16) -> 160.5 | AI103: =AI17*(Données!$J$30-3-Résultats!AI16) -> 142.2 | AJ103: =AJ17*(Données!$J$30-3-Résultats!AJ16) -> 124 | AK103: =AK17*(Données!$J$30-3-Résultats!AK16) -> 108.15 | AL103: =AL17*(Données!$J$30-3-Résultats!AL16) -> 89.1 | AM103: =AM17*(Données!$J$30-3-Résultats!AM16) -> 68.5 | AN103: =AN17*(Données!$J$30-3-Résultats!AN16) -> 59 | AO103: =AO17*(Données!$J$30-3-Résultats!AO16) -> 50.1 | AP103: =AP17*(Données!$J$30-3-Résultats!AP16) -> 34.5 | AQ103: =AQ17*(Données!$J$30-3-Résultats!AQ16) -> 16.35 | AR103: =AR17*(Données!$J$30-3-Résultats!AR16) -> 0 | AS103: =AS17*(Données!$J$30-3-Résultats!AS16) -> 0 | AT103: =AT17*(Données!$J$30-3-Résultats!AT16) -> 0 | AU103: =AU17*(Données!$J$30-3-Résultats!AU16) -> 0 | AV103: =AV17*(Données!$J$30-3-Résultats!AV16) -> 0 | AW103: =AW17*(Données!$J$30-3-Résultats!AW16) -> 0 | AX103: =AX17*(Données!$J$30-3-Résultats!AX16) -> 0 | AY103: =AY17*(Données!$J$30-3-Résultats!AY16) -> 0 | AZ103: =AZ17*(Données!$J$30-3-Résultats!AZ16) -> 0 | BA103: =BA17*(Données!$J$30-3-Résultats!BA16) -> 0 | BB103: =BB17*(Données!$J$30-3-Résultats!BB16) -> 0 | BC103: =BC17*(Données!$J$30-3-Résultats!BC16) -> 0 | BD103: =BD17*(Données!$J$30-3-Résultats!BD16) -> 0 | BE103: =BE17*(Données!$J$30-3-Résultats!BE16) -> 0 | BF103: =SUM(B103:BE103) -> 2545.65 | BG103: =BF103*0.75 -> 1909.2375 | BI103: =BL82*'Consommations et Coûts de prod.'!H64*0.01 -> 123.2321924
BG104: =BG103*24 -> 45821.7
A105: % Production PAC Chauffage | B105: =B18*B33 -> 0 | C105: 0 | D105: 0 | E105: 0 | F105: 0 | G105: 0 | H105: 0 | I105: 0 | J105: 0 | K105: 0 | L105: 0 | M105: 0 | N105: 0 | O105: 0 | P105: 0 | Q105: 0 | R105: 0 | S105: 0 | T105: 0 | U105: 11618.11055 | V105: 17222.75397 | W105: 24879.20132 | X105: 26503.59562 | Y105: 48400.9547 | Z105: 53345.59405 | AA105: 67292.20093 | AB105: 79885.19143 | AC105: 84719.925 | AD105: 92382.4625 | AE105: 103683 | AF105: 107434.6875 | AG105: 94860.85 | AH105: =AH18*AH33 -> 94883.5875 | AI105: 86220.6 | AJ105: 77534.875 | AK105: 70258.875 | AL105: 60777.3375 | AM105: 49840.6 | AN105: 46952.9375 | AO105: 45565.95 | AP105: 39222.1875 | AQ105: 29740.65 | AR105: 24215.4375 | AS105: 0 | AT105: 0 | AU105: 0 | AV105: 0 | AW105: 0 | AX105: 0 | AY105: 0 | AZ105: 0 | BA105: 0 | BB105: 0 | BC105: 0 | BD105: 0 | BE105: 0 | BF105: =SUM(B105:BE105) -> 1437441.565
A106: % de Couverture PAC Chauffage | BF106: =BF105/BF18 -> 92.87348365

Sheet Station Météo (hidden)
B1: Poste | C1: -20 | D1: -19 | E1: -18 | F1: -17 | G1: -16 | H1: -15 | I1: -14 | J1: -13 | K1: -12 | L1: -11 | M1: -10 | N1: -9 | O1: -8 | P1: -7 | Q1: -6 | R1: -5 | S1: -4 | T1: -3 | U1: -2 | V1: -1 | W1: 0 | X1: 1 | Y1: 2 | Z1: 3 | AA1: 4 | AB1: 5 | AC1: 6 | AD1: 7 | AE1: 8 | AF1: 9 | AG1: 10 | AH1: 11 | AI1: 12 | AJ1: 13 | AK1: 14 | AL1: 15 | AM1: 16 | AN1: 17 | AO1: 18 | AP1: 19 | AQ1: 20 | AR1: 21 | AS1: 22 | AT1: 23 | AU1: 24 | AV1: 25 | AW1: 26 | AX1: 27 | AY1: 28 | AZ1: 29 | BA1: 30 | BB1: 31 | BC1: 32 | BD1: 33 | BE1: 34 | BF1: 35 | BG1: Somme
A2: 1 - Ain | B2: AMBERIEU | C2: 0 | D2: 0 | E2: 0 | F2: 0 | G2: 0 | H2: 0 | I2: 0 | J2: 0 | K2: 0 | L2: 0 | M2: 0 | N2: 0.15 | O2: 0.4 | P2: 0.9 | Q2: 1.05 | R2: 1.65 | S2: 3.05 | T2: 4.2 | U2: 5.35 | V2: 6.75 | W2: 8.35 | X2: 8.35 | Y2: 9.8 | Z2: 11.65 | AA2: 12.35 | AB2: 13.75 | AC2: 14.6 | AD2: 14.4 | AE2: 16.25 | AF2: 15.45 | AG2: 15.6 | AH2: 16.85 | AI2: 16.7 | AJ2: 14.5 | AK2: 17.25 | AL2: 16.5 | AM2: 16.9 | AN2: 17.15 | AO2: 15.45 | AP2: 14.8 | AQ2: 12.65 | AR2: 10.8 | AS2: 9.1 | AT2: 8.1 | AU2: 5.7 | AV2: 3.8 | AW2: 2.3 | AX2: 1.35 | AY2: 0.65 | AZ2: 0.5 | BA2: 0.05 | BG2: 365.15
A3: 2 - Aisne | B3: ST QUENTIN | C3: 0 | D3: 0 | E3: 0 | F3: 0 | G3: 0 | H3: 0 | I3: 0 | J3: 0 | K3: 0 | L3: 0.05 | M3: 0.05 | N3: 0.3 | O3: 0.15 | P3: 0.35 | Q3: 0.7 | R3: 1.05 | S3: 1.45 | T3: 2.75 | U3: 4.65 | V3: 5.95 | W3: 6.9 | X3: 10 | Y3: 11.05 | Z3: 12.35 | AA3: 16.2 | AB3: 16.55 | AC3: 18.7 | AD3: 20.65 | AE3: 19.6 | AF3: 17.75 | AG3: 19.4 | AH3: 17.85 | AI3: 18.65 | AJ3: 19.8 | AK3: 20.7 | AL3: 20.35 | AM3: 18.6 | AN3: 17.05 | AO3: 12.95 | AP3: 10.15 | AQ3: 7.4 | AR3: 6.05 | AS3: 4.2 | AT3: 2.45 | AU3: 1.15 | AV3: 0.75 | AW3: 0.3 | AX3: 0.2 | AY3: 0.05 | BG3: 365.25
A4: 3 - Allier | B4: VICHY-CHARMEIL | C4: 0 | D4: 0 | E4: 0 | F4: 0 | G4: 0 | H4: 0 | I4: 0 | J4: 0 | K4: 0 | L4: 0 | M4: 0.1 | N4: 0.25 | O4: 0.3 | P4: 0.6 | Q4: 0.8 | R4: 1 | S4: 2 | T4: 3.65 | U4: 4.15 | V4: 5.85 | W4: 6.25 | X4: 9.8 | Y4: 9.1 | Z4: 11.4 | AA4: 12.65 | AB4: 15.1 | AC4: 15.6 | AD4: 18.5 | AE4: 15.35 | AF4: 18.6 | AG4: 18.7 | AH4: 17.35 | AI4: 17.45 | AJ4: 15.8 | AK4: 17.5 | AL4: 18.2 | AM4: 17.75 | AN4: 18 | AO4: 16.05 | AP4: 12.75 | AQ4: 12.45 | AR4: 10.65 | AS4: 8.05 | AT4: 5.7 | AU4: 3.4 | AV4: 2 | AW4: 1.1 | AX4: 0.6 | AY4: 0.6 | AZ4: 0.1 | BG4: 365.25
A5: 4 - Alpes de haute provence | B5: LE LUC | C5: 0 | D5: 0 | E5: 0 | F5: 0 | G5: 0 | H5: 0 | I5: 0 | J5: 0 | K5: 0 | L5: 0 | M5: 0 | N5: 0 | O5: 0 | P5: 0 | Q5: 0 | R5: 0 | S5: 0 | T5: 0.05 | U5: 0.1 | V5: 0.3 | W5: 0.85 | X5: 2.25 | Y5: 3.9 | Z5: 5.6 | AA5: 7.75 | AB5: 11.55 | AC5: 12.15 | AD5: 15.25 | AE5: 15.15 | AF5: 17.35 | AG5: 18.9 | AH5: 18.55 | AI5: 16.95 | AJ5: 16.4 | AK5: 16.95 | AL5: 17.35 | AM5: 16.25 | AN5: 13.75 | AO5: 14 | AP5: 15.3 | AQ5: 14.8 | AR5: 16.2 | AS5: 14.65 | AT5: 14.85 | AU5: 14.05 | AV5: 13.6 | AW5: 10.1 | AX5: 5.5 | AY5: 2.7 | AZ5: 1.3 | BA5: 0.45 | BB5: 0.3 | BC5: 0.1 | BG5: 365.25
A6: 5 - Hautes-Alpes | B6: EMBRUN | C6: 0 | D6: 0 | E6: 0 | F6: 0 | G6: 0 | H6: 0 | I6: 0 | J6: 0 | K6: 0 | L6: 0 | M6: 0.05 | N6: 0.2 | O6: 0.3 | P6: 0.4 | Q6: 0.45 | R6: 1.35 | S6: 1.65 | T6: 4.1 | U6: 5.15 | V6: 6.2 | W6: 8.75 | X6: 12.15 | Y6: 14.2 | Z6: 17.75 | AA6: 16.9 | AB6: 17.95 | AC6: 15.15 | AD6: 15.75 | AE6: 16.35 | AF6: 14.25 | AG6: 14.35 | AH6: 14.7 | AI6: 16.55 | AJ6: 15.95 | AK6: 15.7 | AL6: 14.8 | AM6: 15.7 | AN6: 14.7 | AO6: 14.05 | AP6: 12.25 | AQ6: 11.2 | AR6: 11.65 | AS6: 9.35 | AT6: 6.75 | AU6: 5.55 | AV6: 2.05 | AW6: 0.6 | AX6: 0.25 | AY6: 0.05 | BG6: 365.25
A7: 6 - Alpes maritimes | B7: NICE | C7: 0 | D7: 0 | E7: 0 | F7: 0 | G7: 0 | H7: 0 | I7: 0 | J7: 0 | K7: 0 | L7: 0 | M7: 0 | N7: 0 | O7: 0 | P7: 0 | Q7: 0 | R7: 0 | S7: 0 | T7: 0 | U7: 0 | V7: 0 | W7: 0.1 | Y7: 0.15 | Z7: 0.6 | AA7: 1.25 | AB7: 2.1 | AC7: 5.25 | AD7: 8.8 | AE7: 14.25 | AF7: 21.65 | AG7: 26.65 | AH7: 26.65 | AI7: 26.2 | AJ7: 22.9 | AK7: 14.9 | AL7: 14.75 | AM7: 16.45 | AN7: 17.3 | AO7: 18.3 | AP7: 15.5 | AQ7: 18.2 | AR7: 19 | AS7: 17.25 | AT7: 18.55 | AU7: 17.6 | AV7: 10.9 | AW7: 5.95 | AX7: 2.9 | AY7: 0.7 | AZ7: 0.2 | BA7: 0.2 | BB7: 0.05 | BG7: 365.25
A8: 7 - Ardèche | B8: ST-MARCEL-LES-V | C8: 0 | D8: 0 | E8: 0 | F8: 0 | G8: 0 | H8: 0 | I8: 0 | J8: 0 | K8: 0 | L8: 0 | M8: 0 | N8: 0 | O8: 0 | P8: 0 | Q8: 0.15 | R8: 0.6 | S8: 1.05 | T8: 1.6 | U8: 2.85 | V8: 3.55 | W8: 6.5 | X8: 8.25 | Y8: 9.9 | Z8: 9.55 | AA8: 10.75 | AB8: 14.9 | AC8: 14.4 | AD8: 16.35 | AE8: 15.7 | AF8: 16.3 | AG8: 16.55 | AH8: 16.3 | AI8: 14.7 | AJ8: 15.05 | AK8: 15.1 | AL8: 16.6 | AM8: 16.05 | AN8: 17.4 | AO8: 16.6 | AP8: 15.85 | AQ8: 14.45 | AR8: 12.6 | AS8: 12.35 | AT8: 11.2 | AU8: 9.1 | AV8: 6.65 | AW8: 3.85 | AX8: 1.65 | AY8: 0.35 | AZ8: 0.3 | BA8: 0.15 | BG8: 365.25
A9: 8 - Ardennes | B9: CHARLEVILLE-MEZ | C9: 0 | D9: 0 | E9: 0 | F9: 0 | G9: 0 | H9: 0 | I9: 0 | J9: 0.05 | K9: 0 | L9: 0.15 | M9: 0.25 | N9: 0.3 | O9: 0.55 | P9: 0.8 | Q9: 1.35 | R9: 1.9 | S9: 2.6 | T9: 4.65 | U9: 5.75 | V9: 7.8 | W9: 8.55 | X9: 11.2 | Y9: 11.85 | Z9: 16.35 | AA9: 16.35 | AB9: 17.85 | AC9: 18.9 | AD9: 18.7 | AE9: 18.35 | AF9: 19.55 | AG9: 17.55 | AH9: 17.9 | AI9: 17.8 | AJ9: 20.3 | AK9: 20.7 | AL9: 18.55 | AM9: 16.95 | AN9: 13.7 | AO9: 12.1 | AP9: 9.1 | AQ9: 6.8 | AR9: 4.7 | AS9: 2.85 | AT9: 1.55 | AU9: 0.45 | AV9: 0.35 | AW9: 0.1 | BG9: 365.25
A10: 9 - Ariège | B10: ST GIRONS | C10: 0 | D10: 0 | E10: 0 | F10: 0 | G10: 0 | H10: 0 | I10: 0 | J10: 0 | K10: 0 | L10: 0 | M10: 0 | N10: 0 | O10: 0 | P10: 0 | Q10: 0 | R10: 0.55 | S10: 0.65 | T10: 0.95 | U10: 2.1 | V10: 1.95 | W10: 3.75 | X10: 5 | Y10: 6.4 | Z10: 8.75 | AA10: 12 | AB10: 15.45 | AC10: 18.7 | AD10: 20.6 | AE10: 19.35 | AF10: 21.4 | AG10: 18.75 | AH10: 18.65 | AI10: 16.65 | AJ10: 19.15 | AK10: 17.8 | AL10: 19.2 | AM10: 19.4 | AN10: 18.05 | AO10: 16.45 | AP10: 15.4 | AQ10: 14.55 | AR10: 12.2 | AS10: 8.4 | AT10: 5.5 | AU10: 3.9 | AV10: 2.2 | AW10: 0.9 | AX10: 0.35 | AY10: 0.1 | AZ10: 0.05 | BG10: 365.25
A11: 10 - Aube | B11: TROYES-BARBEREY | C11: 0 | D11: 0 | E11: 0 | F11: 0 | G11: 0 | H11: 0.05 | I11: 0.05 | J11: 0 | K11: 0.05 | L11: 0.05 | M11: 0.1 | N11: 0.2 | O11: 0.6 | P11: 0.45 | Q11: 0.85 | R11: 1.15 | S11: 2.2 | T11: 2.55 | U11: 3.7 | V11: 6.75 | W11: 7.85 | X11: 7.95 | Y11: 10.05 | Z11: 14 | AA11: 13.4 | AB11: 14.5 | AC11: 17.65 | AD11: 20 | AE11: 17.65 | AF11: 18.85 | AG11: 17 | AH11: 16.7 | AI11: 17.8 | AJ11: 16.4 | AK11: 18.75 | AL11: 18.2 | AM11: 18.75 | AN11: 16.8 | AO11: 15.45 | AP11: 13.7 | AQ11: 10.15 | AR11: 8.55 | AS11: 7.1 | AT11: 4.15 | AU11: 2.45 | AV11: 1.15 | AW11: 0.65 | AX11: 0.35 | AY11: 0.3 | AZ11: 0.1 | BG11: 365.15
A12: 11 - Aude | B12: CARCASSONNE | C12: 0 | D12: 0 | E12: 0 | F12: 0 | G12: 0 | H12: 0 | I12: 0 | J12: 0 | K12: 0 | L12: 0 | M12: 0 | N12: 0 | O12: 0 | P12: 0 | Q12: 0 | R12: 0 | S12: 0.1 | T12: 0.3 | U12: 0.8 | V12: 1.75 | W12: 2.15 | X12: 3.55 | Y12: 4.9 | Z12: 6.55 | AA12: 8.4 | AB12: 9.15 | AC12: 11.95 | AD12: 17.1 | AE12: 18.35 | AF12: 17.2 | AG12: 21.85 | AH12: 20.2 | AI12: 19.65 | AJ12: 17.6 | AK12: 14.9 | AL12: 14.75 | AM12: 15.2 | AN12: 17.1 | AO12: 18.1 | AP12: 16.25 | AQ12: 16.05 | AR12: 14.55 | AS12: 13.5 | AT12: 13.7 | AU12: 11.5 | AV12: 8.4 | AW12: 4.95 | AX12: 2.6 | AY12: 1.5 | AZ12: 0.4 | BA12: 0.1 | BB12: 0.05 | BC12: 0.1 | BG12: 365.25
A13: 12 - Aveyron | B13: MILLAU | C13: 0 | D13: 0 | E13: 0 | F13: 0 | G13: 0 | H13: 0 | I13: 0 | J13: 0 | K13: 0 | L13: 0 | M13: 0 | N13: 0 | O13: 0.1 | P13: 0.3 | Q13: 0.65 | R13: 1.5 | S13: 2.05 | T13: 2.9 | U13: 3.15 | V13: 4.75 | W13: 7.3 | X13: 8.2 | Y13: 11.55 | Z13: 13.6 | AA13: 15.65 | AB13: 19.4 | AC13: 20.65 | AD13: 20.05 | AE13: 19.45 | AF13: 17.1 | AG13: 15.3 | AH13: 16.05 | AI13: 15.95 | AJ13: 17.6 | AK13: 17.5 | AL13: 17.1 | AM13: 14.8 | AN13: 14.6 | AO13: 11.75 | AP13: 12.75 | AQ13: 11.3 | AR13: 10 | AS13: 7.5 | AT13: 6 | AU13: 4.2 | AV13: 2.15 | AW13: 1.45 | AX13: 0.5 | AY13: 0.25 | AZ13: 0.1 | BA13: 0.05 | BG13: 365.25
A14: 13 - Bouches-du-Rhône | B14: MARIGNANE | C14: 0 | D14: 0 | E14: 0 | F14: 0 | G14: 0 | H14: 0 | I14: 0 | J14: 0 | K14: 0 | L14: 0 | M14: 0 | N14: 0 | O14: 0 | P14: 0 | Q14: 0 | R14: 0 | S14: 0 | T14: 0.05 | U14: 0.2 | V14: 0.35 | W14: 1.45 | X14: 2.1 | Y14: 3.2 | Z14: 4.95 | AA14: 7.7 | AB14: 8.75 | AC14: 10.65 | AD14: 11.7 | AE14: 16.05 | AF14: 16.2 | AG14: 18.15 | AH14: 18.25 | AI14: 18.3 | AJ14: 18.6 | AK14: 17.3 | AL14: 13.95 | AM14: 12.45 | AN14: 15.45 | AO14: 15.4 | AP14: 18.35 | AQ14: 15.3 | AR14: 15.4 | AS14: 16.55 | AT14: 14.2 | AU14: 14.8 | AV14: 14.05 | AW14: 12.8 | AX14: 7.1 | AY14: 3.85 | AZ14: 1.2 | BA14: 0.4 | BB14: 0.05 | BG14: 365.25
A15: 14 - Calvados | B15: CAEN-CARPIQUET | C15: 0 | D15: 0 | E15: 0 | F15: 0 | G15: 0 | H15: 0 | I15: 0 | J15: 0 | K15: 0 | L15: 0 | M15: 0.05 | N15: 0.1 | O15: 0 | P15: 0.05 | Q15: 0 | R15: 0.35 | S15: 0.7 | T15: 1.25 | U15: 1.8 | V15: 3 | W15: 3.85 | X15: 5.15 | Y15: 7.3 | Z15: 8.7 | AA15: 11.2 | AB15: 16 | AC15: 18.35 | AD15: 21.2 | AE15: 23.35 | AF15: 23.45 | AG15: 22.2 | AH15: 23.6 | AI15: 20.3 | AJ15: 21.25 | AK15: 23.2 | AL15: 23.05 | AM15: 23.45 | AN15: 19.3 | AO15: 15.7 | AP15: 10.3 | AQ15: 7 | AR15: 4.65 | AS15: 2.4 | AT15: 1.4 | AU15: 0.8 | AV15: 0.4 | AW15: 0.3 | AY15: 0.05 | BA15: 0.05 | BG15: 365.25
A16: 15 - Cantal | B16: AURILLAC | C16: 0 | D16: 0 | E16: 0 | F16: 0 | G16: 0 | H16: 0 | I16: 0 | J16: 0 | K16: 0 | L16: 0 | M16: 0.05 | N16: 0.05 | O16: 0.25 | P16: 0.7 | Q16: 1.55 | R16: 1.2 | S16: 2.6 | T16: 3.15 | U16: 3.8 | V16: 5.3 | W16: 7.2 | X16: 9.05 | Y16: 12.25 | Z16: 15.3 | AA16: 17.55 | AB16: 17.9 | AC16: 19.95 | AD16: 18.9 | AE16: 19.6 | AF16: 19.7 | AG16: 16.6 | AH16: 17.65 | AI16: 18.9 | AJ16: 18.95 | AK16: 16.9 | AL16: 18.6 | AM16: 16.35 | AN16: 13.55 | AO16: 12.25 | AP16: 11.5 | AQ16: 9.1 | AR16: 6.7 | AS16: 5.05 | AT16: 3.75 | AU16: 1.8 | AV16: 0.8 | AW16: 0.35 | AX16: 0.3 | AY16: 0.1 | BG16: 365.25
A17: 16 - Charente | B17: COGNAC | C17: 0 | D17: 0 | E17: 0 | F17: 0 | G17: 0 | H17: 0 | I17: 0 | J17: 0 | K17: 0 | L17: 0 | M17: 0 | N17: 0 | O17: 0 | P17: 0.05 | Q17: 0.2 | R17: 0.25 | S17: 0.2 | T17: 1.1 | U17: 1.6 | V17: 1.85 | W17: 2.85 | X17: 4.2 | Y17: 6.05 | Z17: 7.8 | AA17: 8.5 | AB17: 9.6 | AC17: 11.65 | AD17: 15.75 | AE17: 18.05 | AF17: 19.35 | AG17: 22.35 | AH17: 20.65 | AI17: 19.75 | AJ17: 17.3 | AK17: 17.15 | AL17: 19.25 | AM17: 18.85 | AN17: 18.35 | AO17: 19 | AP17: 18.55 | AQ17: 17.55 | AR17: 13.1 | AS17: 9.9 | AT17: 7.8 | AU17: 6.65 | AV17: 4.45 | AW17: 2.9 | AX17: 1.2 | AY17: 1 | AZ17: 0.25 | BA17: 0.2 | BG17: 365.25
A18: 17 - Charente-Maritime | B18: LA ROCHELLE | C18: 0 | D18: 0 | E18: 0 | F18: 0 | G18: 0 | H18: 0 | I18: 0 | J18: 0 | K18: 0 | L18: 0 | M18: 0 | N18: 0 | O18: 0 | P18: 0 | Q18: 0.15 | R18: 0.05 | S18: 0.25 | T18: 0.4 | U18: 0.8 | V18: 1.65 | W18: 2.35 | X18: 3.8 | Y18: 4.65 | Z18: 6.8 | AA18: 7.2 | AB18: 9 | AC18: 10.55 | AD18: 14.4 | AE18: 17.8 | AF18: 23.05 | AG18: 26.3 | AH18: 22.9 | AI18: 20.35 | AJ18: 17.95 | AK18: 17.5 | AL18: 18 | AM18: 21.45 | AN18: 22.6 | AO18: 21.35 | AP18: 21.8 | AQ18: 16.45 | AR18: 11 | AS18: 8.2 | AT18: 5.55 | AU18: 4.85 | AV18: 2.9 | AW18: 1.5 | AX18: 0.8 | AY18: 0.6 | AZ18: 0.25 | BA18: 0.05 | BG18: 365.25
A19: 18 - Cher | B19: BOURGES | C19: 0 | D19: 0 | E19: 0 | F19: 0 | G19: 0 | H19: 0 | I19: 0 | J19: 0 | K19: 0 | L19: 0 | M19: 0.05 | N19: 0 | O19: 0.1 | P19: 0.3 | Q19: 0.55 | R19: 0.65 | S19: 1.45 | T19: 2.05 | U19: 3.05 | V19: 5.3 | W19: 6.1 | X19: 7.35 | Y19: 8.35 | Z19: 11.55 | AA19: 11.35 | AB19: 14.8 | AC19: 15.75 | AD19: 17.45 | AE19: 19.8 | AF19: 19.65 | AG19: 19.1 | AH19: 16.3 | AI19: 16.7 | AJ19: 17.55 | AK19: 17.75 | AL19: 17.55 | AM19: 17.9 | AN19: 18.45 | AO19: 17 | AP19: 14.5 | AQ19: 11.05 | AR19: 11.2 | AS19: 7.6 | AT19: 6.55 | AU19: 5 | AV19: 2.45 | AW19: 1.1 | AX19: 0.7 | AY19: 0.6 | AZ19: 0.25 | BA19: 0.25 | BB19: 0.05 | BG19: 365.25
A20: 19 - Corrèze | B20: BRIVE | C20: 0 | D20: 0 | E20: 0 | F20: 0 | G20: 0 | H20: 0 | I20: 0 | J20: 0 | K20: 0 | L20: 0 | M20: 0 | N20: 0 | O20: 0 | P20: 0.05 | Q20: 0.4 | R20: 0.6 | S20: 1 | T20: 1.2 | U20: 2.05 | V20: 3.35 | W20: 4.45 | X20: 6.4 | Y20: 6.6 | Z20: 8.7 | AA20: 10.95 | AB20: 14.25 | AC20: 14.2 | AD20: 16.35 | AE20: 18.2 | AF20: 20.65 | AG20: 18.65 | AH20: 19.4 | AI20: 17.7 | AJ20: 17.7 | AK20: 17.5 | AL20: 18.2 | AM20: 18.35 | AN20: 17.15 | AO20: 19.55 | AP20: 14.6 | AQ20: 14.8 | AR20: 13.5 | AS20: 8.9 | AT20: 8.35 | AU20: 5.45 | AV20: 2.75 | AW20: 1.8 | AX20: 0.85 | AY20: 0.55 | AZ20: 0.1 | BG20: 365.25
A21: 2A - Corse-du-Sud | B21: AJACCIO | C21: 0 | D21: 0 | E21: 0 | F21: 0 | G21: 0 | H21: 0 | I21: 0 | J21: 0 | K21: 0 | L21: 0 | M21: 0 | N21: 0 | O21: 0 | P21: 0 | Q21: 0 | R21: 0 | S21: 0 | T21: 0 | U21: 0 | V21: 0 | W21: 0 | X21: 0.15 | Y21: 0.5 | Z21: 0.8 | AA21: 2.1 | AB21: 4.75 | AC21: 5.7 | AD21: 11.65 | AE21: 19.1 | AF21: 22.85 | AG21: 25.1 | AH21: 25.5 | AI21: 23.3 | AJ21: 17.2 | AK21: 16.5 | AL21: 16.9 | AM21: 17.85 | AN21: 17.2 | AO21: 17.2 | AP21: 19.4 | AQ21: 18.35 | AR21: 21.55 | AS21: 19.8 | AT21: 17.15 | AU21: 12 | AV21: 6.2 | AW21: 3.65 | AX21: 1.15 | AY21: 1.05 | AZ21: 0.25 | BA21: 0.3 | BC21: 0.05 | BG21: 365.25
A22: 2B - Haute-Corse | B22: BASTIA | C22: 0 | D22: 0 | E22: 0 | F22: 0 | G22: 0 | H22: 0 | I22: 0 | J22: 0 | K22: 0 | L22: 0 | M22: 0 | N22: 0 | O22: 0 | P22: 0 | Q22: 0 | R22: 0 | S22: 0 | T22: 0 | U22: 0 | V22: 0 | W22: 0 | X22: 0.2 | Y22: 0.45 | Z22: 0.9 | AA22: 2.1 | AB22: 4.35 | AC22: 5 | AD22: 9.2 | AE22: 13.9 | AF22: 19.5 | AG22: 23.15 | AH22: 28.15 | AI22: 26.4 | AJ22: 20.15 | AK22: 16.15 | AL22: 15.5 | AM22: 16.85 | AN22: 17.55 | AO22: 16.5 | AP22: 16.15 | AQ22: 15.85 | AR22: 16.9 | AS22: 17.2 | AT22: 17.5 | AU22: 19.15 | AV22: 14.15 | AW22: 7.65 | AX22: 3.4 | AY22: 0.8 | AZ22: 0.3 | BA22: 0.15 | BB22: 0.05 | BG22: 365.25
A23: 21 - Côte-d'Or | B23: DIJON-LONGVIC | C23: 0 | D23: 0 | E23: 0 | F23: 0 | G23: 0 | H23: 0 | I23: 0 | J23: 0 | K23: 0 | L23: 0 | M23: 0.1 | N23: 0.35 | O23: 0.3 | P23: 0.9 | Q23: 1.15 | R23: 1.45 | S23: 2.75 | T23: 4.05 | U23: 6.1 | V23: 6.55 | W23: 8.35 | X23: 10.4 | Y23: 10.6 | Z23: 12.75 | AA23: 14.05 | AB23: 15.2 | AC23: 16.3 | AD23: 15.3 | AE23: 18.05 | AF23: 16.8 | AG23: 14.8 | AH23: 14.8 | AI23: 15.75 | AJ23: 15.75 | AK23: 16.5 | AL23: 16.3 | AM23: 17.2 | AN23: 15.4 | AO23: 15.4 | AP23: 14 | AQ23: 11.75 | AR23: 10.25 | AS23: 8.8 | AT23: 7 | AU23: 4.7 | AV23: 3.05 | AW23: 1.1 | AX23: 0.6 | AY23: 0.2 | AZ23: 0.2 | BA23: 0.15 | BB23: 0.05 | BG23: 365.25
A24: 22 - Côtes-d'Armor | B24: ST BRIEUC | C24: 0 | D24: 0 | E24: 0 | F24: 0 | G24: 0 | H24: 0 | I24: 0 | J24: 0 | K24: 0 | L24: 0 | M24: 0 | N24: 0 | O24: 0.05 | P24: 0 | Q24: 0.1 | R24: 0.1 | S24: 0.05 | T24: 0.65 | U24: 1.2 | V24: 1.9 | W24: 2.8 | X24: 4.1 | Y24: 5.9 | Z24: 7.8 | AA24: 11.15 | AB24: 14.85 | AC24: 20.5 | AD24: 23.8 | AE24: 24.5 | AF24: 26.25 | AG24: 25.95 | AH24: 23.85 | AI24: 24.7 | AJ24: 23.5 | AK24: 25.3 | AL24: 24.15 | AM24: 23.1 | AN24: 19.8 | AO24: 12.85 | AP24: 7.7 | AQ24: 4.25 | AR24: 1.7 | AS24: 1.6 | AT24: 0.55 | AU24: 0.3 | AV24: 0.1 | AW24: 0.05 | AX24: 0.05 | BA24: 0.05 | BG24: 365.25
A25: 23 - Creuse | B25: GUERET-GRANCHER | C25: 0 | D25: 0 | E25: 0 | F25: 0 | G25: 0 | H25: 0 | I25: 0 | J25: 0 | K25: 0 | L25: 0 | M25: 0 | N25: 0.1 | O25: 0.25 | P25: 0.7 | Q25: 1 | R25: 1.05 | S25: 2.15 | T25: 3.45 | U25: 4.15 | V25: 6.1 | W25: 5.95 | X25: 7.65 | Y25: 8.65 | Z25: 12.3 | AA25: 14.25 | AB25: 17.5 | AC25: 18.55 | AD25: 20.05 | AE25: 18.3 | AF25: 18.7 | AG25: 17.35 | AH25: 16.55 | AI25: 18.65 | AJ25: 18.65 | AK25: 17.35 | AL25: 18.25 | AM25: 16.55 | AN25: 17.55 | AO25: 13.35 | AP25: 11.55 | AQ25: 9.4 | AR25: 7.4 | AS25: 7.2 | AT25: 5.55 | AU25: 3.35 | AV25: 2.2 | AW25: 1.3 | AX25: 0.8 | AY25: 0.55 | AZ25: 0.25 | BA25: 0.2 | BB25: 0.25 | BC25: 0.15 | BG25: 365.25
A26: 24 - Dordogne | B26: ST MARTIN RIB. | C26: 0 | D26: 0 | E26: 0 | F26: 0 | G26: 0 | H26: 0 | I26: 0 | J26: 0 | K26: 0 | L26: 0 | M26: 0 | N26: 0 | O26: 0 | P26: 0 | Q26: 0.1796259843 | R26: 0.2993766404 | S26: 1.25738189 | T26: 1.137631234 | U26: 1.437007874 | V26: 1.975885827 | W26: 3.532644357 | X26: 4.131397638 | Y26: 6.167158793 | Z26: 7.18503937 | AA26: 7.364665354 | AB26: 11.91519029 | AC26: 12.33431759 | AD26: 17.66322178 | AE26: 16.94471785 | AF26: 19.45948163 | AG26: 20.23786089 | AH26: 21.97424541 | AI26: 16.04658793 | AJ26: 17.42372047 | AK26: 16.4058399 | AL26: 19.99835958 | AM26: 19.04035433 | AN26: 19.04035433 | AO26: 18.92060367 | AP26: 18.56135171 | AQ26: 16.4058399 | AR26: 14.42995407 | AS26: 10.83743438 | AT26: 8.202919948 | AU26: 5.448654856 | AV26: 3.891896325 | AW26: 2.574639108 | AX26: 1.077755906 | AY26: 1.017880577 | AZ26: 0.4191272966 | BA26: 0.05987532808 | BG26: 365
A27: 25 - Doubs | B27: BESANCON | C27: 0 | D27: 0 | E27: 0 | F27: 0 | G27: 0 | H27: 0 | I27: 0 | J27: 0 | K27: 0 | L27: 0 | M27: 0.2 | N27: 0.1 | O27: 0.45 | P27: 0.55 | Q27: 0.95 | R27: 1.7 | S27: 3.15 | T27: 3.45 | U27: 5.85 | V27: 7.35 | W27: 9.15 | X27: 10.1 | Y27: 11.4 | Z27: 10.45 | AA27: 14.1 | AB27: 15.2 | AC27: 13.8 | AD27: 16 | AE27: 17.35 | AF27: 17.8 | AG27: 15.7 | AH27: 16.7 | AI27: 14.05 | AJ27: 18.6 | AK27: 17 | AL27: 15.25 | AM27: 18.35 | AN27: 17.3 | AO27: 15.45 | AP27: 12.95 | AQ27: 11.2 | AR27: 10.7 | AS27: 8.75 | AT27: 6.4 | AU27: 3.4 | AV27: 2.35 | AW27: 0.85 | AX27: 0.7 | AY27: 0.25 | AZ27: 0.15 | BA27: 0.05 | BG27: 365.25
A28: 26 - Drôme | B28: BUIS -BARONNIES | C28: 0 | D28: 0 | E28: 0 | F28: 0 | G28: 0 | H28: 0 | I28: 0 | J28: 0 | K28: 0 | L28: 0 | M28: 0 | N28: 0 | O28: 0 | P28: 0 | Q28: 0 | R28: 0.05037261938 | S28: 0.05037261938 | T28: 0.402980955 | U28: 0.6548440519 | V28: 1.460805962 | W28: 2.266767872 | X28: 4.180927408 | Y28: 5.188379796 | Z28: 8.86558101 | AA28: 12.29091913 | AB28: 14.25545128 | AC28: 16.01849296 | AD28: 18.08377036 | AE28: 16.67333701 | AF28: 17.37855368 | AG28: 18.73861441 | AH28: 16.62296439 | AI28: 17.32818107 | AJ28: 16.01849296 | AK28: 13.90284295 | AL28: 14.50731438 | AM28: 17.02594535 | AN28: 17.78153464 | AO28: 15.8673751 | AP28: 14.96066795 | AQ28: 15.46439415 | AR28: 13.2479989 | AS28: 12.59315484 | AT28: 11.98868341 | AU28: 10.42713221 | AV28: 9.67154292 | AW28: 6.951421474 | AX28: 2.317140491 | AY28: 0.9570797681 | AZ28: 0.4533535744 | BA28: 0.3022357163 | BC28: 0.05037261938 | BG28: 365
A29: 27 - Eure | B29: EVREUX-HUEST | C29: 0 | D29: 0 | E29: 0 | F29: 0 | G29: 0 | H29: 0 | I29: 0 | J29: 0 | K29: 0 | L29: 0.1 | M29: 0 | N29: 0.05 | O29: 0.1 | P29: 0.25 | Q29: 0.45 | R29: 0.8 | S29: 1.25 | T29: 2.6 | U29: 3.9 | V29: 4.7 | W29: 6.2 | X29: 8.2 | Y29: 8.7 | Z29: 13 | AA29: 13.75 | AB29: 14.6 | AC29: 18.35 | AD29: 20.95 | AE29: 21.9 | AF29: 20.1 | AG29: 19.15 | AH29: 18.65 | AI29: 19.5 | AJ29: 19.8 | AK29: 18.8 | AL29: 20.45 | AM29: 19.95 | AN29: 18.25 | AO29: 14.1 | AP29: 11.7 | AQ29: 8.2 | AR29: 6.4 | AS29: 3.7 | AT29: 3.15 | AU29: 1.3 | AV29: 1.15 | AW29: 0.3 | AX29: 0.35 | AY29: 0.3 | AZ29: 0.05 | BB29: 0.05 | BG29: 365.25
A30: 28 - Eure-et-Loire | B30: CHATEAUDUN | C30: 0 | D30: 0 | E30: 0 | F30: 0 | G30: 0 | H30: 0 | I30: 0 | J30: 0 | K30: 0 | L30: 0 | M30: 0.1 | N30: 0.1 | O30: 0 | P30: 0.3 | Q30: 0.5 | R30: 0.7 | S30: 1.2 | T30: 2.6 | U30: 3.85 | V30: 5 | W30: 6.2 | X30: 7.75 | Y30: 9.9 | Z30: 11.7 | AA30: 12.5 | AB30: 16.2 | AC30: 18.1 | AD30: 19.8 | AE30: 19.85 | AF30: 20.2 | AG30: 16.95 | AH30: 17.95 | AI30: 18.65 | AJ30: 18.65 | AK30: 17.05 | AL30: 19.65 | AM30: 19 | AN30: 16.7 | AO30: 15.75 | AP30: 14.75 | AQ30: 10.15 | AR30: 7.4 | AS30: 5.95 | AT30: 4.35 | AU30: 2.9 | AV30: 1.6 | AW30: 0.45 | AX30: 0.3 | AY30: 0.2 | AZ30: 0.15 | BA30: 0.15 | BG30: 365.25
A31: 29 - Finistère | B31: BREST-GUIPAVAS | C31: 0 | D31: 0 | E31: 0 | F31: 0 | G31: 0 | H31: 0 | I31: 0 | J31: 0 | K31: 0 | L31: 0 | M31: 0 | N31: 0 | O31: 0 | P31: 0 | Q31: 0 | R31: 0.1 | S31: 0.05 | T31: 0.2 | U31: 0.15 | V31: 1 | W31: 1.35 | X31: 3.65 | Y31: 3.15 | Z31: 6.05 | AA31: 9.5 | AB31: 12.25 | AC31: 15.35 | AD31: 22.1 | AE31: 27.6 | AF31: 30.05 | AG31: 30.5 | AH31: 28.65 | AI31: 24.1 | AJ31: 22.9 | AK31: 27.15 | AL31: 28.05 | AM31: 25.7 | AN31: 18.85 | AO31: 11.65 | AP31: 6.75 | AQ31: 3.85 | AR31: 2.6 | AS31: 1.05 | AT31: 0.35 | AU31: 0.4 | AW31: 0.05 | AX31: 0.1 | BG31: 365.25
A32: 30 - Gard | B32: NIMES-COURBESSAC | C32: 0 | D32: 0 | E32: 0 | F32: 0 | G32: 0 | H32: 0 | I32: 0 | J32: 0 | K32: 0 | L32: 0 | M32: 0 | N32: 0 | O32: 0 | P32: 0 | Q32: 0 | R32: 0 | S32: 0.05 | T32: 0.1 | U32: 0.2 | V32: 0.95 | W32: 1.25 | X32: 1.8 | Y32: 3.7 | Z32: 5.8 | AA32: 8.1 | AB32: 9.9 | AC32: 12.25 | AD32: 13.95 | AE32: 16.75 | AF32: 18.05 | AG32: 19.1 | AH32: 17.4 | AI32: 18 | AJ32: 18.4 | AK32: 14.7 | AL32: 13.15 | AM32: 15.1 | AN32: 16 | AO32: 16.05 | AP32: 16.6 | AQ32: 14.2 | AR32: 14.5 | AS32: 14.25 | AT32: 15 | AU32: 11.5 | AV32: 12.65 | AW32: 10.15 | AX32: 7.85 | AY32: 4.15 | AZ32: 2.35 | BA32: 1.1 | BB32: 0.2 | BG32: 365.25
A33: 31 - Haute-Garonne | B33: TOULOUSE-BLAGNAC | C33: 0 | D33: 0 | E33: 0 | F33: 0 | G33: 0 | H33: 0 | I33: 0 | J33: 0 | K33: 0 | L33: 0 | M33: 0 | N33: 0 | O33: 0 | P33: 0 | Q33: 0 | R33: 0.1 | S33: 0.5 | T33: 0.8 | U33: 1.7 | V33: 1.8 | W33: 2.65 | X33: 5.45 | Y33: 5.9 | Z33: 6.6 | AA33: 8.25 | AB33: 9.95 | AC33: 14.25 | AD33: 15.1 | AE33: 17.75 | AF33: 19.3 | AG33: 20.85 | AH33: 18.2 | AI33: 19.4 | AJ33: 16.9 | AK33: 15.8 | AL33: 14.95 | AM33: 15.75 | AN33: 17.65 | AO33: 16.7 | AP33: 16.3 | AQ33: 16.7 | AR33: 14.25 | AS33: 12.8 | AT33: 12.55 | AU33: 9.2 | AV33: 7.05 | AW33: 4.45 | AX33: 3.45 | AY33: 1.25 | AZ33: 0.4 | BA33: 0.35 | BB33: 0.2 | BG33: 365.25
A34: 32 - Gers | B34: AUCH | C34: 0 | D34: 0 | E34: 0 | F34: 0 | G34: 0 | H34: 0 | I34: 0 | J34: 0 | K34: 0 | L34: 0 | M34: 0 | N34: 0 | O34: 0 | P34: 0 | Q34: 0.2 | R34: 0.35 | S34: 0.5 | T34: 1.35 | U34: 1.5 | V34: 2.35 | W34: 3.6 | X34: 4.7 | Y34: 6.55 | Z34: 7.75 | AA34: 9.95 | AB34: 12.45 | AC34: 15.6 | AD34: 16.8 | AE34: 18.35 | AF34: 19.55 | AG34: 21.7 | AH34: 17.45 | AI34: 17.8 | AJ34: 16.45 | AK34: 16.2 | AL34: 16.3 | AM34: 18 | AN34: 18.15 | AO34: 16.85 | AP34: 16.8 | AQ34: 15.6 | AR34: 13.8 | AS34: 12.95 | AT34: 9.55 | AU34: 7 | AV34: 4.55 | AW34: 2.45 | AX34: 1.15 | AY34: 0.65 | AZ34: 0.1 | BA34: 0.2 | BG34: 365.25
A35: 33 - Gironde | B35: BORDEAUX-MERIGNAC | C35: 0 | D35: 0 | E35: 0 | F35: 0 | G35: 0 | H35: 0 | I35: 0 | J35: 0 | K35: 0 | L35: 0 | M35: 0 | N35: 0 | O35: 0 | P35: 0 | Q35: 0 | R35: 0.15 | S35: 0.25 | T35: 0.6 | U35: 1.55 | V35: 1.75 | W35: 2.25 | X35: 3.4 | Y35: 4.5 | Z35: 6.95 | AA35: 7 | AB35: 8.85 | AC35: 11.35 | AD35: 12.5 | AE35: 17.2 | AF35: 18.55 | AG35: 22.15 | AH35: 22 | AI35: 20.4 | AJ35: 18.45 | AK35: 18.55 | AL35: 18 | AM35: 19.15 | AN35: 18.65 | AO35: 17.85 | AP35: 19 | AQ35: 17.25 | AR35: 16.15 | AS35: 12.15 | AT35: 9.35 | AU35: 7.15 | AV35: 4.6 | AW35: 3.4 | AX35: 2.1 | AY35: 0.9 | AZ35: 0.75 | BA35: 0.25 | BB35: 0.15 | BG35: 365.25
A36: 34 - Hérault | B36: MONTPELLIER | C36: 0 | D36: 0 | E36: 0 | F36: 0 | G36: 0 | H36: 0 | I36: 0 | J36: 0 | K36: 0 | L36: 0 | M36: 0 | N36: 0 | O36: 0 | P36: 0 | Q36: 0 | R36: 0 | S36: 0 | T36: 0.15 | U36: 0.2 | V36: 0.5 | W36: 1.45 | X36: 1.2 | Y36: 3.15 | Z36: 4.55 | AA36: 7.95 | AB36: 8.5 | AC36: 11.3 | AD36: 13.65 | AE36: 16.05 | AF36: 16.4 | AG36: 19.15 | AH36: 21.2 | AI36: 17.8 | AJ36: 18.35 | AK36: 16.7 | AL36: 14.65 | AM36: 16.1 | AN36: 17.75 | AO36: 16.9 | AP36: 16.6 | AQ36: 16.4 | AR36: 16.15 | AS36: 15.7 | AT36: 16.05 | AU36: 13.5 | AV36: 10.65 | AW36: 8.15 | AX36: 5.65 | AY36: 1.8 | AZ36: 0.8 | BA36: 0.15 | BG36: 365.25
A37: 35 - Ile-et-Vilaine | B37: DINARD | C37: 0 | D37: 0 | E37: 0 | F37: 0 | G37: 0 | H37: 0 | I37: 0 | J37: 0 | K37: 0 | L37: 0 | M37: 0 | N37: 0 | O37: 0.05 | P37: 0.05 | Q37: 0.1 | R37: 0 | S37: 0.25 | T37: 0.55 | U37: 1.4 | V37: 1.95 | W37: 3.45 | X37: 3.95 | Y37: 5.7 | Z37: 7.7 | AA37: 8.9 | AB37: 12.35 | AC37: 17.3 | AD37: 20.85 | AE37: 23.3 | AF37: 26.1 | AG37: 25.45 | AH37: 22.95 | AI37: 22.5 | AJ37: 22.8 | AK37: 24.3 | AL37: 25.5 | AM37: 23.9 | AN37: 22.4 | AO37: 16.2 | AP37: 10.85 | AQ37: 6.05 | AR37: 4.05 | AS37: 2.3 | AT37: 1 | AU37: 0.65 | AV37: 0.2 | AW37: 0.1 | AX37: 0.05 | BA37: 0.05 | BG37: 365.25
A38: 36 - Indre | B38: CHATEAUROUX DEOLS | C38: 0 | D38: 0 | E38: 0 | F38: 0 | G38: 0 | H38: 0 | I38: 0 | J38: 0 | K38: 0 | L38: 0 | M38: 0 | N38: 0.1 | O38: 0.3 | P38: 0.15 | Q38: 0.4 | R38: 0.9 | S38: 1.25 | T38: 1.95 | U38: 3.45 | V38: 4.65 | W38: 5.75 | X38: 7.55 | Y38: 7.7 | Z38: 10.4 | AA38: 11.6 | AB38: 13.95 | AC38: 15.8 | AD38: 16.25 | AE38: 20.9 | AF38: 18.45 | AG38: 19.6 | AH38: 17.9 | AI38: 16.6 | AJ38: 17.7 | AK38: 18.2 | AL38: 17.1 | AM38: 18.95 | AN38: 17.35 | AO38: 17.4 | AP38: 16 | AQ38: 10.9 | AR38: 11.05 | AS38: 8.05 | AT38: 6.6 | AU38: 4.8 | AV38: 2.3 | AW38: 1.6 | AX38: 0.55 | AY38: 0.5 | AZ38: 0.2 | BA38: 0.3 | BB38: 0.1 | BG38: 365.25
A39: 37 - Indre-et-Loire | B39: TOURS | C39: 0 | D39: 0 | E39: 0 | F39: 0 | G39: 0 | H39: 0 | I39: 0 | J39: 0 | K39: 0 | L39: 0 | M39: 0 | N39: 0.2 | O39: 0.05 | P39: 0.1 | Q39: 0.25 | R39: 0.65 | S39: 0.9 | T39: 1.65 | U39: 3.05 | V39: 4.5 | W39: 4.6 | X39: 7.2 | Y39: 7.65 | Z39: 10.35 | AA39: 12 | AB39: 14 | AC39: 15.4 | AD39: 18.55 | AE39: 20.7 | AF39: 20.55 | AG39: 20.25 | AH39: 18.3 | AI39: 17.7 | AJ39: 18.55 | AK39: 17.55 | AL39: 18.7 | AM39: 19.7 | AN39: 18.7 | AO39: 17.85 | AP39: 14.05 | AQ39: 12.6 | AR39: 8.55 | AS39: 7.45 | AT39: 4.95 | AU39: 3.55 | AV39: 2.15 | AW39: 1.1 | AX39: 0.55 | AY39: 0.15 | AZ39: 0.25 | BA39: 0.15 | BB39: 0.1 | BG39: 365.25
A40: 38 - Isère | B40: GRENOBLE-ST GEOIRS | C40: 0 | D40: 0 | E40: 0 | F40: 0 | G40: 0 | H40: 0 | I40: 0 | J40: 0 | K40: 0 | L40: 0 | M40: 0.1 | N40: 0.05 | O40: 0.2 | P40: 1 | Q40: 0.9 | R40: 1.45 | S40: 1.85 | T40: 4.15 | U40: 5.4 | V40: 6.25 | W40: 7.8 | X40: 10.15 | Y40: 11.4 | Z40: 13.05 | AA40: 13.75 | AB40: 15.75 | AC40: 16.5 | AD40: 16.2 | AE40: 15.35 | AF40: 15.95 | AG40: 15.3 | AH40: 15.5 | AI40: 16.7 | AJ40: 14.45 | AK40: 15.3 | AL40: 16.05 | AM40: 16.65 | AN40: 17.25 | AO40: 16.05 | AP40: 13.15 | AQ40: 11.65 | AR40: 10.85 | AS40: 11.4 | AT40: 7.35 | AU40: 5.15 | AV40: 2.65 | AW40: 1.55 | AX40: 0.65 | AY40: 0.25 | AZ40: 0.1 | BG40: 365.25
A41: 39 - Jura | B41: DOLE | C41: 0 | D41: 0 | E41: 0 | F41: 0 | G41: 0 | H41: 0 | I41: 0 | J41: 0 | K41: 0 | L41: 0 | M41: 0.15 | N41: 0.1 | O41: 0.65 | P41: 0.45 | Q41: 1.3 | R41: 1.8 | S41: 2.65 | T41: 4.3 | U41: 4.55 | V41: 6.6 | W41: 9.35 | X41: 10.1 | Y41: 12.45 | Z41: 10.7 | AA41: 13.65 | AB41: 15.6 | AC41: 15 | AD41: 16.2 | AE41: 18.05 | AF41: 15.95 | AG41: 14.8 | AH41: 14.95 | AI41: 13.45 | AJ41: 15.95 | AK41: 17.6 | AL41: 16.6 | AM41: 16.45 | AN41: 17.65 | AO41: 15.45 | AP41: 14.65 | AQ41: 11.45 | AR41: 10.45 | AS41: 10.2 | AT41: 6.95 | AU41: 4.4 | AV41: 2.8 | AW41: 0.9 | AX41: 0.55 | AY41: 0.35 | AZ41: 0.05 | BG41: 365.25
A42: 40 - Landes | B42: MONT-DE-MARSAN | C42: 0 | D42: 0 | E42: 0 | F42: 0 | G42: 0 | H42: 0 | I42: 0 | J42: 0 | K42: 0 | L42: 0 | M42: 0 | N42: 0 | O42: 0 | P42: 0.05 | Q42: 0.1 | R42: 0.4 | S42: 0.35 | T42: 1 | U42: 1.35 | V42: 2 | W42: 3.2 | X42: 4.55 | Y42: 5.2 | Z42: 6.15 | AA42: 9.2 | AB42: 12.05 | AC42: 12.65 | AD42: 16.05 | AE42: 16.95 | AF42: 18.9 | AG42: 19.85 | AH42: 19.7 | AI42: 17.65 | AJ42: 17.9 | AK42: 18.8 | AL42: 17.35 | AM42: 18.05 | AN42: 18.7 | AO42: 18.45 | AP42: 16.75 | AQ42: 16.5 | AR42: 14.3 | AS42: 13.65 | AT42: 10.15 | AU42: 7.05 | AV42: 4.3 | AW42: 2.6 | AX42: 1.95 | AY42: 0.8 | AZ42: 0.3 | BA42: 0.15 | BB42: 0.15 | BG42: 365.25
A43: 41 - Loir-et-Cher | B43: ROMORANTIN | C43: 0 | D43: 0 | E43: 0 | F43: 0 | G43: 0 | H43: 0 | I43: 0 | J43: 0 | K43: 0 | L43: 0 | M43: 0.05 | N43: 0.1 | O43: 0.25 | P43: 0.3 | Q43: 0.6 | R43: 1.2 | S43: 1.05 | T43: 2.15 | U43: 3.35 | V43: 5.2 | W43: 6.6 | X43: 8.65 | Y43: 9.25 | Z43: 12.05 | AA43: 11.95 | AB43: 13.6 | AC43: 16.35 | AD43: 18 | AE43: 19.85 | AF43: 19.25 | AG43: 20.05 | AH43: 20.15 | AI43: 17 | AJ43: 17.75 | AK43: 18.95 | AL43: 19.1 | AM43: 19.7 | AN43: 17.85 | AO43: 15.1 | AP43: 14.25 | AQ43: 10.55 | AR43: 9.45 | AS43: 6.2 | AT43: 4.7 | AU43: 2.45 | AV43: 0.95 | AW43: 0.45 | AX43: 0.45 | AY43: 0.3 | BA43: 0.05 | BG43: 365.25
A44: 42 - Loire | B44: ST ETIENNE-BOUTHEON | C44: 0 | D44: 0 | E44: 0 | F44: 0 | G44: 0 | H44: 0 | I44: 0 | J44: 0 | K44: 0 | L44: 0 | M44: 0 | N44: 0.15 | O44: 0.25 | P44: 0.7 | Q44: 0.75 | R44: 1.3 | S44: 2.25 | T44: 3.05 | U44: 4.6 | V44: 6.4 | W44: 6.9 | X44: 8.7 | Y44: 10.8 | Z44: 11.15 | AA44: 13.15 | AB44: 13.35 | AC44: 15.7 | AD44: 14.95 | AE44: 16.15 | AF44: 17.6 | AG44: 16.5 | AH44: 18.3 | AI44: 16.9 | AJ44: 16.5 | AK44: 16.65 | AL44: 17.6 | AM44: 16.9 | AN44: 16.3 | AO44: 16.65 | AP44: 14 | AQ44: 10.5 | AR44: 10.8 | AS44: 9.25 | AT44: 8.55 | AU44: 4.35 | AV44: 3.6 | AW44: 1.65 | AX44: 1.2 | AY44: 0.8 | AZ44: 0.2 | BA44: 0.15 | BG44: 365.25
A45: 43 - Haute-Loire | B45: LE PUY-LOUDES | C45: 0 | D45: 0 | E45: 0 | F45: 0 | G45: 0 | H45: 0 | I45: 0 | J45: 0 | K45: 0.1 | L45: 0.2 | M45: 0.4 | N45: 0.85 | O45: 1.25 | P45: 1.3 | Q45: 2.75 | R45: 2.95 | S45: 4.3 | T45: 6.7 | U45: 6 | V45: 9.2 | W45: 11.5 | X45: 13.75 | Y45: 14.9 | Z45: 17.95 | AA45: 16.9 | AB45: 19.15 | AC45: 18 | AD45: 17.85 | AE45: 16.6 | AF45: 18.65 | AG45: 17.6 | AH45: 16.9 | AI45: 17.4 | AJ45: 16 | AK45: 17.9 | AL45: 14.5 | AM45: 13.05 | AN45: 13.7 | AO45: 11.35 | AP45: 9.65 | AQ45: 7.2 | AR45: 4.5 | AS45: 2.5 | AT45: 1 | AU45: 0.55 | AV45: 0.2 | BG45: 365.25
A46: 44 - Loire Atlantique | B46: NANTES-BOUGUENAIS | C46: 0 | D46: 0 | E46: 0 | F46: 0 | G46: 0 | H46: 0 | I46: 0 | J46: 0 | K46: 0 | L46: 0 | M46: 0 | N46: 0.05 | O46: 0.05 | P46: 0.1 | Q46: 0 | R46: 0.25 | S46: 0.35 | T46: 0.65 | U46: 1.3 | V46: 2.25 | W46: 4.25 | X46: 4.9 | Y46: 5.7 | Z46: 7.25 | AA46: 9.95 | AB46: 11.25 | AC46: 14.6 | AD46: 16.45 | AE46: 19.9 | AF46: 24.8 | AG46: 24.15 | AH46: 22.65 | AI46: 20.85 | AJ46: 18.25 | AK46: 19.25 | AL46: 20.3 | AM46: 21.3 | AN46: 21.5 | AO46: 18.85 | AP46: 14.7 | AQ46: 12.5 | AR46: 8.75 | AS46: 5.9 | AT46: 4.2 | AU46: 4 | AV46: 1.8 | AW46: 1.2 | AX46: 0.35 | AY46: 0.45 | AZ46: 0.15 | BB46: 0.1 | BG46: 365.25
A47: 45 - Loiret | B47: ORLEANS | C47: 0 | D47: 0 | E47: 0 | F47: 0 | G47: 0 | H47: 0 | I47: 0 | J47: 0 | K47: 0 | L47: 0 | M47: 0.15 | N47: 0 | O47: 0.2 | P47: 0.25 | Q47: 0.6 | R47: 0.55 | S47: 1.55 | T47: 2.45 | U47: 3.4 | V47: 5.3 | W47: 6.9 | X47: 7.2 | Y47: 9.6 | Z47: 10.95 | AA47: 12.2 | AB47: 15.5 | AC47: 16.45 | AD47: 18.8 | AE47: 20.2 | AF47: 19.35 | AG47: 18.3 | AH47: 17.95 | AI47: 18.15 | AJ47: 17 | AK47: 18.15 | AL47: 19.05 | AM47: 19.75 | AN47: 17.75 | AO47: 16.25 | AP47: 13.2 | AQ47: 12.3 | AR47: 8.5 | AS47: 6.3 | AT47: 4.8 | AU47: 2.4 | AV47: 2.05 | AW47: 0.8 | AX47: 0.45 | AY47: 0.25 | AZ47: 0.25 | BG47: 365.25
A48: 46 - Lot | B48: GOURDON | C48: 0 | D48: 0 | E48: 0 | F48: 0 | G48: 0 | H48: 0 | I48: 0 | J48: 0 | K48: 0 | L48: 0 | M48: 0 | N48: 0 | O48: 0 | P48: 0.1 | Q48: 0.35 | R48: 0.5 | S48: 1.4 | T48: 1.5 | U48: 2.35 | V48: 3.05 | W48: 4.45 | X48: 5.45 | Y48: 7.25 | Z48: 8.5 | AA48: 9.95 | AB48: 11.2 | AC48: 14.5 | AD48: 16.55 | AE48: 17.8 | AF48: 20.2 | AG48: 19.2 | AH48: 20.2 | AI48: 18.55 | AJ48: 16.2 | AK48: 17.75 | AL48: 17.85 | AM48: 17.45 | AN48: 17.75 | AO48: 18.35 | AP48: 15.7 | AQ48: 14.35 | AR48: 12.2 | AS48: 10.95 | AT48: 7.7 | AU48: 5.6 | AV48: 4.35 | AW48: 2.65 | AX48: 1.65 | AY48: 0.8 | AZ48: 0.45 | BA48: 0.25 | BB48: 0.1 | BC48: 0.1 | BG48: 365.25
A49: 47 - Lot-et-Garonne | B49: AGEN | C49: 0 | D49: 0 | E49: 0 | F49: 0 | G49: 0 | H49: 0 | I49: 0 | J49: 0 | K49: 0 | L49: 0 | M49: 0 | N49: 0 | O49: 0 | P49: 0.05 | Q49: 0.1 | R49: 0.15 | S49: 0.65 | T49: 1.2 | U49: 1.55 | V49: 2.45 | W49: 3.35 | X49: 5.15 | Y49: 6.35 | Z49: 7.25 | AA49: 8.7 | AB49: 10.35 | AC49: 14.4 | AD49: 14.45 | AE49: 17.2 | AF49: 19.85 | AG49: 20.3 | AH49: 17.45 | AI49: 19.15 | AJ49: 18.1 | AK49: 16.5 | AL49: 16 | AM49: 16.1 | AN49: 19.2 | AO49: 19.5 | AP49: 16.45 | AQ49: 15.9 | AR49: 15.7 | AS49: 12.5 | AT49: 10.75 | AU49: 7.5 | AV49: 4.85 | AW49: 3.15 | AX49: 1.55 | AY49: 0.85 | AZ49: 0.45 | BA49: 0.1 | BG49: 365.25
A50: 48 - Lozère | B50: MENDE-VILLE | C50: 0 | D50: 0 | E50: 0 | F50: 0 | G50: 0 | H50: 0 | I50: 0 | J50: 0 | K50: 0 | L50: 0 | M50: 0 | N50: 0.05 | O50: 0 | P50: 0.5 | Q50: 0.5 | R50: 1.65 | S50: 2.25 | T50: 2.4 | U50: 3.95 | V50: 5.9 | W50: 7.2 | X50: 9.2 | Y50: 13.95 | Z50: 15.4 | AA50: 19.1 | AB50: 19.05 | AC50: 17.95 | AD50: 18.9 | AE50: 18.15 | AF50: 16.75 | AG50: 18.1 | AH50: 15.55 | AI50: 16.45 | AJ50: 17 | AK50: 16.75 | AL50: 17 | AM50: 15.9 | AN50: 14.5 | AO50: 12.3 | AP50: 13.85 | AQ50: 11 | AR50: 9.85 | AS50: 6.95 | AT50: 3.75 | AU50: 2.25 | AV50: 0.75 | AW50: 0.3 | AX50: 0.1 | AY50: 0.05 | BG50: 365.25
A51: 49 - Maine-et-Loire | B51: BEAUCOUZE | C51: 0 | D51: 0 | E51: 0 | F51: 0 | G51: 0 | H51: 0 | I51: 0 | J51: 0 | K51: 0 | L51: 0 | M51: 0.05 | N51: 0 | O51: 0.15 | P51: 0 | Q51: 0.1 | R51: 0.45 | S51: 0.35 | T51: 1.35 | U51: 1.65 | V51: 3.65 | W51: 4.45 | X51: 5.2 | Y51: 7.05 | Z51: 7.3 | AA51: 10.1 | AB51: 12.8 | AC51: 14.05 | AD51: 16 | AE51: 20.1 | AF51: 22.25 | AG51: 22.25 | AH51: 21.1 | AI51: 20.7 | AJ51: 18.1 | AK51: 18.75 | AL51: 19.4 | AM51: 20.55 | AN51: 20.55 | AO51: 18.7 | AP51: 16.1 | AQ51: 13.4 | AR51: 8.8 | AS51: 7.65 | AT51: 4.55 | AU51: 3.2 | AV51: 2.15 | AW51: 1.15 | AX51: 0.8 | AY51: 0.15 | AZ51: 0.15 | BG51: 365.25
A52: 50 - Manche | B52: PTE DE LA HAGUE | C52: 0 | D52: 0 | E52: 0 | F52: 0 | G52: 0 | H52: 0 | I52: 0 | J52: 0 | K52: 0 | L52: 0 | M52: 0 | N52: 0 | O52: 0 | P52: 0 | Q52: 0 | R52: 0.05 | U52: 0.1 | V52: 0.25 | W52: 0.45 | X52: 1.15 | Y52: 2 | Z52: 3.35 | AA52: 6.85 | AB52: 9.1 | AC52: 13.6 | AD52: 18.55 | AE52: 27.65 | AF52: 36.05 | AG52: 35.3 | AH52: 25.65 | AI52: 23.25 | AJ52: 23.9 | AK52: 25.35 | AL52: 26.7 | AM52: 33 | AN52: 28.75 | AO52: 15.85 | AP52: 5.35 | AQ52: 1.6 | AR52: 0.85 | AS52: 0.35 | AT52: 0.1 | AU52: 0.1 | BG52: 365.25
A53: 51 - Marne | B53: REIMS-COURCY | C53: 0 | D53: 0 | E53: 0 | F53: 0 | G53: 0 | H53: 0 | I53: 0 | J53: 0.05 | K53: 0 | L53: 0.05 | M53: 0.1 | N53: 0.25 | O53: 0.45 | P53: 0.55 | Q53: 1 | R53: 1.4 | S53: 2.2 | T53: 3.35 | U53: 4.4 | V53: 5.6 | W53: 7.75 | X53: 8.8 | Y53: 10 | Z53: 11.05 | AA53: 15.15 | AB53: 15.25 | AC53: 18.9 | AD53: 18.15 | AE53: 20.75 | AF53: 17.55 | AG53: 18.05 | AH53: 18.2 | AI53: 17.2 | AJ53: 17.2 | AK53: 19.7 | AL53: 19.95 | AM53: 17.9 | AN53: 19.4 | AO53: 14.2 | AP53: 12.95 | AQ53: 8.75 | AR53: 7.65 | AS53: 5 | AT53: 3.4 | AU53: 1.5 | AV53: 0.7 | AW53: 0.35 | AX53: 0.25 | AY53: 0.15 | BG53: 365.25
A54: 52 - Haute-Marne | B54: LANGRES | C54: 0 | D54: 0 | E54: 0 | F54: 0 | G54: 0 | H54: 0 | I54: 0 | J54: 0 | K54: 0.15 | L54: 0.1 | M54: 0.3 | N54: 0.3 | O54: 0.3 | P54: 1.2 | Q54: 2.05 | R54: 2.75 | S54: 4.1 | T54: 6.45 | U54: 7.8 | V54: 9.05 | W54: 8.95 | X54: 12.35 | Y54: 11.95 | Z54: 15.2 | AA54: 15.55 | AB54: 16.75 | AC54: 16.3 | AD54: 17.5 | AE54: 15.4 | AF54: 14.15 | AG54: 15.9 | AH54: 17.25 | AI54: 16.5 | AJ54: 17.5 | AK54: 16.7 | AL54: 16.3 | AM54: 16.45 | AN54: 14.25 | AO54: 12.7 | AP54: 9.95 | AQ54: 8.45 | AR54: 9 | AS54: 6.05 | AT54: 4.4 | AU54: 2.65 | AV54: 0.9 | AW54: 0.7 | AX54: 0.3 | AY54: 0.2 | AZ54: 0.15 | BA54: 0.3 | BG54: 365.25
A55: 53 - Mayenne | B55: LAVAL-ENTRAMMES | C55: 0 | D55: 0 | E55: 0 | F55: 0 | G55: 0 | H55: 0 | I55: 0 | J55: 0 | K55: 0 | L55: 0 | M55: 0 | N55: 0.15 | O55: 0 | P55: 0.1 | Q55: 0.15 | R55: 0.3 | S55: 0.6 | T55: 1.4 | U55: 2.5 | V55: 3.55 | W55: 4.15 | X55: 7.4 | Y55: 7.1 | Z55: 8.6 | AA55: 11.75 | AB55: 14.75 | AC55: 16.8 | AD55: 19.65 | AE55: 22.45 | AF55: 21.45 | AG55: 21.55 | AH55: 20.8 | AI55: 19.85 | AJ55: 19.05 | AK55: 19.2 | AL55: 20.05 | AM55: 21.6 | AN55: 19.65 | AO55: 16.7 | AP55: 14.3 | AQ55: 9.95 | AR55: 6.55 | AS55: 5.3 | AT55: 2.75 | AU55: 2.75 | AV55: 1.15 | AW55: 0.7 | AX55: 0.2 | AY55: 0.2 | AZ55: 0.05 | BA55: 0.05 | BG55: 365.25
A56: 54 - Meurthe-et-Moselle | B56: NANCY-ESSEY | C56: 0 | D56: 0 | E56: 0 | F56: 0 | G56: 0 | H56: 0 | I56: 0 | J56: 0.15 | K56: 0 | L56: 0.15 | M56: 0.15 | N56: 0.25 | O56: 0.65 | P56: 1.15 | Q56: 1.3 | R56: 2.45 | S56: 3.2 | T56: 4 | U56: 5.1 | V56: 7.25 | W56: 8.65 | X56: 9.7 | Y56: 10.3 | Z56: 13.85 | AA56: 14.2 | AB56: 16 | AC56: 16.05 | AD56: 16.95 | AE56: 16.6 | AF56: 18.35 | AG56: 16.45 | AH56: 15.85 | AI56: 15.25 | AJ56: 17.75 | AK56: 16.8 | AL56: 18.35 | AM56: 16.75 | AN56: 16.4 | AO56: 13.7 | AP56: 12.55 | AQ56: 10.8 | AR56: 10.45 | AS56: 7.25 | AT56: 5.25 | AU56: 2.7 | AV56: 1.05 | AW56: 0.7 | AX56: 0.35 | AY56: 0.3 | AZ56: 0.1 | BG56: 365.25
A57: 55 - Meuse | B57: ERNEVILLE AUX B | C57: 0 | D57: 0 | E57: 0 | F57: 0 | G57: 0 | H57: 0.05 | I57: 0 | J57: 0.15 | K57: 0 | L57: 0.25 | M57: 0.1 | N57: 0.6 | O57: 0.95 | P57: 1.55 | Q57: 1.6 | R57: 2.3 | S57: 3.8 | T57: 5.05 | U57: 6.5 | V57: 8.1 | W57: 8.5 | X57: 11.3 | Y57: 13.35 | Z57: 13.95 | AA57: 15.65 | AB57: 16.5 | AC57: 18.4 | AD57: 17.8 | AE57: 19.3 | AF57: 16.4 | AG57: 17.7 | AH57: 16.35 | AI57: 18.75 | AJ57: 18.3 | AK57: 17.45 | AL57: 18.1 | AM57: 16.9 | AN57: 13.7 | AO57: 13.1 | AP57: 10.4 | AQ57: 8.75 | AR57: 5.6 | AS57: 3.9 | AT57: 2.05 | AU57: 0.95 | AV57: 0.5 | AW57: 0.2 | AX57: 0.3 | AY57: 0.1 | BG57: 365.25
A58: 56 - Morbihan | B58: LORIENT-LANN BIHOUE | C58: 0 | D58: 0 | E58: 0 | F58: 0 | G58: 0 | H58: 0 | I58: 0 | J58: 0 | K58: 0 | L58: 0 | M58: 0 | N58: 0 | O58: 0 | P58: 0.15 | Q58: 0 | R58: 0 | S58: 0.25 | T58: 0.2 | U58: 0.95 | V58: 1.45 | W58: 2.2 | X58: 3.2 | Y58: 6.05 | Z58: 5.75 | AA58: 8.8 | AB58: 12.05 | AC58: 15.6 | AD58: 17.7 | AE58: 21 | AF58: 26.55 | AG58: 29.5 | AH58: 27.1 | AI58: 22.7 | AJ58: 23.55 | AK58: 23.15 | AL58: 23.25 | AM58: 25.95 | AN58: 20.45 | AO58: 17.8 | AP58: 11.2 | AQ58: 6.7 | AR58: 4.95 | AS58: 2.7 | AT58: 2.55 | AU58: 0.6 | AV58: 0.4 | AW58: 0.5 | AX58: 0.2 | AZ58: 0.1 | BG58: 365.25
A59: 57 - Moselle | B59: METZ-FRESCATY | C59: 0 | D59: 0 | E59: 0 | F59: 0 | G59: 0 | H59: 0 | I59: 0 | J59: 0 | K59: 0.1 | L59: 0 | M59: 0.25 | N59: 0.15 | O59: 0.35 | P59: 0.9 | Q59: 1.1 | R59: 2.3 | S59: 2.45 | T59: 3.8 | U59: 5.4 | V59: 6.5 | W59: 8.15 | X59: 9.9 | Y59: 10.35 | Z59: 13 | AA59: 15.1 | AB59: 16.25 | AC59: 16.85 | AD59: 16.05 | AE59: 18.65 | AF59: 15.5 | AG59: 16.4 | AH59: 16.85 | AI59: 14.9 | AJ59: 17.2 | AK59: 17 | AL59: 17.45 | AM59: 17.3 | AN59: 16.4 | AO59: 14.65 | AP59: 12.55 | AQ59: 11.4 | AR59: 9.1 | AS59: 8 | AT59: 5.9 | AU59: 3.65 | AV59: 1.5 | AW59: 1 | AX59: 0.3 | AY59: 0.3 | AZ59: 0.2 | BA59: 0.1 | BG59: 365.25
A60: 58 - Nièvre | B60: NEVERS-MARZY | C60: 0 | D60: 0 | E60: 0 | F60: 0 | G60: 0 | H60: 0 | I60: 0 | J60: 0 | K60: 0 | L60: 0 | M60: 0.1 | N60: 0.1 | O60: 0.35 | P60: 0.5 | Q60: 0.75 | R60: 1.2 | S60: 2.1 | T60: 3.4 | U60: 4.45 | V60: 6.45 | W60: 6.7 | X60: 7.8 | Y60: 11 | Z60: 11 | AA60: 13.45 | AB60: 15 | AC60: 16.2 | AD60: 18.95 | AE60: 19.55 | AF60: 18.25 | AG60: 19.3 | AH60: 17.35 | AI60: 17.75 | AJ60: 18.05 | AK60: 17.85 | AL60: 19.9 | AM60: 17.5 | AN60: 16.8 | AO60: 14.6 | AP60: 14.25 | AQ60: 10.95 | AR60: 9.3 | AS60: 6.25 | AT60: 3.65 | AU60: 1.9 | AV60: 1.1 | AW60: 0.7 | AX60: 0.5 | AY60: 0.25 | BG60: 365.25
A61: 59 - Nord | B61: LILLE-LESQUIN | C61: 0 | D61: 0 | E61: 0 | F61: 0 | G61: 0 | H61: 0 | I61: 0 | J61: 0 | K61: 0 | L61: 0.05 | M61: 0.1 | O61: 0.2 | P61: 0.2 | Q61: 0.35 | R61: 0.65 | S61: 1.85 | T61: 2.4 | U61: 3.05 | V61: 4.85 | W61: 6.4 | X61: 7.65 | Y61: 9.4 | Z61: 11.75 | AA61: 13.85 | AB61: 17.3 | AC61: 18.05 | AD61: 19.3 | AE61: 21.1 | AF61: 19.15 | AG61: 19.45 | AH61: 19.05 | AI61: 18.2 | AJ61: 18.1 | AK61: 20.25 | AL61: 19.8 | AM61: 19.4 | AN61: 18.9 | AO61: 15.35 | AP61: 12.1 | AQ61: 9.35 | AR61: 5.9 | AS61: 4.55 | AT61: 3.25 | AU61: 2.3 | AV61: 0.75 | AW61: 0.5 | AX61: 0.3 | AY61: 0.1 | BG61: 365
A62: 60 - Oise | B62: BEAUVAIS-TILLE | C62: 0 | D62: 0 | E62: 0 | F62: 0 | G62: 0 | H62: 0 | I62: 0 | J62: 0 | K62: 0.05 | L62: 0 | M62: 0.15 | N62: 0.15 | O62: 0.15 | P62: 0.35 | Q62: 0.5 | R62: 0.6 | S62: 2.2 | T62: 1.9 | U62: 3.85 | V62: 5.35 | W62: 6.9 | X62: 8.35 | Y62: 10.1 | Z62: 11.95 | AA62: 14.5 | AB62: 16 | AC62: 16 | AD62: 20.95 | AE62: 22.05 | AF62: 18.5 | AG62: 19.75 | AH62: 18.2 | AI62: 19.4 | AJ62: 18.25 | AK62: 19.3 | AL62: 21.85 | AM62: 18.8 | AN62: 18.75 | AO62: 14.7 | AP62: 11.7 | AQ62: 8 | AR62: 6 | AS62: 3.95 | AT62: 2.95 | AU62: 1.55 | AV62: 0.6 | AW62: 0.6 | AX62: 0.15 | AY62: 0.15 | AZ62: 0.05 | BG62: 365.25
A63: 61 - Orne | B63: ALENCON | C63: 0 | D63: 0 | E63: 0 | F63: 0 | G63: 0 | H63: 0 | I63: 0 | J63: 0 | K63: 0 | L63: 0.05 | M63: 0.1 | N63: 0 | O63: 0.05 | P63: 0.05 | Q63: 0.25 | R63: 0.5 | S63: 1.2 | T63: 2.1 | U63: 3.15 | V63: 3.85 | W63: 5.85 | X63: 7.2 | Y63: 8.9 | Z63: 11.3 | AA63: 14.25 | AB63: 15.3 | AC63: 18.55 | AD63: 19.45 | AE63: 23.45 | AF63: 21.6 | AG63: 19.95 | AH63: 19.9 | AI63: 18.5 | AJ63: 19.2 | AK63: 19.85 | AL63: 21.35 | AM63: 19.95 | AN63: 17.35 | AO63: 16.1 | AP63: 11.5 | AQ63: 8.25 | AR63: 5.65 | AS63: 4.5 | AT63: 2.85 | AU63: 1.55 | AV63: 0.85 | AW63: 0.35 | AX63: 0.25 | AY63: 0.15 | AZ63: 0.05 | BG63: 365.25
A64: 62 - Pas-de-Calais | B64: LILLE-LESQUIN | C64: 0 | D64: 0 | E64: 0 | F64: 0 | G64: 0 | H64: 0 | I64: 0 | J64: 0 | K64: 0 | L64: 0.05 | M64: 0.1 | O64: 0.2 | P64: 0.2 | Q64: 0.35 | R64: 0.65 | S64: 1.85 | T64: 2.4 | U64: 3.05 | V64: 4.85 | W64: 6.4 | X64: 7.65 | Y64: 9.4 | Z64: 11.75 | AA64: 13.85 | AB64: 17.3 | AC64: 18.05 | AD64: 19.3 | AE64: 21.1 | AF64: 19.15 | AG64: 19.45 | AH64: 19.05 | AI64: 18.2 | AJ64: 18.1 | AK64: 20.25 | AL64: 19.8 | AM64: 19.4 | AN64: 18.9 | AO64: 15.35 | AP64: 12.1 | AQ64: 9.35 | AR64: 5.9 | AS64: 4.55 | AT64: 3.25 | AU64: 2.3 | AV64: 0.75 | AW64: 0.5 | AX64: 0.3 | AY64: 0.1 | BG64: 365
A65: 63 - Puy-de-Dôme | B65: CLERMONT-FD | C65: 0 | D65: 0 | E65: 0 | F65: 0 | G65: 0 | H65: 0 | I65: 0 | J65: 0 | K65: 0 | L65: 0 | M65: 0 | N65: 0.2 | O65: 0.5 | P65: 0.35 | Q65: 1.15 | R65: 0.9 | S65: 2.15 | T65: 2.9 | U65: 3.8 | V65: 5.45 | W65: 6.55 | X65: 7.65 | Y65: 9.25 | Z65: 9.25 | AA65: 12.15 | AB65: 13.2 | AC65: 16.55 | AD65: 15.35 | AE65: 18.65 | AF65: 15.2 | AG65: 19.85 | AH65: 18.1 | AI65: 17.65 | AJ65: 17.55 | AK65: 17.15 | AL65: 17.25 | AM65: 16.8 | AN65: 18.45 | AO65: 16.3 | AP65: 14.25 | AQ65: 13.05 | AR65: 11.45 | AS65: 8.7 | AT65: 6.4 | AU65: 4.45 | AV65: 3 | AW65: 1.85 | AX65: 0.85 | AY65: 0.5 | AZ65: 0.35 | BA65: 0.1 | BG65: 365.25
A66: 64 - Pyrénées Atlantiques | B66: BIARRITZ-ANGLET | C66: 0 | D66: 0 | E66: 0 | F66: 0 | G66: 0 | H66: 0 | I66: 0 | J66: 0 | K66: 0 | L66: 0 | M66: 0 | N66: 0 | O66: 0 | P66: 0 | Q66: 0 | R66: 0 | S66: 0.05 | T66: 0.25 | U66: 0.65 | V66: 0.7 | W66: 1.55 | X66: 2.35 | Y66: 2.95 | Z66: 4 | AA66: 4.25 | AB66: 7.85 | AC66: 9.95 | AD66: 11.8 | AE66: 16.45 | AF66: 18.45 | AG66: 22.35 | AH66: 22.4 | AI66: 21.95 | AJ66: 22.8 | AK66: 20.3 | AL66: 22 | AM66: 21.45 | AN66: 21.8 | AO66: 23.45 | AP66: 21.05 | AQ66: 20.95 | AR66: 15.05 | AS66: 11.45 | AT66: 6.25 | AU66: 5.15 | AV66: 2.3 | AW66: 1.95 | AX66: 0.85 | AY66: 0.25 | AZ66: 0.2 | BB66: 0.05 | BG66: 365.25
A67: 65 - Hautes-Pyrénées | B67: TARBES-OSSUN | C67: 0 | D67: 0 | E67: 0 | F67: 0 | G67: 0 | H67: 0 | I67: 0 | J67: 0 | K67: 0 | L67: 0 | M67: 0 | N67: 0 | O67: 0 | P67: 0 | Q67: 0.15 | R67: 0.25 | S67: 0.45 | T67: 0.9 | U67: 1.4 | V67: 2.5 | W67: 2.55 | X67: 5.25 | Y67: 6.25 | Z67: 8 | AA67: 10.05 | AB67: 14.1 | AC67: 16.65 | AD67: 19.55 | AE67: 21.8 | AF67: 20.55 | AG67: 20.2 | AH67: 19.4 | AI67: 18.65 | AJ67: 16.45 | AK67: 17.05 | AL67: 19.75 | AM67: 20.7 | AN67: 18.65 | AO67: 18.2 | AP67: 15.3 | AQ67: 14.5 | AR67: 12.9 | AS67: 8.4 | AT67: 6.4 | AU67: 3.7 | AV67: 2.25 | AW67: 1.4 | AX67: 0.65 | AY67: 0.2 | BA67: 0.1 | BG67: 365.25
A68: 66 - Pyrénées-orientales | B68: PERPIGNAN | C68: 0 | D68: 0 | E68: 0 | F68: 0 | G68: 0 | H68: 0 | I68: 0 | J68: 0 | K68: 0 | L68: 0 | M68: 0 | N68: 0 | O68: 0 | P68: 0 | Q68: 0 | R68: 0 | S68: 0 | T68: 0 | U68: 0 | V68: 0.1 | W68: 0.6 | X68: 0.75 | Y68: 1.95 | Z68: 2.7 | AA68: 4.5 | AB68: 6.65 | AC68: 9.15 | AD68: 11.9 | AE68: 14.95 | AF68: 18.95 | AG68: 20.9 | AH68: 20.95 | AI68: 19.6 | AJ68: 18.95 | AK68: 17.8 | AL68: 17.85 | AM68: 17.2 | AN68: 16.2 | AO68: 16.55 | AP68: 15.55 | AQ68: 17.25 | AR68: 16.35 | AS68: 16.65 | AT68: 16.05 | AU68: 14.7 | AV68: 12.25 | AW68: 7.3 | AX68: 5.4 | AY68: 3.55 | AZ68: 1.35 | BA68: 0.45 | BB68: 0.2 | BG68: 365.25
A69: 67 - Bas-Rhin | B69: STRASBOURG-ENTZHEIM | C69: 0 | D69: 0 | E69: 0 | F69: 0 | G69: 0 | H69: 0 | I69: 0 | J69: 0.1 | K69: 0.15 | L69: 0.1 | M69: 0.15 | N69: 0.35 | O69: 0.5 | P69: 0.8 | Q69: 1.65 | R69: 2.4 | S69: 3.4 | T69: 3.55 | U69: 6.35 | V69: 6.85 | W69: 8.45 | X69: 9.8 | Y69: 10.35 | Z69: 11.95 | AA69: 14.25 | AB69: 15.75 | AC69: 14.9 | AD69: 16.05 | AE69: 15.8 | AF69: 15.5 | AG69: 15.45 | AH69: 14.85 | AI69: 13.7 | AJ69: 14.75 | AK69: 16.7 | AL69: 17.25 | AM69: 16.35 | AN69: 17.75 | AO69: 16.3 | AP69: 14.45 | AQ69: 11.6 | AR69: 11.4 | AS69: 10.2 | AT69: 6.65 | AU69: 4.5 | AV69: 2.35 | AW69: 0.9 | AX69: 0.6 | AY69: 0.25 | AZ69: 0.1 | BG69: 365.25
A70: 68 - Haut-Rhin | B70: BALE-MULHOUSE | C70: 0 | D70: 0 | E70: 0 | F70: 0 | G70: 0 | H70: 0 | I70: 0 | J70: 0.1 | K70: 0.05 | L70: 0.2 | M70: 0.1 | N70: 0.6 | O70: 0.45 | P70: 1.3 | Q70: 1.35 | R70: 2.3 | S70: 3.25 | T70: 4.2 | U70: 5.85 | V70: 8 | W70: 9.1 | X70: 10 | Y70: 11.85 | Z70: 12.25 | AA70: 13.55 | AB70: 16.2 | AC70: 16.15 | AD70: 15.1 | AE70: 15.1 | AF70: 16.45 | AG70: 14.7 | AH70: 15.15 | AI70: 14.35 | AJ70: 16.4 | AK70: 15.95 | AL70: 17.75 | AM70: 16.4 | AN70: 17.25 | AO70: 15.65 | AP70: 13.85 | AQ70: 10.75 | AR70: 10.4 | AS70: 9.15 | AT70: 6.8 | AU70: 3.4 | AV70: 2.05 | AW70: 1.05 | AX70: 0.55 | AY70: 0.1 | AZ70: 0.05 | BG70: 365.25
A71: 69 - Rhône | B71: LYON-BRON | C71: 0 | D71: 0 | E71: 0 | F71: 0 | G71: 0 | H71: 0 | I71: 0 | J71: 0 | K71: 0 | L71: 0 | M71: 0 | N71: 0 | O71: 0.05 | P71: 0.15 | Q71: 0.55 | R71: 0.8 | S71: 1.5 | T71: 2.7 | U71: 3.9 | V71: 4.75 | W71: 6.45 | X71: 9.85 | Y71: 8.2 | Z71: 10.3 | AA71: 12.55 | AB71: 14.15 | AC71: 13.15 | AD71: 15.55 | AE71: 15.35 | AF71: 17.05 | AG71: 15.15 | AH71: 15.85 | AI71: 14.5 | AJ71: 13.8 | AK71: 17.8 | AL71: 15.2 | AM71: 15.2 | AN71: 15.4 | AO71: 18.45 | AP71: 15.1 | AQ71: 13.8 | AR71: 13.1 | AS71: 10.25 | AT71: 9.65 | AU71: 8.75 | AV71: 6.35 | AW71: 4.85 | AX71: 2.35 | AY71: 1.5 | AZ71: 0.7 | BA71: 0.3 | BB71: 0.2 | BG71: 365.25
A72: 70 - Haute-Saône | B72: LUXEUIL | C72: 0 | D72: 0 | E72: 0 | F72: 0 | G72: 0 | H72: 0 | I72: 0 | J72: 0 | K72: 0.1 | L72: 0.4 | M72: 0.1 | N72: 0.55 | O72: 0.75 | P72: 0.45 | Q72: 1.8 | R72: 2.65 | S72: 3.05 | T72: 4.65 | U72: 7 | V72: 7.65 | W72: 9.8 | X72: 9.35 | Y72: 10.7 | Z72: 12.15 | AA72: 15.6 | AB72: 16.1 | AC72: 14.85 | AD72: 17.7 | AE72: 17.2 | AF72: 16.75 | AG72: 16.6 | AH72: 13.85 | AI72: 16.15 | AJ72: 17.25 | AK72: 16.45 | AL72: 16.9 | AM72: 17.25 | AN72: 16 | AO72: 14.4 | AP72: 11.8 | AQ72: 11.65 | AR72: 9.75 | AS72: 7.75 | AT72: 4.75 | AU72: 2.7 | AV72: 1.2 | AW72: 0.9 | AX72: 0.55 | BG72: 365.25
A73: 71 - Saône-et-Loire | B73: MACON | C73: 0 | D73: 0 | E73: 0 | F73: 0 | G73: 0 | H73: 0 | I73: 0 | J73: 0 | K73: 0 | L73: 0 | M73: 0 | N73: 0.1 | O73: 0.2 | P73: 0.4 | Q73: 0.65 | R73: 1.35 | S73: 2.1 | T73: 3.45 | U73: 4.5 | V73: 5.85 | W73: 7.6 | X73: 8.95 | Y73: 9.05 | Z73: 11.5 | AA73: 13.15 | AB73: 14.55 | AC73: 14.8 | AD73: 15.5 | AE73: 14.95 | AF73: 18.7 | AG73: 16 | AH73: 15.7 | AI73: 14.9 | AJ73: 15.45 | AK73: 15.25 | AL73: 17.65 | AM73: 15 | AN73: 17.95 | AO73: 15.9 | AP73: 15.3 | AQ73: 14.65 | AR73: 11.1 | AS73: 10.65 | AT73: 8.75 | AU73: 6.05 | AV73: 3.85 | AW73: 1.65 | AX73: 1.1 | AY73: 0.55 | AZ73: 0.45 | BG73: 365.25
A74: 72 - Sarthe | B74: LE MANS | C74: 0 | D74: 0 | E74: 0 | F74: 0 | G74: 0 | H74: 0 | I74: 0 | J74: 0 | K74: 0 | L74: 0 | M74: 0 | N74: 0.15 | O74: 0.05 | P74: 0.2 | Q74: 0.1 | R74: 0.45 | S74: 0.65 | T74: 1.3 | U74: 2.05 | V74: 4.05 | W74: 4.55 | X74: 6.2 | Y74: 7.75 | Z74: 9.7 | AA74: 11.7 | AB74: 12.2 | AC74: 16.35 | AD74: 16.5 | AE74: 20.4 | AF74: 23.05 | AG74: 18.8 | AH74: 19.8 | AI74: 19.3 | AJ74: 17.3 | AK74: 18.4 | AL74: 19.65 | AM74: 19.05 | AN74: 19.5 | AO74: 18.65 | AP74: 13.7 | AQ74: 12.55 | AR74: 10.15 | AS74: 6.85 | AT74: 4.7 | AU74: 3.95 | AV74: 2.7 | AW74: 1.45 | AX74: 0.45 | AY74: 0.5 | AZ74: 0.2 | BA74: 0.1 | BB74: 0.1 | BG74: 365.25
A75: 73 - Savoie | B75: CHAMBERY-AIX | C75: 0 | D75: 0 | E75: 0 | F75: 0 | G75: 0 | H75: 0 | I75: 0 | J75: 0 | K75: 0 | L75: 0 | M75: 0 | N75: 0 | O75: 0 | P75: 0.05 | Q75: 0.05 | R75: 0.8 | S75: 1.5 | T75: 3.2 | U75: 4.7 | V75: 5.9 | W75: 8.4 | X75: 10.85 | Y75: 13.7 | Z75: 14.15 | AA75: 16.45 | AB75: 15.75 | AC75: 14.5 | AD75: 16.45 | AE75: 13.8 | AF75: 15.3 | AG75: 14.55 | AH75: 13.2 | AI75: 13.95 | AJ75: 15.6 | AK75: 15.5 | AL75: 15.8 | AM75: 15.25 | AN75: 14.9 | AO75: 17.55 | AP75: 15.85 | AQ75: 12.4 | AR75: 13.1 | AS75: 12.35 | AT75: 8.4 | AU75: 6.2 | AV75: 2.75 | AW75: 1.4 | AX75: 0.7 | AY75: 0.25 | BG75: 365.25
